Workbook

Sheet Cover
B2: Error checking | C2: Status | E2: Cell legend
B3: Input sheets | E3: Input
B4: Dx_Inputs | C4: =Dx_Inputs!C1 -> OK | E4: Calculation
B5: Tx_Inputs | C5: =Tx_Inputs!C1 -> OK | E5: Calculation - Different calc
B6: WACC_Inputs | C6: n/a | E6: Negative value | F6: Red text
B7: Adjustment_Inputs | C7: n/a | E7: Historical input or N/A
B8: Calculations
B9: Dx_Asset | C9: =Dx_Asset!C1 -> OK
B10: Dx_Tax_Asset | C10: =Dx_Tax_Asset!C1 -> OK
B11: Tx_Asset | C11: =Tx_Asset!C1 -> OK
B12: Tx_Tax_Asset | C12: =Tx_Tax_Asset!C1 -> OK | E12: MODEL DISCLAIMER
B13: Tax_Analysis | C13: =Tax_Analysis!C1 -> OK | E13: This model is to show the calculation of Western Power's revenue cap as submitted to the ERA in November 2022 for its Access Arrangement Five (AA5) submission.
B14: Dx_CoS | C14: =Dx_CoS!C1 -> OK
B15: Dx_CoS smoothing | C15: =Dx_CoS!C107 -> OK | E15: This model is not to be used for any other purpose as correct use of the model relies on an understanding of the of the relationships amongst the data in the model
B16: Tx_CoS | C16: =Tx_CoS!C1 -> OK | E16: which may change if one or more elements of the model are changed.
B17: Tx_CoS smoothing | C17: =Tx_CoS!C94 -> OK
B18: Dx_Adjustments | C18: =Dx_Adjustments!C1 -> OK
B19: Tx_Adjustments | C19: =Tx_Adjustments!C1 -> OK
B20: GSM | C20: n/a
B22: Index of tabs contained in this model
B23: Tab | C23: Description
B24: Cover | C24: Cover page with error checking and solve model macro
B25: Output_Summary | C25: Output summary of key measures and graphs
B26: Public output summary | C26: High level output summary sized for A4 page printing
B27: INPUTS
B28: Dx_Inputs | C28: Distribution network inputs - primarily expenditure related
B29: Tx_Inputs | C29: Transmission network inputs - primarily expenditure related
B30: WACC_Inputs | C30: Weighted Average Cost of Capital inputs as well as values over AA1 - AA4
B31: Adjustment_Inputs | C31: Inputs required to calculate service standard and expenditure adjustment mechanisms
B32: Incentive_Rate_Inputs | C32: Metrics related to the calculation of service standard incentive rates
B33: Incentive_rates | C33: Incentive rates related to network performance
B34: CALCULATIONS
B35: Dx_Asset | C35: Roll forward calculation of distribution Regulated Asset Base (RAB)
B36: Dx_Tax_Asset | C36: Roll forward calculation of distribution Tax Asset Base (TAB)
B37: Tx_Asset | C37: Roll forward calculation of transnmission RAB
B38: Tx_Tax_Asset | C38: Roll forward calculation of transmission TAB
B39: Dx_CoS | C39: Calculation of Distribution cost of service (building blocks)
B40: Tx_CoS | C40: Calculation of Transmission cost of service (building blocks)
B41: GSM | C41: Gain Sharing Mechanism calculations
B42: Tax_Analysis | C42: Tax and equity raising cost calculations
B43: Dx_Adjustments | C43: Distribution expenditure adjustment calculations
B44: Tx_Adjustments | C44: Transmission expenditure adjustment calculations

Sheet Public output summary
A1: Key metrics
A2: WACC return | C2: 2023 | D2: 2024 | E2: 2025 | F2: 2026 | G2: 2027
A3: Nominal post tax | C3: 0.0710477 | D3: 0.0710477 | E3: 0.0710477 | F3: 0.0710477 | G3: 0.0710477
A5: Price path | C5: 2023 | D5: 2024 | E5: 2025 | F5: 2026 | G5: 2027
A6: Distribution | C6: 0 | D6: 0.07240963515 | E6: 0.07240963515 | F6: 0.07240963515 | G6: 0.07240963515
A7: Transmission | C7: 0 | D7: -0.06942650571 | E7: -0.08942650571 | F7: -0.1094265057 | G7: -0.1294265057
A8: Bundled | C8: 0 | D8: 0.03347690896 | E8: 0.03241024927 | F8: 0.03277081561 | G8: 0.03446894304
A10: Revenue cap [$M nominal] | C10: 2023 | D10: 2024 | E10: 2025 | F10: 2026 | G10: 2027
A11: Distribution | C11: 1155.766155 | D11: 1230.306739 | E11: 1303.533315 | F11: 1385.925968 | G11: 1463.592318
A12: Transmission | C12: 578.8631908 | D12: 535.6462492 | E12: 483.334287 | F12: 427.6698012 | G12: 368.0517476
A13: Total | C13: 1734.629346 | D13: 1765.952988 | E13: 1786.867602 | F13: 1813.59577 | G13: 1831.644066
A15: Energy (GWh) | C15: 2023 | D15: 2024 | E15: 2025 | F15: 2026 | G15: 2027
A16: Distribution | C16: 13685.61228 | D16: 13584.60313 | E16: 13421.31224 | F16: 13306.1425 | G16: 13103.02447
A17: Transmission | C17: 18116.95329 | D17: 18015.09764 | E17: 17852.17569 | F17: 17737.0899 | G17: 17533.84756
B54: Output Summary data for graphing
B55: Year ending 30 June | D55: 2006 | E55: 2007 | F55: 2008 | G55: 2009 | H55: 2010 | I55: 2011 | J55: 2012 | K55: 2013 | L55: 2014 | M55: 2015 | N55: 2016 | O55: 2017 | P55: 2018 | Q55: 2019 | R55: 2020 | S55: 2021 | T55: 2022 | U55: 2023 | V55: 2024 | W55: 2025 | X55: 2026 | Y55: 2027
B56: Revenue path [$M nominal]
B57: Distribution | E57: =Dx_CoS!G106 -> 327.5635847 | F57: =Dx_CoS!H106 -> 427.5369699 | G57: =Dx_CoS!I106 -> 461.9704548 | H57: =Dx_CoS!J106 -> 513.899676 | I57: =Dx_CoS!K106 -> 711.271 | J57: =Dx_CoS!L106 -> 804.783 | K57: =Dx_CoS!M106 -> 835.207 | L57: =Dx_CoS!N106 -> 968.278 | M57: =Dx_CoS!O106 -> 1043.275 | N57: =Dx_CoS!P106 -> 1173.615 | O57: =Dx_CoS!Q106 -> 1217.994 | P57: =Dx_CoS!R106 -> 1210.089 | Q57: =Dx_CoS!S106 -> 1194.793 | R57: =Dx_CoS!T106 -> 1180.308 | S57: =Dx_CoS!U106 -> 1156.776 | T57: =Dx_CoS!V106 -> 1121.486 | U57: =Dx_CoS!W106 -> 1155.766155 | V57: =Dx_CoS!X106 -> 1230.306739 | W57: =Dx_CoS!Y106 -> 1303.533315 | X57: =Dx_CoS!Z106 -> 1385.925968 | Y57: =Dx_CoS!AA106 -> 1463.592318
B58: Transmission | E58: =Tx_CoS!G93 -> 200.4046813 | F58: =Tx_CoS!H93 -> 215.3356458 | G58: =Tx_CoS!I93 -> 227.2674179 | H58: =Tx_CoS!J93 -> 270.3259342 | I58: =Tx_CoS!K93 -> 345.421 | J58: =Tx_CoS!L93 -> 387.876 | K58: =Tx_CoS!M93 -> 387.303 | L58: =Tx_CoS!N93 -> 363.667 | M58: =Tx_CoS!O93 -> 350.264 | N58: =Tx_CoS!P93 -> 324.252 | O58: =Tx_CoS!Q93 -> 293.647 | P58: =Tx_CoS!R93 -> 286.112 | Q58: =Tx_CoS!S93 -> 282.479 | R58: =Tx_CoS!T93 -> 343.092 | S58: =Tx_CoS!U93 -> 424.272 | T58: =Tx_CoS!V93 -> 554.56 | U58: =Tx_CoS!W93 -> 578.8631908 | V58: =Tx_CoS!X93 -> 535.6462492 | W58: =Tx_CoS!Y93 -> 483.334287 | X58: =Tx_CoS!Z93 -> 427.6698012 | Y58: =Tx_CoS!AA93 -> 368.0517476
B59: Total | E59: =SUM(E57:E58) -> 527.9682659 | F59: 642.8726156 | G59: 689.2378727 | H59: 784.2256102 | I59: 1056.692 | J59: 1192.659 | K59: 1222.51 | L59: 1331.945 | M59: 1393.539 | N59: 1497.867 | O59: 1511.641 | P59: 1496.201 | Q59: 1477.272 | R59: 1523.4 | S59: 1581.048 | T59: 1676.046 | U59: 1734.629346 | V59: 1765.952988 | W59: 1786.867602 | X59: 1813.59577 | Y59: 1831.644066
B61: Opex [$M real as at 30 June 2022]
B62: Distribution | E62: =Dx_Inputs!E783 -> 326.867904 | F62: =Dx_Inputs!F783 -> 332.8433602 | G62: =Dx_Inputs!G783 -> 369.7503451 | H62: =Dx_Inputs!H783 -> 355.6234289 | I62: =Dx_Inputs!I783 -> 396.5051792 | J62: =Dx_Inputs!J783 -> 453.4658325 | K62: =Dx_Inputs!K783 -> 440.5205623 | L62: =Dx_Inputs!L783 -> 424.3132731 | M62: =Dx_Inputs!M783 -> 394.9959571 | N62: =Dx_Inputs!N783 -> 421.1446348 | O62: =Dx_Inputs!O783 -> 383.7537861 | P62: =Dx_Inputs!P783 -> 342.0839414 | Q62: =Dx_Inputs!Q783 -> 291.4611938 | R62: =Dx_Inputs!R783 -> 329.2086107 | S62: =Dx_Inputs!S783 -> 311.7179824 | T62: =Dx_Inputs!T783 -> 336.243 | U62: =Dx_Inputs!U783 -> 328.9120674 | V62: =Dx_Inputs!V783 -> 335.4539127 | W62: =Dx_Inputs!W783 -> 342.9824153 | X62: =Dx_Inputs!X783 -> 348.6073179 | Y62: =Dx_Inputs!Y783 -> 351.1169495
B63: Transmission | E63: =Tx_Inputs!E693 -> 96.48488648 | F63: =Tx_Inputs!F693 -> 96.92555527 | G63: =Tx_Inputs!G693 -> 95.11899741 | H63: =Tx_Inputs!H693 -> 109.6574829 | I63: =Tx_Inputs!I693 -> 122.0963185 | J63: =Tx_Inputs!J693 -> 149.7176659 | K63: =Tx_Inputs!K693 -> 139.6516466 | L63: =Tx_Inputs!L693 -> 133.6900128 | M63: =Tx_Inputs!M693 -> 131.6912044 | N63: =Tx_Inputs!N693 -> 138.2815591 | O63: =Tx_Inputs!O693 -> 115.46341 | P63: =Tx_Inputs!P693 -> 110.3595018 | Q63: =Tx_Inputs!Q693 -> 102.6051236 | R63: =Tx_Inputs!R693 -> 127.8685806 | S63: =Tx_Inputs!S693 -> 124.0655616 | T63: =Tx_Inputs!T693 -> 125.069 | U63: =Tx_Inputs!U693 -> 109.0060618 | V63: =Tx_Inputs!V693 -> 111.8195411 | W63: =Tx_Inputs!W693 -> 106.9055452 | X63: =Tx_Inputs!X693 -> 107.5536743 | Y63: =Tx_Inputs!Y693 -> 107.9276713
B64: Total | E64: =SUM(E62:E63) -> 423.3527905 | F64: 429.7689154 | G64: 464.8693425 | H64: 465.2809118 | I64: 518.6014977 | J64: 603.1834984 | K64: 580.1722088 | L64: 558.0032859 | M64: 526.6871614 | N64: 559.4261939 | O64: 499.2171961 | P64: 452.4434433 | Q64: 394.0663174 | R64: 457.0771913 | S64: 435.783544 | T64: 461.312 | U64: 437.9181292 | V64: 447.2734538 | W64: 449.8879605 | X64: 456.1609922 | Y64: 459.0446208
B66: Capex [$M real as at 30 June 2022]
B67: Distribution | E67: =Dx_Inputs!E301 -> 483.5673653 | F67: =Dx_Inputs!F301 -> 528.6320283 | G67: =Dx_Inputs!G301 -> 661.347239 | H67: =Dx_Inputs!H301 -> 615.6093543 | I67: =Dx_Inputs!I301 -> 628.5998718 | J67: =Dx_Inputs!J301 -> 734.5398061 | K67: =Dx_Inputs!K301 -> 847.5844788 | L67: =Dx_Inputs!L301 -> 851.009376 | M67: =Dx_Inputs!M301 -> 762.5933244 | N67: =Dx_Inputs!N301 -> 645.4919484 | O67: =Dx_Inputs!O301 -> 492.7624279 | P67: =Dx_Inputs!P301 -> 469.3153465 | Q67: =Dx_Inputs!Q301 -> 515.102678 | R67: =Dx_Inputs!R301 -> 531.95034 | S67: =Dx_Inputs!S301 -> 527.987539 | T67: =Dx_Inputs!T301 -> 572.9809058 | U67: =Dx_Inputs!U301 -> 694.9779543 | V67: =Dx_Inputs!V301 -> 750.1314008 | W67: =Dx_Inputs!W301 -> 804.477034 | X67: =Dx_Inputs!X301 -> 781.1377293 | Y67: =Dx_Inputs!Y301 -> 802.8429843
B68: Transmission | E68: =Tx_Inputs!E243 -> 346.066753 | F68: =Tx_Inputs!F243 -> 357.8031813 | G68: =Tx_Inputs!G243 -> 365.322952 | H68: =Tx_Inputs!H243 -> 278.5718152 | I68: =Tx_Inputs!I243 -> 206.0837542 | J68: =Tx_Inputs!J243 -> 194.1978438 | K68: =Tx_Inputs!K243 -> 249.716639 | L68: =Tx_Inputs!L243 -> 375.3695397 | M68: =Tx_Inputs!M243 -> 179.4734739 | N68: =Tx_Inputs!N243 -> 137.016404 | O68: =Tx_Inputs!O243 -> 130.4810115 | P68: =Tx_Inputs!P243 -> 120.777139 | Q68: =Tx_Inputs!Q243 -> 192.0829405 | R68: =Tx_Inputs!R243 -> 292.3230925 | S68: =Tx_Inputs!S243 -> 217.0933464 | T68: =Tx_Inputs!T243 -> 227.112 | U68: =Tx_Inputs!U243 -> 262.1450289 | V68: =Tx_Inputs!V243 -> 263.4897379 | W68: =Tx_Inputs!W243 -> 255.5457068 | X68: =Tx_Inputs!X243 -> 253.1768696 | Y68: =Tx_Inputs!Y243 -> 182.2658071
B69: Total | E69: =SUM(E67:E68) -> 829.6341183 | F69: 886.4352096 | G69: 1026.670191 | H69: 894.1811695 | I69: 834.683626 | J69: 928.7376499 | K69: 1097.301118 | L69: 1226.378916 | M69: 942.0667983 | N69: 782.5083525 | O69: 623.2434393 | P69: 590.0924855 | Q69: 707.1856185 | R69: 824.2734325 | S69: 745.0808854 | T69: 800.0929058 | U69: 957.1229831 | V69: 1013.621139 | W69: 1060.022741 | X69: 1034.314599 | Y69: 985.1087914
B71: RAB closing value [$M real as at 30 June 2022]
B72: Distribution | E72: =Dx_Asset!G10 -> 2617.745564 | F72: =Dx_Asset!H10 -> 3024.510116 | G72: =Dx_Asset!I10 -> 3618.749279 | H72: =Dx_Asset!J10 -> 3948.269823 | I72: =Dx_Asset!K10 -> 4263.505634 | J72: =Dx_Asset!L10 -> 4643.478653 | K72: =Dx_Asset!M10 -> 5145.975953 | L72: =Dx_Asset!N10 -> 5620.792016 | M72: =Dx_Asset!O10 -> 6004.853615 | N72: =Dx_Asset!P10 -> 6254.860698 | O72: =Dx_Asset!Q10 -> 6337.177275 | P72: =Dx_Asset!R10 -> 6387.950504 | Q72: =Dx_Asset!S10 -> 6468.78034 | R72: =Dx_Asset!T10 -> 6613.238932 | S72: =Dx_Asset!U10 -> 6772.731585 | T72: =Dx_Asset!V10 -> 6939.173579 | U72: =Dx_Asset!W10 -> 7231.380863 | V72: =Dx_Asset!X10 -> 7564.706531 | W72: =Dx_Asset!Y10 -> 7919.576746 | X72: =Dx_Asset!Z10 -> 8211.616124 | Y72: =Dx_Asset!AA10 -> 8503.88994
B73: Transmission | E73: =Tx_Asset!G10 -> 2230.605199 | F73: =Tx_Asset!H10 -> 2511.261423 | G73: =Tx_Asset!I10 -> 2795.354071 | H73: =Tx_Asset!J10 -> 2934.370335 | I73: =Tx_Asset!K10 -> 3018.461806 | J73: =Tx_Asset!L10 -> 3077.792813 | K73: =Tx_Asset!M10 -> 3199.010126 | L73: =Tx_Asset!N10 -> 3454.722201 | M73: =Tx_Asset!O10 -> 3493.898649 | N73: =Tx_Asset!P10 -> 3426.12273 | O73: =Tx_Asset!Q10 -> 3396.803483 | P73: =Tx_Asset!R10 -> 3328.301158 | Q73: =Tx_Asset!S10 -> 3300.529669 | R73: =Tx_Asset!T10 -> 3398.498455 | S73: =Tx_Asset!U10 -> 3410.667026 | T73: =Tx_Asset!V10 -> 3429.688858 | U73: =Tx_Asset!W10 -> 3478.897241 | V73: =Tx_Asset!X10 -> 3539.594942 | W73: =Tx_Asset!Y10 -> 3584.021259 | X73: =Tx_Asset!Z10 -> 3618.786134 | Y73: =Tx_Asset!AA10 -> 3600.951479
B74: Total | E74: =SUM(E72:E73) -> 4848.350763 | F74: 5535.771539 | G74: 6414.10335 | H74: 6882.640158 | I74: 7281.96744 | J74: 7721.271466 | K74: 8344.986079 | L74: 9075.514217 | M74: 9498.752264 | N74: 9680.983429 | O74: 9733.980759 | P74: 9716.251662 | Q74: 9769.310009 | R74: 10011.73739 | S74: 10183.39861 | T74: 10368.86244 | U74: 10710.2781 | V74: 11104.30147 | W74: 11503.598 | X74: 11830.40226 | Y74: 12104.84142

Sheet INPUTS -->

Sheet Dx_Inputs
B1: Validation status | C1: =IF(COUNTIF(AI6:AI25,"CHECK")+COUNTIF(P29:P47,"CHECK")+COUNTIF(P6:P25,"CHECK")+COUNTIF(E188:AD188,"CHECK")+COUNTIF(E266:J266,"CHECK")+COUNTIF(E302:AD302,"CHECK")+COUNTIF(E361:T361,"CHECK")+COUNTIF(E397:AD397,"CHECK")+COUNTIF(E531:AD531,"CHECK")+COUNTIF(K762:O762,"CHECK")+COUNTIF(E784:AD784,"CHECK")>0,"CHECK","OK") -> OK
B2: Allocation of capex and contributions from regulatory category to asset class
B3: % matrix
B4: Distribution -AA3/AA4 | U4: Actual - AA4
B5: Growth | C5: Wooden Pole Lines | D5: Underground Cables | E5: Transformers | F5: Switchgear | G5: Street lighting | H5: Meters and Services | I5: IT | J5: SCADA & Communications | K5: Other Distribution Non-Network | L5: Distribution Land & Easements | M5: Equity Raising Costs | N5: SPS | O5: Storage | U5: Growth | V5: Wooden Pole Lines | W5: Underground Cables | X5: Transformers | Y5: Switchgear | Z5: Street lighting | AA5: Meters and Services | AB5: IT | AC5: SCADA & Communications | AD5: Other Distribution Non-Network | AE5: Distribution Land & Easements | AF5: Equity Raising Costs | AG5: SPS | AH5: Storage
B6: Capacity Expansion | C6: 0.4528455475 | D6: 0.3937764732 | E6: 0.07362193862 | F6: 0.07840838279 | G6: 0.001347657887 | H6: 0 | I6: 0 | J6: 0 | K6: 0 | L6: 0 | M6: 0 | N6: 0 | O6: 0 | P6: =IF(SUM(C6:O6)=1,"OK","CHECK") -> OK | U6: Capacity Expansion | V6: 0 | W6: 0.07779766468 | X6: 0.02963358825 | Y6: -2.03277859e-19 | Z6: 0 | AA6: 0 | AB6: 0 | AC6: 0 | AD6: 0.8458050164 | AE6: 0 | AF6: 0 | AG6: 0 | AH6: 0.04676373065 | AI6: =IF(SUM(V6:AH6)=1,"OK","CHECK") -> OK
B7: Customer Driven | C7: 0.1296069327 | D7: 0.2456531962 | E7: 0.4807318146 | F7: 0.137064576 | G7: 0.006943480447 | H7: 0 | I7: 0 | J7: 0 | K7: 0 | L7: 0 | M7: 0 | N7: 0 | O7: 0 | P7: =IF(SUM(C7:O7)=1,"OK","CHECK") -> OK | U7: Customer Driven | V7: 0.1073365091 | W7: 0.3493253142 | X7: 0.2124247482 | Y7: 0.1395207031 | Z7: 0.08240478909 | AA7: 0.005789388935 | AB7: 0 | AC7: 0.0009134215002 | AD7: 0.1022851259 | AE7: 0 | AF7: 0 | AG7: 0 | AH7: 0 | AI7: =IF(SUM(V7:AH7)=1,"OK","CHECK") -> OK
B8: Gifted Assets | C8: 0.1296069327 | D8: 0.2456531962 | E8: 0.4807318146 | F8: 0.137064576 | G8: 0.006943480447 | H8: 0 | I8: 0 | J8: 0 | K8: 0 | L8: 0 | M8: 0 | N8: 0 | O8: 0 | P8: =IF(SUM(C8:O8)=1,"OK","CHECK") -> OK | U8: Gifted Assets | V8: 0.1073365091 | W8: 0.3493253142 | X8: 0.2124247482 | Y8: 0.1395207031 | Z8: 0.08240478909 | AA8: 0.005789388935 | AB8: 0 | AC8: 0.0009134215002 | AD8: 0.1022851259 | AE8: 0 | AF8: 0 | AG8: 0 | AH8: 0 | AI8: OK
B9: Asset replacement and renewal | U9: Asset replacement and renewal
B10: Asset Replacement | C10: 0 | D10: 0.1830563095 | E10: 0.5163548429 | F10: 0.2653017117 | G10: 0.03528713594 | H10: 0 | I10: 0 | J10: 0 | K10: 0 | L10: 0 | M10: 0 | N10: 0 | O10: 0 | P10: =IF(SUM(C10:O10)=1,"OK","CHECK") -> OK | U10: Asset Replacement | V10: 0.4900956261 | W10: 0.1266397335 | X10: 0.09695277992 | Y10: 0.04150936145 | Z10: 0.1318578638 | AA10: 0 | AB10: 0 | AC10: 0 | AD10: 0 | AE10: 0 | AF10: 0 | AG10: 0.112405558 | AH10: 0.0005390771652 | AI10: =IF(SUM(V10:AH10)=1,"OK","CHECK") -> OK
B11: State Undergrounding Power Program (SUPP) | C11: 0.01428742804 | D11: 0.634002595 | E11: 0.2356579095 | F11: 0.09126369846 | G11: 0.024788369 | H11: 0 | I11: 0 | J11: 0 | K11: 0 | L11: 0 | M11: 0 | N11: 0 | O11: 0 | P11: OK | U11: State Undergrounding Power Program (SUPP) | V11: 0.004107461476 | W11: 0.6388546038 | X11: 0.1038619431 | Y11: 0.1189554682 | Z11: 0.1342205233 | AA11: 0 | AB11: 0 | AC11: 0 | AD11: 0 | AE11: 0 | AF11: 0 | AG11: 0 | AH11: 0 | AI11: OK
B12: Metering | C12: 0 | D12: 0 | E12: 0 | F12: 0 | G12: 0 | H12: 1 | I12: 0 | J12: 0 | K12: 0 | L12: 0 | M12: 0 | N12: 0 | O12: 0 | P12: OK | U12: Metering | V12: 0 | W12: 0 | X12: 0 | Y12: 0 | Z12: 0 | AA12: 1 | AB12: 0 | AC12: 0 | AD12: 0 | AE12: 0 | AF12: 0 | AG12: 0 | AH12: 0 | AI12: OK
B13: Smartgrid | C13: 0 | D13: 0 | E13: 0 | F13: 0 | G13: 0 | H13: 0.65 | I13: 0 | J13: 0.35 | K13: 0 | L13: 0 | M13: 0 | N13: 0 | O13: 0 | P13: OK | U13: Smartgrid | V13: 0 | W13: 0 | X13: 0 | Y13: 0 | Z13: 0 | AA13: 0.65 | AB13: 0 | AC13: 0.35 | AD13: 0 | AE13: 0 | AF13: 0 | AG13: 0 | AH13: 0 | AI13: OK
B14: Wood Pole Management | C14: 1 | D14: 0 | E14: 0 | F14: 0 | G14: 0 | H14: 0 | I14: 0 | J14: 0 | K14: 0 | L14: 0 | M14: 0 | N14: 0 | O14: 0 | P14: OK | U14: Wood Pole Management | V14: 1 | W14: 0 | X14: 0 | Y14: 0 | Z14: 0 | AA14: 0 | AB14: 0 | AC14: 0 | AD14: 0 | AE14: 0 | AF14: 0 | AG14: 0 | AH14: 0 | AI14: OK
B15: Improvement in service | U15: Improvement in service
B16: Reliability Driven | C16: 0.2565746422 | D16: 0.4740034641 | E16: 0.05138636275 | F16: 0.216527421 | G16: 0.001508109905 | H16: 0 | I16: 0 | J16: 0 | K16: 0 | L16: 0 | M16: 0 | N16: 0 | O16: 0 | P16: =IF(SUM(C16:O16)=1,"OK","CHECK") -> OK | U16: Reliability Driven | V16: 0 | W16: 0 | X16: 0 | Y16: 0 | Z16: 0 | AA16: 0 | AB16: 0 | AC16: 0 | AD16: 0.8784415392 | AE16: 0 | AF16: 0 | AG16: 0 | AH16: 0.1215584608 | AI16: =IF(SUM(V16:AH16)=1,"OK","CHECK") -> OK
B17: Rural Power Improvement Program (RPIP) | U17: Rural Power Improvement Program (RPIP)
B18: SCADA & Communications | C18: 0 | D18: 0 | E18: 0 | F18: 0 | G18: 0 | H18: 0 | I18: 0 | J18: 1 | K18: 0 | L18: 0 | M18: 0 | N18: 0 | O18: 0 | P18: =IF(SUM(C18:O18)=1,"OK","CHECK") -> OK | U18: SCADA & Communications | V18: 0 | W18: 0 | X18: 0 | Y18: 0 | Z18: 0 | AA18: 0 | AB18: 0 | AC18: 1 | AD18: 0 | AE18: 0 | AF18: 0 | AG18: 0 | AH18: 0 | AI18: =IF(SUM(V18:AH18)=1,"OK","CHECK") -> OK
B19: Compliance | U19: Compliance
B20: Safety, Environmental & Statutory | C20: 0.416205545 | D20: 0.02604003539 | E20: 0.2774890424 | F20: 0.2651954455 | G20: 0.01506993179 | H20: 0 | I20: 0 | J20: 0 | K20: 0 | L20: 0 | M20: 0 | N20: 0 | O20: 0 | P20: =IF(SUM(C20:O20)=1,"OK","CHECK") -> OK | U20: Safety, Environmental & Statutory | V20: 0.8141707227 | W20: 0.02754075028 | X20: 0 | Y20: 0.0002780623991 | Z20: 1.122554158e-07 | AA20: 0 | AB20: 0 | AC20: 0 | AD20: 0.1523958993 | AE20: 0 | AF20: 0 | AG20: 0 | AH20: 0.005614453024 | AI20: =IF(SUM(V20:AH20)=1,"OK","CHECK") -> OK
B21: Corporate | U21: Corporate
B22: IT | C22: 0 | D22: 0 | E22: 0 | F22: 0 | G22: 0 | H22: 0 | I22: 1 | J22: 0 | K22: 0 | L22: 0 | M22: 0 | N22: 0 | O22: 0 | P22: =IF(SUM(C22:O22)=1,"OK","CHECK") -> OK | U22: IT | V22: 0 | W22: 0 | X22: 0 | Y22: 0 | Z22: 0 | AA22: 0 | AB22: 1 | AC22: 0 | AD22: 0 | AE22: 0 | AF22: 0 | AG22: 0 | AH22: 0 | AI22: =IF(SUM(V22:AH22)=1,"OK","CHECK") -> OK
B23: Business Support | C23: 0 | D23: 0 | E23: 0 | F23: 0 | G23: 0 | H23: 0 | I23: 0 | J23: 0 | K23: 0.6 | L23: 0.4 | M23: 0 | N23: 0 | O23: 0 | P23: OK | U23: Business Support | V23: 0 | W23: 0 | X23: 0 | Y23: 0 | Z23: 0 | AA23: 0 | AB23: 0 | AC23: 0 | AD23: 0.6 | AE23: 0.4 | AF23: 0 | AG23: 0 | AH23: 0 | AI23: OK
B24: Equity Raising Costs | C24: 0 | D24: 0 | E24: 0 | F24: 0 | G24: 0 | H24: 0 | I24: 0 | J24: 0 | K24: 0 | L24: 0 | M24: 1 | N24: 0 | O24: 0 | P24: OK | U24: Equity Raising Costs | V24: 0 | W24: 0 | X24: 0 | Y24: 0 | Z24: 0 | AA24: 0 | AB24: 0 | AC24: 0 | AD24: 0 | AE24: 0 | AF24: 1 | AG24: 0 | AH24: 0 | AI24: OK
B25: SPS Adjustment | C25: 0 | D25: 0 | E25: 0 | F25: 0 | G25: 0 | H25: 0 | I25: 0 | J25: 0 | K25: 0 | L25: 0 | M25: 0 | N25: 1 | O25: 0 | P25: OK | U25: SPS Adjustment | V25: 0 | W25: 0 | X25: 0 | Y25: 0 | Z25: 0 | AA25: 0 | AB25: 0 | AC25: 0 | AD25: 0 | AE25: 0 | AF25: 0 | AG25: 1 | AH25: 0 | AI25: =IF(SUM(V25:AH25)=1,"OK","CHECK") -> OK
B27: Distribution - AA5
B28: Growth | C28: Wooden Pole Lines | D28: Underground Cables | E28: Transformers | F28: Switchgear | G28: Street lighting | H28: Meters and Services | I28: IT | J28: SCADA & Communications | K28: Other Distribution Non-Network | L28: Distribution Land & Easements | M28: Equity Raising Costs | N28: SPS | O28: Storage
B29: Capacity Expansion | C29: 0 | D29: 0.7398244374 | E29: 0.03001222021 | F29: 0 | G29: 0 | H29: 0 | I29: 0 | J29: 0 | K29: 0.2301632306 | L29: 0 | M29: 0 | N29: 0 | O29: 1.117148047e-07 | P29: =IF(SUM(C29:O29)=1,"OK","CHECK") -> OK
B30: Customer Driven | C30: 0.1073365091 | D30: 0.3493253142 | E30: 0.2124247482 | F30: 0.1395207031 | G30: 0.08240478909 | H30: 0.005789388935 | I30: 0 | J30: 0.0009134215002 | K30: 0.1022851259 | L30: 0 | M30: 0 | N30: 0 | O30: 0 | P30: OK
B31: Gifted Assets | C31: 0.1073365091 | D31: 0.3493253142 | E31: 0.2124247482 | F31: 0.1395207031 | G31: 0.08240478909 | H31: 0.005789388935 | I31: 0 | J31: 0.0009134215002 | K31: 0.1022851259 | L31: 0 | M31: 0 | N31: 0 | O31: 0 | P31: OK
B32: Asset replacement and renewal
B33: Asset Replacement | C33: 0.1327120275 | D33: 0.4118860794 | E33: 0.03260209852 | F33: 0.09844295007 | G33: 0.04679474348 | H33: 0 | I33: 0 | J33: 0 | K33: 7.859276233e-05 | L33: 0 | M33: 0 | N33: 0.2774835083 | O33: 0 | P33: =IF(SUM(C33:O33)=1,"OK","CHECK") -> OK
B34: State Undergrounding Power Program (SUPP) | C34: 0.01428742804 | D34: 0.634002595 | E34: 0.2356579095 | F34: 0.09126369846 | G34: 0.024788369 | H34: 0 | I34: 0 | J34: 0 | K34: 0 | L34: 0 | M34: 0 | N34: 0 | O34: 0 | P34: OK
B35: Metering | C35: 0 | D35: 0 | E35: 0 | F35: 0 | G35: 0 | H35: 1 | I35: 0 | J35: 0 | K35: 0 | L35: 0 | M35: 0 | N35: 0 | O35: 0 | P35: OK
B36: Smartgrid
B37: Wood Pole Management | C37: 1 | D37: 0 | E37: 0 | F37: 0 | G37: 0 | H37: 0 | I37: 0 | J37: 0 | K37: 0 | L37: 0 | M37: 0 | N37: 0 | O37: 0 | P37: =IF(SUM(C37:O37)=1,"OK","CHECK") -> OK
B38: Improvement in service
B39: Reliability Driven | C39: 0.674384624 | D39: 0 | E39: 0 | F39: 0 | G39: 0 | H39: 0 | I39: 0 | J39: 0 | K39: 0.325615376 | L39: 0 | M39: 0 | N39: 0 | O39: 0 | P39: =IF(SUM(C39:O39)=1,"OK","CHECK") -> OK
B40: Rural Power Improvement Program (RPIP)
B41: SCADA & Communications | C41: 0 | D41: 0 | E41: 0 | F41: 0 | G41: 0 | H41: 0 | I41: 0 | J41: 1 | K41: 0 | L41: 0 | M41: 0 | N41: 0 | O41: 0 | P41: =IF(SUM(C41:O41)=1,"OK","CHECK") -> OK
B42: Compliance
B43: Safety, Environmental & Statutory | C43: 0.6808917021 | D43: 0.06950630635 | E43: 0 | F43: 0 | G43: 0 | H43: 0 | I43: 0 | J43: 0 | K43: 0.2495546852 | L43: 0 | M43: 0 | N43: 0 | O43: 4.730642455e-05 | P43: =IF(SUM(C43:O43)=1,"OK","CHECK") -> OK
B44: Corporate
B45: IT | C45: 0 | D45: 0 | E45: 0 | F45: 0 | G45: 0 | H45: 0 | I45: 1 | J45: 0 | K45: 0 | L45: 0 | M45: 0 | N45: 0 | O45: 0 | P45: =IF(SUM(C45:O45)=1,"OK","CHECK") -> OK
B46: Business Support | C46: 0 | D46: 0 | E46: 0 | F46: 0 | G46: 0 | H46: 0 | I46: 0 | J46: 0 | K46: 1 | L46: 0 | M46: 0 | N46: 0 | O46: 0 | P46: OK
B47: Equity Raising Costs | C47: 0 | D47: 0 | E47: 0 | F47: 0 | G47: 0 | H47: 0 | I47: 0 | J47: 0 | K47: 0 | L47: 0 | M47: 1 | N47: 0 | O47: 0 | P47: OK
B49: Inflation
B50: Year ending 30 June | D50: 2006 | E50: 2007 | F50: 2008 | G50: 2009 | H50: 2010 | I50: 2011 | J50: 2012 | K50: 2013 | L50: 2014 | M50: 2015 | N50: 2016 | O50: 2017 | P50: 2018 | Q50: 2019 | R50: 2020 | S50: 2021 | T50: 2022 | U50: 2023 | V50: 2024 | W50: 2025 | X50: 2026 | Y50: 2027 | Z50: 2028 | AA50: 2029 | AB50: 2030 | AC50: 2031 | AD50: 2032
B51: Actual and Forecast Inflation
B52: June CPI | C52: 148.4 | D52: 154.3 | E52: 157.5 | F52: 164.6 | G52: 167 | H52: 172.1 | I52: 178.3 | J52: 180.4
B53: June CPI (rebased) | J53: 100.4 | K53: 102.8 | L53: 105.9 | M53: 107.5 | N53: 108.6 | O53: 110.7 | P53: 113 | Q53: 114.8 | R53: 114.4 | S53: 118.8
B54: Forecast Inflation | D54: =D52/C52-1 -> 0.0397574124 | E54: 0.02073882048 | F54: 0.04507936508 | G54: 0.01458080194 | H54: 0.03053892216 | I54: 0.03602556653 | J54: 0.01177790241 | K54: =K53/J53-1 -> 0.02390438247 | L54: =L53/K53-1 -> 0.03015564202 | M54: =M53/L53-1 -> 0.01510859301 | N54: =N53/M53-1 -> 0.01023255814 | O54: =O53/N53-1 -> 0.01933701657 | P54: =P53/O53-1 -> 0.02077687444 | Q54: 0.01592920354 | R54: =R53/Q53-1 -> -0.003484320557 | S54: 0.03846153846 | T54: =WACC_Inputs!$L$6 -> 0.0184 | U54: =WACC_Inputs!N6 -> 0.0296 | V54: =WACC_Inputs!O6 -> 0.0296 | W54: =WACC_Inputs!P6 -> 0.0296 | X54: =WACC_Inputs!Q6 -> 0.0296 | Y54: =WACC_Inputs!R6 -> 0.0296
B55: End of year Inflation factor (Forecast) | D55: =E55/(1+E54) -> 0.7097873817 | E55: 0.7245075348 | F55: 0.7571678744 | G55: 0.7682079893 | H55: 0.7916682332 | I55: 0.8201885299 | J55: 0.8298486303 | K55: 0.8496856494 | L55: 0.8753084656 | M55: 0.888533145 | N55: 0.8976251121 | O55: =P55/(1+P54) -> 0.9149825037 | P55: =Q55/(1+Q54) -> 0.9339929803 | Q55: =R55/(1+R54) -> 0.9488707446 | R55: =S55/(1+S54) -> 0.9455645748 | S55: =T55/(1+T54) -> 0.981932443 | T55: 1 | U55: =T55*(1+U54) -> 1.0296 | V55: 1.06007616 | W55: 1.091454414 | X55: 1.123761465 | Y55: 1.157024804
B57: Standard life
C60: Remaining life @ 30 June 2006 | D60: Standard life (AA1/AA2) | E60: Standard life (AA3) | F60: Standard life (AA4) | G60: Standard life (AA5+) | H60: ICB ($M @ 30 June 2006) | I60: ICB ($M @ 30 June 2022) | K60: Tax life | L60: Tax ICB @ 30 June 2012
B61: Wooden Pole Lines | C61: 14.5 | D61: 41 | E61: 41 | F61: 41 | G61: 41 | H61: 472.5939602 | I61: =H61/D$55 -> 665.8246855 | K61: 45 | L61: 2747.935154
B62: Underground Cables | C62: 36.9 | D62: 60 | E62: 60 | F62: 60 | G62: 60 | H62: 535.2080615 | I62: 754.0399778 | K62: 50 | L62: 110.2319941
B63: Transformers | C63: 16.9 | D63: 35 | E63: 35 | F63: 35 | G63: 35 | H63: 203.7623314 | I63: 287.0751673 | K63: 40 | L63: 32.22184132
B64: Switchgear | C64: 13.5 | D64: 35 | E64: 35 | F64: 35 | G64: 35 | H64: 108.607514 | I64: 153.0141515 | K64: 30 | L64: 25.6890398
B65: Street lighting | C65: 1.2 | D65: 20 | E65: 20 | F65: 20 | G65: 20 | H65: 5.256461486 | I65: 7.405684605 | K65: 15 | L65: 35.1250608
B66: Meters and Services | C66: 9.2 | D66: 25 | E66: 15 | F66: 15 | G66: 15 | H66: 168.2064526 | I66: 236.9814636 | K66: 25 | L66: 3.246493062
B67: IT | C67: 9.8 | D67: 10.16 | E67: 6 | F67: 6 | G67: 6 | H67: 15.41481432 | I67: 21.71750966 | K67: 4 | L67: 31.47250339
B68: SCADA & Communications | C68: 10.2 | D68: 10.16 | E68: 10.16 | F68: 10.16 | G68: 10.16 | H68: 12.82523809 | I68: 18.06912664 | K68: 10 | L68: 15.86631549
B69: Other Distribution Non-Network | C69: 11.3 | D69: 10.16 | E69: 10.16 | F69: 27 | G69: 27 | H69: 51.22111724 | I69: 72.16402906 | K69: 10 | L69: 107.6731485
B70: Distribution Land & Easements | D70: 0 | E70: 0 | F70: 0 | G70: 0 | H70: 21.41871547 | I70: 30.17624154 | K70: 0 | L70: 18.23082961
B71: Equity Raising Costs | E71: =ROUND(SUMPRODUCT(Dx_Asset!M15:M23,E61:E69)/SUM(Dx_Asset!M15:M23),0) -> 43 | F71: =ROUND(SUMPRODUCT(Dx_Asset!R15:R23,Dx_Inputs!F61:F69)/SUM(Dx_Asset!R15:R23),0) -> 43 | G71: =ROUND(SUMPRODUCT(Dx_Asset!S15:S23,Dx_Inputs!G61:G69)/SUM(Dx_Asset!S15:S23),0) -> 43 | H71: 0 | I71: 0 | K71: 5
B72: Standalone Power Systems | F72: 20 | G72: 20 | K72: 15
B73: Storage | F73: 20 | G73: 20 | K73: 10
B74: Total
B76: Working capital assumptions
C79: Input
B80: 2017 Closing balance (real as at 30 June 2012) | C80: 107.8
B82: Accounts Receivable | C82: 45 | D82: days
B83: TEC | C83: 0 | D83: days
B84: Inventory % capex | C84: 0.04 | D84: Percent
B85: Prepayments | C85: 0
B86: Accounts Payable | C86: 20 | D86: Days
B88: Capital expenditure
B89: Year ending 30 June | D89: 2006 | E89: 2007 | F89: 2008 | G89: 2009 | H89: 2010 | I89: 2011 | J89: 2012 | K89: 2013 | L89: 2014 | M89: 2015 | N89: 2016 | O89: 2017 | P89: 2018 | Q89: 2019 | R89: 2020 | S89: 2021 | T89: 2022 | U89: 2023 | V89: 2024 | W89: 2025 | X89: 2026 | Y89: 2027 | Z89: 2028 | AA89: 2029 | AB89: 2030 | AC89: 2031 | AD89: 2032
B90: [APPROVED] Capital expenditure by regulatory category [$M real] | M90: [$M real as at 30 June 2012] | R90: [$M real as at 30 June 2017]
B91: Growth | F91: Approved AA1 | I91: Approved AA2 | M91: Approved AA3 | R91: Approved AA4
B92: Capacity Expansion | K92: 56.86398175 | L92: 61.31506795 | M92: 68.09468738 | N92: 68.46959239 | O92: 76.34670082 | P92: 44.23061498 | Q92: 41.83879648 | R92: 34.07471396 | S92: 25.75847133 | T92: 28.33885682
B93: Customer Driven | K93: 202.8875168 | L93: 203.6464388 | M93: 209.3581819 | N93: 210.8412448 | O93: 217.3904696 | P93: 122.1344698 | Q93: 131.6727311 | R93: 120.5186566 | S93: 125.4491026 | T93: 125.4961051
B94: Gifted Assets | K94: 63.48375 | L94: 63.48375 | M94: 63.48375 | N94: 63.48375 | O94: 63.48375 | P94: 80.2592 | Q94: 80.51923981 | R94: 80.78012214 | S94: 81.04184974 | T94: 81.30442533
B95: Asset replacement and renewal
B96: Asset Replacement | K96: 42.10312237 | L96: 37.29162329 | M96: 35.11290884 | N96: 36.59228216 | O96: 36.71714631 | P96: 73.36770593 | Q96: 76.47506084 | R96: 83.1187056 | S96: 90.24114044 | T96: 100.8989142
B97: State Undergrounding Power Program (SUPP) | K97: 38.47981035 | L97: 18.58997669 | M97: 0 | N97: 0 | O97: 0 | P97: 39.80650748 | Q97: 51.10275449 | R97: 33.55284822 | S97: 8.617475385 | T97: 18.65428615
B98: Metering | K98: 13.47299916 | L98: 44.52881164 | M98: 44.14484204 | N98: 40.1797608 | O98: 16.12225971 | P98: 20.84449588 | Q98: 27.05433676 | R98: 31.67142699 | S98: 32.20539633 | T98: 32.12731451
B99: Smartgrid | K99: 2.476654257 | L99: 24.02344465 | M99: 26.58838762 | N99: 20.19237979 | O99: 15.60218682 | P99: 0 | Q99: 0 | R99: 0 | S99: 0 | T99: 0
B100: Wood Pole Management | K100: 164.5489089 | L100: 188.3679301 | M100: 199.10846 | N100: 209.8162509 | O100: 222.2791548 | P100: 168.0138066 | Q100: 128.6983177 | R100: 120.5341915 | S100: 119.2330991 | T100: 108.8474982
B101: Improvement in service
B102: Reliability Driven | K102: 0.5943970217 | L102: 0.603099029 | M102: 0.608894373 | N102: 0.6149963388 | O102: 0.6240874727 | P102: 4.382566495 | Q102: 6.03702366 | R102: 0 | S102: 0 | T102: 0
B103: Rural Power Improvement Program (RPIP) | K103: 0 | L103: 0 | M103: 0 | N103: 0 | O103: 0
B104: SCADA & Communications | K104: 5.151440855 | L104: 6.332539804 | M104: 7.002285289 | N104: 3.894976812 | O104: 6.968976778 | P104: 3.338559363 | Q104: 3.749011442 | R104: 4.547153015 | S104: 4.219339639 | T104: 3.866157565
B105: Compliance
B106: Safety, Environmental & Statutory | K106: 112.9354341 | L106: 112.7795184 | M106: 113.152871 | N106: 84.76699537 | O106: 91.42881474 | P106: 28.0322134 | Q106: 43.5478113 | R106: 42.58895868 | S106: 35.22094412 | T106: 35.30243688
B107: Corporate
B108: IT | K108: 25.68695973 | L108: 24.74733711 | M108: 14.48505646 | N108: 15.14131609 | O108: 15.36514138 | P108: 35.30532739 | Q108: 37.77237134 | R108: 31.80599626 | S108: 23.01468333 | T108: 17.23027652
B109: Business Support | K109: 20.43842228 | L109: 19.98582415 | M109: 13.85252125 | N109: 13.99134272 | O109: 11.54006399 | P109: 18.87065093 | Q109: 33.98089161 | R109: 90.66880185 | S109: 8.539248816 | T109: 7.095745955
B110: Equity Raising Costs | K110: 5.016144636 | L110: 4.297127355 | M110: 3.445143794 | N110: 1.444439887 | O110: 0 | P110: 0 | Q110: 0 | R110: 0 | S110: 0 | T110: 0
B111: SPS adjustment | K111: 0 | L111: 0 | M111: 0 | N111: 0 | O111: 0 | P111: 0 | Q111: 0 | R111: 0 | S111: 0 | T111: 0
B112: Total | K112: =SUM(K92:K111) -> 754.1395421 | L112: =SUM(L92:L111) -> 809.9924889 | M112: 798.4379899 | N112: 769.4293281 | O112: 773.8687525 | P112: 638.5861183 | Q112: 662.4483465 | R112: 673.8615748 | S112: 553.5407509 | T112: 559.1620173
B114: Year ending 30 June | D114: 2006 | E114: 2007 | F114: 2008 | G114: 2009 | H114: 2010 | I114: 2011 | J114: 2012 | K114: 2013 | L114: 2014 | M114: 2015 | N114: 2016 | O114: 2017 | P114: 2018 | Q114: 2019 | R114: 2020 | S114: 2021 | T114: 2022 | U114: 2023 | V114: 2024 | W114: 2025 | X114: 2026 | Y114: 2027
B115: [ACTUAL] Capital expenditure by regulatory category [$M nominal]
B116: Growth | F116: Actual AA1 | I116: Actual AA2 | M116: Actual AA3 | R116: Actual AA4 | W116: Proposed AA5
B117: Capacity Expansion | E117: 75.881777 | F117: 61.4 | G117: 61.11670557 | H117: 62.75 | I117: 34.419 | J117: 48.108 | K117: 48.471 | L117: 39.331 | M117: 26.154 | N117: 25.438 | O117: 35.492 | P117: 27.968 | Q117: 6.787 | R117: 14.172 | S117: 4.46047066 | T117: 18.24 | U117: =U167*U$55 -> 50.50787775 | V117: 44.22646245 | W117: 53.69388924 | X117: 68.39518941 | Y117: 81.65319403
B118: Customer Driven | E118: 181 | F118: 189.5 | G118: 244.7729952 | H118: 203.07 | I118: 233.503 | J118: 174.933 | K118: 188.491 | L118: 178.841 | M118: 149.256 | N118: 140.451 | O118: 131.167 | P118: 124.177 | Q118: 126.229 | R118: 102.764 | S118: 102.5841949 | T118: 110.844 | U118: =U168*U$55 -> 114.4300353 | V118: 117.0375144 | W118: 120.0225377 | X118: 124.0263235 | Y118: 118.9540954
B119: Gifted Assets | E119: 21.99333 | F119: 20.3 | G119: 71.96126273 | H119: 84.262 | I119: 53.951 | J119: 66.651 | K119: 57.585 | L119: 59.138 | M119: 147.877 | N119: 123.773 | O119: 82.347 | P119: 56.483 | Q119: 62.657 | R119: 48.044 | S119: 50.414583 | T119: 41.108 | U119: =U169*U$55 -> 38.97372366 | V119: 40.19623651 | W119: 41.45709667 | X119: 42.75750702 | Y119: 44.09870813
B120: Asset replacement and renewal
B121: Asset Replacement | E121: 27.286123 | F121: 39.4 | G121: 64.04171498 | H121: 80.119 | I121: 98.032 | J121: 177.973 | K121: 48.784 | L121: 45.21 | M121: 94.493 | N121: 136.803 | O121: 114.918 | P121: =80.244-6.328 -> 73.916 | Q121: 76.979 | R121: 59.002 | S121: 65.33816198 | T121: 99.274 | U121: =U171*U$55 -> 209.6239006 | V121: 233.7219093 | W121: 247.2103494 | X121: 246.4239102 | Y121: 270.1494668
B122: State Undergrounding Power Program (SUPP) | E122: 21.052371 | F122: 22 | G122: 22.92657578 | H122: 21.084 | I122: 18.744 | J122: 33.372 | K122: 29.69 | L122: 18.964 | M122: 15.286 | N122: 10.77 | O122: 10.389 | P122: 7.06 | Q122: 30.982 | R122: 28.431 | S122: 30.68209803 | T122: 19.001 | U122: =U172*U$55 -> 30.63317074 | V122: 41.43854664 | W122: 55.1588649 | X122: 68.61324446 | Y122: 73.74757593
B123: Metering | E123: 10.720987 | F123: 12.4 | G123: 13.99441339 | H123: 11.148 | I123: 15.992 | J123: 14.079 | K123: 11.318 | L123: 11.518 | M123: 16.686 | N123: 26.495 | O123: 24.481 | P123: 17.788 | Q123: 28.471 | R123: 35.997 | S123: 36.90947972 | T123: 31.796 | U123: =U173*U$55 -> 66.72048577 | V123: 65.86054921 | W123: 75.89104193 | X123: 68.74457176 | Y123: 64.7663723
B124: Smartgrid | E124: 0 | F124: 0 | G124: 0 | H124: 0 | I124: 0 | J124: 4.015 | K124: 0.781 | L124: 0.549 | M124: -1.329 | N124: 0 | O124: 0 | P124: 0 | Q124: 0 | R124: 0 | S124: 0 | T124: 0 | U124: =U174*U$55 -> 0 | V124: 0 | W124: 0 | X124: 0 | Y124: 0
B125: Wood Pole Management | E125: 0 | F125: 0 | G125: 0 | H125: 0 | I125: 0 | J125: 0 | K125: 216.856 | L125: 282.461 | M125: 234.234 | N125: 186.445 | O125: 81.72 | P125: =149.913-29.5 -> 120.413 | Q125: 122.451 | R125: 145.261 | S125: 160.1126836 | T125: 102.777 | U125: =U175*U$55 -> 93.60044694 | V125: 95.95751346 | W125: 84.82127898 | X125: 91.4926999 | Y125: 94.56209819
B126: Improvement in service
B127: Reliability Driven | E127: 5.485359 | F127: 18.9 | G127: 27.00531919 | H127: 9.344 | I127: 8.136 | J127: 9.108 | K127: 1.694 | L127: 0.095 | M127: 0.181 | N127: 0.776 | O127: 3.664 | P127: 2.004 | Q127: 1.234 | R127: 9.997 | S127: 2.33797786 | T127: 5.107 | U127: =U177*U$55 -> 0.272440646 | V127: 0 | W127: 0 | X127: 0 | Y127: 0
B128: Rural Power Improvement Program (RPIP) | E128: 9.618685 | F128: 23.6 | G128: 23.86639491 | H128: 8.173 | I128: -0.18 | J128: 0 | K128: 0 | L128: 0 | M128: 0 | N128: 0 | O128: 0 | P128: 0 | Q128: 0 | R128: 0 | S128: 0 | T128: 0 | U128: =U178*U$55 -> 0 | V128: 0 | W128: 0 | X128: 0 | Y128: 0
B129: SCADA & Communications | E129: 2.241186 | F129: 2.1 | G129: 1.9741209 | H129: 3.262 | I129: 3.196 | J129: 3.458 | K129: 3.074 | L129: 2.513 | M129: 3.143 | N129: 3.702 | O129: 5.064 | P129: 8.15 | Q129: 8.154 | R129: 25.188 | S129: 22.09691501 | T129: 19.685 | U129: =U179*U$55 -> 26.96918107 | V129: 35.34209741 | W129: 38.21743158 | X129: 42.41798146 | Y129: 46.62243082
B130: Compliance
B131: Safety, Environmental & Statutory | E131: 33.953598 | F131: 34.7 | G131: 58.10199275 | H131: 63.674 | I131: 61.078 | J131: 94.93 | K131: 128.555 | L131: 145.383 | M131: 115.225 | N131: 35.978 | O131: 14.781 | P131: 16.469 | Q131: 30.464 | R131: 28.708 | S131: 43.49754189 | T131: 54.715 | U131: =U181*U$55 -> 61.62386208 | V131: 95.4538461 | W131: 120.0490755 | X131: 114.5395743 | Y131: 126.9690055
B132: Corporate
B133: IT | E133: 17.9775 | F133: 33.975 | G133: 20.7 | H133: 16.102 | I133: 25.105 | J133: 32.277 | K133: 18.72 | L133: 13.033 | M133: 20.512 | N133: 12.401 | O133: 30.948 | P133: 36.949 | Q133: 39.654 | R133: 49.063 | S133: 34.817 | T133: 44.123 | U133: =U183*U$55 -> 41.94489751 | V133: 43.12700853 | W133: 42.57639638 | X133: 49.41555922 | Y133: 47.60555933
B134: Business Support | E134: 9.075 | F134: 9.075 | G134: 24.6 | H134: 11.546 | I134: 20.902 | J134: 22.724 | K134: 19.903 | L134: 2.517 | M134: 10.415 | N134: 15.678 | O134: 5.245 | P134: =18.649-1.917 -> 16.732 | Q134: =27.372+0.055 -> 27.427 | R134: =39.059+0.023 -> 39.082 | S134: =12.670233312274-0.057 -> 12.61323331 | T134: 65.1 | U134: =U184*U$55 -> 19.22300331 | V134: 23.03096743 | W134: 40.40914432 | X134: 3.743424895 | Y134: 3.879448497
B135: Equity Raising Costs | E135: 0 | F135: 0 | G135: 0 | H135: 0 | I135: 0 | J135: 0 | K135: 5.484702631 | L135: 4.480711191 | M135: 3.529921867 | N135: 1.329817786 | O135: 0 | P135: =(P110*P55/$O$55)*SUM(P167,P171:P184)/SUM(P142,P146:P159) -> 0 | Q135: =(Q110*Q55/$O$55)*SUM(Q167,Q171:Q184)/SUM(Q142,Q146:Q159) -> 0 | R135: 0 | S135: 0 | T135: 0
B136: SPS adjustment | E136: 0 | F136: 0 | G136: 0 | H136: 0 | I136: 0 | J136: 0 | K136: 0 | L136: 0 | M136: 0 | N136: 0 | O136: 0 | P136: 0 | Q136: 0 | R136: 0 | S136: 0
B137: Total | E137: =SUM(E117:E136) -> 416.285916 | F137: =SUM(F117:F136) -> 467.35 | G137: 635.0614954 | H137: 574.534 | I137: 572.878 | J137: 681.628 | K137: 779.4067026 | L137: 804.0337112 | M137: 835.6629219 | N137: 720.0398178 | O137: 540.216 | P137: 508.109 | Q137: 561.489 | R137: 585.709 | S137: 565.8643399 | T137: 611.77 | U137: 754.5230254 | V137: 835.3926514 | W137: 919.5071067 | X137: 920.5699861 | Y137: 973.007955
B139: Year ending 30 June | D139: 2006 | E139: 2007 | F139: 2008 | G139: 2009 | H139: 2010 | I139: 2011 | J139: 2012 | K139: 2013 | L139: 2014 | M139: 2015 | N139: 2016 | O139: 2017 | P139: 2018 | Q139: 2019 | R139: 2020 | S139: 2021 | T139: 2022 | U139: 2023 | V139: 2024 | W139: 2025 | X139: 2026 | Y139: 2027
B140: [APPROVED] Capital expenditure by regulatory category [$M real as at 30 June 2022]
B141: Growth | F141: Approved AA1 | I141: Approved AA2 | M141: Approved AA3 | R141: Approved AA4
B142: Capacity Expansion | K142: =K92/$J$55 -> 68.52331819 | L142: 73.88705085 | M142: 82.05675697 | N142: 82.50853214 | O142: 92.00075536 | P142: =P92/$O$55 -> 48.34039427 | Q142: =Q92/$O$55 -> 45.72633499 | R142: 37.24083665 | S142: 28.1518731 | T142: 30.97202045
B143: Customer Driven | K143: 244.4873792 | L143: 245.4019099 | M143: 252.2847833 | N143: 254.0719321 | O143: 261.9640037 | P143: =P93/$O$55 -> 133.4828473 | Q143: 143.9073759 | R143: 131.7168975 | S143: 137.1054661 | T143: 137.1568359
B144: Gifted Assets | K144: 76.5003974 | L144: 76.5003974 | M144: 76.5003974 | N144: 76.5003974 | O144: 76.5003974 | P144: =P94/$O$55 -> 87.71664996 | Q144: 88.0008519 | R144: 88.28597467 | S144: 88.57202122 | T144: 88.85899457
B145: Asset replacement and renewal
B146: Asset Replacement | K146: =K96/$J$55 -> 50.73590633 | L146: 44.93786207 | M146: 42.3124261 | N146: 44.0951287 | O146: 44.24559488 | P146: =P96/$O$55 -> 80.18481843 | Q146: 83.58089966 | R146: 90.84185245 | S146: 98.62608309 | T146: 110.274146
B147: State Undergrounding Power Program (SUPP) | K147: 46.36967387 | L147: 22.40164774 | M147: 0 | N147: 0 | O147: 0 | P147: =P97/$O$55 -> 43.50521165 | Q147: 55.85107287 | R147: 36.67048068 | S147: 9.418185976 | T147: 20.38758782
B148: Metering | K148: 16.23549002 | L148: 53.6589566 | M148: 53.19625824 | N148: 48.41818054 | O148: 19.42795243 | P148: =P98/$O$55 -> 22.78130543 | Q148: 29.56814655 | R148: 34.61424329 | S148: 35.1978275 | T148: 35.11249054
B149: Smartgrid | K149: 2.984465078 | L149: 28.94918878 | M149: 32.04004519 | N149: 24.33260604 | O149: 18.80124428 | P149: =P99/$O$55 -> 0 | Q149: 0 | R149: 0 | S149: 0 | T149: 0
B150: Wood Pole Management | K150: 198.2878598 | L150: 226.9907103 | M150: 239.9334682 | N150: 252.8367744 | O150: 267.8550602 | P150: =P100/$O$55 -> 183.6251577 | Q150: 140.6565887 | R150: 131.7338758 | S150: 130.3118897 | T150: 118.9612892
B151: Improvement in service
B152: Reliability Driven | K152: =K102/$J$55 -> 0.7162716187 | L152: 0.7267578772 | M152: 0.733741493 | N152: 0.7410946001 | O152: 0.7520497713 | P152: =P102/$O$55 -> 4.789781747 | Q152: 6.597966229 | R152: 0 | S152: 0 | T152: 0
B153: Rural Power Improvement Program (RPIP) | K153: 0 | L153: 0 | M153: 0 | N153: 0 | O153: 0 | P153: =P103/$O$55 -> 0 | Q153: 0 | R153: 0 | S153: 0 | T153: 0
B154: SCADA & Communications | K154: 6.207687362 | L154: 7.630957711 | M154: 8.438027169 | N154: 4.693599134 | O154: 8.397889113 | P154: =P104/$O$55 -> 3.648768527 | Q154: 4.097358612 | R154: 4.969661164 | S154: 4.611388329 | T154: 4.225389611
B155: Compliance
B156: Safety, Environmental & Statutory | K156: =K106/$J$55 -> 136.0916076 | L156: =L106/$J$55 -> 135.903723 | M156: =M106/$J$55 -> 136.3536274 | N156: =N106/$J$55 -> 102.147539 | O156: =O106/$J$55 -> 110.1752915 | P156: =P106/$O$55 -> 30.63688463 | Q156: 47.59414647 | R156: 46.54620007 | S156: 38.49357116 | T156: 38.58263599
B157: Corporate
B158: IT | K158: =K108/$J$55 -> 30.95378939 | L158: 29.82150745 | M158: 17.45505859 | N158: 18.24587706 | O158: 18.51559527 | P158: =P108/$O$55 -> 38.58579508 | Q158: 41.28206953 | R158: 34.76131634 | S158: 25.15314034 | T158: 18.83126338
B159: Business Support | K159: 24.62909685 | L159: 24.08369842 | M159: 16.69282896 | N159: 16.86011425 | O159: 13.90622767 | P159: =P109/$O$55 -> 20.62405658 | Q159: 37.13829661 | R159: 99.09348155 | S159: 9.332690823 | T159: 7.755061901
B160: Equity Raising Costs | K160: 6.044650136 | L160: 5.178206239 | M160: 4.151532783 | N160: 1.74060646 | O160: 0 | P160: =P110/$O$55 -> 0 | Q160: 0 | R160: 0 | S160: 0 | T160: 0
B161: SPS adjustment | K161: 0 | L161: 0 | M161: 0 | N161: 0 | O161: 0 | P161: 0 | Q161: 0 | R161: 0 | S161: 0 | T161: 0
B162: Total | K162: =SUM(K142:K161) -> 908.7675928 | L162: =SUM(L142:L161) -> 976.0725744 | M162: 962.1489519 | N162: 927.1923818 | O162: 932.5420616 | P162: 697.9216714 | Q162: 724.0011079 | R162: 736.4748201 | S162: 604.9741373 | T162: 611.1177154
U163: Capex: as per AA5 capex model WP AA5 - Capex model (57954981 v17) 22/11/2021
B164: Year ending 30 June | D164: 2006 | E164: 2007 | F164: 2008 | G164: 2009 | H164: 2010 | I164: 2011 | J164: 2012 | K164: 2013 | L164: 2014 | M164: 2015 | N164: 2016 | O164: 2017 | P164: 2018 | Q164: 2019 | R164: 2020 | S164: 2021 | T164: 2022 | U164: 2023 | V164: 2024 | W164: 2025 | X164: 2026 | Y164: 2027
B165: [ACTUAL] Capital expenditure by regulatory category [$M real as at 30 June 2022]
B166: Growth | F166: Actual AA1 | I166: Actual AA2 | M166: Actual AA3 | R166: Actual AA4 | W166: Proposed AA5
B167: Capacity Expansion | E167: =E117/E$55 -> 104.735663 | F167: 81.09166021 | G167: 79.557498 | H167: 79.26300105 | I167: 41.96474194 | J167: 57.97201832 | K167: =K117/K$55 -> 57.0458028 | L167: 44.93387365 | M167: 29.43503025 | N167: 28.33922498 | O167: 38.78981276 | P167: 29.94455054 | Q167: 7.152712884 | R167: 14.98787114 | S167: 4.54254332 | T167: 18.24 | U167: 49.05582532 | V167: 41.72008023 | W167: 49.19480698 | X167: 60.86272892 | Y167: 70.57168846
B168: Customer Driven | E168: =E118/E$55 -> 249.824869 | F168: 250.2747494 | G168: 318.6285467 | H168: 256.5089661 | I168: 284.6943008 | J168: 210.8010951 | K168: 221.836158 | L168: 204.3176857 | M168: 167.9802277 | N168: 156.4695529 | O168: 143.3546537 | P168: 132.9528194 | Q168: 133.0307639 | R168: 108.6800444 | S168: 104.471744 | T168: 110.844 | U168: 111.1402829 | V168: 110.404817 | W168: 109.96569 | X168: 110.3671262 | Y168: 102.8103243
B169: Gifted Assets | E169: =E119/E$55 -> 30.35624744 | F169: 26.81043489 | G169: 93.67419206 | H169: 106.4359999 | I169: 65.77877895 | J169: 80.31705731 | K169: 67.7721226 | L169: 67.56246777 | M169: 166.4282316 | N169: 137.8894132 | O169: 89.99844222 | P169: 60.47475858 | Q169: 66.03322987 | R169: 50.80985612 | S169: 51.34221133 | T169: 41.108 | U169: 37.85326696 | V169: 37.91825345 | W169: 37.98335151 | X169: 38.04856133 | Y169: 38.1138831
B170: Asset replacement and renewal
B171: Asset Replacement | E171: =E121/E$55 -> 37.66161384 | F171: 52.03601649 | G171: 83.36507284 | H171: 101.2027471 | I171: 119.5237393 | J171: 214.4644137 | K171: 57.41417433 | L171: 51.65036301 | M171: 106.3471864 | N171: 152.4054955 | O171: 125.5958442 | P171: 79.13978109 | Q171: 81.12696111 | R171: 62.39869975 | S171: 66.54038416 | T171: 99.274 | U171: 203.597417 | V171: 220.4765262 | W171: 226.4962661 | X171: 219.2848908 | Y171: 233.4863227
B172: State Undergrounding Power Program (SUPP) | E172: =E122/E$55 -> 29.05749076 | F172: 29.05564372 | G172: 29.84422982 | H172: 26.63236835 | I172: 22.85328229 | J172: 40.21456297 | K172: 34.94233429 | L172: 21.66550507 | M172: 17.2036351 | N172: 11.99832743 | O172: 11.35431547 | P172: 7.55894332 | Q172: 32.65144402 | R172: 30.0677508 | S172: 31.24664863 | T172: 19.001 | U172: 29.75249683 | V172: 39.09015994 | W172: 50.53703038 | X172: 61.05676925 | Y172: 63.73897574
B173: Metering | E173: =E123/E$55 -> 14.79761974 | F173: 16.37681737 | G173: 18.21695893 | H173: 14.08165635 | I173: 19.49795616 | J173: 16.9657447 | K173: 13.32022026 | L173: 13.15878967 | M173: 18.77926568 | N173: 29.51677671 | O173: 26.75570287 | P173: 19.04511102 | Q173: 30.00514049 | R173: 38.0693196 | S173: 37.58861415 | T173: 31.796 | U173: 64.80233661 | V173: 62.12812974 | W173: 69.53203078 | X173: 61.17363329 | Y173: 55.97664981
B174: Smartgrid | E174: =E124/E$55 -> 0 | F174: 0 | G174: 0 | H174: 0 | I174: 0 | J174: 4.838231761 | K174: 0.9191634584 | L174: 0.6272074606 | M174: -1.495723606 | N174: 0 | O174: 0 | P174: 0 | Q174: 0 | R174: 0 | S174: 0 | T174: 0 | U174: 0 | V174: 0 | W174: 0 | X174: 0 | Y174: 0
B175: Wood Pole Management | E175: =E125/E$55 -> 0 | F175: 0 | G175: 0 | H175: 0 | I175: 0 | J175: 0 | K175: 255.2190921 | L175: 322.6988097 | M175: 263.6187534 | N175: 207.7092068 | O175: 89.31318322 | P175: 128.9228105 | Q175: 129.0491889 | R175: 153.623564 | S175: 163.0587569 | T175: 102.777 | U175: 90.909525 | V175: 90.51945236 | W175: 77.71399141 | X175: 81.41647739 | Y175: 81.72866981
B176: Improvement in service
B177: Reliability Driven | E177: =E127/E$55 -> 7.571155215 | F177: 24.96143938 | G177: 35.15365574 | H177: 11.80292401 | I177: 9.919670544 | J177: 10.97549561 | K177: 1.993678487 | L177: 0.1085331671 | M177: 0.2037065258 | N177: 0.8645034431 | O177: 4.004448156 | P177: 2.145626404 | Q177: 1.300493252 | R177: 10.5725196 | S177: 2.380996653 | T177: 5.107 | U177: 0.2646082421 | V177: 0 | W177: 0 | X177: 0 | Y177: 0
B178: Rural Power Improvement Program (RPIP) | E178: =E128/E$55 -> 13.27616973 | F178: 31.16878145 | G178: 31.06762133 | H178: 10.32376904 | I178: -0.2194617377 | J178: 0 | K178: 0 | L178: 0 | M178: 0 | N178: 0 | O178: 0 | P178: 0 | Q178: 0 | R178: 0 | S178: 0 | T178: 0 | U178: 0 | V178: 0 | W178: 0 | X178: 0 | Y178: 0
B179: SCADA & Communications | E179: =E129/E$55 -> 3.093392259 | F179: 2.773493265 | G179: 2.569773977 | H179: 4.120412899 | I179: 3.896665076 | J179: 4.167025014 | K179: 3.617808542 | L179: 2.870987884 | M179: 3.537290666 | N179: 4.124216168 | O179: 5.534532059 | P179: 8.725975646 | Q179: 8.59337275 | R179: 26.63805378 | S179: 22.50349825 | T179: 19.685 | U179: 26.19384331 | V179: 33.33920594 | W179: 35.01514226 | X179: 37.7464282 | Y179: 40.29510054
B180: Compliance
B181: Safety, Environmental & Statutory | E181: =E131/E$55 -> 46.86438218 | F181: 45.82867442 | G181: 75.63315347 | H181: 80.43015663 | I181: 74.46824453 | J181: 114.3943564 | K181: 151.2971298 | L181: 166.0934467 | M181: 129.6800245 | N181: 40.08132072 | O181: 16.15440726 | P181: 17.63289484 | Q181: 32.10553194 | R181: 30.36069748 | S181: 44.29789666 | T181: 54.715 | U181: 59.85223589 | V181: 90.04432861 | W181: 109.9900041 | X181: 101.9251664 | Y181: 109.7374966
B182: Corporate
B183: IT | E183: =E133/E$55 -> 24.81340654 | F183: 44.87115889 | G183: 26.94582755 | H183: 20.33932817 | I183: 30.60881625 | J183: 38.89504522 | K183: 22.03167726 | L183: 14.88960808 | M183: 23.08523899 | N183: 13.81534433 | O183: 33.82359758 | P183: 39.5602545 | Q183: 41.79072885 | R183: 51.88751917 | S183: 35.4576328 | T183: 44.123 | U183: 40.73902245 | V183: 40.68293407 | W183: 39.0088636 | X183: 43.97335267 | Y183: 41.14480446
B184: Business Support | E184: =E134/E$55 -> 12.52574965 | F184: 11.98545304 | G184: 32.02257767 | H184: 14.58439219 | I184: 25.48438467 | J184: 27.38330723 | K184: 23.42395687 | L184: 2.875557702 | M184: 11.72156611 | N184: 17.46608889 | O184: 5.732350049 | P184: 17.91448153 | Q184: 28.90488526 | R184: 41.33192068 | S184: 12.84531681 | T184: 65.1 | U184: 18.67036063 | V184: 21.72576679 | W184: 37.02320847 | X184: 3.331156132 | Y184: 3.352951884
B185: Equity Raising Costs | E185: =E135/E$55 -> 0 | F185: 0 | G185: 0 | H185: 0 | I185: 0 | J185: 0 | K185: 6.454978538 | L185: 5.119008175 | M185: 3.972752042 | N185: 1.481484606 | O185: 0 | P185: 0 | Q185: 0 | R185: 0 | S185: 0 | T185: 0 | U185: =U135/U$55 -> 0 | V185: 0 | W185: 0 | X185: 0 | Y185: 0
B186: SPS adjustment | E186: 0 | F186: 0 | G186: 0 | H186: 0 | I186: 0 | J186: 0 | K186: 0 | L186: 0 | M186: 0 | N186: 0 | O186: 0 | P186: 0 | Q186: 0 | R186: 0 | S186: =S136/S$55 -> 0 | T186: 0 | U186: 0 | V186: 0 | W186: 0 | X186: 0 | Y186: 0
B187: Total | E187: =SUM(E167:E186) -> 574.5777594 | F187: =SUM(F167:F186) -> 617.2343225 | G187: 826.6791081 | H187: 725.7257218 | I187: 698.4711187 | J187: 821.3883534 | K187: 917.2882974 | L187: 918.5718438 | M187: 940.4971852 | N187: 802.1609557 | O187: 590.4112896 | P187: 544.0180073 | Q187: 591.7444533 | R187: 619.4278166 | S187: 576.2762437 | T187: 611.77 | U187: =SUM(U167:U186) -> 732.8312212 | V187: 788.0496543 | W187: 842.4603855 | X187: 819.1862906 | Y187: 840.9568674
E188: =IF(ROUND(E187-E137/E55,8)=0,"OK","CHECK") -> OK | F188: OK | G188: OK | H188: OK | I188: OK | J188: OK | K188: OK | L188: OK | M188: OK | N188: OK | O188: OK | P188: OK | Q188: OK | R188: OK | S188: OK | T188: OK | U188: OK | V188: OK | W188: OK | X188: OK | Y188: OK
B189: Year ending 30 June | D189: 2006 | E189: 2007 | F189: 2008 | G189: 2009 | H189: 2010 | I189: 2011 | J189: 2012 | K189: 2013 | L189: 2014 | M189: 2015 | N189: 2016 | O189: 2017 | P189: 2018 | Q189: 2019 | R189: 2020 | S189: 2021 | T189: 2022 | U189: 2018 | V189: 2019 | W189: 2020 | X189: 2021 | Y189: 2022
B190: Capital expenditure adjustments | F190: [$M real as at 30 June 2009] | I190: [$M real as at 30 June 2012] | M190: [$M real as at 30 June 2017] | R190: [$M real as at 30 June 2022]
B192: AA1 Distribution write down | E192: -46.595 | F192: -47.469 | G192: -55.048
B194: Growth
B195: Capacity Expansion | I195: -0.341980931 | J195: -0.375 | Q195: -0.409375 | R195: =(-0.307112)+(-0.304407) -> -0.611519
B196: Customer Driven | J196: -0.582 | Q196: -0.061
B197: Gifted Assets
B198: Asset replacement and renewal
B199: Asset Replacement | J199: -0.638
B200: State Undergrounding Power Program (SUPP) | J200: -0.111
B201: Metering | J201: -0.047 | P201: -0.578057413 | Q201: -1.749690333 | R201: -5.024101265 | S201: -14.80534942 | T201: -14.43209423
B202: Smartgrid | J202: -0.013
B203: Wood Pole Management | M203: -10.5 | N203: -12.9 | O203: -5.52
B204: Improvement in service
B205: Reliability Driven | J205: -0.27 | N205: -0.29 | O205: -1.48 | Q205: 3.807113 | R205: -3.807113
B206: Rural Power Improvement Program (RPIP)
B207: SCADA & Communications | J207: -0.012 | P207: -2.414972548 | Q207: -1.96369719 | R207: -9.645388608 | S207: -3.25888 | T207: -3.2
B208: Compliance
B209: Safety, Environmental & Statutory | J209: -0.318
B210: Corporate
B211: IT | H211: -3.05414801 | I211: -3.05414801 | J211: -3.05414801 | P211: -11.23487229 | Q211: -10.23189588 | R211: -17.57949859 | S211: -2.44416 | T211: -4.63
B212: Business Support | K212: =-2.651202*(2/3) -> -1.767468 | N212: -3.993
B213: Equity Raising Costs
B214: SPS adjust | S214: 23.561896 | T214: 24.581
... 574 more rows

Sheet Tx_Inputs
B1: Validation status | C1: =IF(COUNTIF(AJ6:AJ20,"CHECK")+COUNTIF(Q24:Q38,"CHECK")+COUNTIF(Q6:Q20,"CHECK")+COUNTIF(E160:AD160,"CHECK")+COUNTIF(E244:AD244,"CHECK")+COUNTIF(E322:AD322,"CHECK")+COUNTIF(K383:T383,"CHECK")+COUNTIF(K403:AD403,"CHECK")+COUNTIF(K422:T422,"CHECK")+COUNTIF(K460:AD460,"CHECK")+COUNTIF(K679:O679,"CHECK")+COUNTIF(E694:AD694,"CHECK")>0,"CHECK","OK") -> OK
B2: Allocation of capex and contributions from regulatory category to asset class
B3: % matrix
B4: Transmission - AA3/AA4 | U4: Transmission - Actual AA4
B5: Growth | C5: Transmission cables | D5: Transmission steel towers | E5: Transmission wood poles | F5: Transmission metering | G5: Transmission transformers | H5: Transmission reactors | I5: Transmission capacitors | J5: Transmission circuit breakers | K5: SCADA and communications | L5: IT | M5: Other non-network assets | N5: Land & Easements | O5: Equity raising costs | P5: Transmission secondary systems | U5: Growth | V5: Transmission cables | W5: Transmission steel towers | X5: Transmission wood poles | Y5: Transmission metering | Z5: Transmission transformers | AA5: Transmission reactors | AB5: Transmission capacitors | AC5: Transmission circuit breakers | AD5: SCADA and communications | AE5: IT | AF5: Other non-network assets | AG5: Land & Easements | AH5: Equity raising costs | AI5: Transmission secondary systems
B6: Capacity Expansion | C6: 0.1288197122 | D6: 0.08158130026 | E6: 0.04427315722 | F6: 0 | G6: 0.3101397437 | H6: 0.04234319172 | I6: 0.03106847006 | J6: 0.09628261272 | K6: 0 | L6: 0 | M6: 0 | N6: 0.2654918121 | O6: 0 | P6: 0 | Q6: =IF(SUM(C6:P6)=1,"OK","CHECK") -> OK | U6: Capacity Expansion | V6: 0.2269278213 | W6: 0 | X6: 0.02300531189 | Y6: 0 | Z6: 0.627150885 | AA6: 0 | AB6: 0 | AC6: 0.008777291558 | AD6: 0 | AE6: 0 | AF6: 0.1056416035 | AG6: 0.004009584879 | AH6: 0 | AI6: 0.004487501861 | AJ6: =IF(SUM(V6:AI6)=1,"OK","CHECK") -> OK
B7: Customer Driven | C7: 0.08209495336 | D7: 0.09466179622 | E7: 0 | F7: 0 | G7: 0.3529123605 | H7: 0 | I7: 0.02874176457 | J7: 0.2004958335 | K7: 0 | L7: 0 | M7: 0 | N7: 0.2410932918 | O7: 0 | P7: 0 | Q7: =IF(SUM(C7:P7)=1,"OK","CHECK") -> OK | U7: Customer Driven | V7: 0.2268291947 | W7: 0.001643418383 | X7: 0.01637890681 | Y7: 0 | Z7: 0.150385815 | AA7: 0 | AB7: 0 | AC7: 0.1534149043 | AD7: 0.01471938202 | AE7: 0 | AF7: 0.4366283789 | AG7: 0 | AH7: 0 | AI7: 0 | AJ7: =IF(SUM(V7:AI7)=1,"OK","CHECK") -> OK
B8: Generation Driven | U8: Generation Driven
B9: Gifted Assets | C9: 0.08209495336 | D9: 0.09466179622 | E9: 0 | F9: 0 | G9: 0.3529123605 | H9: 0 | I9: 0.02874176457 | J9: 0.2004958335 | K9: 0 | L9: 0 | M9: 0 | N9: 0.2410932918 | O9: 0 | P9: 0 | Q9: =IF(SUM(C9:P9)=1,"OK","CHECK") -> OK | U9: Gifted Assets | V9: 0.2268291947 | W9: 0.001643418383 | X9: 0.01637890681 | Y9: 0 | Z9: 0.150385815 | AA9: 0 | AB9: 0 | AC9: 0.1534149043 | AD9: 0.01471938202 | AE9: 0 | AF9: 0.4366283789 | AG9: 0 | AH9: 0 | AI9: 0 | AJ9: OK
B10: Asset replacement and renewal | U10: Asset replacement and renewal
B11: Asset Replacement | C11: 0 | D11: 0 | E11: 0 | F11: 0 | G11: 0.5969092318 | H11: 0.0730424798 | I11: 0 | J11: 0.3300482884 | K11: 0 | L11: 0 | M11: 0 | N11: 0 | O11: 0 | P11: 0 | Q11: =IF(SUM(C11:P11)=1,"OK","CHECK") -> OK | U11: Asset Replacement | V11: 0 | W11: 0 | X11: 0.02256320615 | Y11: 0 | Z11: 0.2128680955 | AA11: 0 | AB11: 0.149972898 | AC11: 0.1418101505 | AD11: 0 | AE11: 0 | AF11: 0.3123000699 | AG11: 0 | AH11: 0 | AI11: 0.16048558 | AJ11: OK
B12: Improvement in service | U12: Improvement in service
B13: Reliability Driven | C13: 0 | D13: 0 | E13: 0.8472688889 | F13: 0 | G13: 0 | H13: 0 | I13: 0 | J13: 0.1527311111 | K13: 0 | L13: 0 | M13: 0 | N13: 0 | O13: 0 | P13: 0 | Q13: =IF(SUM(C13:P13)=1,"OK","CHECK") -> OK | U13: Reliability Driven | V13: 0 | W13: 0 | X13: 0 | Y13: 0 | Z13: 0 | AA13: 0 | AB13: 0 | AC13: 0 | AD13: 0 | AE13: 0 | AF13: 1 | AG13: 0 | AH13: 0 | AI13: 0 | AJ13: OK
B14: SCADA & Communications | C14: 0 | D14: 0 | E14: 0 | F14: 0 | G14: 0 | H14: 0 | I14: 0 | J14: 0 | K14: 1 | L14: 0 | M14: 0 | N14: 0 | O14: 0 | P14: 0 | Q14: =IF(SUM(C14:P14)=1,"OK","CHECK") -> OK | U14: SCADA & Communications | V14: 0 | W14: 0 | X14: 0 | Y14: 0 | Z14: 0 | AA14: 0 | AB14: 0 | AC14: 0 | AD14: 1 | AE14: 0 | AF14: 0 | AG14: 0 | AH14: 0 | AI14: 0 | AJ14: OK
B15: Compliance | U15: Compliance
B16: Safety, Environmental & Statutory | C16: 0 | D16: 0 | E16: 1 | F16: 0 | G16: 0 | H16: 0 | I16: 0 | J16: 0 | K16: 0 | L16: 0 | M16: 0 | N16: 0 | O16: 0 | P16: 0 | Q16: =IF(SUM(C16:P16)=1,"OK","CHECK") -> OK | U16: Safety, Environmental & Statutory | V16: 2.370873532e-20 | W16: 0 | X16: 0.5940717074 | Y16: 0 | Z16: 0.09669995042 | AA16: 0 | AB16: 0 | AC16: 0 | AD16: 0 | AE16: 0 | AF16: 0.2956156657 | AG16: 0 | AH16: 0 | AI16: 0.01361267652 | AJ16: OK
B17: Corporate | U17: Corporate
B18: IT | C18: 0 | D18: 0 | E18: 0 | F18: 0 | G18: 0 | H18: 0 | I18: 0 | J18: 0 | K18: 0 | L18: 1 | M18: 0 | N18: 0 | O18: 0 | P18: 0 | Q18: =IF(SUM(C18:P18)=1,"OK","CHECK") -> OK | U18: IT | V18: 0 | W18: 0 | X18: 0 | Y18: 0 | Z18: 0 | AA18: 0 | AB18: 0 | AC18: 0 | AD18: 0 | AE18: 1 | AF18: 0 | AG18: 0 | AH18: 0 | AI18: 0 | AJ18: OK
B19: Business Support | C19: 0 | D19: 0 | E19: 0 | F19: 0 | G19: 0 | H19: 0 | I19: 0 | J19: 0 | K19: 0 | L19: 0 | M19: 0.6 | N19: 0.4 | O19: 0 | P19: 0 | Q19: OK | U19: Business Support | V19: 0 | W19: 0 | X19: 0 | Y19: 0 | Z19: 0 | AA19: 0 | AB19: 0 | AC19: 0 | AD19: 0 | AE19: 0 | AF19: 0.6 | AG19: 0.4 | AH19: 0 | AI19: 0 | AJ19: OK
B20: Equity Raising Costs | C20: 0 | D20: 0 | E20: 0 | F20: 0 | G20: 0 | H20: 0 | I20: 0 | J20: 0 | K20: 0 | L20: 0 | M20: 0 | N20: 0 | O20: 1 | P20: 0 | Q20: OK | U20: Equity Raising Costs | V20: 0 | W20: 0 | X20: 0 | Y20: 0 | Z20: 0 | AA20: 0 | AB20: 0 | AC20: 0 | AD20: 0 | AE20: 0 | AF20: 0 | AG20: 0 | AH20: 1 | AI20: 0 | AJ20: OK
B22: Transmission - AA5
B23: Growth | C23: Transmission cables | D23: Transmission steel towers | E23: Transmission wood poles | F23: Transmission metering | G23: Transmission transformers | H23: Transmission reactors | I23: Transmission capacitors | J23: Transmission circuit breakers | K23: SCADA and communications | L23: IT | M23: Other non-network assets | N23: Land & Easements | O23: Equity raising costs | P23: Transmission secondary systems
B24: Capacity Expansion | C24: 0 | D24: 0 | E24: 0 | F24: 0 | G24: 0.3403669268 | H24: 0 | I24: 0 | J24: 0 | K24: 0 | L24: 0 | M24: 0.6596330732 | N24: 0 | O24: 0 | P24: 0 | Q24: =IF(SUM(C24:P24)=1,"OK","CHECK") -> OK
B25: Customer Driven | C25: 0.2268291947 | D25: 0.001643418383 | E25: 0.01637890681 | F25: 0 | G25: 0.150385815 | H25: 0 | I25: 0 | J25: 0.1534149043 | K25: 0.01471938202 | L25: 0 | M25: 0.4366283789 | N25: 0 | O25: 0 | P25: 0 | Q25: =IF(SUM(C25:P25)=1,"OK","CHECK") -> OK
B26: Generation Driven
B27: Gifted Assets | C27: 0.2268291947 | D27: 0.001643418383 | E27: 0.01637890681 | F27: 0 | G27: 0.150385815 | H27: 0 | I27: 0 | J27: 0.1534149043 | K27: 0.01471938202 | L27: 0 | M27: 0.4366283789 | N27: 0 | O27: 0 | P27: 0 | Q27: =IF(SUM(C27:P27)=1,"OK","CHECK") -> OK
B28: Asset replacement and renewal
B29: Asset Replacement | C29: 0 | D29: 0 | E29: 0.03854009028 | F29: 0 | G29: 0.3126760745 | H29: 0.0265584608 | I29: 0.01566477301 | J29: 0.2690612695 | K29: 0 | L29: 0 | M29: 0.08215903305 | N29: 0 | O29: 0 | P29: 0.2553402988 | Q29: =IF(SUM(C29:P29)=1,"OK","CHECK") -> OK
B30: Improvement in service
B31: Reliability Driven | C31: 0 | D31: 0 | E31: 0.8472688889 | F31: 0 | G31: 0 | H31: 0 | I31: 0 | J31: 0.1527311111 | K31: 0 | L31: 0 | M31: 0 | N31: 0 | O31: 0 | P31: 0 | Q31: =IF(SUM(C31:P31)=1,"OK","CHECK") -> OK
B32: SCADA & Communications | C32: 0 | D32: 0 | E32: 0 | F32: 0 | G32: 0 | H32: 0 | I32: 0 | J32: 0 | K32: 1 | L32: 0 | M32: 0 | N32: 0 | O32: 0 | P32: 0 | Q32: OK
B33: Compliance
B34: Safety, Environmental & Statutory | C34: 0.08685525383 | D34: 0 | E34: 0.3460336536 | F34: 0 | G34: 0.04154447707 | H34: 0 | I34: 0 | J34: 0 | K34: 0 | L34: 0 | M34: 0.5129085944 | N34: 0 | O34: 0 | P34: 0.01265802116 | Q34: =IF(SUM(C34:P34)=1,"OK","CHECK") -> OK
B35: Corporate
B36: IT | C36: 0 | D36: 0 | E36: 0 | F36: 0 | G36: 0 | H36: 0 | I36: 0 | J36: 0 | K36: 0 | L36: 1 | M36: 0 | N36: 0 | O36: 0 | P36: 0 | Q36: =IF(SUM(C36:P36)=1,"OK","CHECK") -> OK
B37: Business Support | C37: 0 | D37: 0 | E37: 0 | F37: 0 | G37: 0 | H37: 0 | I37: 0 | J37: 0 | K37: 0 | L37: 0 | M37: 1 | N37: 0 | O37: 0 | P37: 0 | Q37: OK
B38: Equity Raising Costs | C38: 0 | D38: 0 | E38: 0 | F38: 0 | G38: 0 | H38: 0 | I38: 0 | J38: 0 | K38: 0 | L38: 0 | M38: 0 | N38: 0 | O38: 1 | P38: 0 | Q38: OK
B40: Inflation
B41: Year ending 30 June | D41: 2006 | E41: 2007 | F41: 2008 | G41: 2009 | H41: 2010 | I41: 2011 | J41: 2012 | K41: 2013 | L41: 2014 | M41: 2015 | N41: 2016 | O41: 2017 | P41: 2018 | Q41: 2019 | R41: 2020 | S41: 2021 | T41: 2022 | U41: 2023 | V41: 2024 | W41: 2025 | X41: 2026 | Y41: 2027 | Z41: 2028 | AA41: 2029 | AB41: 2030 | AC41: 2031 | AD41: 2032
B42: Actual and Forecast Inflation
B43: June CPI | C43: =Dx_Inputs!C52 -> 148.4 | D43: =Dx_Inputs!D52 -> 154.3 | E43: =Dx_Inputs!E52 -> 157.5 | F43: =Dx_Inputs!F52 -> 164.6 | G43: =Dx_Inputs!G52 -> 167 | H43: =Dx_Inputs!H52 -> 172.1 | I43: =Dx_Inputs!I52 -> 178.3 | J43: =Dx_Inputs!J52 -> 180.4
B44: June CPI (rebased) | J44: =Dx_Inputs!J53 -> 100.4 | K44: =Dx_Inputs!K53 -> 102.8 | L44: =Dx_Inputs!L53 -> 105.9 | M44: =Dx_Inputs!M53 -> 107.5 | N44: =Dx_Inputs!N53 -> 108.6 | O44: =Dx_Inputs!O53 -> 110.7 | P44: =Dx_Inputs!P53 -> 113 | Q44: =Dx_Inputs!Q53 -> 114.8 | R44: =Dx_Inputs!R53 -> 114.4 | S44: =Dx_Inputs!S53 -> 118.8 | T44: =Dx_Inputs!T53 -> 0 | U44: =Dx_Inputs!U53 -> 0 | V44: =Dx_Inputs!V53 -> 0 | W44: =Dx_Inputs!W53 -> 0 | X44: =Dx_Inputs!X53 -> 0 | Y44: =Dx_Inputs!Y53 -> 0
B45: Actual & Forecast Inflation | D45: =Dx_Inputs!D54 -> 0.0397574124 | E45: =Dx_Inputs!E54 -> 0.02073882048 | F45: =Dx_Inputs!F54 -> 0.04507936508 | G45: =Dx_Inputs!G54 -> 0.01458080194 | H45: =Dx_Inputs!H54 -> 0.03053892216 | I45: =Dx_Inputs!I54 -> 0.03602556653 | J45: =Dx_Inputs!J54 -> 0.01177790241 | K45: =Dx_Inputs!K54 -> 0.02390438247 | L45: =Dx_Inputs!L54 -> 0.03015564202 | M45: =Dx_Inputs!M54 -> 0.01510859301 | N45: =Dx_Inputs!N54 -> 0.01023255814 | O45: =Dx_Inputs!O54 -> 0.01933701657 | P45: =Dx_Inputs!P54 -> 0.02077687444 | Q45: =Dx_Inputs!Q54 -> 0.01592920354 | R45: =Dx_Inputs!R54 -> -0.003484320557 | S45: =Dx_Inputs!S54 -> 0.03846153846 | T45: =Dx_Inputs!T54 -> 0.0184 | U45: =Dx_Inputs!U54 -> 0.0296 | V45: =Dx_Inputs!V54 -> 0.0296 | W45: =Dx_Inputs!W54 -> 0.0296 | X45: =Dx_Inputs!X54 -> 0.0296 | Y45: =Dx_Inputs!Y54 -> 0.0296
B46: End of year Inflation factor | D46: =Dx_Inputs!D55 -> 0.7097873817 | E46: =Dx_Inputs!E55 -> 0.7245075348 | F46: =Dx_Inputs!F55 -> 0.7571678744 | G46: =Dx_Inputs!G55 -> 0.7682079893 | H46: =Dx_Inputs!H55 -> 0.7916682332 | I46: =Dx_Inputs!I55 -> 0.8201885299 | J46: =Dx_Inputs!J55 -> 0.8298486303 | K46: =Dx_Inputs!K55 -> 0.8496856494 | L46: =Dx_Inputs!L55 -> 0.8753084656 | M46: =Dx_Inputs!M55 -> 0.888533145 | N46: =Dx_Inputs!N55 -> 0.8976251121 | O46: =Dx_Inputs!O55 -> 0.9149825037 | P46: =Dx_Inputs!P55 -> 0.9339929803 | Q46: =Dx_Inputs!Q55 -> 0.9488707446 | R46: =Dx_Inputs!R55 -> 0.9455645748 | S46: =Dx_Inputs!S55 -> 0.981932443 | T46: =Dx_Inputs!T55 -> 1 | U46: =Dx_Inputs!U55 -> 1.0296 | V46: =Dx_Inputs!V55 -> 1.06007616 | W46: =Dx_Inputs!W55 -> 1.091454414 | X46: =Dx_Inputs!X55 -> 1.123761465 | Y46: =Dx_Inputs!Y55 -> 1.157024804
B48: Standard life
C51: Remaining life @ 30 June 2006 | D51: Standard life (AA1/AA2) | E51: Standard life (AA3) | F51: Standard life (AA4) | G51: Standard life (AA5) | H51: ICB ($M @ 30 June 2006) | I51: ICB ($M @ 30 June 2022) | K51: Tax life | L51: Tax ICB @ 30 June 2012
B52: Transmission cables | C52: 38.1 | D52: 55 | E52: 55 | F52: 55 | G52: 55 | H52: 12.08660829 | I52: =H52/D$46 -> 17.02849135 | K52: 47.5 | L52: 1328.902758
B53: Transmission steel towers | C53: 41.3 | D53: 60 | E53: 60 | F53: 60 | G53: 60 | H53: 365.1878518 | I53: 514.5031614 | K53: 47.5 | L53: 58.78918677
B54: Transmission wood poles | C54: 20.9 | D54: 45 | E54: 45 | F54: 45 | G54: 45 | H54: 172.740829 | I54: 243.3698224 | K54: 47.5 | L54: 9.139871168
B55: Transmission metering | C55: 26.1 | D55: 40 | E55: 40 | F55: 40 | G55: 40 | H55: 2.126729009 | I55: 2.996290247 | K55: 25 | L55: 0
B56: Transmission transformers | C56: 25.5 | D56: 50 | E56: 50 | F56: 50 | G56: 50 | H56: 154.909869 | I56: 218.2482713 | K56: 40 | L56: 165.4964765
B57: Transmission reactors | C57: 27 | D57: 50 | E57: 50 | F57: 50 | G57: 40 | H57: 3.932879594 | I57: 5.540926332 | K57: 40 | L57: 1.929584197
B58: Transmission capacitors | C58: 23.1 | D58: 40 | E58: 40 | F58: 40 | G58: 40 | H58: 76.25847891 | I58: 107.4384821 | K58: 40 | L58: 12.78949966
B59: Transmission circuit breakers | C59: 28.2 | D59: 50 | E59: 50 | F59: 50 | G59: 40 | H59: 455.2650729 | I59: 641.4104908 | K59: 40 | L59: 23.55868953
B60: SCADA and communications | C60: 11.4 | D60: 34.15 | E60: 11 | F60: 11 | G60: 11 | H60: 33.89058198 | I60: 47.74751264 | K60: 12.5 | L60: 72.73476178
B61: IT | C61: 4.2 | D61: 16.85 | E61: 6 | F61: 6 | G61: 6 | H61: 2.679569855 | I61: 3.775172572 | K61: 4 | L61: 18.76923065
B62: Other non-network assets | C62: 12 | D62: 16.85 | E62: 16.85 | F62: 27 | G62: 27 | H62: 24.49947447 | I62: 34.5166385 | K62: 12.5 | L62: 151.0024198
B63: Land & Easements | C63: 0 | D63: 0 | E63: 0 | F63: 0 | G63: 0 | H63: 82.98579328 | I63: 116.9164111 | K63: 0 | L63: 200.1478209
B64: Equity raising costs | C64: 0 | D64: 0 | E64: =ROUND(SUMPRODUCT(Tx_Asset!M15:M25,E52:E62)/SUM(Tx_Asset!M15:M25),0) -> 49 | F64: =ROUND(SUMPRODUCT(Tx_Asset!R15:R25,F52:F62)/SUM(Tx_Asset!R15:R25),0) -> 49 | G64: =ROUND((SUMPRODUCT(Tx_Asset!W15:W25,G52:G62)+(G65*Tx_Asset!W28))/SUM(Tx_Asset!W15:W25,Tx_Asset!W28),0) -> 44 | H64: 0 | I64: 0 | K64: 5 | L64: 0
B65: Transmission secondary systems | C65: 0 | D65: 0 | E65: 0 | F65: 30 | G65: 30 | H65: 0 | I65: 0 | K65: 30 | L65: 0
B66: Total | H66: =SUM(H52:H65) -> 1386.563738 | I66: =SUM(I52:I65) -> 1953.491671 | L66: =SUM(L52:L65) -> 2043.260298
B68: Working capital assumptions
C71: Input
B72: 2017 Closing balance (real as at 30 June 2012) | C72: 16.594
B74: Receivables | C74: 45 | D74: days
B75: TEC | C75: 0 | D75: days
B76: Inventory % capex | C76: 0.04 | D76: Percent
B77: Prepayments | C77: 0
B78: Creditors | C78: -20 | D78: Days
B80: Capital expenditure
B81: Year ending 30 June | D81: 2006 | E81: 2007 | F81: 2008 | G81: 2009 | H81: 2010 | I81: 2011 | J81: 2012 | K81: 2013 | L81: 2014 | M81: 2015 | N81: 2016 | O81: 2017 | P81: 2018 | Q81: 2019 | R81: 2020 | S81: 2021 | T81: 2022 | U81: 2023 | V81: 2024 | W81: 2025 | X81: 2026 | Y81: 2027
B82: [APPROVED] Capital expenditure by regulatory category [$M real] | M82: [$M real as at 30 June 2012] | R82: [$M real as at 30 June 2017]
B83: Growth | F83: Approved AA1 | I83: Approved AA2 | M83: Approved AA3 | R83: Approved AA4
B84: Capacity Expansion | K84: 192.6843523 | L84: 271.1514459 | M84: 130.3389167 | N84: 140.0374611 | O84: 221.3558819 | P84: 25.64412594 | Q84: 22.56592228 | R84: 2.668666569 | S84: 3.3868429 | T84: 0.3842981957
B85: Customer Driven | K85: 33.74697695 | L85: 58.10388126 | M85: 58.63732148 | N85: 59.18371532 | O85: 60.03047101 | P85: 23.0830573 | Q85: 22.76673307 | R85: 22.77767334 | S85: 23.7095132 | T85: 23.71839653
B86: Generation Driven | K86: 0 | L86: 0 | M86: 0 | N86: 0 | O86: 0 | P86: 0 | Q86: 0 | R86: 0 | S86: 0 | T86: 0
B87: Gifted Assets | K87: 0 | L87: 0 | M87: 0 | N87: 0 | O87: 0 | P87: 0 | Q87: 0 | R87: 0 | S87: 0 | T87: 0
B88: Asset replacement and renewal
B89: Asset Replacement | K89: 30.38217573 | L89: 33.21655388 | M89: 33.62278192 | N89: 33.93608547 | O89: 35.76945164 | P89: 30.16060121 | Q89: 59.25433409 | R89: 52.76606136 | S89: 45.84924343 | T89: 54.98843987
B90: Improvement in service
B91: Reliability Driven | K91: 0 | L91: 0 | M91: 0 | N91: 0 | O91: 0 | P91: 0 | Q91: 0 | R91: 0 | S91: 0 | T91: 0
B92: SCADA & Communications | K92: 14.05299334 | L92: 11.94190306 | M92: 13.0642737 | N92: 18.70573386 | O92: 18.66232259 | P92: 9.169883954 | Q92: 15.45632153 | R92: 17.85809183 | S92: 16.48445735 | T92: 12.72758768
B93: Compliance
B94: Safety, Environmental & Statutory | K94: 17.91261827 | L94: 19.56866467 | M94: 24.6094458 | N94: 30.15405185 | O94: 30.68915271 | P94: 26.87845185 | Q94: 39.64475336 | R94: 37.73671543 | S94: 31.67002272 | T94: 32.13464669
B95: Corporate
B96: IT | K96: 15.50867235 | L96: 14.93222309 | M96: 8.736386449 | N96: 9.125838976 | O96: 9.256404555 | P96: 14.06714463 | Q96: 15.05011991 | R96: 12.67286222 | S96: 9.170029084 | T96: 6.865275292
B97: Business Support | K97: 12.33983305 | L97: 12.05918776 | M97: 8.354884858 | N97: 8.432737281 | O97: 6.952067556 | P97: 8.14909902 | Q97: 14.67430305 | R97: 39.15440156 | S97: 3.687587906 | T97: 3.064225851
B98: Equity Raising Costs | K98: 0.7674487754 | L98: 2.300863536 | M98: 0.4311487214 | N98: 1.377294408 | O98: 3.454061022 | P98: 0 | Q98: 0 | R98: 0 | S98: 0 | T98: 0
B99: Total | K99: =SUM(K84:K98) -> 317.3950707 | L99: 423.2747231 | M99: 277.7951596 | N99: 300.9529183 | O99: 386.169813 | P99: 137.1523639 | Q99: 189.4124873 | R99: 185.6344723 | S99: 133.9576966 | T99: 133.8828701
B101: Year ending 30 June | D101: 2006 | E101: 2007 | F101: 2008 | G101: 2009 | H101: 2010 | I101: 2011 | J101: 2012 | K101: 2013 | L101: 2014 | M101: 2015 | N101: 2016 | O101: 2017 | P101: 2018 | Q101: 2019 | R101: 2020 | S101: 2021 | T101: 2022 | U101: 2023 | V101: 2024 | W101: 2025 | X101: 2026 | Y101: 2027
B102: [ACTUAL] Capital expenditure by regulatory category [$M nominal]
B103: Growth | F103: Actual AA1 | I103: Actual AA2 | M103: Actual AA3 | R103: Actual AA4 | W103: Forecast AA5
B104: Capacity Expansion | E104: 118.4 | F104: 105.97 | G104: 124.1430761 | H104: 103.074 | I104: 56 | J104: 42.519 | K104: 113.767 | L104: 206.206 | M104: 87.848 | N104: 27.304 | O104: 31.275 | P104: 15.094 | Q104: 8.509 | R104: 20.044 | S104: 33.966 | T104: 29.582 | U104: =U144*U$46 -> 36.94593936 | V104: 63.4486106 | W104: 47.31672923 | X104: 77.88924449 | Y104: 25.21934787
B105: Customer Driven | E105: 17.9 | F105: 73.4 | G105: 40.87462505 | H105: 49.887 | I105: 43.274 | J105: 58.145 | K105: 37.628 | L105: 40.311 | M105: -17.366 | N105: 5.057 | O105: 6.474 | P105: 22.403 | Q105: 58.86 | R105: 115.133 | S105: 39.848 | T105: 56.228 | U105: =U145*U$46 -> 73.53074182 | V105: 42.00728154 | W105: 43.0926386 | X105: 44.54458798 | Y105: 19.61472647
B106: Generation Driven | E106: 112.7 | F106: 88.1 | G106: 95.63175249 | H106: 26.614 | I106: 13.076 | J106: 0 | K106: 0 | L106: 0 | M106: 0 | N106: 0 | O106: 0 | P106: 0 | Q106: 0 | R106: 0 | S106: 0 | T106: 0 | U106: =U146*U$46 -> 0 | V106: 0 | W106: 0 | X106: 0 | Y106: 0
B107: Gifted Assets | H107: 1.486 | I107: 0 | J107: 0 | K107: 0 | L107: 0 | M107: 0 | N107: 0 | O107: 0 | P107: 0 | Q107: 0 | R107: 0 | S107: 0 | T107: 0 | U107: =U147*U$46 -> 0 | V107: 0 | W107: 0 | X107: 0 | Y107: 0
B108: Asset replacement and renewal
B109: Asset Replacement | E109: 12.9 | F109: 11.4 | G109: 24.70372921 | H109: 5.308 | I109: 31.569 | J109: 27.327 | K109: 26.027 | L109: 42.594 | M109: 37.761 | N109: 40.725 | O109: 33.356 | P109: =31.669-4.39 -> 27.279 | Q109: 48.324 | R109: 59.677 | S109: 58.8 | T109: 41.972 | U109: =U149*U$46 -> 54.32317687 | V109: 54.50609027 | W109: 50.21818259 | X109: 51.14041058 | Y109: 54.08156601
B110: Improvement in service
B111: Reliability Driven | E111: 4.78 | F111: 5.1 | G111: 7.05048533 | H111: 1.667 | I111: 1.313 | J111: 0.234 | K111: 1.217 | L111: 0.269 | M111: 0.186 | N111: 0 | O111: 0 | P111: 0.863 | Q111: 4.103 | R111: -3.737 | S111: 0.173 | T111: 0.066 | U111: =U151*U$46 -> 0 | V111: 0 | W111: 0 | X111: 0 | Y111: 0
B112: SCADA & Communications | E112: 5.523 | F112: 3.8 | G112: 4.60468232 | H112: 9.357 | I112: 5.655 | J112: 12.977 | K112: 5.674 | L112: 10.502 | M112: 12.725 | N112: 16.462 | O112: 11.455 | P112: 12.792 | Q112: 21.816 | R112: 21.873 | S112: 34.853 | T112: 27.947 | U112: =U152*U$46 -> 37.4743955 | V112: 47.76522873 | W112: 54.68708371 | X112: 55.2893749 | Y112: 63.01396865
B113: Compliance
B114: Safety, Environmental & Statutory | E114: 3.9 | F114: 5.7 | G114: 6.60065994 | H114: 10.985 | I114: 11.146 | J114: 18.355 | K114: 20.818 | L114: 18.788 | M114: 25.401 | N114: 22.262 | O114: 21.036 | P114: 21.686 | Q114: 16.521 | R114: 23.025 | S114: 23.155 | T114: 28.221 | U114: =U154*U$46 -> 43.5082189 | V114: 45.40974745 | W114: 50.28528755 | X114: 35.21734603 | Y114: 29.15986409
B115: Corporate
B116: IT | E116: 5.9925 | F116: 11.325 | G116: 6.9 | H116: 10.176 | I116: 14.878 | J116: 17.465 | K116: 9.44 | L116: 6.407 | M116: 9.263 | N116: 5.167 | O116: 12.331 | P116: 14.17 | Q116: 14.974 | R116: 18.788 | S116: 13.279 | T116: 16.678 | U116: =U156*U$46 -> 15.99804697 | V116: 16.44891153 | W116: 16.2389046 | X116: 18.8474042 | Y116: 18.15705889
B117: Business Support | E117: 3.025 | F117: 3.025 | G117: 8.2 | H117: 7.297 | I117: 12.388 | J117: 14.143 | K117: 10.923 | L117: 1.804 | M117: 5.134 | N117: 7.03 | O117: 2.265 | P117: =10.002-11.484 -> -1.482 | Q117: =10.517+2.586 -> 13.103 | R117: =17.118+0.555 -> 17.673 | S117: =5.355+3.742 -> 9.097 | T117: 26.418 | U117: =U157*U$46 -> 8.124002301 | V117: 9.733319474 | W117: 17.07766347 | X117: 1.582041681 | Y117: 1.63952781
B118: Equity Raising Costs | E118: 0 | F118: 0 | G118: 0 | H118: 0 | I118: 0 | J118: 0 | K118: =(K98*K46/$J$46)*SUM(K144,K149:K157)/SUM(K124,K128:K137) -> 0.509676198 | L118: =(L98*L46/$J$46)*SUM(L144,L149:L157)/SUM(L124,L128:L137) -> 1.817065348 | M118: =(M98*M46/$J$46)*SUM(M144,M149:M157)/SUM(M124,M128:M137) -> 0.3514960974 | N118: =(N98*N46/$J$46)*SUM(N144,N149:N157)/SUM(N124,N128:N137) -> 0.6815086701 | O118: =(O98*O46/$J$46)*SUM(O144,O149:O157)/SUM(O124,O128:O137) -> 1.19584255 | P118: =(P98*P46/$O$46)*SUM(P144,P149:P157)/SUM(P124,P128:P137) -> 0 | Q118: =(Q98*Q46/$O$46)*SUM(Q144,Q149:Q157)/SUM(Q124,Q128:Q137) -> 0 | R118: 0 | S118: 0 | T118: 0
B119: Total | E119: =SUM(E104:E118) -> 285.1205 | F119: 307.82 | G119: 318.7090104 | H119: 225.851 | I119: 189.299 | J119: 191.165 | K119: =SUM(K104:K118) -> 226.0036762 | L119: 328.6980653 | M119: 161.3034961 | N119: 124.6885087 | O119: 119.3878426 | P119: 112.805 | Q119: =SUM(Q104:Q118) -> 186.21 | R119: 272.476 | S119: 213.171 | T119: 227.112 | U119: 269.9045217 | V119: 279.3191896 | W119: 278.9164898 | X119: 284.5104099 | Y119: 210.8860598
P120: Source: Regulatory Financial Statements + 2022F1
B121: Year ending 30 June | D121: 2006 | E121: 2007 | F121: 2008 | G121: 2009 | H121: 2010 | I121: 2011 | J121: 2012 | K121: 2013 | L121: 2014 | M121: 2015 | N121: 2016 | O121: 2017 | P121: 2018 | Q121: 2019 | R121: 2020 | S121: 2021 | T121: 2022 | U121: 2023 | V121: 2024 | W121: 2025 | X121: 2026 | Y121: 2027
B122: [APPROVED] Capital expenditure by regulatory category [$M real as at 30 June 2022]
B123: Growth | F123: Approved AA1 | I123: Approved AA2 | M123: Approved AA3 | R123: Approved AA4
B124: Capacity Expansion | K124: =K84/$J$46 -> 232.1921676 | L124: 326.7480791 | M124: 157.0634835 | N124: 168.7506082 | O124: 266.7424802 | P124: =P84/$O$46 -> 28.02690307 | Q124: =Q84/$O$46 -> 24.66268173 | R124: 2.916631256 | S124: 3.701538429 | T124: 0.4200060592
B125: Customer Driven | K125: 40.66642484 | L125: 70.01744552 | M125: 70.66026181 | N125: 71.31868772 | O125: 72.33906139 | P125: =P85/$O$46 -> 25.22786743 | Q125: 24.88215127 | R125: 24.89410808 | S125: 25.91253177 | T125: 25.92224051
B126: Generation Driven | K126: 0 | L126: 0 | M126: 0 | N126: 0 | O126: 0 | P126: =P86/$O$46 -> 0 | Q126: 0 | R126: 0 | S126: 0 | T126: 0
B127: Gifted Assets | K127: 0 | L127: 0 | M127: 0 | N127: 0 | O127: 0 | P127: =P87/$O$46 -> 0 | Q127: 0 | R127: 0 | S127: 0 | T127: 0
B128: Asset replacement and renewal
B129: Asset Replacement | K129: =K89/$J$46 -> 36.61170799 | L129: =L89/$J$46 -> 40.02724433 | M129: =M89/$J$46 -> 40.51676498 | N129: =N89/$J$46 -> 40.89430798 | O129: =O89/$J$46 -> 43.1035858 | P129: =P89/$O$46 -> 32.963036 | Q129: 64.76007339 | R129: 57.66892934 | S129: 50.10942094 | T129: 60.09780476
B130: Improvement in service
B131: Reliability Driven | K131: =K91/$J$46 -> 0 | L131: 0 | M131: 0 | N131: 0 | O131: 0 | P131: =P91/$O$46 -> 0 | Q131: 0 | R131: 0 | S131: 0 | T131: 0
B132: SCADA & Communications | K132: 16.93440565 | L132: 14.39045944 | M132: 15.74295989 | N132: 22.54113964 | O132: 22.48882737 | P132: =P92/$O$46 -> 10.02192273 | Q132: 16.89247769 | R132: 19.51741346 | S132: 18.01614488 | T132: 13.91019788
B133: Compliance
B134: Safety, Environmental & Statutory | K134: =K94/$J$46 -> 21.58540439 | L134: =L94/$J$46 -> 23.58100497 | M134: =M94/$J$46 -> 29.65534304 | N134: =N94/$J$46 -> 36.3368098 | O134: =O94/$J$46 -> 36.98162724 | P134: =P94/$O$46 -> 29.37591893 | Q134: 43.32842781 | R134: 41.24310058 | S134: 34.61270854 | T134: 35.120504
B135: Corporate
B136: IT | K136: =K96/$J$46 -> 18.6885557 | L136: 17.99391183 | M136: 10.52768677 | N136: 10.99699227 | O136: 11.15432889 | P136: =P96/$O$46 -> 15.37422254 | Q136: 16.448533 | R136: 13.85038748 | S136: 10.02208135 | T136: 7.503176578
B137: Business Support | K137: 14.86998061 | L137: 14.53179209 | M137: 10.06796246 | N137: 10.16177767 | O137: 8.377512841 | P137: =P97/$O$46 -> 8.90628945 | Q137: 16.03779634 | R137: 42.79251396 | S137: 4.030227781 | T137: 3.348944749
B138: Equity Raising Costs | K138: 0.9248057385 | L138: 2.772630395 | M138: 0.519551043 | N138: 1.659693537 | O138: 4.162278391 | P138: =P98/$O$46 -> 0 | Q138: 0 | R138: 0 | S138: 0 | T138: 0
B139: Total | K139: =SUM(K124:K138) -> 382.4734525 | L139: 510.0625677 | M139: 334.7540135 | N139: 362.6600169 | O139: 465.3497022 | P139: 149.8961601 | Q139: 207.0121412 | R139: 202.8830841 | S139: 146.4046537 | T139: 146.3228745
B141: Year ending 30 June | D141: 2006 | E141: 2007 | F141: 2008 | G141: 2009 | H141: 2010 | I141: 2011 | J141: 2012 | K141: 2013 | L141: 2014 | M141: 2015 | N141: 2016 | O141: 2017 | P141: 2018 | Q141: 2019 | R141: 2020 | S141: 2021 | T141: 2022 | U141: 2023 | V141: 2024 | W141: 2025 | X141: 2026 | Y141: 2027
B142: [ACTUAL] Capital expenditure by regulatory category [$M real as at 30 June 2022]
B143: Growth | F143: Actual AA1 | I143: Actual AA2 | M143: Actual AA3 | R143: Actual AA4 | W143: Proposed AA5
B144: Capacity Expansion | E144: =E104/E$46 -> 163.4213508 | F144: 139.955753 | G144: 161.6008657 | H144: 130.1984792 | I144: 68.27698506 | J144: 51.2370551 | K144: 133.8930463 | L144: 235.5809501 | M144: 98.86856837 | N144: 30.41804383 | O144: 34.18098146 | P144: =P104/P$46 -> 16.16072103 | Q144: =Q104/Q$46 -> 8.967501684 | R144: 21.19791766 | S144: 34.5909744 | T144: 29.582 | U144: 35.88377948 | V144: 59.85287944 | W144: 43.35199767 | X144: 69.31119007 | Y144: 21.79672188
B145: Customer Driven | E145: =E105/E$46 -> 24.70643733 | F145: 96.94019316 | G145: 53.20775834 | H145: 63.0150332 | I145: 52.76104021 | J145: 70.0669952 | K145: 44.28461282 | L145: 46.05347895 | M145: -19.54457197 | N145: 5.633755041 | O145: 7.075545132 | P145: =P105/P$46 -> 23.98626164 | Q145: 62.03163111 | R145: 121.7611182 | S145: 40.5812032 | T145: 56.228 | U145: 71.41680441 | V145: 39.62666375 | W145: 39.48184921 | X145: 39.63882849 | Y145: 16.95272772
B146: Generation Driven | E146: =E106/E$46 -> 155.5539378 | F146: 116.354646 | G146: 124.4867976 | H146: 33.61761769 | I146: 15.94267601 | J146: 0 | K146: 0 | L146: 0 | M146: 0 | N146: 0 | O146: 0 | P146: =P106/P$46 -> 0 | Q146: 0 | R146: 0 | S146: 0 | T146: 0 | U146: 0 | V146: 0 | W146: 0 | X146: 0 | Y146: 0
B147: Gifted Assets | E147: =E107/E$46 -> 0 | F147: 0 | G147: 0 | H147: 1.877048917 | I147: 0 | J147: 0 | K147: 0 | L147: 0 | M147: 0 | N147: 0 | O147: 0 | P147: =P107/P$46 -> 0 | Q147: 0 | R147: 0 | S147: 0 | T147: 0 | U147: 0 | V147: 0 | W147: 0 | X147: 0 | Y147: 0
B148: Asset replacement and renewal
B149: Asset Replacement | E149: =E109/E$46 -> 17.80519785 | F149: 15.05610629 | G149: 32.15760517 | H149: 6.704828837 | I149: 38.4899311 | J149: 32.93010195 | K149: 30.63132821 | L149: 48.66170233 | M149: 42.49813326 | N149: 45.36972 | O149: 36.45534189 | P149: =P109/P$46 -> 29.20685763 | Q149: 50.92790591 | R149: 63.11255898 | S149: 59.88192 | T149: 41.972 | U149: 52.76143829 | V149: 51.4171456 | W149: 46.01033441 | X149: 45.50824367 | Y149: 46.74192446
B150: Improvement in service
B151: Reliability Driven | E151: =E111/E$46 -> 6.597584939 | F151: 6.7356265 | G151: 9.177833905 | H151: 2.105680044 | I151: 1.600851453 | J151: 0.2819791363 | K151: 1.432294403 | L151: 0.3073202312 | M151: 0.2093337779 | N151: 0 | O151: 0 | P151: =P111/P$46 -> 0.9239898138 | Q151: 4.324087367 | R151: -3.952136215 | S151: 0.1761832 | T151: 0.066 | U151: 0 | V151: 0 | W151: 0 | X151: 0 | Y151: 0
B152: SCADA & Communications | E152: =E112/E$46 -> 7.623109126 | F152: 5.018702098 | G152: 5.994056798 | H152: 11.81934503 | I152: 6.894756259 | J152: 15.63779167 | K152: 6.677763717 | L152: 11.99805601 | M152: 14.32135658 | N152: 18.33950474 | O152: 12.51936507 | P152: =P112/P$46 -> 13.69603441 | Q152: 22.99154034 | R152: 23.13221178 | S152: 35.4942952 | T152: 27.947 | U152: 36.39704303 | V152: 45.05829914 | W152: 50.10478037 | X152: 49.20027659 | Y152: 54.46207238
B153: Compliance
B154: Safety, Environmental & Statutory | E154: =E114/E$46 -> 5.382966792 | F154: 7.528053147 | G154: 8.592282341 | H154: 13.87576202 | I154: 13.58955849 | J154: 22.11849165 | K154: 24.50082571 | L154: 21.4644331 | M154: 28.58756608 | N154: 24.80099955 | O154: 22.99060355 | P154: =P114/P$46 -> 23.21858992 | Q154: 17.41122286 | R154: 24.35053154 | S154: 23.581052 | T154: 28.221 | U154: 42.25739986 | V154: 42.83630663 | W154: 46.07181655 | X154: 31.3388091 | Y154: 25.20245372
B155: Corporate
B156: IT | E156: =E116/E$46 -> 8.271135512 | F156: 14.95705296 | G156: 8.981942516 | H156: 12.8538693 | I156: 18.13973185 | J156: 21.0460069 | K156: 11.1099911 | L156: 7.319705283 | M156: 10.42504723 | N156: 5.756300632 | O156: 13.47676043 | P156: =P116/P$46 -> 15.17142023 | Q156: 15.78086382 | R156: 19.86961071 | S156: 13.5233336 | T156: 16.678 | U156: 15.53811866 | V156: 15.5167262 | W156: 14.87822523 | X156: 16.77171249 | Y156: 15.69288646
B157: Business Support | E157: =E117/E$46 -> 4.175249883 | F157: 3.995151012 | G157: 10.67419256 | H157: 9.217244918 | I157: 15.10384448 | J157: 17.0428672 | K157: 12.85534245 | L157: 2.060987721 | M157: 5.778062449 | N157: 7.831777326 | O157: 2.475457171 | P157: =P117/P$46 -> -1.586735694 | Q157: 13.80904625 | R157: 18.69042102 | S157: 9.2643848 | T157: 26.418 | U157: 7.890445125 | V157: 9.181717165 | W157: 15.64670338 | X157: 1.407809157 | Y157: 1.417020451
B158: Equity Raising Costs | E158: =E118/E$46 -> 0 | F158: 0 | G158: 0 | H158: 0 | I158: 0 | J158: 0 | K158: 0.5998408922 | L158: 2.075914285 | M158: 0.3955914299 | N158: 0.7592352987 | O158: 1.30695674 | P158: =P118/P$46 -> 0 | Q158: 0 | R158: 0 | S158: 0 | T158: 0 | U158: =U118/U$46 -> 0 | V158: 0 | W158: 0 | X158: 0 | Y158: 0
B159: Total | E159: =SUM(E144:E158) -> 393.53697 | F159: 406.5412842 | G159: 414.8733349 | H159: 285.2849092 | I159: 230.7993749 | J159: 230.3612888 | K159: 265.9850456 | L159: 375.522548 | M159: 181.5390872 | N159: 138.9093364 | O159: 130.4810115 | P159: =SUM(P144:P158) -> 120.777139 | Q159: 196.2437993 | R159: 288.1622337 | S159: 217.0933464 | T159: 227.112 | U159: 262.1450289 | V159: 263.4897379 | W159: 255.5457068 | X159: 253.1768696 | Y159: 182.2658071
E160: =IF(ROUND(E159-E119/E46,8)=0,"OK","CHECK") -> OK | F160: OK | G160: OK | H160: OK | I160: OK | J160: OK | K160: OK | L160: OK | M160: OK | N160: OK | O160: OK | P160: OK | Q160: OK | R160: OK | S160: OK | T160: OK | U160: OK | V160: OK | W160: OK | X160: OK | Y160: OK
B161: Year ending 30 June | D161: 2006 | E161: 2007 | F161: 2008 | G161: 2009 | H161: 2010 | I161: 2011 | J161: 2012 | K161: 2013 | L161: 2014 | M161: 2015 | N161: 2016 | O161: 2017 | P161: 2018 | Q161: 2019 | R161: 2020 | S161: 2021 | T161: 2022 | U161: 2018 | V161: 2019 | W161: 2020 | X161: 2021 | Y161: 2022
B162: Capital expenditure adjustments | F162: [$M real as at 30 June 2009] | I162: [$M nominal]
B164: AA1 transmission writedown | E164: -36.467 | F164: -37.441 | G164: -38.065
B165: AA2 transmission customer driven writedown | H165: 0 | I165: -2.1 | J165: 0
B166: AA2 transmission customer driven writedown [$M real as at 30 June 2022] | H166: =H165/H46 -> 0 | I166: =I165/I46 -> -2.56038694 | J166: =J165/J46 -> 0
I168: [$M real as at 30 June 2012] | M168: [$M real as at 30 June 2017] | R168: [$M real as at 30 June 2017]
B169: Growth
B170: Capacity Expansion | H170: -1.534 | I170: -8.613409983 | J170: -23.453 | K170: -13.03835167 | L170: 0 | M170: 0 | N170: 0 | O170: 0
B171: Customer Driven | H171: -0.6333333333 | I171: -2.174271079 | J171: -2.494333333 | K171: =-2.651202*(1/3) -> -0.883734 | L171: -0.14 | M171: -1.89 | N171: -0.04 | O171: 0
B172: Generation Driven | H172: 0 | I172: -5.751957375 | J172: 0 | K172: 0 | L172: 0 | M172: 0 | N172: 0 | O172: 0
B173: Gifted Assets | H173: 0 | I173: 0 | J173: 0 | K173: 0 | L173: 0 | M173: 0 | N173: 0 | O173: 0
B174: Asset replacement and renewal
B175: Asset Replacement | H175: 0 | I175: 0 | J175: -0.888 | K175: 0 | L175: 0 | M175: 0 | N175: 0 | O175: 0
B176: Improvement in service
B177: Reliability Driven | H177: 0 | I177: 0 | J177: -0.012 | K177: 0 | L177: 0 | M177: 0 | N177: 0 | O177: 0 | Q177: -3.807113 | R177: 3.807113
B178: SCADA & Communications | H178: 0 | I178: 0 | J178: -0.63 | K178: 0 | L178: 0 | M178: 0 | N178: 0 | O178: 0
B179: Compliance
B180: Safety, Environmental & Statutory | H180: 0 | I180: 0 | J180: -0.687 | K180: 0 | L180: 0 | M180: 0 | N180: 0 | O180: 0
B181: Corporate
B182: IT | H182: -1.84585199 | I182: -1.84585199 | J182: -1.84585199 | K182: 0 | L182: 0 | M182: 0 | N182: 0 | O182: 0
B183: Business Support | H183: 0 | I183: 0 | J183: 0 | K183: -0.9632217524 | L183: 0 | M183: 0 | N183: -1.692 | O183: 0
B184: Equity Raising Costs | H184: 0 | I184: 0 | J184: 0
B185: Total | H185: =SUM(H170:H184) -> -4.013185324 | I185: =SUM(I170:I184) -> -18.38549043 | J185: =SUM(J170:J184) -> -30.01018532 | K185: =SUM(K170:K184) -> -14.88530742 | L185: =SUM(L170:L184) -> -0.14 | M185: -1.89 | N185: -1.732 | O185: 0 | P185: =SUM(P170:P184) -> 0 | Q185: =SUM(Q170:Q184) -> -3.807113 | R185: 3.807113 | S185: 0 | T185: 0
B187: Year ending 30 June | D187: 2006 | E187: 2007 | F187: 2008 | G187: 2009 | H187: 2010 | I187: 2011 | J187: 2012 | K187: 2013 | L187: 2014 | M187: 2015 | N187: 2016 | O187: 2017 | P187: 2018 | Q187: 2019 | R187: 2020 | S187: 2021 | T187: 2022 | U187: 2023 | V187: 2024 | W187: 2025 | X187: 2026 | Y187: 2027
B188: Capital expenditure adjustments [$M real as at 30 June 2022]
B189: Growth
B190: Capacity Expansion | E190: =(E$164*(E144/E$159-E$147))/$G$46 -> -19.71262572 | F190: -16.77856137 | G190: -19.30079399 | H190: =H170/$J$46 -> -1.848529893 | I190: =I170/$J$46 -> -10.37949533 | J190: =J170/$J$46 -> -28.26178069 | K190: =K170/$O$46 -> -14.24983714 | L190: =L170/$O$46 -> 0 | M190: 0 | N190: 0 | O190: 0 | P190: =P170/$O$46 -> 0 | Q190: =Q170/$O$46 -> 0 | R190: 0 | S190: 0 | T190: 0
B191: Customer Driven | E191: -2.980202705 | F191: -11.62165145 | G191: -6.354866838 | H191: =(H171/$J$46)+(H$165/H$46) -> -0.7631913944 | I191: =(I171/$J$46)+(I$165/I$46) -> -5.180468481 | J191: =(J171/$J$46)+(J$165/J$46) -> -3.005769055 | K191: =K171/$O$46 -> -0.9658479767 | L191: -0.1530083902 | M191: -2.065613268 | N191: -0.04371668293 | O191: 0 | P191: 0 | Q191: 0 | R191: 0 | S191: 0 | T191: 0
B192: Generation Driven | E192: -18.76362262 | F192: -13.94914841 | G192: -14.86807651 | H192: =H172/$J$46 -> 0 | I192: -6.931333216 | J192: 0 | K192: =K172/$O$46 -> 0 | L192: 0 | M192: 0 | N192: 0 | O192: 0 | P192: 0 | Q192: 0 | R192: 0 | S192: 0 | T192: 0
B193: Gifted Assets | E193: 0 | F193: 0 | G193: 0 | H193: 0 | I193: 0 | J193: 0 | K193: =K173/$O$46 -> 0 | L193: 0 | M193: 0 | N193: 0 | O193: 0 | P193: 0 | Q193: 0 | R193: 0 | S193: 0 | T193: 0
B194: Asset replacement and renewal
B195: Asset Replacement | E195: =(E$164*(E149/E$159-E$147))/$G$46 -> -2.147743849 | F195: =(F$164*(F149/F$159-F$147))/$G$46 -> -1.804997637 | G195: =(G$164*(G149/G$159-G$147))/$G$46 -> -3.840742498 | H195: =H175/$J$46 -> 0 | I195: =I175/$J$46 -> 0 | J195: =J175/$J$46 -> -1.070074671 | K195: =K175/$O$46 -> 0 | L195: 0 | M195: 0 | N195: 0 | O195: 0 | P195: 0 | Q195: 0 | R195: 0 | S195: 0 | T195: 0
B196: Improvement in service
B197: Reliability Driven | E197: =(E$164*(E151/E$159-E$147))/$G$46 -> -0.7958306665 | F197: -0.8074989429 | G197: -1.096154285 | H197: =H177/$J$46 -> 0 | I197: 0 | J197: -0.01446046853 | K197: =K177/$O$46 -> 0 | L197: 0 | M197: 0 | N197: 0 | O197: 0 | P197: 0 | Q197: -4.160858797 | R197: 4.160858797 | S197: 0 | T197: 0
B198: SCADA & Communications | E198: -0.9195340526 | F198: -0.601665879 | G198: -0.7158999731 | H198: 0 | I198: 0 | J198: -0.7591745976 | K198: =K178/$O$46 -> 0 | L198: 0 | M198: 0 | N198: 0 | O198: 0 | P198: 0 | Q198: 0 | R198: 0 | S198: 0 | T198: 0
B199: Compliance
B200: Safety, Environmental & Statutory | E200: =(E$164*(E154/E$159-E$147))/$G$46 -> -0.6493179079 | F200: =(F$164*(F154/F$159-F$147))/$G$46 -> -0.9024988185 | G200: =(G$164*(G154/G$159-G$147))/$G$46 -> -1.026218954 | H200: =H180/$J$46 -> 0 | I200: =I180/$J$46 -> 0 | J200: =J180/$J$46 -> -0.8278618231 | K200: =K180/$O$46 -> 0 | L200: 0 | M200: 0 | N200: 0 | O200: 0 | P200: 0 | Q200: 0 | R200: 0 | S200: 0 | T200: 0
B201: Corporate
B202: IT | E202: =(E$164*(E156/E$159-E$147))/$G$46 -> -0.9977019392 | F202: -1.793122653 | G202: -1.072758004 | H202: =H182/$J$46 -> -2.224323718 | I202: -2.224323718 | J202: -2.224323718 | K202: =K182/$O$46 -> 0 | L202: 0 | M202: 0 | N202: 0 | O202: 0 | P202: 0 | Q202: 0 | R202: 0 | S202: 0 | T202: 0
B203: Business Support | E203: -0.503637608 | F203: -0.4789577063 | G203: -1.274871831 | H203: 0 | I203: 0 | J203: 0 | K203: =K183/$O$46 -> -1.052721498 | L203: 0 | M203: 0 | N203: -1.849215688 | O203: 0 | P203: 0 | Q203: 0 | R203: 0 | S203: 0 | T203: 0
B204: Equity Raising Costs | E204: 0 | F204: 0 | G204: 0 | H204: 0 | I204: 0 | J204: 0 | K204: =K184/$O$46 -> 0 | L204: 0 | M204: 0 | N204: 0 | O204: 0 | P204: 0 | Q204: 0 | R204: 0 | S204: 0 | T204: 0
B205: Total | E205: =SUM(E190:E204) -> -47.47021706 | F205: -48.73810286 | G205: -49.55038288 | H205: =SUM(H190:H204) -> -4.836045005 | I205: -24.71562074 | J205: -36.16344503 | K205: -16.26840662 | L205: -0.1530083902 | M205: -2.065613268 | N205: -1.892932371 | O205: 0 | P205: 0 | Q205: -4.160858797 | R205: 4.160858797 | S205: 0 | T205: 0
B207: Year ending 30 June | D207: 2006 | E207: 2007 | F207: 2008 | G207: 2009 | H207: 2010 | I207: 2011 | J207: 2012 | K207: 2013 | L207: 2014 | M207: 2015 | N207: 2016 | O207: 2017 | P207: 2018 | Q207: 2019 | R207: 2020 | S207: 2021 | T207: 2022 | U207: 2023 | V207: 2024 | W207: 2025 | X207: 2026 | Y207: 2027
B208: [ACTUAL] Capital expenditure by asset category | F208: [$M real as at 30 June 2012] | I208: [$M real as at 30 June 2012] | M208: [$M real as at 30 June 2017]
F209: Actual AA1 | I209: Actual AA2 | M209: Actual AA3
B210: Transmission cables | E210: 5.209297371 | F210: 4.465049844 | G210: 5.158235096 | H210: 4.65255713 | I210: 2.098726023 | J210: 0.8328306894 | K210: 17.35598813 | L210: 31.21523858 | M210: 10.03016024 | N210: 4.005205607 | O210: 4.560319227
B211: Transmission steel towers | E211: 82.38224393 | F211: 116.6591267 | G211: 93.83875171 | H211: 82.69138419 | I211: 50.29364633 | J211: 55.07190963 | K211: 12.68282928 | L211: 21.56066713 | M211: 5.508347851 | N211: 2.754743898 | O211: 3.164295634
B212: Transmission wood poles | E212: 14.41481094 | F212: 13.70973416 | G212: 16.8600656 | H212: 13.18513111 | I212: 8.846881532 | J212: 7.720025175 | K212: 28.37483974 | L212: 29.42101391 | M212: 30.32448899 | N212: 23.9246902 | O212: 22.42064299
B213: Transmission Metering | E213: 0 | F213: 0 | G213: 0 | H213: 0 | I213: 0 | J213: 0 | K213: 0 | L213: 0 | M213: 0 | N213: 0 | O213: 0
B214: Transmission transformers | E214: 55.18237764 | F214: 48.97200542 | G214: 51.9849238 | H214: 35.58496568 | I214: 19.6922016 | J214: 16.02039667 | K214: 64.66910081 | L214: 108.2501877 | M214: 44.28890374 | N214: 35.21606864 | O214: 31.89487944
B215: Transmission reactors | E215: 4.156838303 | F215: 3.126994414 | G215: 3.486369201 | H215: 1.049707691 | I215: 0.6425732039 | J215: 0.3136231568 | K215: 6.682541334 | L215: 12.37936627 | M215: 6.670752946 | N215: 4.210670719 | O215: 3.760688277
B216: Transmission capacitors | E216: 26.90458631 | F216: 20.57589452 | G216: 22.35911103 | H216: 8.810885161 | I216: 3.282627928 | J216: 0.8957544041 | K216: 4.540316301 | L216: 7.903985057 | M216: 2.242238099 | N216: 1.011704984 | O216: 1.157740585
... 472 more rows

Sheet WACC_Inputs
D2: AA1 | E2: AA2 | F2: AA3 | H2: AA4 | N2: AA5
B3: Determination of the Weighted Average Cost of Capital (WACC) | D3: Approved | E3: Approved | F3: Approved | H3: 17/18 | I3: 18/19 | J3: 19/20 | K3: 20/21 | L3: 21/22 | N3: 22/23 | O3: 23/24 | P3: 24/25 | Q3: 25/26 | R3: 26/27
B4: Nominal Risk Free Rate (Rfn) | F4: 0.0252 | H4: 0.0237 | I4: =$H4 -> 0.0237 | J4: =$H4 -> 0.0237 | K4: 0.0237 | L4: 0.0237 | N4: 0.0382 | O4: =N4 -> 0.0382 | P4: =O4 -> 0.0382 | Q4: 0.0382 | R4: 0.0382
B5: Real Risk Free Rate (Rfr) | F5: =(1+F4)/(1+F6)-1 -> 0.004113614104 | H5: =(1+H4)/(1+H6)-1 -> 0.005204241948 | I5: =(1+I4)/(1+I6)-1 -> 0.005204241948 | J5: =(1+J4)/(1+J6)-1 -> 0.005204241948 | K5: =(1+K4)/(1+K6)-1 -> 0.005204241948 | L5: =(1+L4)/(1+L6)-1 -> 0.005204241948
B6: Inflation Rate (I) | D6: 0.031 | E6: 0.0247 | F6: 0.021 | H6: 0.0184 | I6: =$H6 -> 0.0184 | J6: 0.0184 | K6: 0.0184 | L6: 0.0184 | N6: 0.0296 | O6: =N6 -> 0.0296 | P6: =O6 -> 0.0296 | Q6: 0.0296 | R6: 0.0296
B7: Debt Proportion (D) | F7: 0.6 | H7: 0.55 | I7: =$H7 -> 0.55 | J7: 0.55 | K7: 0.55 | L7: 0.55 | N7: 0.55 | O7: =$H7 -> 0.55 | P7: =$H7 -> 0.55 | Q7: 0.55 | R7: 0.55
B8: Equity Proportion (E) | F8: =1-F7 -> 0.4 | H8: =1-H7 -> 0.45 | I8: =1-I7 -> 0.45 | J8: =1-J7 -> 0.45 | K8: =1-K7 -> 0.45 | L8: =1-L7 -> 0.45 | N8: =1-N7 -> 0.45 | O8: =1-O7 -> 0.45 | P8: =1-P7 -> 0.45 | Q8: =1-Q7 -> 0.45 | R8: =1-R7 -> 0.45
B9: 5 year IRS (effective yield) | H9: 0.0259 | I9: =$H9 -> 0.0259 | J9: 0.0259 | K9: 0.0259 | L9: 0.0259 | N9: 0.0407 | O9: =$N9 -> 0.0407 | P9: =$N9 -> 0.0407 | Q9: 0.0407 | R9: 0.0407
B10: Cost of Debt; Debt Risk Premium (Drp) | F10: 0.02708 | H10: =AVERAGE(H39:H52) -> 0.024866 | I10: =IF(H36=10,AVERAGE(H39:H52),H10) -> 0.024866 | J10: =IF(I36=10,AVERAGE(I39:I52),I10) -> 0.021107 | K10: =IF(J36=10,AVERAGE(J39:J52),J10) -> 0.020249 | L10: =IF(K36=10,AVERAGE(K39:K52),K10) -> 0.019573 | N10: =IF(L36=10,AVERAGE(L39:L56),L10) -> 0.018834 | O10: =IF(N36=10,AVERAGE(N39:N56),N10) -> 0.018834 | P10: =IF(O36=10,AVERAGE(O39:O56),O10) -> 0.018834 | Q10: 0.018834 | R10: 0.018834
B11: Cost of Debt; Debt Issuing Cost (Disc) | F11: 0.00125 | H11: 0.001 | I11: =$H11 -> 0.001 | J11: 0.001 | K11: 0.001 | L11: 0.001 | N11: 0.00165 | O11: =N11 -> 0.00165 | P11: =O11 -> 0.00165 | Q11: 0.00165 | R11: 0.00165
B12: Cost of Debt; Hedging Cost | H12: 0.00114 | I12: 0.00114 | J12: 0.00114 | K12: 0.00114 | L12: 0.00114 | N12: 0.00123 | O12: =N12 -> 0.00123 | P12: =O12 -> 0.00123 | Q12: 0.00123 | R12: 0.00123
B13: Return on Debt; 10 year bond yield
B14: Market Risk Premium (Rp) | F14: 0.06 | H14: 0.06 | I14: 0.06 | J14: =$H14 -> 0.06 | K14: 0.06 | L14: 0.06 | N14: 0.062 | O14: =N14 -> 0.062 | P14: =O14 -> 0.062 | Q14: 0.062 | R14: 0.062
B15: Equity Beta (Be) | F15: 0.65 | H15: 0.7 | I15: 0.7 | J15: 0.7 | K15: 0.7 | L15: 0.7 | N15: 0.7 | O15: 0.7 | P15: 0.7 | Q15: 0.7 | R15: 0.7
B16: Corporate Tax Rate (T) | F16: 0.3 | H16: 0.3 | I16: 0.3 | J16: =$H16 -> 0.3 | K16: 0.3 | L16: 0.3 | N16: 0.3 | O16: 0.3 | P16: 0.3 | Q16: 0.3 | R16: 0.3
B17: Franking Credit (g) | F17: 0.25 | H17: 0.5 | I17: 0.5 | J17: 0.5 | K17: 0.5 | L17: 0.5 | N17: 0.5 | O17: 0.5 | P17: 0.5 | Q17: 0.5 | R17: 0.5
B18: Imputation Adj (G) | F18: =(1-F16)/(1-F16*(1-F17)) -> 0.9032258065 | H18: =(1-H16)/(1-H16*(1-H17)) -> 0.8235294118 | I18: =(1-I16)/(1-I16*(1-I17)) -> 0.8235294118 | J18: =(1-J16)/(1-J16*(1-J17)) -> 0.8235294118 | K18: =(1-K16)/(1-K16*(1-K17)) -> 0.8235294118 | L18: =(1-L16)/(1-L16*(1-L17)) -> 0.8235294118 | N18: =(1-N16)/(1-N16*(1-N17)) -> 0.8235294118 | O18: =(1-O16)/(1-O16*(1-O17)) -> 0.8235294118 | P18: =(1-P16)/(1-P16*(1-P17)) -> 0.8235294118 | Q18: =(1-Q16)/(1-Q16*(1-Q17)) -> 0.8235294118 | R18: =(1-R16)/(1-R16*(1-R17)) -> 0.8235294118
B19: Debt
B20: Nominal Cost of Debt (DPn) | F20: =F4+F10+F11 -> 0.05353 | H20: =SUM(H9:H12) -> 0.052906 | I20: =SUM(I9:I12) -> 0.052906 | J20: =SUM(J9:J12) -> 0.049147 | K20: =SUM(K9:K12) -> 0.048289 | L20: =SUM(L9:L12) -> 0.047613 | N20: =SUM(N9:N12) -> 0.062414 | O20: =SUM(O9:O12) -> 0.062414 | P20: 0.062414 | Q20: 0.062414 | R20: 0.062414
B21: Real Cost of Debt (DPr) | F21: =(1+F20)/(1+F6)-1 -> 0.03186092067 | H21: =(1+H20)/(1+H6)-1 -> 0.03388256088 | I21: =(1+I20)/(1+I6)-1 -> 0.03388256088 | J21: =(1+J20)/(1+J6)-1 -> 0.03019147683 | K21: =(1+K20)/(1+K6)-1 -> 0.02934897879 | L21: =(1+L20)/(1+L6)-1 -> 0.02868519246 | N21: =(1+N20)/(1+N6)-1 -> 0.03187062937 | O21: =(1+O20)/(1+O6)-1 -> 0.03187062937 | P21: =(1+P20)/(1+P6)-1 -> 0.03187062937 | Q21: =(1+Q20)/(1+Q6)-1 -> 0.03187062937 | R21: =(1+R20)/(1+R6)-1 -> 0.03187062937
B22: Equity
B23: Nominal Pre Tax Cost of Equity (EPn) | F23: =(F4+F14*F15)/(1-F16*(1-F17)) -> 0.08283870968 | H23: =(H4+H14*H15)/(1-H16*(1-H17)) -> 0.07729411765 | I23: =(I4+I14*I15)/(1-I16*(1-I17)) -> 0.07729411765 | J23: =(J4+J14*J15)/(1-J16*(1-J17)) -> 0.07729411765 | K23: =(K4+K14*K15)/(1-K16*(1-K17)) -> 0.07729411765 | L23: =(L4+L14*L15)/(1-L16*(1-L17)) -> 0.07729411765 | N23: =(N4+N14*N15)/(1-N16*(1-N17)) -> 0.096 | O23: =(O4+O14*O15)/(1-O16*(1-O17)) -> 0.096 | P23: =(P4+P14*P15)/(1-P16*(1-P17)) -> 0.096 | Q23: =(Q4+Q14*Q15)/(1-Q16*(1-Q17)) -> 0.096 | R23: =(R4+R14*R15)/(1-R16*(1-R17)) -> 0.096
B24: Real Pre Tax Cost of Equity (EPr) | F24: =(1+F23)/(1+F6)-1 -> 0.06056680674 | H24: =(1+H23)/(1+H6)-1 -> 0.05783004482 | I24: =(1+I23)/(1+I6)-1 -> 0.05783004482 | J24: =(1+J23)/(1+J6)-1 -> 0.05783004482 | K24: =(1+K23)/(1+K6)-1 -> 0.05783004482 | L24: =(1+L23)/(1+L6)-1 -> 0.05783004482 | N24: =(1+N23)/(1+N6)-1 -> 0.06449106449 | O24: =(1+O23)/(1+O6)-1 -> 0.06449106449 | P24: =(1+P23)/(1+P6)-1 -> 0.06449106449 | Q24: =(1+Q23)/(1+Q6)-1 -> 0.06449106449 | R24: =(1+R23)/(1+R6)-1 -> 0.06449106449
B25: Nominal After Tax Cost of Equity (EAn) | F25: =F4+F14*F15 -> 0.0642 | H25: =H4+H14*H15 -> 0.0657 | I25: =I4+I14*I15 -> 0.0657 | J25: =J4+J14*J15 -> 0.0657 | K25: =K4+K14*K15 -> 0.0657 | L25: =L4+L14*L15 -> 0.0657 | N25: =N4+N14*N15 -> 0.0816 | O25: =O4+O14*O15 -> 0.0816 | P25: =P4+P14*P15 -> 0.0816 | Q25: =Q4+Q14*Q15 -> 0.0816 | R25: =R4+R14*R15 -> 0.0816
B26: Real After Tax Cost of Equity (EAr) | F26: =(1+F25)/(1+F6)-1 -> 0.04231145935 | H26: =(1+H25)/(1+H6)-1 -> 0.04644540456 | I26: =(1+I25)/(1+I6)-1 -> 0.04644540456 | J26: =(1+J25)/(1+J6)-1 -> 0.04644540456 | K26: =(1+K25)/(1+K6)-1 -> 0.04644540456 | L26: =(1+L25)/(1+L6)-1 -> 0.04644540456 | N26: =(1+N25)/(1+N6)-1 -> 0.05050505051 | O26: =(1+O25)/(1+O6)-1 -> 0.05050505051 | P26: =(1+P25)/(1+P6)-1 -> 0.05050505051 | Q26: =(1+Q25)/(1+Q6)-1 -> 0.05050505051 | R26: =(1+R25)/(1+R6)-1 -> 0.05050505051
B27: WACC: Pre-tax
B28: Nominal Pre Tax WACC (WPn) | D28: 0.1007 | E28: 0.1065 | F28: =F23*F8+F20*F7 -> 0.06525348387 | H28: =H23*H8+H20*H7 -> 0.06388065294 | I28: =I23*I8+I20*I7 -> 0.06388065294 | J28: =J23*J8+J20*J7 -> 0.06181320294 | K28: =K23*K8+K20*K7 -> 0.06134130294 | L28: =L23*L8+L20*L7 -> 0.06096950294 | N28: =N23*N8+N20*N7 -> 0.0775277 | O28: =O23*O8+O20*O7 -> 0.0775277 | P28: =P23*P8+P20*P7 -> 0.0775277 | Q28: =Q23*Q8+Q20*Q7 -> 0.0775277 | R28: =R23*R8+R20*R7 -> 0.0775277
B29: Real Pre Tax WACC (WPr) | D29: 0.0676 | E29: 0.0798 | F29: =(1+F28)/(1+F6)-1 -> 0.04334327509 | H29: =(1+H28)/(1+H6)-1 -> 0.04465892865 | I29: =(1+I28)/(1+I6)-1 -> 0.04465892865 | J29: =(1+J28)/(1+J6)-1 -> 0.04262883242 | K29: =(1+K28)/(1+K6)-1 -> 0.0421654585 | L29: =(1+L28)/(1+L6)-1 -> 0.04180037602 | N29: =(1+N28)/(1+N6)-1 -> 0.04654982517 | O29: =(1+O28)/(1+O6)-1 -> 0.04654982517 | P29: =(1+P28)/(1+P6)-1 -> 0.04654982517 | Q29: =(1+Q28)/(1+Q6)-1 -> 0.04654982517 | R29: =(1+R28)/(1+R6)-1 -> 0.04654982517
B30: WACC: Vanilla
B31: Nominal Post Tax WACC (WAn) | F31: =F7*F20+F25*F8 -> 0.057798 | H31: =H7*H20+H25*H8 -> 0.0586633 | I31: =I7*I20+I25*I8 -> 0.0586633 | J31: =J7*J20+J25*J8 -> 0.05659585 | K31: =K7*K20+K25*K8 -> 0.05612395 | L31: =L7*L20+L25*L8 -> 0.05575215 | N31: =N7*N20+N25*N8 -> 0.0710477 | O31: =O7*O20+O25*O8 -> 0.0710477 | P31: =P7*P20+P25*P8 -> 0.0710477 | Q31: =Q7*Q20+Q25*Q8 -> 0.0710477 | R31: =R7*R20+R25*R8 -> 0.0710477
B32: Real Post Tax WACC | F32: =(1+F31)/(1+F6)-1 -> 0.03604113614 | H32: =(1+H31)/(1+H6)-1 -> 0.03953584053 | I32: =(1+I31)/(1+I6)-1 -> 0.03953584053 | J32: =(1+J31)/(1+J6)-1 -> 0.0375057443 | K32: =(1+K31)/(1+K6)-1 -> 0.03704237038 | L32: =(1+L31)/(1+L6)-1 -> 0.0366772879 | N32: =(1+N31)/(1+N6)-1 -> 0.04025611888 | O32: =(1+O31)/(1+O6)-1 -> 0.04025611888 | P32: =(1+P31)/(1+P6)-1 -> 0.04025611888 | Q32: =(1+Q31)/(1+Q6)-1 -> 0.04025611888 | R32: =(1+R31)/(1+R6)-1 -> 0.04025611888
H35: DRP | I35: DRP | J35: DRP | K35: DRP | L35: DRP | N35: DRP | O35: DRP | P35: DRP | Q35: DRP
F36: Count flag | H36: =COUNT(H39:H52) -> 10 | I36: =COUNT(I39:I52) -> 10 | J36: =COUNT(J39:J52) -> 10 | K36: =COUNT(K39:K52) -> 10 | L36: =COUNT(L39:L52) -> 10 | N36: =COUNT(N39:N56) -> 9 | O36: =COUNT(O39:O56) -> 8 | P36: 7 | Q36: 6
F37: 10 year trailing average chart
F38: Year | H38: 17/18 | I38: 18/19 | J38: 19/20 | K38: 20/21 | L38: 21/22 | N38: 22/23 | O38: 23/24 | P38: 24/25 | Q38: 25/26
F39: 2008/09 | H39: 0.05483
F40: 2009/10 | H40: 0.02355 | I40: =H40 -> 0.02355
F41: 2010/11 | H41: 0.01895 | I41: 0.01895 | J41: 0.01895
F42: 2011/12 | H42: 0.02842 | I42: 0.02842 | J42: 0.02842 | K42: 0.02842
F43: 2012/13 | H43: 0.02768 | I43: =H43 -> 0.02768 | J43: 0.02768 | K43: 0.02768 | L43: =K43 -> 0.02768
F44: 2013/14 | H44: 0.02634 | I44: 0.02634 | J44: 0.02634 | K44: 0.02634 | L44: 0.02634 | N44: =L44 -> 0.02634
F45: 2014/15 | H45: 0.0164 | I45: 0.0164 | J45: 0.0164 | K45: 0.0164 | L45: 0.0164 | N45: =L45 -> 0.0164 | O45: =IF(N45="","",N45) -> 0.0164
F46: 2015/16 | H46: 0.02352 | I46: 0.02352 | J46: 0.02352 | K46: 0.02352 | L46: 0.02352 | N46: =L46 -> 0.02352 | O46: =IF(N46="","",N46) -> 0.02352 | P46: =IF(O46="","",O46) -> 0.02352
F47: 2016/17 | H47: 0.01656 | I47: 0.01656 | J47: 0.01656 | K47: 0.01656 | L47: 0.01656 | N47: 0.01656 | O47: 0.01656 | P47: 0.01656 | Q47: =IF(P47="","",P47) -> 0.01656
F48: 2017/18 | H48: 0.01241 | I48: 0.01241 | J48: 0.01241 | K48: 0.01241 | L48: 0.01241 | N48: 0.01241 | O48: 0.01241 | P48: 0.01241 | Q48: 0.01241
F49: 2018/19 | I49: 0.01724 | J49: =IF(I49="","",I49) -> 0.01724 | K49: 0.01724 | L49: 0.01724 | N49: 0.01724 | O49: 0.01724 | P49: 0.01724 | Q49: 0.01724
F50: 2019/20 | J50: 0.01497 | K50: 0.01497 | L50: 0.01497 | N50: 0.01497 | O50: 0.01497 | P50: 0.01497 | Q50: 0.01497
F51: 2020/21 | K51: 0.01219 | L51: 0.01219 | N51: =IF(L51="","",L51) -> 0.01219 | O51: 0.01219 | P51: 0.01219 | Q51: 0.01219
F52: 2021/22 | L52: 0.02103 | N52: =IF(L52="","",L52) -> 0.02103 | O52: 0.02103 | P52: 0.02103 | Q52: 0.02103
F53: 2022/23 | O53: =IF(N53="","",N53) -> 
F54: 2023/24
F55: 2024/25
F56: 2025/26
F57: 2026/27

Sheet Adjustments_Inputs
B2: Service standard benchmarks and service standard adjustment mechanism (SSAM)
B3: Year ending 30 June | E3: 2018 | F3: 2019 | G3: 2020 | H3: 2021 | I3: 2022 | K3: 2018 | L3: 2019 | M3: 2020 | N3: 2021 | O3: 2022 | Q3: 2018 | R3: 2019 | S3: 2020 | T3: 2021 | U3: 2022
B4: SSAM revenue at risk
B5: Distribution revenue at risk - penalties | E5: 0.025 | F5: 0.025 | G5: 0.025 | H5: 0.025 | I5: 0.025
B6: Distribution revenue at risk - rewards | E6: 0.01 | F6: 0.01 | G6: 0.01 | H6: 0.01 | I6: 0.01
B7: Transmission revenue at risk | E7: 0.01 | F7: 0.01 | G7: 0.01 | H7: 0.01 | I7: 0.01
B9: Year ending 30 June | E9: 2018 | F9: 2019 | G9: 2020 | H9: 2021 | I9: 2022 | K9: 2018 | L9: 2019 | M9: 2020 | N9: 2021 | O9: 2022 | Q9: 2018 | R9: 2019 | S9: 2020 | T9: 2021 | U9: 2022
B10: Distribution performance
G11: Actual AA4 | M11: Benchmark | S11: Target
B12: SAIDI - CBD (minutes per annum) | E12: 1.3 | F12: 14.7 | G12: 22.8 | H12: 14.1 | I12: 5.8 | K12: 39.9 | L12: 33.7 | M12: 33.7 | N12: 33.7 | O12: 33.7 | S12: 17.7 | T12: 17.7 | U12: 17.7
B13: SAIDI - Urban (minutes per annum) | E13: 104.5 | F13: 104.2 | G13: 134.3 | H13: 118 | I13: 130.3 | K13: 183 | L13: 130.6 | M13: 130.6 | N13: 130.6 | O13: 130.6 | S13: 106.8 | T13: 106.8 | U13: 106.8
B14: SAIDI - Rural Short (minutes per annum) | E14: 151.9 | F14: 178.3 | G14: 218.3 | H14: 210.2 | I14: 205.8 | K14: 227.8 | L14: 215.4 | M14: 215.4 | N14: 215.4 | O14: 215.4 | S14: 188.6 | T14: 188.6 | U14: 188.6
B15: SAIDI - Rural Long (minutes per annum) | E15: 718.1 | F15: 663.5 | G15: 737.7 | H15: 713.5 | I15: 806.8 | K15: 724.8 | L15: 848.3 | M15: 848.3 | N15: 848.3 | O15: 848.3 | S15: 677.7 | T15: 677.7 | U15: 677.7
B16: SAIFI - CBD (interruptions per annum) | E16: 0.04 | F16: 0.11 | G16: 0.2 | H16: 0.26 | I16: 0.08 | K16: 0.26 | L16: 0.21 | M16: 0.21 | N16: 0.21 | O16: 0.21 | S16: 0.12 | T16: 0.12 | U16: 0.12
B17: SAIFI - Urban (interruptions per annum) | E17: 1.03 | F17: 0.95 | G17: 1.14 | H17: 1.13 | I17: 1.29 | K17: 2.12 | L17: 1.27 | M17: 1.27 | N17: 1.27 | O17: 1.27 | S17: 1.09 | T17: 1.09 | U17: 1.09
B18: SAIFI - Rural Short (interruptions per annum) | E18: 1.59 | F18: 1.78 | G18: 2.11 | H18: 1.94 | I18: 2.11 | K18: 2.61 | L18: 2.34 | M18: 2.34 | N18: 2.34 | O18: 2.34 | S18: 1.96 | T18: 1.96 | U18: 1.96
B19: SAIFI - Rural Long (interruptions per annum) | E19: 3.96 | F19: 3.83 | G19: 3.77 | H19: 4.25 | I19: 4.61 | K19: 4.51 | L19: 5.7 | M19: 5.7 | N19: 5.7 | O19: 5.7 | S19: 4.29 | T19: 4.29 | U19: 4.29
B20: Call centre performance (% of calls per year) | E20: 91.7 | F20: 91.7 | G20: 92.6 | H20: 91.9 | I20: 90.7 | K20: 77.5 | L20: 86.8 | M20: 86.8 | N20: 86.8 | O20: 86.8 | S20: 92 | T20: 92 | U20: 92
B21: Street Lighting repair time - Metropolitan area | E21: 3.23 | F21: 4.82 | G21: 4.53 | H21: 4.83 | I21: 4.95 | K21: 5 | L21: 5 | M21: 5 | N21: 5 | O21: 5 | S21: n/a | T21: n/a | U21: n/a
B22: Street Lighting repair time - Regional area | E22: 8.09 | F22: 8.15 | G22: 6.77 | H22: 7.33 | I22: 8.58 | K22: 9 | L22: 9 | M22: 9 | N22: 9 | O22: 9 | S22: n/a | T22: n/a | U22: n/a
B23: Streetlight LED replacement | E23: a | F23: a | G23: a | H23: a | I23: a | K23: * | L23: * | M23: * | N23: * | O23: * | S23: n/a | T23: n/a | U23: n/a
B24: Supply abolishment response time (business days) | E24: n/a | F24: n/a | G24: 3.36 | H24: 2.54 | I24: 2.48 | K24: 15 | L24: 15 | M24: 15 | N24: 15 | O24: 15 | S24: n/a | T24: n/a | U24: n/a
B25: Remote de-energise response time (business days) | E25: n/a | F25: n/a | G25: n/a | H25: n/a | I25: =H25 -> n/a | K25: 1 | L25: 1 | M25: 1 | N25: 1 | O25: 1 | S25: n/a | T25: n/a | U25: n/a
B26: Remote re-energise response time (business days) | E26: n/a | F26: n/a | G26: n/a | H26: n/a | I26: n/a | K26: 1 | L26: 1 | M26: 1 | N26: 1 | O26: 1 | S26: n/a | T26: n/a | U26: n/a
E27: EDM#:53352825 | F27: EDM#:53352825 | G27: EDM#:53352825 | H27: EDM#57572295
B28: Year ending 30 June | E28: 2018 | F28: 2019 | G28: 2020 | H28: 2021 | I28: 2022 | K28: 2018 | L28: 2019 | M28: 2020 | N28: 2021 | O28: 2022 | Q28: 2018 | R28: 2019 | S28: 2020 | T28: 2021 | U28: 2022
B29: Transmission performance | K29: AA3 benchmark | L29: AA4 benchmark | M29: AA4 benchmark | N29: AA4 benchmark | O29: AA4 benchmark
G30: Actual AA4 | M30: Benchmark | S30: Target
B31: Circuit Availability (% of hours per annum) | E31: 99.1 | F31: 98.7 | G31: 98.8 | H31: 98.5 | I31: 98.9 | K31: 97.7 | L31: 97.8 | M31: 97.8 | N31: 97.8 | O31: 97.8 | S31: 98.5 | T31: 98.5 | U31: 98.5
B32: Loss of Supply Event Frequency > 0.1 (# of events) | E32: 11 | F32: 13 | G32: 15 | H32: 14 | I32: 5 | K32: 33 | L32: 26 | M32: 26 | N32: 26 | O32: 26 | S32: 17 | T32: 17 | U32: 17
B33: Loss of Supply Event Frequency > 1 (# of events) | E33: 6 | F33: 2 | G33: 3 | H33: 2 | I33: 7 | K33: 4 | L33: 7 | M33: 7 | N33: 7 | O33: 7 | S33: 3 | T33: 3 | U33: 3
B34: Average Outage Duration (minutes per annum) | E34: 560 | F34: 523 | G34: 751 | H34: 976 | I34: 590 | K34: 886 | L34: 1234 | M34: 1234 | N34: 1234 | O34: 1234 | S34: 784 | T34: 784 | U34: 784
E35: EDM#:53352825 | F35: EDM#:53352825 | G35: EDM#:53352825 | H35: EDM#57572295
B36: Year ending 30 June | E36: 2018 | F36: 2019 | G36: 2020 | H36: 2021 | I36: 2022 | K36: 2018 | L36: 2019 | M36: 2020 | N36: 2021 | O36: 2022
B37: Distribution incentive rates
G38: [$M real as at 30 June 2017] | M38: [$M real as at 30 June 2022]
B39: SAIDI - CBD - per SAIDI minute | E39: 0.03021 | F39: 0.03021 | G39: 0.03021 | H39: 0.03021 | I39: 0.03021 | K39: =E39/Dx_Inputs!$O$55 -> 0.03301702478 | L39: =F39/Dx_Inputs!$O$55 -> 0.03301702478 | M39: =G39/Dx_Inputs!$O$55 -> 0.03301702478 | N39: =H39/Dx_Inputs!$O$55 -> 0.03301702478 | O39: =I39/Dx_Inputs!$O$55 -> 0.03301702478
B40: SAIDI - Urban - per SAIDI minute | E40: 0.44666 | F40: 0.44666 | G40: 0.44666 | H40: 0.44666 | I40: 0.44666 | K40: =E40/Dx_Inputs!$O$55 -> 0.4881623399 | L40: =F40/Dx_Inputs!$O$55 -> 0.4881623399 | M40: =G40/Dx_Inputs!$O$55 -> 0.4881623399 | N40: =H40/Dx_Inputs!$O$55 -> 0.4881623399 | O40: =I40/Dx_Inputs!$O$55 -> 0.4881623399
B41: SAIDI - Rural Short - per SAIDI minute | E41: 0.14312 | F41: 0.14312 | G41: 0.14312 | H41: 0.14312 | I41: 0.14312 | K41: =E41/Dx_Inputs!$O$55 -> 0.1564182915 | L41: =F41/Dx_Inputs!$O$55 -> 0.1564182915 | M41: =G41/Dx_Inputs!$O$55 -> 0.1564182915 | N41: =H41/Dx_Inputs!$O$55 -> 0.1564182915 | O41: =I41/Dx_Inputs!$O$55 -> 0.1564182915
B42: SAIDI - Rural Long - per SAIDI minute | E42: 0.0525 | F42: 0.0525 | G42: 0.0525 | H42: 0.0525 | I42: 0.0525 | K42: =E42/Dx_Inputs!$O$55 -> 0.05737814634 | L42: =F42/Dx_Inputs!$O$55 -> 0.05737814634 | M42: =G42/Dx_Inputs!$O$55 -> 0.05737814634 | N42: =H42/Dx_Inputs!$O$55 -> 0.05737814634 | O42: =I42/Dx_Inputs!$O$55 -> 0.05737814634
B43: SAIFI - CBD - per 0.01 event | E43: 0.02922 | F43: 0.02922 | G43: 0.02922 | H43: 0.02922 | I43: 0.02922 | K43: =E43/Dx_Inputs!$O$55 -> 0.03193503688 | L43: =F43/Dx_Inputs!$O$55 -> 0.03193503688 | M43: =G43/Dx_Inputs!$O$55 -> 0.03193503688 | N43: =H43/Dx_Inputs!$O$55 -> 0.03193503688 | O43: =I43/Dx_Inputs!$O$55 -> 0.03193503688
B44: SAIFI - Urban - per 0.01 event | E44: 0.2907 | F44: 0.2907 | G44: 0.2907 | H44: 0.2907 | I44: 0.2907 | K44: =E44/Dx_Inputs!$O$55 -> 0.3177109932 | L44: =F44/Dx_Inputs!$O$55 -> 0.3177109932 | M44: =G44/Dx_Inputs!$O$55 -> 0.3177109932 | N44: =H44/Dx_Inputs!$O$55 -> 0.3177109932 | O44: =I44/Dx_Inputs!$O$55 -> 0.3177109932
B45: SAIFI - Rural Short - per 0.01 event | E45: 0.09182 | F45: 0.09182 | G45: 0.09182 | H45: 0.09182 | I45: 0.09182 | K45: =E45/Dx_Inputs!$O$55 -> 0.1003516457 | L45: =F45/Dx_Inputs!$O$55 -> 0.1003516457 | M45: =G45/Dx_Inputs!$O$55 -> 0.1003516457 | N45: =H45/Dx_Inputs!$O$55 -> 0.1003516457 | O45: =I45/Dx_Inputs!$O$55 -> 0.1003516457
B46: SAIFI - Rural Long - per 0.01 event | E46: 0.05534 | F46: 0.05534 | G46: 0.05534 | H46: 0.05534 | I46: 0.05534 | K46: =E46/Dx_Inputs!$O$55 -> 0.06048203083 | L46: =F46/Dx_Inputs!$O$55 -> 0.06048203083 | M46: =G46/Dx_Inputs!$O$55 -> 0.06048203083 | N46: =H46/Dx_Inputs!$O$55 -> 0.06048203083 | O46: =I46/Dx_Inputs!$O$55 -> 0.06048203083
B47: Call centre performance - per 0.1% | E47: -0.038059 | F47: -0.038059 | G47: -0.038059 | H47: -0.038059 | I47: -0.038059 | K47: =E47/Dx_Inputs!$O$55 -> -0.04159533089 | L47: =F47/Dx_Inputs!$O$55 -> -0.04159533089 | M47: =G47/Dx_Inputs!$O$55 -> -0.04159533089 | N47: =H47/Dx_Inputs!$O$55 -> -0.04159533089 | O47: =I47/Dx_Inputs!$O$55 -> -0.04159533089
B49: Year ending 30 June | E49: 2018 | F49: 2019 | G49: 2020 | H49: 2021 | I49: 2022 | K49: 2018 | L49: 2019 | M49: 2020 | N49: 2021 | O49: 2022
B50: Transmission incentive rates
G51: [$M real as at 30 June 2017] | M51: [$M real as at 30 June 2022]
B52: Circuit Availability - per 0.1% | E52: -0.449344 | F52: -0.449344 | G52: -0.449344 | H52: -0.449344 | I52: -0.449344 | K52: =E52/Dx_Inputs!$O$55 -> -0.4910957293 | L52: =F52/Dx_Inputs!$O$55 -> -0.4910957293 | M52: =G52/Dx_Inputs!$O$55 -> -0.4910957293 | N52: =H52/Dx_Inputs!$O$55 -> -0.4910957293 | O52: =I52/Dx_Inputs!$O$55 -> -0.4910957293
B53: Loss of Supply Event Frequency >0.1 - per event | E53: 0.089869 | F53: 0.089869 | G53: 0.089869 | H53: 0.089869 | I53: 0.089869 | K53: =E53/Dx_Inputs!$O$55 -> 0.09821936445 | L53: =F53/Dx_Inputs!$O$55 -> 0.09821936445 | M53: =G53/Dx_Inputs!$O$55 -> 0.09821936445 | N53: =H53/Dx_Inputs!$O$55 -> 0.09821936445 | O53: =I53/Dx_Inputs!$O$55 -> 0.09821936445
B54: Loss of Supply Event Frequency >1 - per event | E54: 0.179737 | F54: 0.179737 | G54: 0.179737 | H54: 0.179737 | I54: 0.179737 | K54: =E54/Dx_Inputs!$O$55 -> 0.196437636 | L54: =F54/Dx_Inputs!$O$55 -> 0.196437636 | M54: =G54/Dx_Inputs!$O$55 -> 0.196437636 | N54: =H54/Dx_Inputs!$O$55 -> 0.196437636 | O54: =I54/Dx_Inputs!$O$55 -> 0.196437636
B55: Average Outage Duration - per minute | E55: 0.005661 | F55: 0.005661 | G55: 0.005661 | H55: 0.005661 | I55: 0.005661 | K55: =E55/Dx_Inputs!$O$55 -> 0.006187003551 | L55: =F55/Dx_Inputs!$O$55 -> 0.006187003551 | M55: =G55/Dx_Inputs!$O$55 -> 0.006187003551 | N55: =H55/Dx_Inputs!$O$55 -> 0.006187003551 | O55: =I55/Dx_Inputs!$O$55 -> 0.006187003551
B57: Year ending 30 June | E57: 2018 | F57: 2019 | G57: 2020 | H57: 2021 | I57: 2022 | K57: 2018 | L57: 2019 | M57: 2020 | N57: 2021 | O57: 2022
B58: Distribution penalty rates
G59: [$M real as at 30 June 2017] | M59: [$M real as at 30 June 2022]
B60: SAIDI - CBD - per SAIDI minute | E60: 0.03021 | F60: 0.03021 | G60: 0.03021 | H60: 0.03021 | I60: 0.03021 | K60: =E60/Dx_Inputs!$O$55 -> 0.03301702478 | L60: =F60/Dx_Inputs!$O$55 -> 0.03301702478 | M60: =G60/Dx_Inputs!$O$55 -> 0.03301702478 | N60: =H60/Dx_Inputs!$O$55 -> 0.03301702478 | O60: =I60/Dx_Inputs!$O$55 -> 0.03301702478
B61: SAIDI - Urban - per SAIDI minute | E61: 0.44666 | F61: 0.44666 | G61: 0.44666 | H61: 0.44666 | I61: 0.44666 | K61: =E61/Dx_Inputs!$O$55 -> 0.4881623399 | L61: =F61/Dx_Inputs!$O$55 -> 0.4881623399 | M61: =G61/Dx_Inputs!$O$55 -> 0.4881623399 | N61: =H61/Dx_Inputs!$O$55 -> 0.4881623399 | O61: =I61/Dx_Inputs!$O$55 -> 0.4881623399
B62: SAIDI - Rural Short - per SAIDI minute | E62: 0.14312 | F62: 0.14312 | G62: 0.14312 | H62: 0.14312 | I62: 0.14312 | K62: =E62/Dx_Inputs!$O$55 -> 0.1564182915 | L62: =F62/Dx_Inputs!$O$55 -> 0.1564182915 | M62: =G62/Dx_Inputs!$O$55 -> 0.1564182915 | N62: =H62/Dx_Inputs!$O$55 -> 0.1564182915 | O62: =I62/Dx_Inputs!$O$55 -> 0.1564182915
B63: SAIDI - Rural Long - per SAIDI minute | E63: 0.0525 | F63: 0.0525 | G63: 0.0525 | H63: 0.0525 | I63: 0.0525 | K63: =E63/Dx_Inputs!$O$55 -> 0.05737814634 | L63: =F63/Dx_Inputs!$O$55 -> 0.05737814634 | M63: =G63/Dx_Inputs!$O$55 -> 0.05737814634 | N63: =H63/Dx_Inputs!$O$55 -> 0.05737814634 | O63: =I63/Dx_Inputs!$O$55 -> 0.05737814634
B64: SAIFI - CBD - per 0.01 event | E64: 0.02922 | F64: 0.02922 | G64: 0.02922 | H64: 0.02922 | I64: 0.02922 | K64: =E64/Dx_Inputs!$O$55 -> 0.03193503688 | L64: =F64/Dx_Inputs!$O$55 -> 0.03193503688 | M64: =G64/Dx_Inputs!$O$55 -> 0.03193503688 | N64: =H64/Dx_Inputs!$O$55 -> 0.03193503688 | O64: =I64/Dx_Inputs!$O$55 -> 0.03193503688
B65: SAIFI - Urban - per 0.01 event | E65: 0.2907 | F65: 0.2907 | G65: 0.2907 | H65: 0.2907 | I65: 0.2907 | K65: =E65/Dx_Inputs!$O$55 -> 0.3177109932 | L65: =F65/Dx_Inputs!$O$55 -> 0.3177109932 | M65: =G65/Dx_Inputs!$O$55 -> 0.3177109932 | N65: =H65/Dx_Inputs!$O$55 -> 0.3177109932 | O65: =I65/Dx_Inputs!$O$55 -> 0.3177109932
B66: SAIFI - Rural Short - per 0.01 event | E66: 0.09182 | F66: 0.09182 | G66: 0.09182 | H66: 0.09182 | I66: 0.09182 | K66: =E66/Dx_Inputs!$O$55 -> 0.1003516457 | L66: =F66/Dx_Inputs!$O$55 -> 0.1003516457 | M66: =G66/Dx_Inputs!$O$55 -> 0.1003516457 | N66: =H66/Dx_Inputs!$O$55 -> 0.1003516457 | O66: =I66/Dx_Inputs!$O$55 -> 0.1003516457
B67: SAIFI - Rural Long - per 0.01 event | E67: 0.05534 | F67: 0.05534 | G67: 0.05534 | H67: 0.05534 | I67: 0.05534 | K67: =E67/Dx_Inputs!$O$55 -> 0.06048203083 | L67: =F67/Dx_Inputs!$O$55 -> 0.06048203083 | M67: =G67/Dx_Inputs!$O$55 -> 0.06048203083 | N67: =H67/Dx_Inputs!$O$55 -> 0.06048203083 | O67: =I67/Dx_Inputs!$O$55 -> 0.06048203083
B68: Call centre performance - per 0.1% | E68: -0.012442 | F68: -0.012442 | G68: -0.012442 | H68: -0.012442 | I68: -0.012442 | K68: =E68/Dx_Inputs!$O$55 -> -0.01359807422 | L68: =F68/Dx_Inputs!$O$55 -> -0.01359807422 | M68: =G68/Dx_Inputs!$O$55 -> -0.01359807422 | N68: =H68/Dx_Inputs!$O$55 -> -0.01359807422 | O68: =I68/Dx_Inputs!$O$55 -> -0.01359807422
B70: Year ending 30 June | E70: 2018 | F70: 2019 | G70: 2020 | H70: 2021 | I70: 2022 | K70: 2018 | L70: 2019 | M70: 2020 | N70: 2021 | O70: 2022
B71: Transmission penalty rates
G72: [$M real as at 30 June 2017] | M72: [$M real as at 30 June 2022]
B73: Circuit Availability - per 0.1% | E73: -0.256768 | F73: -0.256768 | G73: -0.256768 | H73: -0.256768 | I73: -0.256768 | K73: =E73/Dx_Inputs!$O$55 -> -0.280626131 | L73: =F73/Dx_Inputs!$O$55 -> -0.280626131 | M73: =G73/Dx_Inputs!$O$55 -> -0.280626131 | N73: =H73/Dx_Inputs!$O$55 -> -0.280626131 | O73: =I73/Dx_Inputs!$O$55 -> -0.280626131
B74: Loss of Supply Event Frequency >0.1 - per event | E74: 0.059912 | F74: 0.059912 | G74: 0.059912 | H74: 0.059912 | I74: 0.059912 | K74: =E74/Dx_Inputs!$O$55 -> 0.06547884769 | L74: =F74/Dx_Inputs!$O$55 -> 0.06547884769 | M74: =G74/Dx_Inputs!$O$55 -> 0.06547884769 | N74: =H74/Dx_Inputs!$O$55 -> 0.06547884769 | O74: =I74/Dx_Inputs!$O$55 -> 0.06547884769
B75: Loss of Supply Event Frequency >1 - per event | E75: 0.134803 | F75: 0.134803 | G75: 0.134803 | H75: 0.134803 | I75: 0.134803 | K75: =E75/Dx_Inputs!$O$55 -> 0.1473285002 | L75: =F75/Dx_Inputs!$O$55 -> 0.1473285002 | M75: =G75/Dx_Inputs!$O$55 -> 0.1473285002 | N75: =H75/Dx_Inputs!$O$55 -> 0.1473285002 | O75: =I75/Dx_Inputs!$O$55 -> 0.1473285002
B76: Average Outage Duration - per minute | E76: 0.001598 | F76: 0.001598 | G76: 0.001598 | H76: 0.001598 | I76: 0.001598 | K76: =E76/Dx_Inputs!$O$55 -> 0.001746481483 | L76: =F76/Dx_Inputs!$O$55 -> 0.001746481483 | M76: =G76/Dx_Inputs!$O$55 -> 0.001746481483 | N76: =H76/Dx_Inputs!$O$55 -> 0.001746481483 | O76: =I76/Dx_Inputs!$O$55 -> 0.001746481483
B78: Gain share mechanism (GSM)
B79: Year ending 30 June | D79: Weight | E79: 2018 | F79: 2019 | G79: 2020 | H79: 2021 | I79: 2022
B80: [FORECAST] Distribution escalation factors
B81: Customer numbers (a) | D81: 0.458 | E81: 0.0165 | F81: 0.0173 | G81: 0.0169 | H81: 0.0166 | I81: 0.0163
B82: Circuit length (b) | D82: 0.238 | E82: 0.0091 | F82: 0.0091 | G82: 0.0091 | H82: 0.0091 | I82: 0.0091
B83: Ratcheted maximum demand (c) | D83: 0.176 | E83: 0 | F83: 0 | G83: 0 | H83: 0 | I83: 0
B84: Energy delivered (d) | D84: 0.128 | E84: -0.0037 | F84: -0.002 | G84: -0.002 | H84: -0.0071 | I84: -0.011
B85: Customer and network growth factor (weighted average) | D85: =SUM(D81:D84) -> 1 | E85: =SUMPRODUCT($D$81:$D$84,E81:E84) -> 0.0092492 | F85: =SUMPRODUCT($D$81:$D$84,F81:F84) -> 0.0098332 | G85: 0.00965 | H85: 0.0088598 | I85: 0.0082232
B87: [FORECAST] Transmission escalation factors
B88: Circuit length (a) | D88: 0.376 | E88: 0.0032 | F88: 0.0033 | G88: 0.0022 | H88: 0.0033 | I88: 0.0032
B89: Ratcheted maximum demand (b) | D89: 0.194 | E89: 0 | F89: 0 | G89: 0 | H89: 0 | I89: 0
B90: Energy delivered (c) | D90: 0.231 | E90: -0.0037 | F90: -0.002 | G90: -0.002 | H90: -0.0071 | I90: -0.011
B91: Customer numbers (d) | D91: 0.199 | E91: 0 | F91: 0 | G91: 0.0263 | H91: 0.0256 | I91: 0
B92: Network growth factor (weighted average) | D92: =SUM(D88:D91) -> 1 | E92: =SUMPRODUCT($D$88:$D$91,E88:E91) -> 0.0003485 | F92: =SUMPRODUCT($D$88:$D$91,F88:F91) -> 0.0007788 | G92: 0.0055989 | H92: 0.0046951 | I92: -0.0013378
B94: [FORECAST] Indirect cost growth esclation
B95: Indirect | E95: 0.007 | F95: 0.0076 | G95: 0.0087 | H95: 0.0078 | I95: 0.0059
B97: Year ending 30 June | E97: 2018 | F97: 2019 | G97: 2020 | H97: 2021 | I97: 2022
B98: [ACTUAL] Distribution escalation factors
B99: Customer numbers (a) | E99: 0.01326803198 | F99: 0.008282484711 | G99: 0.02064524666 | H99: 0.01586957733 | I99: -0.0074
B100: Circuit length (b) | E100: 0.005498734705 | F100: 0.01115120406 | G100: 0.0008544466829 | H100: 0.002908497416 | I100: 0.002065512205
B101: Ratcheted maximum demand (c) | E101: 0 | F101: 0 | G101: 0 | H101: 0 | I101: 0
B102: Energy delivered (d) | E102: -0.005942773294 | F102: -0.01387556277 | G102: 0.02222887508 | H102: -0.02211158296 | I102: 0.0608
B103: Customer and network growth factor (weighted average) | E103: =SUMPRODUCT($D$81:$D$84,E99:E102) -> 0.006624782525 | F103: =SUMPRODUCT($D$81:$D$84,F99:F102) -> 0.004671292529 | G103: 0.01250417729 | H103: 0.005130206184 | I103: 0.004884791905
B105: [ACTUAL] Transmission escalation factors
B106: Circuit length (a) | E106: -0.005127672556 | F106: 0.001761528224 | G106: -0.002409701327 | H106: 0.0009400950541 | I106: 0.001174015132
B107: Ratcheted maximum demand (b) | E107: 0 | F107: 0 | G107: 0 | H107: 0 | I107: 0
B108: Energy delivered (c) | E108: 0.003026227303 | F108: -0.02860654822 | G108: 0.02714828023 | H108: -0.02200694367 | I108: 0.0549
B109: Customer numbers (d) | E109: 0 | F109: 0 | G109: 0 | H109: 0 | I109: 0.1
B110: Network growth factor (weighted average) | E110: =SUMPRODUCT($D$88:$D$91,E106:E109) -> -0.001228946374 | F110: =SUMPRODUCT($D$88:$D$91,F106:F109) -> -0.005945778026 | G110: 0.005365205033 | H110: -0.004730128247 | I110: 0.03302332969
B112: [ACTUAL] Indirect cost growth escalation
B113: Indirect | E113: 0.004658838477 | F113: 0.00201362928 | G113: 0.010717151 | H113: 0.00266196899 | I113: 0.0119 | L113: <AA5 Rev - Adjustments_Inputs>
B115: Year ending 30 June | E115: 2018 | F115: 2019 | G115: 2020 | H115: 2021 | I115: 2022 | K115: 2018 | L115: 2019 | M115: 2020 | N115: 2021 | O115: 2022
B116: Operating expenditure - Final decision efficiency and innovation benchmark (EIB)
B117: ERA Final Decision EIB categories | G117: [$M real as at 30 June 2017] | M117: [$M real as at 30 June 2022]
B118: Superannuation costs for defined benefit schemes | E118: 0.1976483124 | F118: 0.196305806 | G118: 0.1949724184 | H118: 0.1936480878 | I118: 0.1923327525 | K118: =E118/Dx_Inputs!$O$55 -> 0.2160132151 | L118: =F118/Dx_Inputs!$O$55 -> 0.2145459669 | M118: =G118/Dx_Inputs!$O$55 -> 0.2130886849 | N118: =H118/Dx_Inputs!$O$55 -> 0.2116413013 | O118: =I118/Dx_Inputs!$O$55 -> 0.210203749
B119: Non-revenue cap services cost | E119: 0 | F119: 0 | G119: 0 | H119: 0 | I119: 0 | K119: =E119/Dx_Inputs!$O$55 -> 0 | L119: =F119/Dx_Inputs!$O$55 -> 0 | M119: =G119/Dx_Inputs!$O$55 -> 0 | N119: =H119/Dx_Inputs!$O$55 -> 0 | O119: =I119/Dx_Inputs!$O$55 -> 0
B120: Licence fees | E120: 0 | F120: 0 | G120: 0 | H120: 0 | I120: 0 | K120: =E120/Dx_Inputs!$O$55 -> 0 | L120: =F120/Dx_Inputs!$O$55 -> 0 | M120: =G120/Dx_Inputs!$O$55 -> 0 | N120: =H120/Dx_Inputs!$O$55 -> 0 | O120: =I120/Dx_Inputs!$O$55 -> 0
B121: Energy safety levy | E121: 4.403882498 | F121: 4.373969567 | G121: 4.344259816 | H121: 4.314751866 | I121: 4.285444345 | K121: =E121/Dx_Inputs!$O$55 -> 4.813078371 | L121: =F121/Dx_Inputs!$O$55 -> 4.780386017 | M121: =G121/Dx_Inputs!$O$55 -> 4.747915723 | N121: =H121/Dx_Inputs!$O$55 -> 4.71566598 | O121: =I121/Dx_Inputs!$O$55 -> 4.683635291
B122: Network control service | E122: 0 | F122: 0 | G122: 0 | H122: 0 | I122: 0 | K122: =E122/Dx_Inputs!$O$55 -> 0 | L122: =F122/Dx_Inputs!$O$55 -> 0 | M122: =G122/Dx_Inputs!$O$55 -> 0 | N122: =H122/Dx_Inputs!$O$55 -> 0 | O122: =I122/Dx_Inputs!$O$55 -> 0
B123: ERA costs (Electricity Network Access Funding Regulations) | E123: 1.617985342 | F123: 1.108782542 | G123: 1.101251248 | H123: 1.093771109 | I123: 1.594494436 | K123: =E123/Dx_Inputs!$O$55 -> 1.768323805 | L123: =F123/Dx_Inputs!$O$55 -> 1.211807371 | M123: =G123/Dx_Inputs!$O$55 -> 1.203576291 | N123: =H123/Dx_Inputs!$O$55 -> 1.195401119 | O123: =I123/Dx_Inputs!$O$55 -> 1.742650193
B125: Year ending 30 June | E125: 2018 | F125: 2019 | G125: 2020 | H125: 2021 | I125: 2022 | K125: 2018 | L125: 2019 | M125: 2020 | N125: 2021 | O125: 2022
B126: Operating expenditure subject to scale esclation by regulatory category
B127: Insert operating expenditure that excludes any form of escalation
B128: Base distribution | G128: [$M real as at 30 June 2017] | M128: [$M real as at 30 June 2022]
B129: Reliability | E129: 1.11731053 | F129: 1.11731053 | G129: 1.11731053 | H129: 1.11731053 | I129: 1.11731053 | K129: =E129/Dx_Inputs!$O$55 -> 1.221127754 | L129: =F129/Dx_Inputs!$O$55 -> 1.221127754 | M129: =G129/Dx_Inputs!$O$55 -> 1.221127754 | N129: =H129/Dx_Inputs!$O$55 -> 1.221127754 | O129: =I129/Dx_Inputs!$O$55 -> 1.221127754
B130: SCADA & Communications | E130: 4.26387153 | F130: 4.26387153 | G130: 4.26387153 | H130: 4.26387153 | I130: 4.26387153 | K130: =E130/Dx_Inputs!$O$55 -> 4.660057993 | L130: =F130/Dx_Inputs!$O$55 -> 4.660057993 | M130: =G130/Dx_Inputs!$O$55 -> 4.660057993 | N130: =H130/Dx_Inputs!$O$55 -> 4.660057993 | O130: =I130/Dx_Inputs!$O$55 -> 4.660057993
B131: Non-revenue cap services | E131: 10.07751255 | F131: 10.07751255 | G131: 10.07751255 | H131: 10.07751255 | I131: 10.07751255 | K131: =E131/Dx_Inputs!$O$55 -> 11.01388552 | L131: =F131/Dx_Inputs!$O$55 -> 11.01388552 | M131: =G131/Dx_Inputs!$O$55 -> 11.01388552 | N131: =H131/Dx_Inputs!$O$55 -> 11.01388552 | O131: =I131/Dx_Inputs!$O$55 -> 11.01388552
B132: Network Operations | E132: 14.43457163 | F132: 14.43457163 | G132: 14.43457163 | H132: 14.43457163 | I132: 14.43457163 | K132: =E132/Dx_Inputs!$O$55 -> 15.77578978 | L132: =F132/Dx_Inputs!$O$55 -> 15.77578978 | M132: =G132/Dx_Inputs!$O$55 -> 15.77578978 | N132: =H132/Dx_Inputs!$O$55 -> 15.77578978 | O132: =I132/Dx_Inputs!$O$55 -> 15.77578978
B133: Smartgrid | E133: 0 | F133: 0 | G133: 0 | H133: 0 | I133: 0 | K133: =E133/Dx_Inputs!$O$55 -> 0 | L133: =F133/Dx_Inputs!$O$55 -> 0 | M133: =G133/Dx_Inputs!$O$55 -> 0 | N133: =H133/Dx_Inputs!$O$55 -> 0 | O133: =I133/Dx_Inputs!$O$55 -> 0
B134: Maintenance Strategy | E134: 0 | F134: 0 | G134: 0 | H134: 0 | I134: 0 | K134: =E134/Dx_Inputs!$O$55 -> 0 | L134: =F134/Dx_Inputs!$O$55 -> 0 | M134: =G134/Dx_Inputs!$O$55 -> 0 | N134: =H134/Dx_Inputs!$O$55 -> 0 | O134: =I134/Dx_Inputs!$O$55 -> 0
B135: Preventive Condition | E135: 19.80018238 | F135: 19.80018238 | G135: 19.80018238 | H135: 19.80018238 | I135: 19.80018238 | K135: =E135/Dx_Inputs!$O$55 -> 21.63995737 | L135: =F135/Dx_Inputs!$O$55 -> 21.63995737 | M135: =G135/Dx_Inputs!$O$55 -> 21.63995737 | N135: =H135/Dx_Inputs!$O$55 -> 21.63995737 | O135: =I135/Dx_Inputs!$O$55 -> 21.63995737
B136: Preventive Routine | E136: =42.89577875-1 -> 41.89577875 | F136: =42.89577875-1 -> 41.89577875 | G136: 41.89577875 | H136: 41.89577875 | I136: 41.89577875 | K136: =E136/Dx_Inputs!$O$55 -> 45.78861189 | L136: =F136/Dx_Inputs!$O$55 -> 45.78861189 | M136: =G136/Dx_Inputs!$O$55 -> 45.78861189 | N136: =H136/Dx_Inputs!$O$55 -> 45.78861189 | O136: =I136/Dx_Inputs!$O$55 -> 45.78861189
B137: Corrective Deferred | E137: 12.8295806 | F137: 12.8295806 | G137: 12.8295806 | H137: 12.8295806 | I137: 12.8295806 | K137: =E137/Dx_Inputs!$O$55 -> 14.02166768 | L137: =F137/Dx_Inputs!$O$55 -> 14.02166768 | M137: =G137/Dx_Inputs!$O$55 -> 14.02166768 | N137: =H137/Dx_Inputs!$O$55 -> 14.02166768 | O137: =I137/Dx_Inputs!$O$55 -> 14.02166768
B138: Corrective Emergency | E138: =53.07320368-4 -> 49.07320368 | F138: =53.07320368-4 -> 49.07320368 | G138: 49.07320368 | H138: 49.07320368 | I138: 49.07320368 | K138: =E138/Dx_Inputs!$O$55 -> 53.63294214 | L138: =F138/Dx_Inputs!$O$55 -> 53.63294214 | M138: =G138/Dx_Inputs!$O$55 -> 53.63294214 | N138: =H138/Dx_Inputs!$O$55 -> 53.63294214 | O138: =I138/Dx_Inputs!$O$55 -> 53.63294214
B139: Call Centre | E139: 3.86591716 | F139: 3.86591716 | G139: 3.86591716 | H139: 3.86591716 | I139: 3.86591716 | K139: =E139/Dx_Inputs!$O$55 -> 4.225126868 | L139: =F139/Dx_Inputs!$O$55 -> 4.225126868 | M139: =G139/Dx_Inputs!$O$55 -> 4.225126868 | N139: =H139/Dx_Inputs!$O$55 -> 4.225126868 | O139: =I139/Dx_Inputs!$O$55 -> 4.225126868
B140: Metering | E140: 13.73056955 | F140: 13.73056955 | G140: 13.73056955 | H140: 13.73056955 | I140: 13.73056955 | K140: =E140/Dx_Inputs!$O$55 -> 15.00637389 | L140: =F140/Dx_Inputs!$O$55 -> 15.00637389 | M140: =G140/Dx_Inputs!$O$55 -> 15.00637389 | N140: =H140/Dx_Inputs!$O$55 -> 15.00637389 | O140: =I140/Dx_Inputs!$O$55 -> 15.00637389
B141: Guaranteed service level payments | E141: 1.01032 | F141: 1.01032 | G141: 1.01032 | H141: 1.01032 | I141: 1.01032 | K141: =E141/Dx_Inputs!$O$55 -> 1.104195977 | L141: =F141/Dx_Inputs!$O$55 -> 1.104195977 | M141: =G141/Dx_Inputs!$O$55 -> 1.104195977 | N141: =H141/Dx_Inputs!$O$55 -> 1.104195977 | O141: =I141/Dx_Inputs!$O$55 -> 1.104195977
B142: Design & Estimating - Distribution Quotations | E142: 4.91835088 | F142: 4.91835088 | G142: 4.91835088 | H142: 4.91835088 | I142: 4.91835088 | K142: =E142/Dx_Inputs!$O$55 -> 5.375349649 | L142: =F142/Dx_Inputs!$O$55 -> 5.375349649 | M142: =G142/Dx_Inputs!$O$55 -> 5.375349649 | N142: =H142/Dx_Inputs!$O$55 -> 5.375349649 | O142: =I142/Dx_Inputs!$O$55 -> 5.375349649
B143: Business Support | E143: 112.3150319 | F143: 112.3150319 | G143: 112.3150319 | H143: 112.3150319 | I143: 112.3150319 | K143: =E143/Dx_Inputs!$O$55 -> 122.7510159 | L143: =F143/Dx_Inputs!$O$55 -> 122.7510159 | M143: =G143/Dx_Inputs!$O$55 -> 122.7510159 | N143: =H143/Dx_Inputs!$O$55 -> 122.7510159 | O143: =I143/Dx_Inputs!$O$55 -> 122.7510159
B144: IT | E144: 0 | F144: 0 | G144: 0 | H144: 0 | I144: 0 | K144: =E144/Dx_Inputs!$O$55 -> 0 | L144: =F144/Dx_Inputs!$O$55 -> 0 | M144: =G144/Dx_Inputs!$O$55 -> 0 | N144: =H144/Dx_Inputs!$O$55 -> 0 | O144: =I144/Dx_Inputs!$O$55 -> 0
B145: Non-recurring opex | E145: 9.84052159 | F145: 9.84052159 | G145: 9.84052159 | H145: 9.84052159 | I145: 9.84052159 | K145: =E145/Dx_Inputs!$O$55 -> 10.75487405 | L145: =F145/Dx_Inputs!$O$55 -> 10.75487405 | M145: =G145/Dx_Inputs!$O$55 -> 10.75487405 | N145: =H145/Dx_Inputs!$O$55 -> 10.75487405 | O145: =I145/Dx_Inputs!$O$55 -> 10.75487405
B146: Total | E146: =SUM(E129:E145) -> 299.1727227 | F146: =SUM(F129:F145) -> 299.1727227 | G146: =SUM(G129:G145) -> 299.1727227 | H146: =SUM(H129:H145) -> 299.1727227 | I146: =SUM(I129:I145) -> 299.1727227 | K146: =SUM(K129:K145) -> 326.9709765 | L146: =SUM(L129:L145) -> 326.9709765 | M146: =SUM(M129:M145) -> 326.9709765 | N146: =SUM(N129:N145) -> 326.9709765 | O146: =SUM(O129:O145) -> 326.9709765
B148: Year ending 30 June | E148: 2018 | F148: 2019 | G148: 2020 | H148: 2021 | I148: 2022 | K148: 2018 | L148: 2019 | M148: 2020 | N148: 2021 | O148: 2022
B149: Base transmission | G149: [$M real as at 30 June 2017] | M149: [$M real as at 30 June 2022]
B150: SCADA & Communications | E150: 8.30836852 | F150: 8.30836852 | G150: 8.30836852 | H150: 8.30836852 | I150: 8.30836852 | K150: =E150/Dx_Inputs!$O$55 -> 9.080357806 | L150: =F150/Dx_Inputs!$O$55 -> 9.080357806 | M150: =G150/Dx_Inputs!$O$55 -> 9.080357806 | N150: =H150/Dx_Inputs!$O$55 -> 9.080357806 | O150: =I150/Dx_Inputs!$O$55 -> 9.080357806
B151: Non-revenue cap services | E151: 3.04139059 | F151: 3.04139059 | G151: 3.04139059 | H151: 3.04139059 | I151: 3.04139059 | K151: =E151/Dx_Inputs!$O$55 -> 3.323987702 | L151: =F151/Dx_Inputs!$O$55 -> 3.323987702 | M151: =G151/Dx_Inputs!$O$55 -> 3.323987702 | N151: =H151/Dx_Inputs!$O$55 -> 3.323987702 | O151: =I151/Dx_Inputs!$O$55 -> 3.323987702
B152: Network Operations | E152: 4.525439549 | F152: 4.525439549 | G152: 4.525439549 | H152: 4.525439549 | I152: 4.525439549 | K152: =E152/Dx_Inputs!$O$55 -> 4.945930147 | L152: =F152/Dx_Inputs!$O$55 -> 4.945930147 | M152: =G152/Dx_Inputs!$O$55 -> 4.945930147 | N152: =H152/Dx_Inputs!$O$55 -> 4.945930147 | O152: =I152/Dx_Inputs!$O$55 -> 4.945930147
B153: Maintenance Strategy | E153: 0 | F153: 0 | G153: 0 | H153: 0 | I153: 0 | K153: =E153/Dx_Inputs!$O$55 -> 0 | L153: =F153/Dx_Inputs!$O$55 -> 0 | M153: =G153/Dx_Inputs!$O$55 -> 0 | N153: =H153/Dx_Inputs!$O$55 -> 0 | O153: =I153/Dx_Inputs!$O$55 -> 0
B154: Preventive Condition | E154: 10.57801646 | F154: 10.57801646 | G154: 10.57801646 | H154: 10.57801646 | I154: 10.57801646 | K154: =E154/Dx_Inputs!$O$55 -> 11.56089479 | L154: =F154/Dx_Inputs!$O$55 -> 11.56089479 | M154: =G154/Dx_Inputs!$O$55 -> 11.56089479 | N154: =H154/Dx_Inputs!$O$55 -> 11.56089479 | O154: =I154/Dx_Inputs!$O$55 -> 11.56089479
B155: Preventive Routine | E155: 15.9431707 | F155: 15.9431707 | G155: 15.9431707 | H155: 15.9431707 | I155: 15.9431707 | K155: =E155/Dx_Inputs!$O$55 -> 17.42456346 | L155: =F155/Dx_Inputs!$O$55 -> 17.42456346 | M155: =G155/Dx_Inputs!$O$55 -> 17.42456346 | N155: =H155/Dx_Inputs!$O$55 -> 17.42456346 | O155: =I155/Dx_Inputs!$O$55 -> 17.42456346
B156: Corrective Deferred | E156: 7.25527014 | F156: 7.25527014 | G156: 7.25527014 | H156: 7.25527014 | I156: 7.25527014 | K156: =E156/Dx_Inputs!$O$55 -> 7.929408606 | L156: =F156/Dx_Inputs!$O$55 -> 7.929408606 | M156: =G156/Dx_Inputs!$O$55 -> 7.929408606 | N156: =H156/Dx_Inputs!$O$55 -> 7.929408606 | O156: =I156/Dx_Inputs!$O$55 -> 7.929408606
B157: Corrective Emergency | E157: 1.68092356 | F157: 1.68092356 | G157: 1.68092356 | H157: 1.68092356 | I157: 1.68092356 | K157: =E157/Dx_Inputs!$O$55 -> 1.837110057 | L157: =F157/Dx_Inputs!$O$55 -> 1.837110057 | M157: =G157/Dx_Inputs!$O$55 -> 1.837110057 | N157: =H157/Dx_Inputs!$O$55 -> 1.837110057 | O157: =I157/Dx_Inputs!$O$55 -> 1.837110057
B158: Business Support | E158: 41.02595083 | F158: 41.02595083 | G158: 41.02595083 | H158: 41.02595083 | I158: 41.02595083 | K158: =E158/Dx_Inputs!$O$55 -> 44.8379621 | L158: =F158/Dx_Inputs!$O$55 -> 44.8379621 | M158: =G158/Dx_Inputs!$O$55 -> 44.8379621 | N158: =H158/Dx_Inputs!$O$55 -> 44.8379621 | O158: =I158/Dx_Inputs!$O$55 -> 44.8379621
B159: Non-recurring opex | E159: -1.30447629 | F159: -1.30447629 | G159: -1.30447629 | H159: -1.30447629 | I159: -1.30447629 | K159: =E159/Dx_Inputs!$O$55 -> -1.425684409 | L159: =F159/Dx_Inputs!$O$55 -> -1.425684409 | M159: =G159/Dx_Inputs!$O$55 -> -1.425684409 | N159: =H159/Dx_Inputs!$O$55 -> -1.425684409 | O159: =I159/Dx_Inputs!$O$55 -> -1.425684409
B160: Total | E160: =SUM(E150:E159) -> 91.05405406 | F160: =SUM(F150:F159) -> 91.05405406 | G160: =SUM(G150:G159) -> 91.05405406 | H160: =SUM(H150:H159) -> 91.05405406 | I160: =SUM(I150:I159) -> 91.05405406 | K160: =SUM(K150:K159) -> 99.51453026 | L160: =SUM(L150:L159) -> 99.51453026 | M160: =SUM(M150:M159) -> 99.51453026 | N160: =SUM(N150:N159) -> 99.51453026 | O160: =SUM(O150:O159) -> 99.51453026
B162: Year ending 30 June | E162: 2018 | F162: 2019 | G162: 2020 | H162: 2021 | I162: 2022 | K162: 2018 | L162: 2019 | M162: 2020 | N162: 2021 | O162: 2022
B163: Actual operating expenditure in EIB categories
B164: Distribution | G164: [$M nominal] | M164: [$M real as at 30 June 2022]
B165: D-Factor Scheme / Network Control Services | E165: 0.7813574 | F165: 1.06186761 | G165: 0.856 | H165: 0.837 | I165: 0.965 | K165: =E165/Dx_Inputs!P$55 -> 0.8365773795 | L165: =F165/Dx_Inputs!Q$55 -> 1.119085625 | M165: =G165/Dx_Inputs!R$55 -> 0.9052792615 | N165: =H165/Dx_Inputs!S$55 -> 0.8524008 | O165: =I165/Dx_Inputs!T$55 -> 0.965
B166: Technical rule changes | E166: 0 | F166: 0 | G166: 0 | H166: 0 | I166: 0 | K166: =E166/Dx_Inputs!P$55 -> 0 | L166: =F166/Dx_Inputs!Q$55 -> 0 | M166: =G166/Dx_Inputs!R$55 -> 0 | N166: =H166/Dx_Inputs!S$55 -> 0 | O166: =I166/Dx_Inputs!T$55 -> 0
B167: Unforeseen events | E167: 0 | F167: 0 | G167: 0 | H167: 0 | I167: 0 | K167: =E167/Dx_Inputs!P$55 -> 0 | L167: =F167/Dx_Inputs!Q$55 -> 0 | M167: =G167/Dx_Inputs!R$55 -> 0 | N167: =H167/Dx_Inputs!S$55 -> 0 | O167: =I167/Dx_Inputs!T$55 -> 0
B168: Superannuation for defined benefit schemes | E168: 0.033 | F168: 0.33 | G168: 0.039 | H168: 0.040061 | I168: 0.012 | K168: =E168/Dx_Inputs!P$55 -> 0.03533217133 | L168: =F168/Dx_Inputs!Q$55 -> 0.3477818258 | M168: =G168/Dx_Inputs!R$55 -> 0.0412452 | N168: =H168/Dx_Inputs!S$55 -> 0.0407981224 | O168: =I168/Dx_Inputs!T$55 -> 0.012
B169: Non-revenue cap services | E169: =Dx_Inputs!P724 -> 13.985 | F169: =Dx_Inputs!Q724 -> 15.95 | G169: =Dx_Inputs!R724 -> 14.395 | H169: =Dx_Inputs!S724 -> 13.17 | I169: 15.196 | K169: =E169/Dx_Inputs!P$55 -> 14.97334594 | L169: =F169/Dx_Inputs!Q$55 -> 16.80945491 | M169: =G169/Dx_Inputs!R$55 -> 15.22370908 | N169: =H169/Dx_Inputs!S$55 -> 13.412328 | O169: =I169/Dx_Inputs!T$55 -> 15.196
B170: License fees | E170: 0 | F170: 0 | G170: 0 | H170: 0 | I170: 0 | K170: =E170/Dx_Inputs!P$55 -> 0 | L170: =F170/Dx_Inputs!Q$55 -> 0 | M170: =G170/Dx_Inputs!R$55 -> 0 | N170: =H170/Dx_Inputs!S$55 -> 0 | O170: =I170/Dx_Inputs!T$55 -> 0
B171: Energy safety levy | E171: 3.251 | F171: 3.296 | G171: 3.283 | H171: 3.286241053 | I171: 3.295 | K171: =E171/Dx_Inputs!P$55 -> 3.480754212 | L171: =F171/Dx_Inputs!Q$55 -> 3.473602721 | M171: =G171/Dx_Inputs!R$55 -> 3.471999785 | N171: =H171/Dx_Inputs!S$55 -> 3.346707888 | O171: =I171/Dx_Inputs!T$55 -> 3.295
B172: ERA costs (Electricity Network Access Funding Regulations) | E172: 1.552 | F172: 1.134 | G172: 0.83 | H172: 1.175184631 | I172: 1.95 | K172: =E172/Dx_Inputs!P$55 -> 1.661682724 | L172: =F172/Dx_Inputs!Q$55 -> 1.19510482 | M172: =G172/Dx_Inputs!R$55 -> 0.8777824615 | N172: =H172/Dx_Inputs!S$55 -> 1.196808029 | O172: =I172/Dx_Inputs!T$55 -> 1.95
B173: Regulatory reform costs (non-capital) | E173: 0 | F173: 0 | G173: 0 | H173: 0 | I173: 0 | K173: =E173/Dx_Inputs!P$55 -> 0 | L173: =F173/Dx_Inputs!Q$55 -> 0 | M173: =G173/Dx_Inputs!R$55 -> 0 | N173: =H173/Dx_Inputs!S$55 -> 0 | O173: =I173/Dx_Inputs!T$55 -> 0
B175: Year ending 30 June | E175: 2018 | F175: 2019 | G175: 2020 | H175: 2021 | I175: 2022 | K175: 2018 | L175: 2019 | M175: 2020 | N175: 2021 | O175: 2022
B176: Transmission | G176: [$M nominal] | M176: [$M real as at 30 June 2022]
B177: D-Factor Scheme / Network Control Services | E177: 0 | F177: =5.48828085+0.28525 -> 5.77353085 | G177: 7.406 | H177: =9.283+0.10273 -> 9.38573 | I177: =8.397+0.01027 -> 8.40727 | K177: =E177/Dx_Inputs!P$55 -> 0 | L177: =F177/Dx_Inputs!Q$55 -> 6.084633637 | M177: =G177/Dx_Inputs!R$55 -> 7.832357723 | N177: =H177/Dx_Inputs!S$55 -> 9.558427432 | O177: =I177/Dx_Inputs!T$55 -> 8.40727
B178: Technical rule changes | E178: 0 | F178: 0 | G178: 0 | H178: 0 | I178: 0 | K178: =E178/Dx_Inputs!P$55 -> 0 | L178: =F178/Dx_Inputs!Q$55 -> 0 | M178: =G178/Dx_Inputs!R$55 -> 0 | N178: =H178/Dx_Inputs!S$55 -> 0 | O178: =I178/Dx_Inputs!T$55 -> 0
B179: Unforeseen events | E179: 0 | F179: 0 | G179: 0 | H179: 0 | I179: 0 | K179: =E179/Dx_Inputs!P$55 -> 0 | L179: =F179/Dx_Inputs!Q$55 -> 0 | M179: =G179/Dx_Inputs!R$55 -> 0 | N179: =H179/Dx_Inputs!S$55 -> 0 | O179: =I179/Dx_Inputs!T$55 -> 0
B180: Superannuation for defined benefit schemes | E180: 0.011 | F180: 0.011 | G180: 0.018 | H180: 0.01896289112 | I180: 0.006 | K180: =E180/Dx_Inputs!P$55 -> 0.01177739044 | L180: =F180/Dx_Inputs!Q$55 -> 0.01159272753 | M180: =G180/Dx_Inputs!R$55 -> 0.01903624615 | N180: =H180/Dx_Inputs!S$55 -> 0.01931180832 | O180: =I180/Dx_Inputs!T$55 -> 0.006
B181: Non-revenue cap services | E181: =Tx_Inputs!P654 -> 4.402 | F181: =Tx_Inputs!Q654 -> 5.499 | G181: =Tx_Inputs!R654 -> 4.84 | H181: =Tx_Inputs!S654 -> 6.469 | I181: =Tx_Inputs!T654 -> 4.678 | K181: =E181/Dx_Inputs!P$55 -> 4.713097521 | L181: =F181/Dx_Inputs!Q$55 -> 5.795309879 | M181: =G181/Dx_Inputs!R$55 -> 5.118635077 | N181: =H181/Dx_Inputs!S$55 -> 6.5880296 | O181: =I181/Dx_Inputs!T$55 -> 4.678
B182: License fees | E182: 0 | F182: 0 | G182: 0 | H182: 0 | I182: 0 | K182: =E182/Dx_Inputs!P$55 -> 0 | L182: =F182/Dx_Inputs!Q$55 -> 0 | M182: =G182/Dx_Inputs!R$55 -> 0 | N182: =H182/Dx_Inputs!S$55 -> 0 | O182: =I182/Dx_Inputs!T$55 -> 0
B183: Energy safety levy | E183: 1.247 | F183: 1.245 | G183: 1.257 | H183: 1.253392947 | I183: 1.246 | K183: =E183/Dx_Inputs!P$55 -> 1.335127807 | L183: =F183/Dx_Inputs!Q$55 -> 1.312085979 | M183: =G183/Dx_Inputs!R$55 -> 1.329364523 | N183: =H183/Dx_Inputs!S$55 -> 1.276455378 | O183: =I183/Dx_Inputs!T$55 -> 1.246
B184: ERA costs (Electricity Network Access Funding Regulations) | E184: 0.595 | F184: 0.428 | G184: 0.318 | H184: 0.4482227887 | I184: 0.737 | K184: =E184/Dx_Inputs!P$55 -> 0.6370497558 | L184: =F184/Dx_Inputs!Q$55 -> 0.4510624892 | M184: =G184/Dx_Inputs!R$55 -> 0.3363070154 | N184: =H184/Dx_Inputs!S$55 -> 0.456470088 | O184: =I184/Dx_Inputs!T$55 -> 0.737
B185: Regulatory reform costs (non-capital) | E185: 0 | F185: 0 | G185: 0.72 | H185: 1.22 | I185: 1.08 | K185: =E185/Dx_Inputs!P$55 -> 0 | L185: =F185/Dx_Inputs!Q$55 -> 0 | M185: =G185/Dx_Inputs!R$55 -> 0.7614498462 | N185: =H185/Dx_Inputs!S$55 -> 1.242448 | O185: =I185/Dx_Inputs!T$55 -> 1.08
B187: Investment adjustment mechanism (IAM) category inclusion flags [1=Include, 0=Exclude]
B188: Year ending 30 June | E188: 2018 | F188: 2019 | G188: 2020 | H188: 2021 | I188: 2022
B189: Distribtuion IAM category inclusion flags [1=Include, 0=Exclude]
B190: Growth | G190: Actual AA4
B191: Capacity Expansion | E191: 1 | F191: 1 | G191: 1 | H191: 1 | I191: 1
B192: Customer Driven | E192: 1 | F192: 1 | G192: 1 | H192: 1 | I192: 1
B193: Gifted Assets | E193: 0 | F193: 0 | G193: 0 | H193: 0 | I193: 0
B194: Asset replacement and renewal
B195: Asset Replacement | E195: 0 | F195: 0 | G195: 0 | H195: 0 | I195: 0
B196: State Undergrounding Power Program (SUPP) | E196: 1 | F196: 1 | G196: 1 | H196: 1 | I196: 1
B197: Metering | E197: 0 | F197: 0 | G197: 0 | H197: 0 | I197: 0
B198: Smartgrid | E198: 0 | F198: 0 | G198: 0 | H198: 0 | I198: 0
B199: Wood Pole Management | E199: 0 | F199: 0 | G199: 0 | H199: 0 | I199: 0
B200: Improvement in service
B201: Reliability Driven | E201: 0 | F201: 0 | G201: 0 | H201: 0 | I201: 0
B202: Rural Power Improvement Program (RPIP) | E202: 0 | F202: 0 | G202: 0 | H202: 0 | I202: 0
B203: SCADA & Communications | E203: 0 | F203: 0 | G203: 0 | H203: 0 | I203: 0
B204: Compliance
B205: Safety, Environmental & Statutory | E205: 0 | F205: 0 | G205: 0 | H205: 0 | I205: 0
B206: Corporate
B207: IT | E207: 0 | F207: 0 | G207: 0 | H207: 0 | I207: 0
B208: Business Support | E208: 0 | F208: 0 | G208: 0 | H208: 0 | I208: 0
B209: Equity Raising Costs | E209: 0 | F209: 0 | G209: 0 | H209: 0 | I209: 0
B210: Sps Adjustment
B211: Transmission IAM category inclusion flags [1=Include, 0=Exclude]
B212: Growth | G212: Actual AA4
B213: Capacity Expansion | E213: 1 | F213: 1 | G213: 1 | H213: 1 | I213: 1
B214: Customer Driven | E214: 1 | F214: 1 | G214: 1 | H214: 1 | I214: 1
B215: Generation Driven | E215: 1 | F215: 1 | G215: 1 | H215: 1 | I215: 1
B216: Gifted Assets | E216: 0 | F216: 0 | G216: 0 | H216: 0 | I216: 0
B217: Asset replacement and renewal
... 41 more rows

Sheet Incentive_Rate_Inputs
B2: AA5 VCRs weighted to WA
B3: VCRs by feeder type escalated by CPI ($/kWh) [$ Real as at 30 June 2022] | C3: $ per kWh | E3: [$ Real as at 30 June 2021]
B4: CBD | C4: =E4*(1+Dx_CoS!$V$6) -> 43.322736 | E4: 42.54
B5: Urban | C5: =E5*(1+Dx_CoS!$V$6) -> 42.283968 | E5: 41.52
B6: Rural short | C6: =E6*(1+Dx_CoS!$V$6) -> 40.878576 | E6: 40.14
B7: Rural long | C7: =E7*(1+Dx_CoS!$V$6) -> 40.440664 | E7: 39.71
B10: Value of customer reliability (VCR) - AER STPIS approach
B11: WA - energy consumption (for 12 months) [GWh] | C11: CBD | D11: Urban | E11: Rural short | F11: Rural long | G11: Western Power Network Total
B12: Energy Consumption | C12: 428.8603776 | D12: 8156.863587 | E12: 3411.005613 | F12: 1060.351469
B13: Total | C13: =SUM(C12:C12) -> 428.8603776 | D13: =SUM(D12:D12) -> 8156.863587 | E13: =SUM(E12:E12) -> 3411.005613 | F13: =SUM(F12:F12) -> 1060.351469 | G13: =SUM(C13:F13) -> 13057.08105
B15: SSAM Incentive Rate Inputs
B16: Ratio of unplanned SAIDI to unplanned SAIFI | C16: Ratio
B17: CBD | C17: 1.5
B18: Urban | C18: 1.5
B19: Rural short | C19: 1.5
B20: Rural long | C20: 1.5
B24: Revenue at risk [$ Real as at 30 June 2022] | C24: Average AA5 Revenue | D24: Portion at risk | E24: Revenue at risk
B25: Transmission reference service customer average revenue | C25: 95338843 | D25: 0.01 | E25: =ROUND(D25*C25,0) -> 953388
B26: Distribution reference service customer average revenue | C26: 1498029961 | D26: 0.01 | E26: =D26*C26 -> 14980299.61
B27: Total average revenue | C27: =SUM(C25:C26) -> 1593368804
B29: Average Revenue at Risk per annum | E29: =SUM(E25:E26) -> 15933687.61
B30: Total Revenue at Risk for AA5 | E30: =E29*4 -> 63734750.44 | F30: Calculated for 4 years from FY23 to FY27 due to gap year
B32: Transmission revenue at risk to determine incentive rate [$ real as at 30 June 2022] | C32: Portion at risk | D32: Revenue at risk
B33: Loss of supply event frequency >0.1 system minutes interrupted | C33: 0.3 | D33: =C33*C$25*D$25 -> 286016.529
B34: Loss of supply event frequency >1 system minutes interrupted | C34: 0.3 | D34: =C34*C$25*D$25 -> 286016.529
B35: Average outage duration | C35: 0.4 | D35: =C35*C$25*D$25 -> 381355.372
C36: Total | D36: =ROUND(SUM(D33:D35),0) -> 953388 | E36: =IF(E25=D36,"OK","CHECK") -> OK
B39: Distribution revenue at risk to determine incentive rate | C39: % of revenue per % change in performance | D39: Revenue at risk check (per % change in performance)
B40: Call Centre Performance (Dx avg revenue) | C40: 0.0004 | D40: =C40*C26 -> 599211.9844
B42: AA5 SSB and SSAM Targets
B43: Distribution Reference Service Benchmark | D43: SSAM Benchmark
B44: CBD SAIDI | D44: 13.72904119 | F44: =ROUND(E44,1) -> 0 | G44: =ROUND(D44,1) -> 13.7
B45: CBD SAIFI | D45: 0.22 | F45: =ROUND(E45,2) -> 0 | G45: =ROUND(D45,2) -> 0.22
B46: URBAN SAIDI | D46: 124.5 | F46: =ROUND(E46,1) -> 0 | G46: =ROUND(D46,1) -> 124.5
B47: URBAN SAIFI | D47: 1.259065855 | F47: =ROUND(E47,2) -> 0 | G47: =ROUND(D47,2) -> 1.26
B48: Rural Short SAIDI | D48: 203.1 | F48: =ROUND(E48,1) -> 0 | G48: =ROUND(D48,1) -> 203.1
B49: Rural Short SAIFI | D49: 2.09 | F49: =ROUND(E49,2) -> 0 | G49: =ROUND(D49,2) -> 2.09
B50: Rural Long SAIDI | D50: 733.5 | F50: =ROUND(E50,1) -> 0 | G50: =ROUND(D50,1) -> 733.5
B51: Rural Long SAIFI | D51: 4.45 | F51: =ROUND(E51,2) -> 0 | G51: =ROUND(D51,2) -> 4.45
B52: Call Centre Performance | D52: 0.917 | F52: =ROUND(C52,3) -> 0 | G52: N/A
B53: Streetlighting repair time – metropolitan areas | F53: 5 | G53: N/A
B54: Streetlighting repair time –regional areas | F54: 9 | G54: N/A
B55: Supply abolishment (whole current meter) response time | F55: 15 | G55: N/A
B56: Remote de-energise response time | F56: 1 | G56: N/A
B57: Remote re-energise response time | F57: 1 | G57: N/A
B59: Adjustments to Distribution Reference Service Benchmark | D59: SSAM Benchmark Adjustment | F59: SSB target adj | G59: SSAM target adj
B60: CBD SAIDI | D60: 0 | F60: =ROUND(E60,1) -> 0 | G60: =ROUND(D60,1) -> 0
B61: CBD SAIFI | D61: -0.009980048874 | F61: =ROUND(E61,2) -> 0 | G61: =ROUND(D61,2) -> -0.01
B62: URBAN SAIDI | D62: -0.7315347019 | F62: =ROUND(E62,1) -> 0 | G62: =ROUND(D62,1) -> -0.7
B63: URBAN SAIFI | D63: -0.00431221948 | F63: =ROUND(E63,2) -> 0 | G63: =ROUND(D63,2) -> 0
B64: Rural Short SAIDI | D64: -0.5844494746 | F64: =ROUND(E64,1) -> 0 | G64: =ROUND(D64,1) -> -0.6
B65: Rural Short SAIFI | D65: 0 | F65: =ROUND(E65,2) -> 0 | G65: =ROUND(D65,2) -> 0
B66: Rural Long SAIDI | D66: 0 | F66: =ROUND(E66,1) -> 0 | G66: =ROUND(D66,1) -> 0
B67: Rural Long SAIFI | D67: 0 | F67: =ROUND(E67,2) -> 0 | G67: =ROUND(D67,2) -> 0
B68: Call Centre Performance | D68: 0 | F68: =ROUND(C68,3) -> 0 | G68: N/A
B69: Streetlighting repair time – metropolitan areas | F69: 0 | G69: N/A
B70: Streetlighting repair time –regional areas | F70: 0 | G70: N/A
B71: Supply abolishment (whole current meter) response time | F71: 0 | G71: N/A
B72: Remote de-energise service response time | F72: 0 | G72: N/A
B73: Remote re-energise service response time | F73: 0 | G73: N/A
B75: Distribution Reference Service Benchmark | D75: SSAM Benchmark after Adjustment | F75: SSB target | G75: SSAM target | H75: Rounding
B76: CBD SAIDI | D76: =D44+D60 -> 13.72904119 | F76: =ROUND(E76,H76) -> 0 | G76: =ROUND(D76,H76) -> 13.7 | H76: 1
B77: CBD SAIFI | D77: 0.2100199511 | F77: =ROUND(E77,H77) -> 0 | G77: =ROUND(D77,H77) -> 0.21 | H77: 2
B78: URBAN SAIDI | D78: 123.7684653 | F78: 0 | G78: 123.8 | H78: 1
B79: URBAN SAIFI | D79: =D47+D63 -> 1.254753636 | F79: 0 | G79: 1.25 | H79: 2
B80: Rural Short SAIDI | D80: 202.5155505 | F80: 0 | G80: 202.5 | H80: 1
B81: Rural Short SAIFI | D81: 2.09 | F81: 0 | G81: 2.09 | H81: 2
B82: Rural Long SAIDI | D82: 733.5 | F82: 0 | G82: 733.5 | H82: 1
B83: Rural Long SAIFI | D83: 4.45 | F83: 0 | G83: 4.45 | H83: 2
B84: Call Centre Performance | D84: 0.917 | F84: =ROUND(C84,H84) -> 0 | G84: N/A | H84: 3
B85: Streetlighting repair time – metropolitan areas | F85: =F53+F69 -> 5 | G85: N/A
B86: Streetlighting repair time –regional areas | F86: =F54+F70 -> 9 | G86: N/A
B87: Supply abolishment (whole current meter) response time | F87: 15 | G87: N/A
B88: Remote de-energise response time | F88: 1 | G88: N/A
B89: Remote re-energise response time | F89: 1 | G89: N/A
B92: Transmission Reference Service Benchmark | D92: SSAM Benchmark | F92: SSB target | G92: SSAM target
B93: Loss of supply event frequency >0.1 and ≤1.0 system minutes interrupted | D93: 2 | F93: =E93 -> 0 | G93: =D93 -> 2
B94: Loss of supply event frequency >1 system minutes interrupted | D94: 0.6 | F94: =E94 -> 0 | G94: 0.6
B95: Average outage duration | D95: 822 | F95: =E95 -> 0 | G95: 822
B97: Adjustments to Transmission Reference Service Benchmark | D97: SSAM Benchmark Adjustment | F97: SSB target | G97: SSAM target | H97: Rounding
B98: Loss of supply event frequency >0.1 and ≤1.0 system minutes interrupted | D98: 0 | F98: =ROUND(E98,H98) -> 0 | G98: =ROUND(D98,H98) -> 0 | H98: 0
B99: Loss of supply event frequency >1 system minutes interrupted | D99: 0 | F99: =ROUND(E99,H99) -> 0 | G99: =ROUND(D99,H99) -> 0 | H99: 0
B100: Average outage duration | D100: 0 | F100: =ROUND(E100,H100) -> 0 | G100: =ROUND(D100,H100) -> 0 | H100: 0
B103: Transmission Reference Service Benchmark | D103: SSAM Benchmark after Adjustment | F103: SSB target | G103: SSAM target | H103: Rounding
B104: Loss of supply event frequency >0.1 and ≤1.0 system minutes interrupted | D104: =D93+D98 -> 2 | F104: =ROUND(E104,H104) -> 0 | G104: =ROUND(D104,H104) -> 2 | H104: 0
B105: Loss of supply event frequency >1 system minutes interrupted | D105: 0.6 | F105: =ROUND(E105,H105) -> 0 | G105: =ROUND(D105,H105) -> 1 | H105: 0
B106: Average outage duration | D106: 822 | F106: =ROUND(E106,H106) -> 0 | G106: =ROUND(D106,H106) -> 822 | H106: 0

Sheet Incentive_rates
B2: Incentive rate calculations
B3: SAIDI ($ per minute) Incentive Rate [$ Real as at 30 June 2022] | C3: $/kWh
B4: CBD | C4: =Incentive_Rate_Inputs!C4*(1-1/(1+Incentive_Rate_Inputs!$C17)) -> 25.9936416
B5: Urban | C5: =Incentive_Rate_Inputs!C5*(1-1/(1+Incentive_Rate_Inputs!$C18)) -> 25.3703808
B6: Rural short | C6: =Incentive_Rate_Inputs!C6*(1-1/(1+Incentive_Rate_Inputs!$C19)) -> 24.5271456
B7: Rural long | C7: =Incentive_Rate_Inputs!C7*(1-1/(1+Incentive_Rate_Inputs!$C20)) -> 24.2643984
B9: Convert a SAIDI minute to MWh (MWh/minute) | C9: MWh/minute
B10: CBD | C10: =Incentive_Rate_Inputs!C13/(365.25*24*60)*1000 -> 0.8153859183
B11: Urban | C11: =Incentive_Rate_Inputs!D13/(365.25*24*60)*1000 -> 15.50852458
B12: Rural short | C12: =Incentive_Rate_Inputs!E13/(365.25*24*60)*1000 -> 6.485294723
B13: Rural long | C13: =Incentive_Rate_Inputs!F13/(365.25*24*60)*1000 -> 2.016030627
B15: SAIDI incentive rate ($ per minute) | C15: $ per minute
B16: CBD | C16: =$C10*C4*1000 -> 21194.84933
B17: Urban | C17: =$C11*C5*1000 -> 393457.1742
B18: Rural short | C18: =$C12*C6*1000 -> 159065.7679
B19: Rural long | C19: =$C13*C7*1000 -> 48917.77032
B21: SAIFI ($0.01 per event) Incentive Rate [$ Real as at 30 June 2022] | C21: $/kWh
B22: CBD | C22: =Incentive_Rate_Inputs!C4/(1+Incentive_Rate_Inputs!$C17) -> 17.3290944
B23: Urban | C23: =Incentive_Rate_Inputs!C5/(1+Incentive_Rate_Inputs!$C18) -> 16.9135872
B24: Rural short | C24: =Incentive_Rate_Inputs!C6/(1+Incentive_Rate_Inputs!$C19) -> 16.3514304
B25: Rural long | C25: =Incentive_Rate_Inputs!C7/(1+Incentive_Rate_Inputs!$C20) -> 16.1762656
B27: Convert an event to MWh (assumes each event of average duration - CAIDI = SAIDI/SAIFI) (MWh/event) | C27: MWh/event
B28: CBD | C28: =Incentive_Rate_Inputs!C13*Incentive_Rate_Inputs!D76/Incentive_Rate_Inputs!D77/(365.25*24*60)*1000 -> 53.30192107
B29: Urban | C29: =Incentive_Rate_Inputs!D13*Incentive_Rate_Inputs!D78/Incentive_Rate_Inputs!D79/(365.25*24*60)*1000 -> 1529.755508
B30: Rural short | C30: =Incentive_Rate_Inputs!E13*Incentive_Rate_Inputs!D80/Incentive_Rate_Inputs!D81/(365.25*24*60)*1000 -> 628.4081489
B31: Rural long | C31: =Incentive_Rate_Inputs!F13*Incentive_Rate_Inputs!D82/Incentive_Rate_Inputs!D83/(365.25*24*60)*1000 -> 332.305273
B33: SAIFI incentive rate ($ per 0.01 event) | C33: $ per 0.01 event
B34: CBD | C34: =$C28*C22*1000/100 -> 9236.74022
B35: Urban | C35: =$C29*C23*1000/100 -> 258736.5318
B36: Rural short | C36: =$C30*C24*1000/100 -> 102753.7211
B37: Rural long | C37: =$C31*C25*1000/100 -> 53754.58356
B39: Call Centre Performance Incentive Rates [$ Real as at 30 June 2022]
B40: Call centre reward side incentive rate
B41: Portion of revenue per % change in performance | C41: =Incentive_Rate_Inputs!C40 -> 0.0004
B42: Reward side incentive rate per % change in performance | C42: =-Incentive_Rate_Inputs!D40 -> -599211.9844
B44: SSAM Target | C44: =Incentive_Rate_Inputs!D84 -> 0.917
B46: Reward side incentive rate dollars per 0.1% change in performance | C46: =C42/10 -> -59921.19844
B48: Call centre penalty side incentive rate
B49: SSAM Target | C49: =ROUND(C44,3) -> 0.917
B51: Penalty side incentive rate dollars per 0.1% change in performance | C51: =C42/10 -> -59921.19844
B53: Transmission revenue at risk [$ Real as at 30 June 2022]
B54: Revenue at risk | C54: =Incentive_Rate_Inputs!D25 -> 0.01
B55: Tranmission Revenue (AA5 average) | C55: =Incentive_Rate_Inputs!C25 -> 95338843
B56: Transmission Revenue at risk | C56: =C54*C55 -> 953388.43
B58: Loss of Supply Event Frequency >0.1 and ≤ 1.0 system minutes interrupted Incentive Rates [$ Real as at 30 June 2022]
B59: Loss of Supply Event Frequency >0.1 and ≤ 1.0 system minutes interrupted Incentive Rates [$ Real as at 30 June 2022]
B60: Portion of revenue at risk | C60: =Incentive_Rate_Inputs!C33 -> 0.3
B61: Revenue at risk | C61: =C$56*C60 -> 286016.529
B63: SSAM Target | C63: =ROUND(Incentive_Rate_Inputs!G104,0) -> 2
B65: Reward side incentive rate dollars per event | C65: =(C61/C63) -> 143008.2645
B67: Loss of Supply Event Frequency >0.1 and ≤ 1.0 system minutes interrupted Incentive Rates [$ Real as at 30 June 2022]
B68: SSAM Target | C68: =ROUND(Incentive_Rate_Inputs!G104,0) -> 2
B70: Penalty side incentive rate dollars per event | C70: =(C61/C68) -> 143008.2645
B72: Loss of Supply Event Frequency >1 system minutes interrupted Incentive Rates [$ Real as at 30 June 2022]
B73: Loss of supply event frequency >1 system minutes interrupted reward side incentive rate
B74: Portion of revenue at risk | C74: =Incentive_Rate_Inputs!C34 -> 0.3
B75: Revenue at risk | C75: =C$56*C74 -> 286016.529
B77: SSAM Target | C77: =ROUND(Incentive_Rate_Inputs!G105,0) -> 1
B79: Reward side incentive rate dollars per event | C79: =(C75/C77) -> 286016.529
B81: Loss of supply event frequency >1 system minutes interrupted penalty side incentive rate
B83: SSAM Target | C83: =ROUND(Incentive_Rate_Inputs!G105,0) -> 1
B85: Penalty side incentive rate dollars per event | C85: =(C75/C83) -> 286016.529
B87: Average Outage Duration Incentive Rates [$ Real as at 30 June 2022]
B88: Average Outage Duration reward side incentive rate
B89: Portion of revenue at risk | C89: =Incentive_Rate_Inputs!C35 -> 0.4
B90: Revenue at risk | C90: =C$56*C89 -> 381355.372
B92: SSAM Target | C92: =ROUND(Incentive_Rate_Inputs!G106,0) -> 822
B94: Reward side incentive rate dollars per minute | C94: =(C90/C92) -> 463.9359757
B96: Average Outage Duration penalty side incentive rate
B98: SSAM Target | C98: =ROUND(Incentive_Rate_Inputs!G106,0) -> 822
B100: Penalty side incentive rate dollars per minute | C100: =(C90/C98) -> 463.9359757

Sheet CALCULATIONS -->

Sheet Dx_Asset
B1: Validation status | C1: =IF(COUNTIF(G11:AF11,"CHECK")+COUNTIF(D186:D198,"CHECK")+COUNTIF(E317:E689,"CHECK")>0,"CHECK","OK") -> OK
B2: Distribution calculations
B3: Year ending 30 June | F3: 2006 | G3: 2007 | H3: 2008 | I3: 2009 | J3: 2010 | K3: 2011 | L3: 2012 | M3: 2013 | N3: 2014 | O3: 2015 | P3: 2016 | Q3: 2017 | R3: 2018 | S3: 2019 | T3: 2020 | U3: 2021 | V3: 2022 | W3: 2023 | X3: 2024 | Y3: 2025 | Z3: 2026 | AA3: 2027
B4: Total Dx RAB value [$M real as at 30 June 2022]
B5: Opening balance | G5: =F10 -> 2246.468037 | H5: =G10 -> 2617.745564 | I5: 3024.510116 | J5: 3618.749279 | K5: 3948.269823 | L5: 4263.505634 | M5: 4643.478653 | N5: 5145.975953 | O5: 5620.792016 | P5: 6004.853615 | Q5: 6254.860698 | R5: 6337.177275 | S5: 6387.950504 | T5: 6468.78034 | U5: 6613.238932 | V5: 6772.731585 | W5: 6939.173579 | X5: 7231.380863 | Y5: 7564.706531 | Z5: 7919.576746 | AA5: 8211.616124
B6: Capital expenditure | G6: =G45 -> 513.9236128 | H6: =H45 -> 555.4424632 | I6: 755.021431 | J6: 519.5602812 | K6: 520.1894311 | L6: 608.6686578 | M6: 741.5982237 | N6: 733.8289716 | O6: 675.6916703 | P6: 544.331677 | Q6: 390.6446282 | R6: 338.2950898 | S6: 389.6809589 | T6: 455.1158202 | U6: 455.5609678 | V6: 452.9089058 | W6: 582.0419247 | X6: 628.4081716 | Y6: 671.6356012 | Z6: 637.4761006 | AA6: 664.2393187
B7: Disposals | G7: =G62 -> -0.2636949801 | H7: =H62 -> 0 | I7: 0 | J7: -1.034516968 | K7: -0.001219231876 | L7: -2.701738052 | M7: -1.014488159 | N7: -0.3255995014 | O7: -5.389782055 | P7: -3.072288169 | Q7: -0.675404229 | R7: -1.544979492 | S7: -0.6186300962 | T7: -0.6303112615 | U7: -1.6416608 | V7: -0.20899336 | W7: 0 | X7: 0 | Y7: 0 | Z7: 0 | AA7: 0
B8: Depreciation | G8: =G79 -> -136.9787207 | H8: =H79 -> -143.5073275 | I8: -155.6859916 | J8: -184.0052645 | K8: -200.0648582 | L8: -221.2348526 | M8: -233.9347216 | N8: -258.1304552 | O8: -286.2402892 | P8: -291.2523056 | Q8: -307.6526469 | R8: =R79 -> -281.6074416 | S8: -301.3335135 | T8: -305.6592279 | U8: -294.4266547 | V8: -286.2579183 | W8: -289.8346399 | X8: -295.0825038 | Y8: -316.765387 | Z8: -345.4367217 | AA8: -371.9655027
B9: Accelerated depreciation | G9: =G165 -> -5.40367051 | H9: =H165 -> -5.170583872 | I9: -5.09627608 | J9: -4.999956015 | K9: -4.887542537 | L9: -4.759048235 | M9: -4.151713808 | N9: -0.5568537117 | O9: 0 | P9: 0 | Q9: 0 | R9: -4.369440368 | S9: -6.898978798 | T9: -4.367689064 | U9: 0 | V9: 0 | W9: 0 | X9: 0 | Y9: 0 | Z9: 0 | AA9: 0
B10: Closing balance | F10: =F199 -> 2246.468037 | G10: =SUM(G5:G9) -> 2617.745564 | H10: =SUM(H5:H9) -> 3024.510116 | I10: 3618.749279 | J10: 3948.269823 | K10: 4263.505634 | L10: 4643.478653 | M10: 5145.975953 | N10: 5620.792016 | O10: 6004.853615 | P10: 6254.860698 | Q10: 6337.177275 | R10: 6387.950504 | S10: 6468.78034 | T10: 6613.238932 | U10: 6772.731585 | V10: 6939.173579 | W10: 7231.380863 | X10: 7564.706531 | Y10: 7919.576746 | Z10: 8211.616124 | AA10: 8503.88994
G11: =IF(ROUND(G113-G10,8)=0,"OK","CHECK") -> OK | H11: =IF(ROUND(H113-H10,8)=0,"OK","CHECK") -> OK | I11: OK | J11: OK | K11: OK | L11: OK | M11: OK | N11: OK | O11: OK | P11: OK | Q11: OK | R11: OK | S11: OK | T11: OK | U11: OK | V11: OK | W11: OK | X11: OK | Y11: OK | Z11: OK | AA11: OK
B12: Breakdown by asset categories [$M real as at 30 June 2022]
B13: Year ending 30 June | F13: 2006 | G13: 2007 | H13: 2008 | I13: 2009 | J13: 2010 | K13: 2011 | L13: 2012 | M13: 2013 | N13: 2014 | O13: 2015 | P13: 2016 | Q13: 2017 | R13: 2018 | S13: 2019 | T13: 2020 | U13: 2021 | V13: 2022 | W13: 2023 | X13: 2024 | Y13: 2025 | Z13: 2026 | AA13: 2027
B14: Opening balance
B15: Wooden Pole Lines | G15: =F100 -> 665.8246855 | H15: =G100 -> 726.4718979 | I15: 810.5760034 | J15: 946.7184395 | K15: 1064.074699 | L15: 1169.299716 | M15: 1362.955876 | N15: 1652.724859 | O15: 2001.371231 | P15: 2247.680425 | Q15: 2386.373932 | R15: =Q100 -> 2399.523015 | S15: 2475.654311 | T15: 2561.926069 | U15: 2662.110814 | V15: 2806.137813 | W15: 2925.071507 | X15: 3000.525303 | Y15: 3094.233963 | Z15: 3185.009584 | AA15: 3268.51826
B16: Underground Cables | G16: 754.0399778 | H16: =G101 -> 944.8582461 | I16: 1124.998787 | J16: 1377.432665 | K16: 1505.07179 | L16: 1613.782042 | M16: 1691.993203 | N16: 1735.04386 | O16: 1757.695402 | P16: 1778.288015 | Q16: 1794.963919 | R16: 1806.136543 | S16: 1777.763226 | T16: 1759.94317 | U16: 1752.135749 | V16: 1748.551995 | W16: 1714.650937 | X16: 1802.835766 | Y16: 1892.329045 | Z16: 1988.871534 | AA16: 2088.091972
B17: Transformers | G17: 287.0751673 | H17: 337.9311161 | I17: 385.6536069 | J17: 461.6501977 | K17: 493.9791973 | L17: 523.8574067 | M17: 548.4445278 | N17: 663.9074084 | O17: 759.3050285 | P17: 864.1786629 | Q17: 948.8989428 | R17: 1002.851266 | S17: 968.4088104 | T17: 935.5017486 | U17: 901.9334381 | V17: 865.4144 | W17: 824.1270851 | X17: 793.4231229 | Y17: 776.7193219 | Z17: 759.9894834 | AA17: 742.9648568
B18: Switchgear | G18: 153.0141515 | H18: 194.5614482 | I18: 243.3003185 | J18: 317.565701 | K18: 359.9118528 | L18: 400.2206732 | M18: 452.6754592 | N18: 510.1331265 | O18: 561.6305586 | P18: 613.5043444 | Q18: 647.4288438 | R18: 665.0978429 | S18: 637.6999899 | T18: 613.0205227 | U18: 595.0337104 | V18: 580.995505 | W18: 560.4941805 | X18: 562.5834643 | Y18: 565.6148494 | Z18: 568.4837511 | AA18: 569.9027672
B19: Street lighting | G19: 7.405684605 | H19: 22.04343866 | I19: 40.7178275 | J19: 69.61672038 | K19: 83.01081275 | L19: 95.94298256 | M19: 105.3892632 | N19: 105.0441742 | O19: 104.0210986 | P19: 103.9733633 | Q19: 103.7291228 | R19: 101.8782163 | S19: 105.5364149 | T19: 112.1282575 | U19: 118.7711734 | V19: 126.6617842 | W19: 131.2987921 | X19: 131.942601 | Y19: 132.760321 | Z19: 133.2116873 | AA19: 132.6826005
B20: Meters and Services | G20: 236.9814636 | H20: 224.371016 | I20: 213.0261266 | J20: 202.969011 | K20: 189.4809855 | L20: 180.6967735 | M20: 171.9017802 | N20: 155.6316909 | O20: 135.3045198 | P20: 115.1347788 | Q20: 125.1423641 | R20: 135.4068201 | S20: 141.5633713 | T20: 156.7775654 | U20: 174.9639626 | V20: 180.3319708 | W20: 179.3838633 | X20: 226.8459741 | Y20: 267.4446637 | Z20: 311.4307679 | AA20: 342.5344107
B21: IT | G21: 21.71750966 | H21: 41.54935958 | I21: 76.91252139 | J21: 94.17718498 | K21: 98.98504006 | L21: 112.8089875 | M21: 131.9450048 | N21: 135.8835973 | O21: 127.5211558 | P21: 122.3840939 | Q21: 105.4522334 | R21: 107.0247367 | S21: 108.1279713 | T21: 109.8222771 | U21: 110.7560596 | V21: 106.2284543 | W21: 110.746343 | X21: 122.3268599 | Y21: 133.2532794 | Z21: 137.0258988 | AA21: 142.9007962
B22: SCADA & Communications | G22: 18.06912664 | H22: 19.13892341 | I22: 19.8643993 | J22: 20.31756846 | K22: 22.00286913 | L22: 22.70437053 | M22: 24.53342987 | N22: 24.5909468 | O22: 23.08565432 | P22: 19.75529487 | Q22: 15.60110799 | R22: 12.97422544 | S22: 19.40381483 | T22: 23.08242942 | U22: 36.99613573 | V22: 52.99344547 | W22: 66.12434765 | X22: 84.01895793 | Y22: 106.7200708 | Z22: 127.8410859 | AA22: 148.2444522
B23: Other Distribution Non-Network | G23: 72.16402906 | H23: 76.90757148 | I23: 79.54797816 | J23: 98.38924439 | K23: 101.84003 | L23: 114.2813544 | M23: 125.1986781 | N23: 129.079092 | O23: 111.9739559 | P23: 101.3443855 | Q23: 87.52791378 | R23: 67.2743789 | S23: 98.1054195 | T23: 120.0656724 | U23: 159.1768287 | V23: 167.6007668 | W23: 226.2613519 | X23: 260.5409138 | Y23: 303.8767115 | Z23: 367.3968724 | AA23: 395.8567414
B24: Distribution Land & Easements | G24: 30.17624154 | H24: 29.91254656 | I24: 29.91254656 | J24: 29.91254656 | K24: 29.91254656 | L24: 29.91132732 | M24: 28.44143025 | N24: 27.48221915 | O24: 27.44680306 | P24: 23.45595588 | Q24: 23.45595588 | R24: 23.11284505 | S24: 29.4967761 | T24: 40.44010011 | U24: 56.97286838 | V24: 61.99664155 | W24: 88.03519784 | X24: 88.03519784 | Y24: 88.03519784 | Z24: 88.03519784 | AA24: 88.03519784
B25: Equity Raising Costs | G25: 0 | H25: 0 | I25: 0 | J25: 0 | K25: 0 | L25: 0 | M25: 0 | N25: 6.454978538 | O25: 11.4366083 | P25: 15.15429543 | Q25: 16.2863621 | R25: 15.89738492 | S25: 15.50018867 | T25: 15.10299241 | U25: 14.70579616 | V25: 14.30859991 | W25: 13.91140365 | X25: 13.5142074 | Y25: 13.11701114 | Z25: 12.71981489 | AA25: 12.32261863
B26: Standalone Power Systems | G26: =F111 -> 0 | H26: =G111 -> 0 | I26: =H111 -> 0 | J26: =I111 -> 0 | K26: =J111 -> 0 | L26: =K111 -> 0 | M26: =L111 -> 0 | N26: =M111 -> 0 | O26: =N111 -> 0 | P26: =O111 -> 0 | Q26: =P111 -> 0 | R26: =Q111 -> 0 | S26: =R111 -> 8.895751256 | T26: =S111 -> 18.01487259 | U26: =T111 -> 25.02895213 | V26: =U111 -> 56.07035715 | W26: =V111 -> 91.81030652 | X26: =W111 -> 137.934484 | Y26: =X111 -> 184.1510506 | Z26: =Y111 -> 233.5122561 | AA26: =Z111 -> 273.9155148
B27: Storage | G27: 0 | H27: 0 | I27: 0 | J27: 0 | K27: 0 | L27: 0 | M27: =L112 -> 0 | N27: 0 | O27: 0 | P27: 0 | Q27: 0 | R27: 0 | S27: 1.794457927 | T27: 2.954663011 | U27: 4.653444277 | V27: 5.43985111 | W27: 7.258262952 | X27: 6.854011687 | Y27: 6.451046038 | Z27: 6.048811567 | AA27: 5.645936443
B28: Total | G28: =SUM(G15:G27) -> 2246.468037 | H28: =SUM(H15:H27) -> 2617.745564 | I28: 3024.510116 | J28: 3618.749279 | K28: 3948.269823 | L28: 4263.505634 | M28: 4643.478653 | N28: 5145.975953 | O28: 5620.792016 | P28: 6004.853615 | Q28: 6254.860698 | R28: 6337.177275 | S28: 6387.950504 | T28: 6468.78034 | U28: 6613.238932 | V28: 6772.731585 | W28: 6939.173579 | X28: 7231.380863 | Y28: 7564.706531 | Z28: 7919.576746 | AA28: 8211.616124
B30: Year ending 30 June | F30: 2006 | G30: 2007 | H30: 2008 | I30: 2009 | J30: 2010 | K30: 2011 | L30: 2012 | M30: 2013 | N30: 2014 | O30: 2015 | P30: 2016 | Q30: 2017 | R30: 2018 | S30: 2019 | T30: 2020 | U30: 2021 | V30: 2022 | W30: 2023 | X30: 2024 | Y30: 2025 | Z30: 2026 | AA30: 2027
B31: Capital expenditure
B32: Wooden Pole Lines | G32: =G221 -> 110.618564 | H32: =H221 -> 135.4277944 | I32: 189.5846736 | J32: 176.772669 | K32: 168.8565917 | L32: 264.279233 | M32: 362.0543184 | N32: 425.5865518 | O32: 332.105958 | P32: 231.8842514 | Q32: 114.8070127 | R32: 184.011854 | S32: 199.3400337 | T32: 213.7400609 | U32: 235.1589883 | V32: 199.273361 | W32: 162.071845 | X32: 184.2796811 | Y32: 185.8412694 | Z32: 183.1070367 | AA32: 190.6443426
B33: Underground Cables | G33: 211.252956 | H33: =H222 -> 202.9653965 | I33: 278.0380349 | J33: 159.6606371 | K33: 143.1614804 | L33: 115.4988018 | M33: 82.04452667 | N33: 63.06882429 | O33: 62.38883459 | P33: 59.84961459 | Q33: 55.71421846 | R33: 15.96581222 | S33: 27.6168222 | T33: 38.79832091 | U33: 44.01163446 | V33: 14.52314659 | W33: 134.762413 | X33: 138.3169036 | Y33: 147.6713947 | Z33: 152.8105339 | AA33: 166.4543835
B34: Transformers | G34: 68.92337912 | H34: 66.79949563 | I34: 96.38832814 | J34: 56.80293098 | K34: 55.74637709 | L34: 52.0963035 | M34: 144.2275486 | N34: 127.5480297 | O34: 140.96735 | P34: 124.8564174 | Q34: 97.87614146 | R34: 11.95785314 | S34: 17.00763404 | T34: 18.03745411 | U34: 16.86695594 | V34: 14.88886853 | W34: 14.46502735 | X34: 14.75310546 | Y34: 15.14858529 | Z34: 15.28661386 | AA34: 16.08268041
B35: Switchgear | G35: 53.15220685 | H35: 61.18869509 | I35: 88.00446385 | J35: 59.69491454 | K35: 59.26881557 | L35: 73.54424069 | M35: 80.16737479 | N35: 76.2084702 | O35: 78.71472925 | P35: 62.92452991 | Q35: 48.58042571 | R35: 5.259002923 | S35: 9.382978119 | T35: 11.26859282 | U35: 11.38119749 | V35: 6.300160506 | W35: 24.21673109 | X35: 25.85073912 | Y35: 26.42684815 | Z35: 25.7320155 | AA35: 27.15742353
B36: Street lighting | G36: 20.80915789 | H36: 20.70100422 | I36: 30.61074678 | J36: 17.03378764 | K36: 17.30110064 | L36: 14.62479531 | M36: 5.759116005 | N36: 5.345570618 | O36: 6.568146152 | P36: 6.609305704 | Q36: 5.217433602 | R36: 11.26296833 | S36: 14.41276484 | T36: 14.70544127 | U36: 16.19476687 | V36: 13.17524656 | W36: 11.99256927 | X36: 12.76610896 | Y36: 13.03806056 | Z36: 12.70951065 | AA36: 13.39023273
B37: Meters and Services | G37: 13.1484071 | H37: 14.6628725 | I37: 16.43609098 | J37: 14.06902479 | K37: 19.40895224 | L37: 20.04016081 | M37: 13.42690677 | N37: 10.09684054 | O37: 13.15330786 | P37: 25.68444186 | Q37: 23.3589166 | R37: 14.93220353 | S37: 25.2531451 | T37: 29.94460363 | U37: 19.18175547 | V37: 14.94977363 | W37: 63.01557406 | X37: 60.35319102 | Y37: 67.76415174 | Z37: 59.3993005 | AA37: 54.19059768
B38: IT | G38: 22.04792233 | H38: 40.17508816 | I38: 24.31163593 | J38: 16.65896058 | K38: 26.92844865 | L38: 35.21467762 | M38: 22.03167726 | N38: 14.88960808 | O38: 23.08523899 | P38: 13.81534433 | Q38: 33.82359758 | R38: 28.32538221 | S38: 31.55883296 | T38: 34.30802058 | U38: 33.0134728 | V38: 39.493 | W38: 40.73902245 | X38: 40.68293407 | Y38: 39.0088636 | Z38: 43.97335267 | AA38: 41.14480446
B39: SCADA & Communications | G39: 2.841279779 | H39: 2.791022576 | I39: 2.755367773 | J39: 4.282964339 | K39: 4.033280099 | L39: 5.987137811 | M39: 3.939515752 | N39: 3.090510496 | O39: 3.013787403 | P39: 4.124216168 | Q39: 5.534532059 | R39: 6.327975849 | S39: 6.666954894 | T39: 17.03290611 | U39: 19.27250575 | V39: 16.51069422 | W39: 26.22116987 | X39: 33.36635167 | Y39: 35.04218002 | Z39: 37.77356467 | AA39: 40.32241624
B40: Other Distribution Non-Network | G40: 11.12973968 | H40: 10.73109419 | I40: 28.89208907 | J40: 14.58439219 | K40: 25.48438467 | L40: 27.38330723 | M40: 21.49226091 | N40: 2.875557702 | O40: 11.72156611 | P40: 13.10207102 | Q40: 5.732350049 | R40: 42.39603585 | S40: 36.60051252 | T40: 52.03479088 | U40: 23.51375213 | V40: 70.19629352 | W40: 48.05981023 | X40: 56.85629221 | Y40: 78.8400605 | Z40: 45.83140275 | AA40: 50.05863443
B41: Distribution Land & Easements | G41: 0 | H41: 0 | I41: 0 | J41: 0 | K41: 0 | L41: 0 | M41: 0 | N41: 0 | O41: 0 | P41: 0 | Q41: 0 | R41: 7.165792614 | S41: 11.5619541 | T41: 16.53276827 | U41: 5.138126722 | V41: 26.04 | W41: 0 | X41: 0 | Y41: 0 | Z41: 0 | AA41: 0
B42: Equity Raising Costs | G42: 0 | H42: 0 | I42: 0 | J42: 0 | K42: 0 | L42: 0 | M42: 6.454978538 | N42: 5.119008175 | O42: 3.972752042 | P42: 1.481484606 | Q42: 0 | R42: 0 | S42: 0 | T42: 0 | U42: 0 | V42: 0 | W42: 0 | X42: 0 | Y42: 0 | Z42: 0 | AA42: 0
B43: Standalone Power Systems | G43: 0 | H43: 0 | I43: 0 | J43: 0 | K43: 0 | L43: 0 | M43: 0 | N43: 0 | O43: 0 | P43: 0 | Q43: 0 | R43: 8.895751256 | S43: 9.119121335 | T43: 7.014079543 | U43: 31.04140501 | V43: 35.73994937 | W43: =W232 -> 56.49492556 | X43: 61.17859999 | Y43: 62.84897853 | Z43: 60.84794083 | AA43: 64.78860396
B44: Storage | G44: =G233 -> 0 | H44: 0 | I44: 0 | J44: 0 | K44: 0 | L44: 0 | M44: 0 | N44: 0 | O44: 0 | P44: 0 | Q44: 0 | R44: 1.794457927 | S44: 1.160205084 | T44: 1.698781266 | U44: 0.7864068332 | V44: 1.818411842 | W44: 0.002836875544 | X44: 0.004264335988 | Y44: 0.005208729619 | Z44: 0.004828514462 | AA44: 0.005199172506
B45: Total | G45: =SUM(G32:G44) -> 513.9236128 | H45: =SUM(H32:H44) -> 555.4424632 | I45: 755.021431 | J45: 519.5602812 | K45: 520.1894311 | L45: 608.6686578 | M45: 741.5982237 | N45: 733.8289716 | O45: 675.6916703 | P45: 544.331677 | Q45: 390.6446282 | R45: 338.2950898 | S45: 389.6809589 | T45: 455.1158202 | U45: 455.5609678 | V45: 452.9089058 | W45: 582.0419247 | X45: 628.4081716 | Y45: 671.6356012 | Z45: 637.4761006 | AA45: 664.2393187
B47: Year ending 30 June | F47: 2006 | G47: 2007 | H47: 2008 | I47: 2009 | J47: 2010 | K47: 2011 | L47: 2012 | M47: 2013 | N47: 2014 | O47: 2015 | P47: 2016 | Q47: 2017 | R47: 2018 | S47: 2019 | T47: 2020 | U47: 2021 | V47: 2022 | W47: 2023 | X47: 2024 | Y47: 2025 | Z47: 2026 | AA47: 2027
B48: Disposals/Redundant assets
B49: Wooden Pole Lines | G49: =SUM(G169,G255) -> 0 | H49: 0 | I49: 0 | J49: 0 | K49: 0 | L49: -1.146460529 | M49: 0 | N49: -0.2901834153 | O49: -1.39893487 | P49: -0.1478768678 | Q49: 0 | R49: -0.1000105537 | S49: 0 | T49: -0.6303112615 | U49: 0 | V49: -0.20754965 | W49: 0 | X49: 0 | Y49: 0 | Z49: 0 | AA49: 0
B50: Underground Cables | G50: =SUM(G170,G256) -> 0 | H50: =SUM(H170,H256) -> 0 | I50: 0 | J50: 0 | K50: 0 | L50: 0 | M50: 0 | N50: 0 | O50: 0 | P50: 0 | Q50: 0 | R50: 0 | S50: 0 | T50: 0 | U50: 0 | V50: 0 | W50: =SUM(W170,W256) -> 0 | X50: 0 | Y50: 0 | Z50: 0 | AA50: 0
B51: Transformers | G51: 0 | H51: =SUM(H171,H257) -> 0 | I51: 0 | J51: 0 | K51: 0 | L51: 0 | M51: 0 | N51: 0 | O51: 0 | P51: 0 | Q51: 0 | R51: 0 | S51: 0 | T51: 0 | U51: 0 | V51: 0 | W51: =SUM(W171,W257) -> 0 | X51: 0 | Y51: 0 | Z51: 0 | AA51: 0
B52: Switchgear | G52: 0 | H52: =SUM(H172,H258) -> 0 | I52: 0 | J52: 0 | K52: 0 | L52: 0 | M52: 0 | N52: 0 | O52: 0 | P52: 0 | Q52: 0 | R52: 0 | S52: 0 | T52: 0 | U52: 0 | V52: 0 | W52: =SUM(W172,W258) -> 0 | X52: 0 | Y52: 0 | Z52: 0 | AA52: 0
B53: Street lighting | G53: 0 | H53: =SUM(H173,H259) -> 0 | I53: 0 | J53: 0 | K53: 0 | L53: 0 | M53: 0 | N53: 0 | O53: 0 | P53: 0 | Q53: 0 | R53: 0 | S53: 0 | T53: 0 | U53: 0 | V53: 0 | W53: =SUM(W173,W259) -> 0 | X53: 0 | Y53: 0 | Z53: 0 | AA53: 0
B54: Meters and Services | G54: 0 | H54: =SUM(H174,H260) -> 0 | I54: 0 | J54: 0 | K54: 0 | L54: 0 | M54: 0 | N54: 0 | O54: 0 | P54: 0 | Q54: 0 | R54: 0 | S54: 0 | T54: 0 | U54: 0 | V54: 0 | W54: =SUM(W174,W260) -> 0 | X54: 0 | Y54: 0 | Z54: 0 | AA54: 0
B55: IT | G55: 0 | H55: =SUM(H175,H261) -> 0 | I55: 0 | J55: -1.034516968 | K55: 0 | L55: -0.08538045294 | M55: 0 | N55: 0 | O55: 0 | P55: 0 | Q55: 0 | R55: 0 | S55: 0 | T55: 0 | U55: 0 | V55: 0 | W55: =SUM(W175,W261) -> 0 | X55: 0 | Y55: 0 | Z55: 0 | AA55: 0
B56: SCADA & Communications | G56: 0 | H56: =SUM(H176,H262) -> 0 | I56: 0 | J56: 0 | K56: 0 | L56: 0 | M56: 0 | N56: 0 | O56: 0 | P56: 0 | Q56: 0 | R56: 0 | S56: 0 | T56: 0 | U56: 0 | V56: 0 | W56: =SUM(W176,W262) -> 0 | X56: 0 | Y56: 0 | Z56: 0 | AA56: 0
B57: Other Distribution Non-Network | G57: 0 | H57: =SUM(H177,H263) -> 0 | I57: 0 | J57: 0 | K57: 0 | L57: 0 | M57: -0.05527705456 | N57: 0 | O57: 0 | P57: -2.924411301 | Q57: -0.332293395 | R57: -0.6631073784 | S57: 0 | T57: 0 | U57: -1.527307249 | V57: 0 | W57: =SUM(W177,W263) -> 0 | X57: 0 | Y57: 0 | Z57: 0 | AA57: 0
B58: Distribution Land & Easements | G58: -0.2636949801 | H58: =SUM(H178,H264) -> 0 | I58: 0 | J58: 0 | K58: -0.001219231876 | L58: -1.46989707 | M58: -0.9592111043 | N58: -0.03541608612 | O58: -3.990847184 | P58: 0 | Q58: -0.343110834 | R58: -0.7818615596 | S58: -0.6186300962 | T58: 0 | U58: -0.1143535512 | V58: -0.00144371 | W58: =SUM(W178,W264) -> 0 | X58: 0 | Y58: 0 | Z58: 0 | AA58: 0
B59: Equity Raising Costs | G59: 0 | H59: =SUM(H179,H265) -> 0 | I59: 0 | J59: 0 | K59: 0 | L59: 0 | M59: 0 | N59: 0 | O59: 0 | P59: 0 | Q59: 0 | R59: 0 | S59: 0 | T59: 0 | U59: 0 | V59: 0 | W59: =SUM(W179,W265) -> 0 | X59: 0 | Y59: 0 | Z59: 0 | AA59: 0
B60: Standalone Power Systems | G60: 0 | H60: =SUM(H180,H266) -> 0 | I60: 0 | J60: 0 | K60: 0 | L60: 0 | M60: 0 | N60: 0 | O60: 0 | P60: 0 | Q60: 0 | R60: 0 | S60: 0 | T60: 0 | U60: 0 | V60: 0 | W60: 0 | X60: 0 | Y60: 0 | Z60: 0 | AA60: 0
B61: Storage | G61: =SUM(G181,G267) -> 0 | H61: 0 | I61: 0 | J61: 0 | K61: 0 | L61: 0 | M61: 0 | N61: 0 | O61: 0 | P61: 0 | Q61: 0 | R61: 0 | S61: 0 | T61: 0 | U61: 0 | V61: 0 | W61: 0 | X61: 0 | Y61: 0 | Z61: 0 | AA61: 0
B62: Total | G62: =SUM(G49:G61) -> -0.2636949801 | H62: =SUM(H49:H61) -> 0 | I62: 0 | J62: -1.034516968 | K62: -0.001219231876 | L62: -2.701738052 | M62: -1.014488159 | N62: -0.3255995014 | O62: -5.389782055 | P62: -3.072288169 | Q62: -0.675404229 | R62: -1.544979492 | S62: -0.6186300962 | T62: -0.6303112615 | U62: -1.6416608 | V62: -0.20899336 | W62: 0 | X62: 0 | Y62: 0 | Z62: 0 | AA62: 0
B64: Year ending 30 June | F64: 2006 | G64: 2007 | H64: 2008 | I64: 2009 | J64: 2010 | K64: 2011 | L64: 2012 | M64: 2013 | N64: 2014 | O64: 2015 | P64: 2016 | Q64: 2017 | R64: 2018 | S64: 2019 | T64: 2020 | U64: 2021 | V64: 2022 | W64: 2023 | X64: 2024 | Y64: 2025 | Z64: 2026 | AA64: 2027
B65: Depreciation
B66: Wooden Pole Lines | G66: =SUM(G135,G238) -> -45.91894383 | H66: -47.44608112 | I66: -49.62035579 | J66: -55.66644258 | K66: -59.9659181 | L66: -65.90732551 | M66: -69.17155036 | N66: -76.23235609 | O66: -84.39782932 | P66: -93.04286701 | Q66: -101.6579298 | R66: -104.1483428 | S66: -108.2269723 | T66: -109.6766086 | U66: -91.13198909 | V66: -80.13211741 | W66: -86.61804929 | X66: -90.57102111 | Y66: -95.06564748 | Z66: -99.59836137 | AA66: -104.0643867
B67: Underground Cables | G67: =SUM(G136,G239) -> -20.43468774 | H67: -22.8248551 | I67: -25.60415735 | J67: -32.02151242 | K67: -34.45122767 | L67: -37.28764138 | M67: -38.99386973 | N67: =SUM(N136,N239) -> -40.41728212 | O67: -41.79622133 | P67: -43.17371047 | Q67: -44.54159443 | R67: -44.33912913 | S67: -45.43687848 | T67: -46.60574214 | U67: -47.59538823 | V67: -48.42420448 | W67: =SUM(W136,W239) -> -46.57758422 | X67: -48.82362443 | Y67: -51.12890616 | Z67: -53.59009607 | AA67: -56.1369383
B68: Transformers | G68: -16.98669629 | H68: -18.04288802 | I68: -19.37248208 | J68: -23.47394022 | K68: -24.89065918 | L68: -26.55737281 | M68: -27.9343252 | N68: =SUM(N137,N240) -> -32.0390389 | O68: -36.09371559 | P68: -40.1361375 | Q68: -43.92381794 | R68: -45.93860324 | S68: -48.43040806 | T68: -50.8432275 | U68: -53.38599403 | V68: -56.1761835 | W68: =SUM(W137,W240) -> -45.16898948 | X68: -31.45690649 | Y68: -31.87842379 | Z68: -32.31124052 | AA68: -32.74800091
B69: Switchgear | G69: -11.33438159 | H69: -12.19096542 | I69: -13.48394212 | J69: -17.09876496 | K69: -18.715618 | L69: -20.8515023 | M69: -22.50212174 | N69: =SUM(N138,N241) -> -24.68319541 | O69: -26.84094351 | P69: -29.00003053 | Q69: -30.91142658 | R69: -32.38132624 | S69: -33.48905791 | T69: -28.89864914 | U69: -25.41940294 | V69: -26.80148495 | W69: =SUM(W138,W241) -> -22.12744737 | X69: -22.81935397 | Y69: -23.55794652 | Z69: -24.31299932 | AA69: -25.04819976
B70: Street lighting | G70: -6.171403838 | H70: -2.026615371 | I70: -1.711853897 | J70: -3.639695273 | K70: -4.368930837 | L70: -5.178514703 | M70: -6.104204968 | N70: =SUM(N139,N242) -> -6.368646257 | O70: -6.61588141 | P70: -6.853546239 | Q70: -7.068340029 | R70: -7.604769738 | S70: -7.82092227 | T70: -8.062525393 | U70: -8.304156006 | V70: -8.538238677 | W70: =SUM(W139,W242) -> -11.34876043 | X70: -11.94838889 | Y70: -12.58669434 | Z70: -13.23859737 | AA70: -13.8740729
B71: Meters and Services | G71: -25.75885474 | H71: -26.00776188 | I71: -26.49320662 | J71: -27.55705031 | K71: -28.19316421 | L71: -28.83515414 | M71: -29.69699599 | N71: =SUM(N140,N243) -> -30.42401168 | O71: -33.32304885 | P71: -15.67685656 | Q71: -13.09446059 | R71: -8.77565233 | S71: -10.038951 | T71: -11.75820643 | U71: -13.81374724 | V71: -15.8978812 | W71: =SUM(W140,W243) -> -15.5534632 | X71: -19.75450147 | Y71: -23.77804754 | Z71: -28.29565765 | AA71: -32.25561102
B72: IT | G72: -2.216072415 | H72: -4.811926347 | I72: -7.046972336 | J72: -10.81658852 | K72: -13.10450121 | L72: -15.99327984 | M72: -18.09308475 | N72: =SUM(N141,N244) -> -23.25204965 | O72: -28.22230089 | P72: -30.74720481 | Q72: -32.25109427 | R72: -27.22214758 | S72: -29.86452723 | T72: -33.37423801 | U72: -37.54107817 | V72: -34.97511125 | W72: =SUM(W141,W244) -> -29.15850559 | X72: -29.75651455 | Y72: -35.23624415 | Z72: -38.09845535 | AA72: -39.74711868
B73: SCADA & Communications | G73: -1.771483004 | H73: -2.06554669 | I73: -2.302198618 | J73: -2.597663662 | K73: -3.3317787 | L73: -4.158078471 | M73: -3.881998827 | N73: =SUM(N142,N245) -> -4.595802975 | O73: -6.344146851 | P73: -8.27840305 | Q73: -8.161414605 | R73: 0.1016135351 | S73: -2.988340299 | T73: -3.119199802 | U73: -3.275196005 | V73: -3.379792042 | W73: =SUM(W142,W245) -> -8.326559592 | X73: -10.66523879 | Y73: -13.9211649 | Z73: -17.37019837 | AA73: -20.82909781
B74: Other Distribution Non-Network | G74: -6.386197262 | H74: -8.090687508 | I74: -10.05082284 | J74: -11.13360655 | K74: -13.04306034 | L74: -16.46598347 | M74: -17.55657003 | N74: =SUM(N143,N246) -> -19.98069374 | O74: -22.3511365 | P74: -23.99413147 | Q74: -25.65359154 | R74: -10.90188786 | S74: -14.64025963 | T74: -12.92363457 | U74: -13.56250675 | V74: -11.53570849 | W74: =SUM(W143,W246) -> -13.7802483 | X74: -13.52049453 | Y74: -15.3198996 | Z74: -17.3715337 | AA74: -17.85426721
B75: Distribution Land & Easements | G75: 0 | H75: 0 | I75: 0 | J75: 0 | K75: 0 | L75: 0 | M75: 0 | N75: =SUM(N144,N247) -> 0 | O75: 0 | P75: 0 | Q75: 0 | R75: 0 | S75: 0 | T75: 0 | U75: 0 | V75: 0 | W75: =SUM(W144,W247) -> 0 | X75: 0 | Y75: 0 | Z75: 0 | AA75: 0
B76: Equity Raising Costs | G76: 0 | H76: 0 | I76: 0 | J76: 0 | K76: 0 | L76: 0 | M76: 0 | N76: =SUM(N145,N248) -> -0.1373784122 | O76: -0.2550649176 | P76: -0.3494179354 | Q76: -0.3889771731 | R76: -0.3971962546 | S76: -0.3971962546 | T76: -0.3971962546 | U76: -0.3971962546 | V76: -0.3971962546 | W76: =SUM(W145,W248) -> -0.3971962546 | X76: -0.3971962546 | Y76: -0.3971962546 | Z76: -0.3971962546 | AA76: -0.3971962546
B77: Standalone Power Systems | G77: =SUM(G146,G249) -> 0 | H77: 0 | I77: 0 | J77: 0 | K77: 0 | L77: 0 | M77: 0 | N77: 0 | O77: 0 | P77: 0 | Q77: 0 | R77: 0 | S77: 0 | T77: 0 | U77: 0 | V77: 0 | W77: -10.37074808 | X77: -14.96203334 | Y77: -13.48777305 | Z77: -20.44468211 | AA77: -28.60266811
B78: Storage | G78: =SUM(G147,G250) -> 0 | H78: 0 | I78: 0 | J78: 0 | K78: 0 | L78: 0 | M78: 0 | N78: 0 | O78: 0 | P78: 0 | Q78: 0 | R78: 0 | S78: 0 | T78: 0 | U78: 0 | V78: 0 | W78: -0.4070881407 | X78: -0.4072299845 | Y78: -0.4074432013 | Z78: -0.4077036378 | AA78: -0.4079450635
B79: Total | G79: =SUM(G66:G78) -> -136.9787207 | H79: =SUM(H66:H78) -> -143.5073275 | I79: -155.6859916 | J79: -184.0052645 | K79: -200.0648582 | L79: -221.2348526 | M79: -233.9347216 | N79: -258.1304552 | O79: -286.2402892 | P79: -291.2523056 | Q79: -307.6526469 | R79: -281.6074416 | S79: -301.3335135 | T79: -305.6592279 | U79: -294.4266547 | V79: -286.2579183 | W79: -289.8346399 | X79: -295.0825038 | Y79: -316.765387 | Z79: -345.4367217 | AA79: -371.9655027
B81: Year ending 30 June | F81: 2006 | G81: 2007 | H81: 2008 | I81: 2009 | J81: 2010 | K81: 2011 | L81: 2012 | M81: 2013 | N81: 2014 | O81: 2015 | P81: 2016 | Q81: 2017 | R81: 2018 | S81: 2019 | T81: 2020 | U81: 2021 | V81: 2022 | W81: 2023 | X81: 2024 | Y81: 2025 | Z81: 2026 | AA81: 2027
B82: Accelerated depreciation
B83: Wooden Pole Lines | G83: =G152 -> -4.052407821 | H83: =H152 -> -3.877607726 | I83: -3.821881627 | J83: -3.749967011 | K83: -3.665656903 | L83: -3.569286176 | M83: -3.113785356 | N83: -0.4176402838 | O83: 0 | P83: 0 | Q83: 0 | R83: -3.632204862 | S83: -4.841303536 | T83: -3.248396102 | U83: 0 | V83: 0 | W83: 0 | X83: 0 | Y83: 0 | Z83: 0 | AA83: 0
B84: Underground Cables | G84: =G153 -> 0 | H84: 0 | I84: 0 | J84: 0 | K84: 0 | L84: 0 | M84: 0 | N84: 0 | O84: 0 | P84: 0 | Q84: 0 | R84: 0 | S84: 0 | T84: 0 | U84: 0 | V84: 0 | W84: 0 | X84: 0 | Y84: 0 | Z84: 0 | AA84: 0
B85: Transformers | G85: =G154 -> -1.080734102 | H85: -1.034116774 | I85: -1.019255216 | J85: -0.999991203 | K85: -0.9775085074 | L85: -0.9518096469 | M85: -0.8303427616 | N85: -0.1113707423 | O85: 0 | P85: 0 | Q85: 0 | R85: -0.4617058566 | S85: -1.484287794 | T85: -0.7625370509 | U85: 0 | V85: 0 | W85: 0 | X85: 0 | Y85: 0 | Z85: 0 | AA85: 0
B86: Switchgear | G86: =G155 -> -0.2705285875 | H86: -0.2588593714 | I86: -0.2551392367 | J86: -0.2499978008 | K86: -0.2443771268 | L86: -0.2379524117 | M86: -0.2075856904 | N86: -0.02784268559 | O86: 0 | P86: 0 | Q86: 0 | R86: -0.2755296495 | S86: -0.5733874686 | T86: -0.3567559106 | U86: 0 | V86: 0 | W86: 0 | X86: 0 | Y86: 0 | Z86: 0 | AA86: 0
B87: Street lighting | G87: =G156 -> 0 | H87: 0 | I87: 0 | J87: 0 | K87: 0 | L87: 0 | M87: 0 | N87: 0 | O87: 0 | P87: 0 | Q87: 0 | R87: 0 | S87: 0 | T87: 0 | U87: 0 | V87: 0 | W87: 0 | X87: 0 | Y87: 0 | Z87: 0 | AA87: 0
B88: Meters and Services | G88: =G157 -> 0 | H88: 0 | I88: 0 | J88: 0 | K88: 0 | L88: 0 | M88: 0 | N88: 0 | O88: 0 | P88: 0 | Q88: 0 | R88: 0 | S88: 0 | T88: 0 | U88: 0 | V88: 0 | W88: 0 | X88: 0 | Y88: 0 | Z88: 0 | AA88: 0
B89: IT | G89: =G158 -> 0 | H89: 0 | I89: 0 | J89: 0 | K89: 0 | L89: 0 | M89: 0 | N89: 0 | O89: 0 | P89: 0 | Q89: 0 | R89: 0 | S89: 0 | T89: 0 | U89: 0 | V89: 0 | W89: 0 | X89: 0 | Y89: 0 | Z89: 0 | AA89: 0
B90: SCADA & Communications | G90: =G159 -> 0 | H90: 0 | I90: 0 | J90: 0 | K90: 0 | L90: 0 | M90: 0 | N90: 0 | O90: 0 | P90: 0 | Q90: 0 | R90: 0 | S90: 0 | T90: 0 | U90: 0 | V90: 0 | W90: 0 | X90: 0 | Y90: 0 | Z90: 0 | AA90: 0
B91: Other Distribution Non-Network | G91: =G160 -> 0 | H91: 0 | I91: 0 | J91: 0 | K91: 0 | L91: 0 | M91: 0 | N91: 0 | O91: 0 | P91: 0 | Q91: 0 | R91: 0 | S91: 0 | T91: 0 | U91: 0 | V91: 0 | W91: 0 | X91: 0 | Y91: 0 | Z91: 0 | AA91: 0
B92: Distribution Land & Easements | G92: =G161 -> 0 | H92: 0 | I92: 0 | J92: 0 | K92: 0 | L92: 0 | M92: 0 | N92: 0 | O92: 0 | P92: 0 | Q92: 0 | R92: 0 | S92: 0 | T92: 0 | U92: 0 | V92: 0 | W92: 0 | X92: 0 | Y92: 0 | Z92: 0 | AA92: 0
B93: Equity Raising Costs | G93: =G162 -> 0 | H93: 0 | I93: 0 | J93: 0 | K93: 0 | L93: 0 | M93: 0 | N93: 0 | O93: 0 | P93: 0 | Q93: 0 | R93: 0 | S93: 0 | T93: 0 | U93: 0 | V93: 0 | W93: 0 | X93: 0 | Y93: 0 | Z93: 0 | AA93: 0
B94: Standalone Power Systems | G94: 0 | H94: =H163 -> 0 | I94: 0 | J94: 0 | K94: 0 | L94: 0 | M94: 0 | N94: 0 | O94: 0 | P94: 0 | Q94: 0 | R94: 0 | S94: 0 | T94: 0 | U94: 0 | V94: 0 | W94: 0 | X94: 0 | Y94: 0 | Z94: 0 | AA94: 0
B95: Storage | G95: =G164 -> 0 | H95: 0 | I95: 0 | J95: 0 | K95: 0 | L95: 0 | M95: 0 | N95: 0 | O95: 0 | P95: 0 | Q95: 0 | R95: 0 | S95: 0 | T95: 0 | U95: 0 | V95: 0 | W95: 0 | X95: 0 | Y95: 0 | Z95: 0 | AA95: 0
B96: Total | G96: =SUM(G83:G95) -> -5.40367051 | H96: =SUM(H83:H95) -> -5.170583872 | I96: -5.09627608 | J96: -4.999956015 | K96: -4.887542537 | L96: -4.759048235 | M96: -4.151713808 | N96: -0.5568537117 | O96: 0 | P96: 0 | Q96: 0 | R96: -4.369440368 | S96: -6.898978798 | T96: -4.367689064 | U96: 0 | V96: 0 | W96: 0 | X96: 0 | Y96: 0 | Z96: 0 | AA96: 0
B98: Year ending 30 June | F98: 2006 | G98: 2007 | H98: 2008 | I98: 2009 | J98: 2010 | K98: 2011 | L98: 2012 | M98: 2013 | N98: 2014 | O98: 2015 | P98: 2016 | Q98: 2017 | R98: 2018 | S98: 2019 | T98: 2020 | U98: 2021 | V98: 2022 | W98: 2023 | X98: 2024 | Y98: 2025 | Z98: 2026 | AA98: 2027
B99: Closing balance
B100: Wooden Pole Lines | F100: =Dx_Inputs!I61 -> 665.8246855 | G100: =SUM(G15,G32,G49,G66,G83) -> 726.4718979 | H100: =SUM(H15,H32,H49,H66,H83) -> 810.5760034 | I100: 946.7184395 | J100: 1064.074699 | K100: 1169.299716 | L100: 1362.955876 | M100: 1652.724859 | N100: 2001.371231 | O100: 2247.680425 | P100: =SUM(P15,P32,P49,P66,P83) -> 2386.373932 | Q100: 2399.523015 | R100: 2475.654311 | S100: 2561.926069 | T100: 2662.110814 | U100: 2806.137813 | V100: 2925.071507 | W100: 3000.525303 | X100: 3094.233963 | Y100: 3185.009584 | Z100: 3268.51826 | AA100: 3355.098216
B101: Underground Cables | F101: =Dx_Inputs!I62 -> 754.0399778 | G101: =SUM(G16,G33,G50,G67,G84) -> 944.8582461 | H101: 1124.998787 | I101: 1377.432665 | J101: 1505.07179 | K101: 1613.782042 | L101: 1691.993203 | M101: 1735.04386 | N101: 1757.695402 | O101: 1778.288015 | P101: 1794.963919 | Q101: 1806.136543 | R101: 1777.763226 | S101: 1759.94317 | T101: 1752.135749 | U101: 1748.551995 | V101: 1714.650937 | W101: 1802.835766 | X101: 1892.329045 | Y101: 1988.871534 | Z101: 2088.091972 | AA101: 2198.409417
B102: Transformers | F102: =Dx_Inputs!I63 -> 287.0751673 | G102: =SUM(G17,G34,G51,G68,G85) -> 337.9311161 | H102: 385.6536069 | I102: 461.6501977 | J102: 493.9791973 | K102: 523.8574067 | L102: 548.4445278 | M102: 663.9074084 | N102: 759.3050285 | O102: 864.1786629 | P102: 948.8989428 | Q102: 1002.851266 | R102: 968.4088104 | S102: 935.5017486 | T102: 901.9334381 | U102: 865.4144 | V102: 824.1270851 | W102: 793.4231229 | X102: 776.7193219 | Y102: 759.9894834 | Z102: 742.9648568 | AA102: 726.2995363
B103: Switchgear | F103: =Dx_Inputs!I64 -> 153.0141515 | G103: =SUM(G18,G35,G52,G69,G86) -> 194.5614482 | H103: 243.3003185 | I103: 317.565701 | J103: 359.9118528 | K103: 400.2206732 | L103: 452.6754592 | M103: 510.1331265 | N103: 561.6305586 | O103: 613.5043444 | P103: 647.4288438 | Q103: 665.0978429 | R103: 637.6999899 | S103: 613.0205227 | T103: 595.0337104 | U103: 580.995505 | V103: 560.4941805 | W103: 562.5834643 | X103: 565.6148494 | Y103: 568.4837511 | Z103: 569.9027672 | AA103: 572.011991
B104: Street lighting | F104: =Dx_Inputs!I65 -> 7.405684605 | G104: =SUM(G19,G36,G53,G70,G87) -> 22.04343866 | H104: 40.7178275 | I104: 69.61672038 | J104: 83.01081275 | K104: 95.94298256 | L104: 105.3892632 | M104: 105.0441742 | N104: 104.0210986 | O104: 103.9733633 | P104: 103.7291228 | Q104: 101.8782163 | R104: 105.5364149 | S104: 112.1282575 | T104: 118.7711734 | U104: 126.6617842 | V104: 131.2987921 | W104: 131.942601 | X104: 132.760321 | Y104: 133.2116873 | Z104: 132.6826005 | AA104: 132.1987604
B105: Meters and Services | F105: =Dx_Inputs!I66 -> 236.9814636 | G105: =SUM(G20,G37,G54,G71,G88) -> 224.371016 | H105: 213.0261266 | I105: 202.969011 | J105: 189.4809855 | K105: 180.6967735 | L105: 171.9017802 | M105: 155.6316909 | N105: 135.3045198 | O105: 115.1347788 | P105: 125.1423641 | Q105: 135.4068201 | R105: 141.5633713 | S105: 156.7775654 | T105: 174.9639626 | U105: 180.3319708 | V105: 179.3838633 | W105: 226.8459741 | X105: 267.4446637 | Y105: 311.4307679 | Z105: 342.5344107 | AA105: 364.4693974
B106: IT | F106: =Dx_Inputs!I67 -> 21.71750966 | G106: =SUM(G21,G38,G55,G72,G89) -> 41.54935958 | H106: 76.91252139 | I106: 94.17718498 | J106: 98.98504006 | K106: 112.8089875 | L106: 131.9450048 | M106: 135.8835973 | N106: 127.5211558 | O106: 122.3840939 | P106: 105.4522334 | Q106: 107.0247367 | R106: 108.1279713 | S106: 109.8222771 | T106: 110.7560596 | U106: 106.2284543 | V106: 110.746343 | W106: 122.3268599 | X106: 133.2532794 | Y106: 137.0258988 | Z106: 142.9007962 | AA106: 144.2984819
B107: SCADA & Communications | F107: =Dx_Inputs!I68 -> 18.06912664 | G107: =SUM(G22,G39,G56,G73,G90) -> 19.13892341 | H107: 19.8643993 | I107: 20.31756846 | J107: 22.00286913 | K107: 22.70437053 | L107: 24.53342987 | M107: 24.5909468 | N107: 23.08565432 | O107: 19.75529487 | P107: 15.60110799 | Q107: 12.97422544 | R107: 19.40381483 | S107: 23.08242942 | T107: 36.99613573 | U107: 52.99344547 | V107: 66.12434765 | W107: 84.01895793 | X107: 106.7200708 | Y107: 127.8410859 | Z107: 148.2444522 | AA107: 167.7377707
B108: Other Distribution Non-Network | F108: =Dx_Inputs!I69 -> 72.16402906 | G108: =SUM(G23,G40,G57,G74,G91) -> 76.90757148 | H108: 79.54797816 | I108: 98.38924439 | J108: 101.84003 | K108: 114.2813544 | L108: 125.1986781 | M108: 129.079092 | N108: 111.9739559 | O108: 101.3443855 | P108: 87.52791378 | Q108: 67.2743789 | R108: 98.1054195 | S108: 120.0656724 | T108: 159.1768287 | U108: 167.6007668 | V108: 226.2613519 | W108: 260.5409138 | X108: 303.8767115 | Y108: 367.3968724 | Z108: 395.8567414 | AA108: 428.0611087
B109: Distribution Land & Easements | F109: =Dx_Inputs!I70 -> 30.17624154 | G109: =SUM(G24,G41,G58,G75,G92) -> 29.91254656 | H109: 29.91254656 | I109: 29.91254656 | J109: 29.91254656 | K109: 29.91132732 | L109: 28.44143025 | M109: 27.48221915 | N109: 27.44680306 | O109: 23.45595588 | P109: 23.45595588 | Q109: 23.11284505 | R109: 29.4967761 | S109: 40.44010011 | T109: 56.97286838 | U109: 61.99664155 | V109: 88.03519784 | W109: 88.03519784 | X109: 88.03519784 | Y109: 88.03519784 | Z109: 88.03519784 | AA109: 88.03519784
B110: Equity Raising Costs | F110: =Dx_Inputs!I71 -> 0 | G110: =SUM(G25,G42,G59,G76,G93) -> 0 | H110: 0 | I110: 0 | J110: 0 | K110: 0 | L110: 0 | M110: 6.454978538 | N110: 11.4366083 | O110: 15.15429543 | P110: 16.2863621 | Q110: 15.89738492 | R110: 15.50018867 | S110: 15.10299241 | T110: 14.70579616 | U110: 14.30859991 | V110: 13.91140365 | W110: 13.5142074 | X110: 13.11701114 | Y110: 12.71981489 | Z110: 12.32261863 | AA110: 11.92542238
B111: Standalone Power Systems | F111: =Dx_Inputs!I72 -> 0 | G111: 0 | H111: =SUM(H26,H43,H60,H77,H94) -> 0 | I111: 0 | J111: 0 | K111: 0 | L111: 0 | M111: 0 | N111: 0 | O111: 0 | P111: 0 | Q111: 0 | R111: 8.895751256 | S111: 18.01487259 | T111: 25.02895213 | U111: 56.07035715 | V111: 91.81030652 | W111: 137.934484 | X111: 184.1510506 | Y111: 233.5122561 | Z111: 273.9155148 | AA111: 310.1014507
B112: Storage | F112: =Dx_Inputs!I73 -> 0 | G112: =SUM(G27,G44,G61,G78,G95) -> 0 | H112: 0 | I112: 0 | J112: 0 | K112: 0 | L112: 0 | M112: 0 | N112: 0 | O112: 0 | P112: 0 | Q112: 0 | R112: 1.794457927 | S112: 2.954663011 | T112: 4.653444277 | U112: 5.43985111 | V112: 7.258262952 | W112: 6.854011687 | X112: 6.451046038 | Y112: 6.048811567 | Z112: 5.645936443 | AA112: 5.243190552
B113: Total | F113: =SUM(F100:F112) -> 2246.468037 | G113: =SUM(G100:G112) -> 2617.745564 | H113: 3024.510116 | I113: 3618.749279 | J113: 3948.269823 | K113: 4263.505634 | L113: 4643.478653 | M113: 5145.975953 | N113: 5620.792016 | O113: 6004.853615 | P113: 6254.860698 | Q113: 6337.177275 | R113: 6387.950504 | S113: 6468.78034 | T113: 6613.238932 | U113: 6772.731585 | V113: 6939.173579 | W113: 7231.380863 | X113: 7564.706531 | Y113: 7919.576746 | Z113: 8211.616124 | AA113: 8503.88994
B115: Initial capital base [$M real as at 30 June 2022]
B116: Year ending 30 June | F116: 2006 | G116: 2007 | H116: 2008 | I116: 2009 | J116: 2010 | K116: 2011 | L116: 2012 | M116: 2013 | N116: 2014 | O116: 2015 | P116: 2016 | Q116: 2017 | R116: 2018 | S116: 2019 | T116: 2020 | U116: 2021 | V116: 2022 | W116: 2023 | X116: 2024 | Y116: 2025 | Z116: 2026 | AA116: 2027
B117: Opening balance
B118: Wooden Pole Lines | G118: =F186 -> 665.8246855 | H118: =G186 -> 615.8533338 | I118: 566.3548404 | J118: 517.2258183 | K118: 468.4996932 | L118: 420.2150179 | M118: 371.2661114 | N118: 324.47396 | O118: 280.5029416 | P118: 235.9050645 | Q118: =P186 -> 192.5582453 | R118: 149.359303 | S118: 102.953001 | T118: 56.93049705 | U118: 15.09812499 | V118: 0 | W118: 0 | X118: 0 | Y118: 0 | Z118: 0 | AA118: 0
B119: Underground Cables | G119: 754.0399778 | H119: =G187 -> 733.60529 | I119: 713.1706023 | J119: 692.7359145 | K119: 672.3012268 | L119: 651.8665391 | M119: 631.4318513 | N119: 610.9971636 | O119: 590.5624758 | P119: 570.1277881 | Q119: 549.6931003 | R119: 529.2584126 | S119: 508.8237248 | T119: 488.3890371 | U119: 467.9543494 | V119: 447.5196616 | W119: 427.0849739 | X119: 406.6502861 | Y119: 386.2155984 | Z119: 365.7809106 | AA119: 345.3462229
B120: Transformers | G120: 287.0751673 | H120: 269.0077369 | I120: 251.0544145 | J120: 233.1861486 | K120: 215.4101755 | L120: 197.7342038 | M120: 180.1660745 | N120: 162.8067341 | O120: 146.2502387 | P120: 129.8176276 | Q120: 113.3850165 | R120: 96.95240542 | S120: 80.05808848 | T120: 62.23541528 | U120: 45.51507944 | V120: 29.82022446 | W120: 14.12536948 | X120: 0 | Y120: 0 | Z120: 0 | AA120: 0
B121: Switchgear | G121: 153.0141515 | H121: 141.4092413 | I121: 129.8374898 | J121: 118.2922245 | K121: 106.7763006 | L121: 95.29231287 | M121: 83.84350012 | N121: 72.45678108 | O121: 61.28174131 | P121: 50.13960652 | Q121: 38.99747174 | R121: 27.85533696 | S121: 16.43767252 | T121: 4.905836706 | U121: 0 | V121: 0 | W121: 0 | X121: 0 | Y121: 0 | Z121: 0 | AA121: 0
B122: Street lighting | G122: 7.405684605 | H122: 1.234280768 | I122: -1.33226763e-15 | J122: -1.33226763e-15 | K122: -1.33226763e-15 | L122: -1.33226763e-15 | M122: -1.33226763e-15 | N122: 0 | O122: 0 | P122: 0 | Q122: 0 | R122: 0 | S122: 0 | T122: 0 | U122: 0 | V122: 0 | W122: 0 | X122: 0 | Y122: 0 | Z122: 0 | AA122: 0
B123: Meters and Services | G123: 236.9814636 | H123: 211.2226089 | I123: 185.4637542 | J123: 159.7048994 | K123: 133.9460447 | L123: 108.1871899 | M123: 82.42833518 | N123: 56.66948043 | O123: 30.91062569 | P123: 5.151770949 | Q123: 6.30606678e-14 | R123: 6.30606678e-14 | S123: 0 | T123: 0 | U123: 0 | V123: 0 | W123: 0 | X123: 0 | Y123: 0 | Z123: 0 | AA123: 0
B124: IT | G124: 21.71750966 | H124: 19.50143725 | I124: 17.28536484 | J124: 15.06929242 | K124: 11.81870304 | L124: 9.602630623 | M124: 7.301177755 | N124: 5.379815188 | O124: 3.458452621 | P124: 1.537090054 | Q124: 0 | R124: 0 | S124: 0 | T124: 0 | U124: 0 | V124: 0 | W124: 0 | X124: 0 | Y124: 0 | Z124: 0 | AA124: 0
B125: SCADA & Communications | G125: 18.06912664 | H125: 16.29764364 | I125: 14.52616063 | J125: 12.75467763 | K125: 10.98319462 | L125: 9.21171162 | M125: 7.440228616 | N125: 5.668745612 | O125: 3.897262609 | P125: 2.125779605 | Q125: 0.3542966008 | R125: 0 | S125: 0 | T125: 0 | U125: 0 | V125: 0 | W125: 0 | X125: 0 | Y125: 0 | Z125: 0 | AA125: 0
B126: Other Distribution Non-Network | G126: 72.16402906 | H126: 65.7778318 | I126: 59.39163454 | J126: 53.00543727 | K126: 46.61924001 | L126: 40.23304275 | M126: 33.84684549 | N126: 27.40537117 | O126: 21.01917391 | P126: =O194 -> 14.63297665 | Q126: =P194 -> 5.322368085 | R126: 0 | S126: 0 | T126: 0 | U126: 0 | V126: 0 | W126: 0 | X126: 0 | Y126: 0 | Z126: 0 | AA126: 0
B127: Distribution Land & Easements | G127: 30.17624154 | H127: 29.91254656 | I127: 29.91254656 | J127: 29.91254656 | K127: 29.91254656 | L127: 29.91132732 | M127: 28.44143025 | N127: 27.48221915 | O127: 27.44680306 | P127: 23.45595588 | Q127: 23.45595588 | R127: 23.11284505 | S127: 22.33098349 | T127: 21.71235339 | U127: 21.71235339 | V127: 21.59799984 | W127: 21.59655613 | X127: 21.59655613 | Y127: 21.59655613 | Z127: 21.59655613 | AA127: 21.59655613
B128: Equity Raising Costs | G128: 0 | H128: 0 | I128: 0 | J128: 0 | K128: 0 | L128: 0 | M128: 0 | N128: 0 | O128: 0 | P128: 0 | Q128: 0 | R128: 0 | S128: 0 | T128: 0 | U128: 0 | V128: 0 | W128: 0 | X128: 0 | Y128: 0 | Z128: 0 | AA128: 0
B129: Standalone Power Systems | G129: =F197 -> 0 | H129: =G197 -> 0 | I129: =H197 -> 0 | J129: =I197 -> 0 | K129: =J197 -> 0 | L129: =K197 -> 0 | M129: =L197 -> 0 | N129: =M197 -> 0 | O129: =N197 -> 0 | P129: =O197 -> 0 | Q129: =P197 -> 0 | R129: =Q197 -> 0 | S129: =R197 -> 0 | T129: =S197 -> 0 | U129: =T197 -> 0 | V129: =U197 -> 0 | W129: =V197 -> 0 | X129: =W197 -> 0 | Y129: =X197 -> 0 | Z129: =Y197 -> 0 | AA129: =Z197 -> 0
B130: Storage | G130: 0 | H130: 0 | I130: 0 | J130: 0 | K130: 0 | L130: 0 | M130: 0 | N130: 0 | O130: 0 | P130: 0 | Q130: 0 | R130: 0 | S130: 0 | T130: 0 | U130: 0 | V130: 0 | W130: 0 | X130: 0 | Y130: 0 | Z130: 0 | AA130: 0
B131: Total | G131: =SUM(G118:G130) -> 2246.468037 | H131: =SUM(H118:H130) -> 2103.821951 | I131: 1966.996808 | J131: 1831.886959 | K131: 1696.267125 | L131: 1562.253976 | M131: 1426.165555 | N131: 1293.34027 | O131: 1165.329715 | P131: 1032.89366 | Q131: 923.7664544 | R131: 826.538303 | S131: 730.6034703 | T131: 634.1731395 | U131: 550.2799072 | V131: 498.9378859 | W131: 462.8068995 | X131: 428.2468422 | Y131: 407.8121545 | Z131: 387.3774668 | AA131: 366.942779
B133: Year ending 30 June | F133: 2006 | G133: 2007 | H133: 2008 | I133: 2009 | J133: 2010 | K133: 2011 | L133: 2012 | M133: 2013 | N133: 2014 | O133: 2015 | P133: 2016 | Q133: 2017 | R133: 2018 | S133: 2019 | T133: 2020 | U133: 2021 | V133: 2022 | W133: 2023 | X133: 2024 | Y133: 2025 | Z133: 2026 | AA133: 2027
B134: Depreciation
B135: Wooden Pole Lines | G135: =G290 -> -45.91894383 | H135: =H290 -> -45.62088575 | I135: -45.30714041 | J135: -44.97615812 | K135: -44.6190184 | L135: -44.23315978 | M135: -43.67836605 | N135: -43.26319467 | O135: -43.19894232 | P135: -43.19894232 | Q135: -43.19894232 | R135: -42.67408656 | S135: -41.18120039 | T135: -37.9536647 | U135: -15.09812499 | V135: 0 | W135: 0 | X135: 0 | Y135: 0 | Z135: 0 | AA135: 0
B136: Underground Cables | G136: =G321 -> -20.43468774 | H136: =H321 -> -20.43468774 | I136: -20.43468774 | J136: -20.43468774 | K136: -20.43468774 | L136: -20.43468774 | M136: -20.43468774 | N136: -20.43468774 | O136: -20.43468774 | P136: -20.43468774 | Q136: -20.43468774 | R136: -20.43468774 | S136: -20.43468774 | T136: -20.43468774 | U136: -20.43468774 | V136: -20.43468774 | W136: -20.43468774 | X136: -20.43468774 | Y136: -20.43468774 | Z136: -20.43468774 | AA136: -20.43468774
B137: Transformers | G137: =G352 -> -16.98669629 | H137: =H352 -> -16.9192057 | I137: -16.84901061 | J137: -16.77598192 | K137: -16.69846322 | L137: -16.61631965 | M137: -16.52899766 | N137: -16.44512465 | O137: -16.43261109 | P137: -16.43261109 | Q137: -16.43261109 | R137: -16.43261109 | S137: -16.3383854 | T137: -15.95779879 | U137: -15.69485498 | V137: -15.69485498 | W137: -14.12536948 | X137: 0 | Y137: 0 | Z137: 0 | AA137: 0
B138: Switchgear | G138: =G383 -> -11.33438159 | H138: =H383 -> -11.31289218 | I138: -11.29012603 | J138: -11.26592615 | K138: -11.23961059 | L138: -11.21086034 | M138: -11.17913335 | N138: -11.14719709 | O138: -11.14213478 | P138: -11.14213478 | Q138: -11.14213478 | R138: -11.14213478 | S138: -10.95844835 | T138: -4.905836706 | U138: 0 | V138: 0 | W138: 0 | X138: 0 | Y138: 0 | Z138: 0 | AA138: 0
B139: Street lighting | G139: =G414 -> -6.171403838 | H139: =H414 -> -1.234280768 | I139: 0 | J139: 0 | K139: 0 | L139: 0 | M139: 2.675724184e-16 | N139: 0 | O139: 0 | P139: 0 | Q139: 0 | R139: 0 | S139: 0 | T139: 0 | U139: 0 | V139: 0 | W139: 0 | X139: 0 | Y139: 0 | Z139: 0 | AA139: 0
B140: Meters and Services | G140: =G445 -> -25.75885474 | H140: =H445 -> -25.75885474 | I140: -25.75885474 | J140: -25.75885474 | K140: -25.75885474 | L140: -25.75885474 | M140: -25.75885474 | N140: -25.75885474 | O140: -25.75885474 | P140: -5.151770949 | Q140: 0 | R140: -6.30606678e-14 | S140: 0 | T140: 0 | U140: 0 | V140: 0 | W140: 0 | X140: 0 | Y140: 0 | Z140: 0 | AA140: 0
B141: IT | G141: =G476 -> -2.216072415 | H141: =H476 -> -2.216072415 | I141: -2.216072415 | J141: -2.216072415 | K141: -2.216072415 | L141: -2.216072415 | M141: -1.921362567 | N141: -1.921362567 | O141: -1.921362567 | P141: -1.537090054 | Q141: 0 | R141: 0 | S141: 0 | T141: 0 | U141: 0 | V141: 0 | W141: 0 | X141: 0 | Y141: 0 | Z141: 0 | AA141: 0
B142: SCADA & Communications | G142: =G507 -> -1.771483004 | H142: =H507 -> -1.771483004 | I142: -1.771483004 | J142: -1.771483004 | K142: -1.771483004 | L142: -1.771483004 | M142: -1.771483004 | N142: -1.771483004 | O142: -1.771483004 | P142: -1.771483004 | Q142: -0.3542966008 | R142: 0 | S142: 0 | T142: 0 | U142: 0 | V142: 0 | W142: 0 | X142: 0 | Y142: 0 | Z142: 0 | AA142: 0
B143: Other Distribution Non-Network | G143: =G538 -> -6.386197262 | H143: =H538 -> -6.386197262 | I143: -6.386197262 | J143: -6.386197262 | K143: -6.386197262 | L143: -6.386197262 | M143: -6.386197262 | N143: -6.386197262 | O143: -6.386197262 | P143: -6.386197262 | Q143: -6.386197262 | R143: 0 | S143: 0 | T143: 0 | U143: 0 | V143: 0 | W143: 0 | X143: 0 | Y143: 0 | Z143: 0 | AA143: 0
B144: Distribution Land & Easements | G144: =G569 -> 0 | H144: =H569 -> 0 | I144: 0 | J144: 0 | K144: 0 | L144: 0 | M144: 0 | N144: 0 | O144: 0 | P144: 0 | Q144: 0 | R144: 0 | S144: 0 | T144: 0 | U144: 0 | V144: 0 | W144: 0 | X144: 0 | Y144: 0 | Z144: 0 | AA144: 0
B145: Equity Raising Costs | G145: =G600 -> 0 | H145: =H600 -> 0 | I145: 0 | J145: 0 | K145: 0 | L145: 0 | M145: 0 | N145: 0 | O145: 0 | P145: 0 | Q145: 0 | R145: 0 | S145: 0 | T145: 0 | U145: 0 | V145: 0 | W145: 0 | X145: 0 | Y145: 0 | Z145: 0 | AA145: 0
B146: Standalone Power Systems | G146: =G631 -> 0 | H146: =H631 -> 0 | I146: 0 | J146: 0 | K146: 0 | L146: 0 | M146: 0 | N146: 0 | O146: 0 | P146: 0 | Q146: 0 | R146: 0 | S146: 0 | T146: 0 | U146: 0 | V146: 0 | W146: 0 | X146: 0 | Y146: 0 | Z146: 0 | AA146: 0
B147: Storage | G147: =G662 -> 0 | H147: =H662 -> 0 | I147: 0 | J147: 0 | K147: 0 | L147: 0 | M147: 0 | N147: 0 | O147: 0 | P147: 0 | Q147: 0 | R147: 0 | S147: 0 | T147: 0 | U147: 0 | V147: 0 | W147: 0 | X147: 0 | Y147: 0 | Z147: 0 | AA147: 0
B148: Total | G148: =SUM(G135:G147) -> -136.9787207 | H148: =SUM(H135:H147) -> -131.6545596 | I148: -130.0135722 | J148: -129.5853613 | K148: -129.1243874 | L148: -128.6276349 | M148: -127.6590824 | N148: -127.1281017 | O148: -127.0462735 | P148: -106.0549172 | Q148: -97.9488698 | R148: -90.68352017 | S148: -88.91272189 | T148: -79.25198794 | U148: -51.22766771 | V148: -36.12954272 | W148: -34.56005723 | X148: -20.43468774 | Y148: -20.43468774 | Z148: -20.43468774 | AA148: -20.43468774
B150: Year ending 30 June | F150: 2006 | G150: 2007 | H150: 2008 | I150: 2009 | J150: 2010 | K150: 2011 | L150: 2012 | M150: 2013 | N150: 2014 | O150: 2015 | P150: 2016 | Q150: 2017 | R150: 2018 | S150: 2019 | T150: 2020 | U150: 2021 | V150: 2022 | W150: 2023 | X150: 2024 | Y150: 2025 | Z150: 2026 | AA150: 2027
B151: Accelerated depreciation
B152: Wooden Pole Lines | G152: =-Dx_Inputs!E645 -> -4.052407821 | H152: =-Dx_Inputs!F645 -> -3.877607726 | I152: =-Dx_Inputs!G645 -> -3.821881627 | J152: =-Dx_Inputs!H645 -> -3.749967011 | K152: =-Dx_Inputs!I645 -> -3.665656903 | L152: =-Dx_Inputs!J645 -> -3.569286176 | M152: =-Dx_Inputs!K645 -> -3.113785356 | N152: =-Dx_Inputs!L645 -> -0.4176402838 | O152: =-Dx_Inputs!M645 -> 0 | P152: =-Dx_Inputs!N645 -> 0 | Q152: =-Dx_Inputs!O645 -> 0 | R152: =-Dx_Inputs!P645 -> -3.632204862 | S152: =-Dx_Inputs!Q645 -> -4.841303536 | T152: =-Dx_Inputs!R645 -> -3.248396102 | U152: =-Dx_Inputs!S645 -> 0 | V152: =-Dx_Inputs!T645 -> 0 | W152: =-Dx_Inputs!U645 -> 0 | X152: =-Dx_Inputs!V645 -> 0 | Y152: =-Dx_Inputs!W645 -> 0 | Z152: =-Dx_Inputs!X645 -> 0 | AA152: =-Dx_Inputs!Y645 -> 0
B153: Underground Cables | G153: =-Dx_Inputs!E646 -> 0 | H153: =-Dx_Inputs!F646 -> 0 | I153: =-Dx_Inputs!G646 -> 0 | J153: =-Dx_Inputs!H646 -> 0 | K153: =-Dx_Inputs!I646 -> 0 | L153: =-Dx_Inputs!J646 -> 0 | M153: =-Dx_Inputs!K646 -> 0 | N153: =-Dx_Inputs!L646 -> 0 | O153: =-Dx_Inputs!M646 -> 0 | P153: =-Dx_Inputs!N646 -> 0 | Q153: =-Dx_Inputs!O646 -> 0 | R153: =-Dx_Inputs!P646 -> 0 | S153: =-Dx_Inputs!Q646 -> 0 | T153: =-Dx_Inputs!R646 -> 0 | U153: =-Dx_Inputs!S646 -> 0 | V153: =-Dx_Inputs!T646 -> 0 | W153: =-Dx_Inputs!U646 -> 0 | X153: =-Dx_Inputs!V646 -> 0 | Y153: =-Dx_Inputs!W646 -> 0 | Z153: =-Dx_Inputs!X646 -> 0 | AA153: =-Dx_Inputs!Y646 -> 0
B154: Transformers | G154: =-Dx_Inputs!E647 -> -1.080734102 | H154: =-Dx_Inputs!F647 -> -1.034116774 | I154: =-Dx_Inputs!G647 -> -1.019255216 | J154: =-Dx_Inputs!H647 -> -0.999991203 | K154: =-Dx_Inputs!I647 -> -0.9775085074 | L154: =-Dx_Inputs!J647 -> -0.9518096469 | M154: =-Dx_Inputs!K647 -> -0.8303427616 | N154: =-Dx_Inputs!L647 -> -0.1113707423 | O154: =-Dx_Inputs!M647 -> 0 | P154: =-Dx_Inputs!N647 -> 0 | Q154: =-Dx_Inputs!O647 -> 0 | R154: =-Dx_Inputs!P647 -> -0.4617058566 | S154: =-Dx_Inputs!Q647 -> -1.484287794 | T154: =-Dx_Inputs!R647 -> -0.7625370509 | U154: =-Dx_Inputs!S647 -> 0 | V154: =-Dx_Inputs!T647 -> 0 | W154: =-Dx_Inputs!U647 -> 0 | X154: =-Dx_Inputs!V647 -> 0 | Y154: =-Dx_Inputs!W647 -> 0 | Z154: =-Dx_Inputs!X647 -> 0 | AA154: =-Dx_Inputs!Y647 -> 0
B155: Switchgear | G155: =-Dx_Inputs!E648 -> -0.2705285875 | H155: =-Dx_Inputs!F648 -> -0.2588593714 | I155: =-Dx_Inputs!G648 -> -0.2551392367 | J155: =-Dx_Inputs!H648 -> -0.2499978008 | K155: =-Dx_Inputs!I648 -> -0.2443771268 | L155: =-Dx_Inputs!J648 -> -0.2379524117 | M155: =-Dx_Inputs!K648 -> -0.2075856904 | N155: =-Dx_Inputs!L648 -> -0.02784268559 | O155: =-Dx_Inputs!M648 -> 0 | P155: =-Dx_Inputs!N648 -> 0 | Q155: =-Dx_Inputs!O648 -> 0 | R155: =-Dx_Inputs!P648 -> -0.2755296495 | S155: =-Dx_Inputs!Q648 -> -0.5733874686 | T155: =-Dx_Inputs!R648 -> -0.3567559106 | U155: =-Dx_Inputs!S648 -> 0 | V155: =-Dx_Inputs!T648 -> 0 | W155: =-Dx_Inputs!U648 -> 0 | X155: =-Dx_Inputs!V648 -> 0 | Y155: =-Dx_Inputs!W648 -> 0 | Z155: =-Dx_Inputs!X648 -> 0 | AA155: =-Dx_Inputs!Y648 -> 0
B156: Street lighting | G156: =-Dx_Inputs!E649 -> 0 | H156: =-Dx_Inputs!F649 -> 0 | I156: =-Dx_Inputs!G649 -> 0 | J156: =-Dx_Inputs!H649 -> 0 | K156: =-Dx_Inputs!I649 -> 0 | L156: =-Dx_Inputs!J649 -> 0 | M156: =-Dx_Inputs!K649 -> 0 | N156: =-Dx_Inputs!L649 -> 0 | O156: =-Dx_Inputs!M649 -> 0 | P156: =-Dx_Inputs!N649 -> 0 | Q156: =-Dx_Inputs!O649 -> 0 | R156: =-Dx_Inputs!P649 -> 0 | S156: =-Dx_Inputs!Q649 -> 0 | T156: =-Dx_Inputs!R649 -> 0 | U156: =-Dx_Inputs!S649 -> 0 | V156: =-Dx_Inputs!T649 -> 0 | W156: =-Dx_Inputs!U649 -> 0 | X156: =-Dx_Inputs!V649 -> 0 | Y156: =-Dx_Inputs!W649 -> 0 | Z156: =-Dx_Inputs!X649 -> 0 | AA156: =-Dx_Inputs!Y649 -> 0
B157: Meters and Services | G157: =-Dx_Inputs!E650 -> 0 | H157: =-Dx_Inputs!F650 -> 0 | I157: =-Dx_Inputs!G650 -> 0 | J157: =-Dx_Inputs!H650 -> 0 | K157: =-Dx_Inputs!I650 -> 0 | L157: =-Dx_Inputs!J650 -> 0 | M157: =-Dx_Inputs!K650 -> 0 | N157: =-Dx_Inputs!L650 -> 0 | O157: =-Dx_Inputs!M650 -> 0 | P157: =-Dx_Inputs!N650 -> 0 | Q157: =-Dx_Inputs!O650 -> 0 | R157: =-Dx_Inputs!P650 -> 0 | S157: =-Dx_Inputs!Q650 -> 0 | T157: =-Dx_Inputs!R650 -> 0 | U157: =-Dx_Inputs!S650 -> 0 | V157: =-Dx_Inputs!T650 -> 0 | W157: =-Dx_Inputs!U650 -> 0 | X157: =-Dx_Inputs!V650 -> 0 | Y157: =-Dx_Inputs!W650 -> 0 | Z157: =-Dx_Inputs!X650 -> 0 | AA157: =-Dx_Inputs!Y650 -> 0
B158: IT | G158: =-Dx_Inputs!E651 -> 0 | H158: =-Dx_Inputs!F651 -> 0 | I158: =-Dx_Inputs!G651 -> 0 | J158: =-Dx_Inputs!H651 -> 0 | K158: =-Dx_Inputs!I651 -> 0 | L158: =-Dx_Inputs!J651 -> 0 | M158: =-Dx_Inputs!K651 -> 0 | N158: =-Dx_Inputs!L651 -> 0 | O158: =-Dx_Inputs!M651 -> 0 | P158: =-Dx_Inputs!N651 -> 0 | Q158: =-Dx_Inputs!O651 -> 0 | R158: =-Dx_Inputs!P651 -> 0 | S158: =-Dx_Inputs!Q651 -> 0 | T158: =-Dx_Inputs!R651 -> 0 | U158: =-Dx_Inputs!S651 -> 0 | V158: =-Dx_Inputs!T651 -> 0 | W158: =-Dx_Inputs!U651 -> 0 | X158: =-Dx_Inputs!V651 -> 0 | Y158: =-Dx_Inputs!W651 -> 0 | Z158: =-Dx_Inputs!X651 -> 0 | AA158: =-Dx_Inputs!Y651 -> 0
B159: SCADA & Communications | G159: =-Dx_Inputs!E652 -> 0 | H159: =-Dx_Inputs!F652 -> 0 | I159: =-Dx_Inputs!G652 -> 0 | J159: =-Dx_Inputs!H652 -> 0 | K159: =-Dx_Inputs!I652 -> 0 | L159: =-Dx_Inputs!J652 -> 0 | M159: =-Dx_Inputs!K652 -> 0 | N159: =-Dx_Inputs!L652 -> 0 | O159: =-Dx_Inputs!M652 -> 0 | P159: =-Dx_Inputs!N652 -> 0 | Q159: =-Dx_Inputs!O652 -> 0 | R159: =-Dx_Inputs!P652 -> 0 | S159: =-Dx_Inputs!Q652 -> 0 | T159: =-Dx_Inputs!R652 -> 0 | U159: =-Dx_Inputs!S652 -> 0 | V159: =-Dx_Inputs!T652 -> 0 | W159: =-Dx_Inputs!U652 -> 0 | X159: =-Dx_Inputs!V652 -> 0 | Y159: =-Dx_Inputs!W652 -> 0 | Z159: =-Dx_Inputs!X652 -> 0 | AA159: =-Dx_Inputs!Y652 -> 0
B160: Other Distribution Non-Network | G160: =-Dx_Inputs!E653 -> 0 | H160: =-Dx_Inputs!F653 -> 0 | I160: =-Dx_Inputs!G653 -> 0 | J160: =-Dx_Inputs!H653 -> 0 | K160: =-Dx_Inputs!I653 -> 0 | L160: =-Dx_Inputs!J653 -> 0 | M160: =-Dx_Inputs!K653 -> 0 | N160: =-Dx_Inputs!L653 -> 0 | O160: =-Dx_Inputs!M653 -> 0 | P160: =-Dx_Inputs!N653 -> 0 | Q160: =-Dx_Inputs!O653 -> 0 | R160: =-Dx_Inputs!P653 -> 0 | S160: =-Dx_Inputs!Q653 -> 0 | T160: =-Dx_Inputs!R653 -> 0 | U160: =-Dx_Inputs!S653 -> 0 | V160: =-Dx_Inputs!T653 -> 0 | W160: =-Dx_Inputs!U653 -> 0 | X160: =-Dx_Inputs!V653 -> 0 | Y160: =-Dx_Inputs!W653 -> 0 | Z160: =-Dx_Inputs!X653 -> 0 | AA160: =-Dx_Inputs!Y653 -> 0
B161: Distribution Land & Easements | G161: =-Dx_Inputs!E654 -> 0 | H161: =-Dx_Inputs!F654 -> 0 | I161: =-Dx_Inputs!G654 -> 0 | J161: =-Dx_Inputs!H654 -> 0 | K161: =-Dx_Inputs!I654 -> 0 | L161: =-Dx_Inputs!J654 -> 0 | M161: =-Dx_Inputs!K654 -> 0 | N161: =-Dx_Inputs!L654 -> 0 | O161: =-Dx_Inputs!M654 -> 0 | P161: =-Dx_Inputs!N654 -> 0 | Q161: =-Dx_Inputs!O654 -> 0 | R161: =-Dx_Inputs!P654 -> 0 | S161: =-Dx_Inputs!Q654 -> 0 | T161: =-Dx_Inputs!R654 -> 0 | U161: =-Dx_Inputs!S654 -> 0 | V161: =-Dx_Inputs!T654 -> 0 | W161: =-Dx_Inputs!U654 -> 0 | X161: =-Dx_Inputs!V654 -> 0 | Y161: =-Dx_Inputs!W654 -> 0 | Z161: =-Dx_Inputs!X654 -> 0 | AA161: =-Dx_Inputs!Y654 -> 0
B162: Equity Raising Costs
B163: Standalone Power Systems | G163: =-Dx_Inputs!E655 -> 0 | H163: =-Dx_Inputs!F655 -> 0 | I163: =-Dx_Inputs!G655 -> 0 | J163: =-Dx_Inputs!H655 -> 0 | K163: =-Dx_Inputs!I655 -> 0 | L163: =-Dx_Inputs!J655 -> 0 | M163: =-Dx_Inputs!K655 -> 0 | N163: =-Dx_Inputs!L655 -> 0 | O163: =-Dx_Inputs!M655 -> 0 | P163: =-Dx_Inputs!N655 -> 0 | Q163: =-Dx_Inputs!O655 -> 0 | R163: =-Dx_Inputs!P655 -> 0 | S163: =-Dx_Inputs!Q655 -> 0 | T163: =-Dx_Inputs!R655 -> 0 | U163: =-Dx_Inputs!S655 -> 0 | V163: =-Dx_Inputs!T655 -> 0 | W163: =-Dx_Inputs!U655 -> 0 | X163: =-Dx_Inputs!V655 -> 0 | Y163: =-Dx_Inputs!W655 -> 0 | Z163: =-Dx_Inputs!X655 -> 0 | AA163: =-Dx_Inputs!Y655 -> 0
B164: Storage | G164: =-Dx_Inputs!E656 -> 0 | H164: =-Dx_Inputs!F656 -> 0 | I164: =-Dx_Inputs!G656 -> 0 | J164: =-Dx_Inputs!H656 -> 0 | K164: =-Dx_Inputs!I656 -> 0 | L164: =-Dx_Inputs!J656 -> 0 | M164: =-Dx_Inputs!K656 -> 0 | N164: =-Dx_Inputs!L656 -> 0 | O164: =-Dx_Inputs!M656 -> 0 | P164: =-Dx_Inputs!N656 -> 0 | Q164: =-Dx_Inputs!O656 -> 0 | R164: =-Dx_Inputs!P656 -> 0 | S164: =-Dx_Inputs!Q656 -> 0 | T164: =-Dx_Inputs!R656 -> 0 | U164: =-Dx_Inputs!S656 -> 0 | V164: =-Dx_Inputs!T656 -> 0 | W164: =-Dx_Inputs!U656 -> 0 | X164: =-Dx_Inputs!V656 -> 0 | Y164: =-Dx_Inputs!W656 -> 0 | Z164: =-Dx_Inputs!X656 -> 0 | AA164: =-Dx_Inputs!Y656 -> 0
B165: Total | G165: =SUM(G152:G164) -> -5.40367051 | H165: =SUM(H152:H164) -> -5.170583872 | I165: -5.09627608 | J165: -4.999956015 | K165: -4.887542537 | L165: -4.759048235 | M165: -4.151713808 | N165: -0.5568537117 | O165: 0 | P165: 0 | Q165: 0 | R165: -4.369440368 | S165: -6.898978798 | T165: -4.367689064 | U165: 0 | V165: 0 | W165: 0 | X165: 0 | Y165: 0 | Z165: 0 | AA165: 0
B167: Year ending 30 June | F167: 2006 | G167: 2007 | H167: 2008 | I167: 2009 | J167: 2010 | K167: 2011 | L167: 2012 | M167: 2013 | N167: 2014 | O167: 2015 | P167: 2016 | Q167: 2017 | R167: 2018 | S167: 2019 | T167: 2020 | U167: 2021 | V167: 2022 | W167: 2023 | X167: 2024 | Y167: 2025 | Z167: 2026 | AA167: 2027
B168: Disposals/Redundant assets
B169: Wooden Pole Lines | G169: =IF(G118+G135+G152>Dx_Inputs!E681,-Dx_Inputs!E681,0) -> 0 | H169: =IF(H118+H135+H152>Dx_Inputs!F681,-Dx_Inputs!F681,0) -> 0 | I169: =IF(I118+I135+I152>Dx_Inputs!G681,-Dx_Inputs!G681,0) -> 0 | J169: =IF(J118+J135+J152>Dx_Inputs!H681,-Dx_Inputs!H681,0) -> 0 | K169: =IF(K118+K135+K152>Dx_Inputs!I681,-Dx_Inputs!I681,0) -> 0 | L169: =IF(L118+L135+L152>Dx_Inputs!J681,-Dx_Inputs!J681,0) -> -1.146460529 | M169: =IF(M118+M135+M152>Dx_Inputs!K681,-Dx_Inputs!K681,-(M118+M135+M152)) -> 0 | N169: =IF(N118+N135+N152>Dx_Inputs!L681,-Dx_Inputs!L681,-(N118+N135+N152)) -> -0.2901834153 | O169: =IF(O118+O135+O152>Dx_Inputs!M681,-Dx_Inputs!M681,-(O118+O135+O152)) -> -1.39893487 | P169: =IF(P118+P135+P152>Dx_Inputs!N681,-Dx_Inputs!N681,-(P118+P135+P152)) -> -0.1478768678 | Q169: =IF(Q118+Q135+Q152>Dx_Inputs!O681,-Dx_Inputs!O681,-(Q118+Q135+Q152)) -> 0 | R169: =IF(R118+R135+R152>Dx_Inputs!P681,-Dx_Inputs!P681,-(R118+R135+R152)) -> -0.1000105537 | S169: =IF(S118+S135+S152>Dx_Inputs!Q681,-Dx_Inputs!Q681,-(S118+S135+S152)) -> 0 | T169: =IF(T118+T135+T152>Dx_Inputs!R681,-Dx_Inputs!R681,-(T118+T135+T152)) -> -0.6303112615 | U169: =IF(U118+U135+U152>Dx_Inputs!S681,-Dx_Inputs!S681,-(U118+U135+U152)) -> 0 | V169: =IF(V118+V135+V152>Dx_Inputs!T681,-Dx_Inputs!T681,-(V118+V135+V152)) -> 0
B170: Underground Cables | G170: =IF(G119+G136+G153>Dx_Inputs!E682,-Dx_Inputs!E682,0) -> 0 | H170: =IF(H119+H136+H153>Dx_Inputs!F682,-Dx_Inputs!F682,0) -> 0 | I170: =IF(I119+I136+I153>Dx_Inputs!G682,-Dx_Inputs!G682,0) -> 0 | J170: =IF(J119+J136+J153>Dx_Inputs!H682,-Dx_Inputs!H682,0) -> 0 | K170: =IF(K119+K136+K153>Dx_Inputs!I682,-Dx_Inputs!I682,0) -> 0 | L170: =IF(L119+L136+L153>Dx_Inputs!J682,-Dx_Inputs!J682,0) -> 0 | M170: =IF(M119+M136+M153>Dx_Inputs!K682,-Dx_Inputs!K682,-(M119+M136+M153)) -> 0 | N170: =IF(N119+N136+N153>Dx_Inputs!L682,-Dx_Inputs!L682,-(N119+N136+N153)) -> 0 | O170: =IF(O119+O136+O153>Dx_Inputs!M682,-Dx_Inputs!M682,-(O119+O136+O153)) -> 0 | P170: =IF(P119+P136+P153>Dx_Inputs!N682,-Dx_Inputs!N682,-(P119+P136+P153)) -> 0 | Q170: =IF(Q119+Q136+Q153>Dx_Inputs!O682,-Dx_Inputs!O682,-(Q119+Q136+Q153)) -> 0 | R170: =IF(R119+R136+R153>Dx_Inputs!P682,-Dx_Inputs!P682,-(R119+R136+R153)) -> 0 | S170: =IF(S119+S136+S153>Dx_Inputs!Q682,-Dx_Inputs!Q682,-(S119+S136+S153)) -> 0 | T170: =IF(T119+T136+T153>Dx_Inputs!R682,-Dx_Inputs!R682,-(T119+T136+T153)) -> 0 | U170: =IF(U119+U136+U153>Dx_Inputs!S682,-Dx_Inputs!S682,-(U119+U136+U153)) -> 0 | V170: =IF(V119+V136+V153>Dx_Inputs!T682,-Dx_Inputs!T682,-(V119+V136+V153)) -> 0
B171: Transformers | G171: =IF(G120+G137+G154>Dx_Inputs!E683,-Dx_Inputs!E683,0) -> 0 | H171: =IF(H120+H137+H154>Dx_Inputs!F683,-Dx_Inputs!F683,0) -> 0 | I171: =IF(I120+I137+I154>Dx_Inputs!G683,-Dx_Inputs!G683,0) -> 0 | J171: =IF(J120+J137+J154>Dx_Inputs!H683,-Dx_Inputs!H683,0) -> 0 | K171: =IF(K120+K137+K154>Dx_Inputs!I683,-Dx_Inputs!I683,0) -> 0 | L171: =IF(L120+L137+L154>Dx_Inputs!J683,-Dx_Inputs!J683,0) -> 0 | M171: =IF(M120+M137+M154>Dx_Inputs!K683,-Dx_Inputs!K683,-(M120+M137+M154)) -> 0 | N171: =IF(N120+N137+N154>Dx_Inputs!L683,-Dx_Inputs!L683,-(N120+N137+N154)) -> 0 | O171: =IF(O120+O137+O154>Dx_Inputs!M683,-Dx_Inputs!M683,-(O120+O137+O154)) -> 0 | P171: =IF(P120+P137+P154>Dx_Inputs!N683,-Dx_Inputs!N683,-(P120+P137+P154)) -> 0 | Q171: =IF(Q120+Q137+Q154>Dx_Inputs!O683,-Dx_Inputs!O683,-(Q120+Q137+Q154)) -> 0 | R171: =IF(R120+R137+R154>Dx_Inputs!P683,-Dx_Inputs!P683,-(R120+R137+R154)) -> 0 | S171: =IF(S120+S137+S154>Dx_Inputs!Q683,-Dx_Inputs!Q683,-(S120+S137+S154)) -> 0 | T171: =IF(T120+T137+T154>Dx_Inputs!R683,-Dx_Inputs!R683,-(T120+T137+T154)) -> 0 | U171: =IF(U120+U137+U154>Dx_Inputs!S683,-Dx_Inputs!S683,-(U120+U137+U154)) -> 0 | V171: =IF(V120+V137+V154>Dx_Inputs!T683,-Dx_Inputs!T683,-(V120+V137+V154)) -> 0
B172: Switchgear | G172: =IF(G121+G138+G155>Dx_Inputs!E684,-Dx_Inputs!E684,0) -> 0 | H172: =IF(H121+H138+H155>Dx_Inputs!F684,-Dx_Inputs!F684,0) -> 0 | I172: =IF(I121+I138+I155>Dx_Inputs!G684,-Dx_Inputs!G684,0) -> 0 | J172: =IF(J121+J138+J155>Dx_Inputs!H684,-Dx_Inputs!H684,0) -> 0 | K172: =IF(K121+K138+K155>Dx_Inputs!I684,-Dx_Inputs!I684,0) -> 0 | L172: =IF(L121+L138+L155>Dx_Inputs!J684,-Dx_Inputs!J684,0) -> 0 | M172: =IF(M121+M138+M155>Dx_Inputs!K684,-Dx_Inputs!K684,-(M121+M138+M155)) -> 0 | N172: =IF(N121+N138+N155>Dx_Inputs!L684,-Dx_Inputs!L684,-(N121+N138+N155)) -> 0 | O172: =IF(O121+O138+O155>Dx_Inputs!M684,-Dx_Inputs!M684,-(O121+O138+O155)) -> 0 | P172: =IF(P121+P138+P155>Dx_Inputs!N684,-Dx_Inputs!N684,-(P121+P138+P155)) -> 0 | Q172: =IF(Q121+Q138+Q155>Dx_Inputs!O684,-Dx_Inputs!O684,-(Q121+Q138+Q155)) -> 0 | R172: =IF(R121+R138+R155>Dx_Inputs!P684,-Dx_Inputs!P684,-(R121+R138+R155)) -> 0 | S172: =IF(S121+S138+S155>Dx_Inputs!Q684,-Dx_Inputs!Q684,-(S121+S138+S155)) -> 0 | T172: =IF(T121+T138+T155>Dx_Inputs!R684,-Dx_Inputs!R684,-(T121+T138+T155)) -> 0.3567559106 | U172: =IF(U121+U138+U155>Dx_Inputs!S684,-Dx_Inputs!S684,-(U121+U138+U155)) -> 0 | V172: =IF(V121+V138+V155>Dx_Inputs!T684,-Dx_Inputs!T684,-(V121+V138+V155)) -> 0
B173: Street lighting | G173: =IF(G122+G139+G156>Dx_Inputs!E685,-Dx_Inputs!E685,0) -> 0 | H173: =IF(H122+H139+H156>Dx_Inputs!F685,-Dx_Inputs!F685,0) -> 0 | I173: =IF(I122+I139+I156>Dx_Inputs!G685,-Dx_Inputs!G685,0) -> 0 | J173: =IF(J122+J139+J156>Dx_Inputs!H685,-Dx_Inputs!H685,0) -> 0 | K173: =IF(K122+K139+K156>Dx_Inputs!I685,-Dx_Inputs!I685,0) -> 0 | L173: =IF(L122+L139+L156>Dx_Inputs!J685,-Dx_Inputs!J685,0) -> 0 | M173: =IF(M122+M139+M156>Dx_Inputs!K685,-Dx_Inputs!K685,-(M122+M139+M156)) -> 1.064695211e-15 | N173: =IF(N122+N139+N156>Dx_Inputs!L685,-Dx_Inputs!L685,-(N122+N139+N156)) -> 0 | O173: =IF(O122+O139+O156>Dx_Inputs!M685,-Dx_Inputs!M685,-(O122+O139+O156)) -> 0 | P173: =IF(P122+P139+P156>Dx_Inputs!N685,-Dx_Inputs!N685,-(P122+P139+P156)) -> 0 | Q173: =IF(Q122+Q139+Q156>Dx_Inputs!O685,-Dx_Inputs!O685,-(Q122+Q139+Q156)) -> 0 | R173: =IF(R122+R139+R156>Dx_Inputs!P685,-Dx_Inputs!P685,-(R122+R139+R156)) -> 0 | S173: =IF(S122+S139+S156>Dx_Inputs!Q685,-Dx_Inputs!Q685,-(S122+S139+S156)) -> 0 | T173: =IF(T122+T139+T156>Dx_Inputs!R685,-Dx_Inputs!R685,-(T122+T139+T156)) -> 0 | U173: =IF(U122+U139+U156>Dx_Inputs!S685,-Dx_Inputs!S685,-(U122+U139+U156)) -> 0 | V173: =IF(V122+V139+V156>Dx_Inputs!T685,-Dx_Inputs!T685,-(V122+V139+V156)) -> 0
B174: Meters and Services | G174: =IF(G123+G140+G157>Dx_Inputs!E686,-Dx_Inputs!E686,0) -> 0 | H174: =IF(H123+H140+H157>Dx_Inputs!F686,-Dx_Inputs!F686,0) -> 0 | I174: =IF(I123+I140+I157>Dx_Inputs!G686,-Dx_Inputs!G686,0) -> 0 | J174: =IF(J123+J140+J157>Dx_Inputs!H686,-Dx_Inputs!H686,0) -> 0 | K174: =IF(K123+K140+K157>Dx_Inputs!I686,-Dx_Inputs!I686,0) -> 0 | L174: =IF(L123+L140+L157>Dx_Inputs!J686,-Dx_Inputs!J686,0) -> 0 | M174: =IF(M123+M140+M157>Dx_Inputs!K686,-Dx_Inputs!K686,-(M123+M140+M157)) -> 0 | N174: =IF(N123+N140+N157>Dx_Inputs!L686,-Dx_Inputs!L686,-(N123+N140+N157)) -> 0 | O174: =IF(O123+O140+O157>Dx_Inputs!M686,-Dx_Inputs!M686,-(O123+O140+O157)) -> 0 | P174: =IF(P123+P140+P157>Dx_Inputs!N686,-Dx_Inputs!N686,-(P123+P140+P157)) -> 0 | Q174: =IF(Q123+Q140+Q157>Dx_Inputs!O686,-Dx_Inputs!O686,-(Q123+Q140+Q157)) -> 0 | R174: =IF(R123+R140+R157>Dx_Inputs!P686,-Dx_Inputs!P686,-(R123+R140+R157)) -> 0 | S174: =IF(S123+S140+S157>Dx_Inputs!Q686,-Dx_Inputs!Q686,-(S123+S140+S157)) -> 0 | T174: =IF(T123+T140+T157>Dx_Inputs!R686,-Dx_Inputs!R686,-(T123+T140+T157)) -> 0 | U174: =IF(U123+U140+U157>Dx_Inputs!S686,-Dx_Inputs!S686,-(U123+U140+U157)) -> 0 | V174: =IF(V123+V140+V157>Dx_Inputs!T686,-Dx_Inputs!T686,-(V123+V140+V157)) -> 0
B175: IT | G175: =IF(G124+G141+G158>Dx_Inputs!E687,-Dx_Inputs!E687,0) -> 0 | H175: =IF(H124+H141+H158>Dx_Inputs!F687,-Dx_Inputs!F687,0) -> 0 | I175: =IF(I124+I141+I158>Dx_Inputs!G687,-Dx_Inputs!G687,0) -> 0 | J175: =IF(J124+J141+J158>Dx_Inputs!H687,-Dx_Inputs!H687,0) -> -1.034516968 | K175: =IF(K124+K141+K158>Dx_Inputs!I687,-Dx_Inputs!I687,0) -> 0 | L175: =IF(L124+L141+L158>Dx_Inputs!J687,-Dx_Inputs!J687,0) -> -0.08538045294 | M175: =IF(M124+M141+M158>Dx_Inputs!K687,-Dx_Inputs!K687,-(M124+M141+M158)) -> 0 | N175: =IF(N124+N141+N158>Dx_Inputs!L687,-Dx_Inputs!L687,-(N124+N141+N158)) -> 0 | O175: =IF(O124+O141+O158>Dx_Inputs!M687,-Dx_Inputs!M687,-(O124+O141+O158)) -> 0 | P175: =IF(P124+P141+P158>Dx_Inputs!N687,-Dx_Inputs!N687,-(P124+P141+P158)) -> 6.661338148e-16 | Q175: =IF(Q124+Q141+Q158>Dx_Inputs!O687,-Dx_Inputs!O687,-(Q124+Q141+Q158)) -> 0 | R175: =IF(R124+R141+R158>Dx_Inputs!P687,-Dx_Inputs!P687,-(R124+R141+R158)) -> 0 | S175: =IF(S124+S141+S158>Dx_Inputs!Q687,-Dx_Inputs!Q687,-(S124+S141+S158)) -> 0 | T175: =IF(T124+T141+T158>Dx_Inputs!R687,-Dx_Inputs!R687,-(T124+T141+T158)) -> 0 | U175: =IF(U124+U141+U158>Dx_Inputs!S687,-Dx_Inputs!S687,-(U124+U141+U158)) -> 0 | V175: =IF(V124+V141+V158>Dx_Inputs!T687,-Dx_Inputs!T687,-(V124+V141+V158)) -> 0
B176: SCADA & Communications | G176: =IF(G125+G142+G159>Dx_Inputs!E688,-Dx_Inputs!E688,0) -> 0 | H176: =IF(H125+H142+H159>Dx_Inputs!F688,-Dx_Inputs!F688,0) -> 0 | I176: =IF(I125+I142+I159>Dx_Inputs!G688,-Dx_Inputs!G688,0) -> 0 | J176: =IF(J125+J142+J159>Dx_Inputs!H688,-Dx_Inputs!H688,0) -> 0 | K176: =IF(K125+K142+K159>Dx_Inputs!I688,-Dx_Inputs!I688,0) -> 0 | L176: =IF(L125+L142+L159>Dx_Inputs!J688,-Dx_Inputs!J688,0) -> 0 | M176: =IF(M125+M142+M159>Dx_Inputs!K688,-Dx_Inputs!K688,-(M125+M142+M159)) -> 0 | N176: =IF(N125+N142+N159>Dx_Inputs!L688,-Dx_Inputs!L688,-(N125+N142+N159)) -> 0 | O176: =IF(O125+O142+O159>Dx_Inputs!M688,-Dx_Inputs!M688,-(O125+O142+O159)) -> 0 | P176: =IF(P125+P142+P159>Dx_Inputs!N688,-Dx_Inputs!N688,-(P125+P142+P159)) -> 0 | Q176: =IF(Q125+Q142+Q159>Dx_Inputs!O688,-Dx_Inputs!O688,-(Q125+Q142+Q159)) -> 1.554312234e-15 | R176: =IF(R125+R142+R159>Dx_Inputs!P688,-Dx_Inputs!P688,-(R125+R142+R159)) -> 0 | S176: =IF(S125+S142+S159>Dx_Inputs!Q688,-Dx_Inputs!Q688,-(S125+S142+S159)) -> 0 | T176: =IF(T125+T142+T159>Dx_Inputs!R688,-Dx_Inputs!R688,-(T125+T142+T159)) -> 0 | U176: =IF(U125+U142+U159>Dx_Inputs!S688,-Dx_Inputs!S688,-(U125+U142+U159)) -> 0 | V176: =IF(V125+V142+V159>Dx_Inputs!T688,-Dx_Inputs!T688,-(V125+V142+V159)) -> 0
B177: Other Distribution Non-Network | G177: =IF(G126+G143+G160>Dx_Inputs!E689,-Dx_Inputs!E689,0) -> 0 | H177: =IF(H126+H143+H160>Dx_Inputs!F689,-Dx_Inputs!F689,0) -> 0 | I177: =IF(I126+I143+I160>Dx_Inputs!G689,-Dx_Inputs!G689,0) -> 0 | J177: =IF(J126+J143+J160>Dx_Inputs!H689,-Dx_Inputs!H689,0) -> 0 | K177: =IF(K126+K143+K160>Dx_Inputs!I689,-Dx_Inputs!I689,0) -> 0 | L177: =IF(L126+L143+L160>Dx_Inputs!J689,-Dx_Inputs!J689,0) -> 0 | M177: =IF(M126+M143+M160>Dx_Inputs!K689,-Dx_Inputs!K689,-(M126+M143+M160)) -> -0.05527705456 | N177: =IF(N126+N143+N160>Dx_Inputs!L689,-Dx_Inputs!L689,-(N126+N143+N160)) -> 0 | O177: =IF(O126+O143+O160>Dx_Inputs!M689,-Dx_Inputs!M689,-(O126+O143+O160)) -> 0 | P177: =IF(P126+P143+P160>Dx_Inputs!N689,-Dx_Inputs!N689,-(P126+P143+P160)) -> -2.924411301 | Q177: =IF(Q126+Q143+Q160>Dx_Inputs!O689,-Dx_Inputs!O689,-(Q126+Q143+Q160)) -> 1.063829177 | R177: =IF(R126+R143+R160>Dx_Inputs!P689,-Dx_Inputs!P689,-(R126+R143+R160)) -> 0 | S177: =IF(S126+S143+S160>Dx_Inputs!Q689,-Dx_Inputs!Q689,-(S126+S143+S160)) -> 0 | T177: =IF(T126+T143+T160>Dx_Inputs!R689,-Dx_Inputs!R689,-(T126+T143+T160)) -> 0 | U177: =IF(U126+U143+U160>Dx_Inputs!S689,-Dx_Inputs!S689,-(U126+U143+U160)) -> 0 | V177: =IF(V126+V143+V160>Dx_Inputs!T689,-Dx_Inputs!T689,-(V126+V143+V160)) -> 0
B178: Distribution Land & Easements | G178: =IF(G127+G144+G161>Dx_Inputs!E690,-Dx_Inputs!E690,0) -> -0.2636949801 | H178: =IF(H127+H144+H161>Dx_Inputs!F690,-Dx_Inputs!F690,0) -> 0 | I178: =IF(I127+I144+I161>Dx_Inputs!G690,-Dx_Inputs!G690,0) -> 0 | J178: =IF(J127+J144+J161>Dx_Inputs!H690,-Dx_Inputs!H690,0) -> 0 | K178: =IF(K127+K144+K161>Dx_Inputs!I690,-Dx_Inputs!I690,0) -> -0.001219231876 | L178: =IF(L127+L144+L161>Dx_Inputs!J690,-Dx_Inputs!J690,0) -> -1.46989707 | M178: =IF(M127+M144+M161>Dx_Inputs!K690,-Dx_Inputs!K690,-(M127+M144+M161)) -> -0.9592111043 | N178: =IF(N127+N144+N161>Dx_Inputs!L690,-Dx_Inputs!L690,-(N127+N144+N161)) -> -0.03541608612 | O178: =IF(O127+O144+O161>Dx_Inputs!M690,-Dx_Inputs!M690,-(O127+O144+O161)) -> -3.990847184 | P178: =IF(P127+P144+P161>Dx_Inputs!N690,-Dx_Inputs!N690,-(P127+P144+P161)) -> 0 | Q178: =IF(Q127+Q144+Q161>Dx_Inputs!O690,-Dx_Inputs!O690,-(Q127+Q144+Q161)) -> -0.343110834 | R178: =IF(R127+R144+R161>Dx_Inputs!P690,-Dx_Inputs!P690,-(R127+R144+R161)) -> -0.7818615596 | S178: =IF(S127+S144+S161>Dx_Inputs!Q690,-Dx_Inputs!Q690,-(S127+S144+S161)) -> -0.6186300962 | T178: =IF(T127+T144+T161>Dx_Inputs!R690,-Dx_Inputs!R690,-(T127+T144+T161)) -> 0 | U178: =IF(U127+U144+U161>Dx_Inputs!S690,-Dx_Inputs!S690,-(U127+U144+U161)) -> -0.1143535512 | V178: =IF(V127+V144+V161>Dx_Inputs!T690,-Dx_Inputs!T690,-(V127+V144+V161)) -> -0.00144371
B179: Equity Raising Costs | G179: =IF(G128+G145+G162>Dx_Inputs!E691,-Dx_Inputs!E691,0) -> 0 | H179: =IF(H128+H145+H162>Dx_Inputs!F691,-Dx_Inputs!F691,0) -> 0 | I179: =IF(I128+I145+I162>Dx_Inputs!G691,-Dx_Inputs!G691,0) -> 0 | J179: =IF(J128+J145+J162>Dx_Inputs!H691,-Dx_Inputs!H691,0) -> 0 | K179: =IF(K128+K145+K162>Dx_Inputs!I691,-Dx_Inputs!I691,0) -> 0 | L179: =IF(L128+L145+L162>Dx_Inputs!J691,-Dx_Inputs!J691,0) -> 0 | M179: =IF(M128+M145+M162>Dx_Inputs!K691,-Dx_Inputs!K691,-(M128+M145+M162)) -> 0 | N179: =IF(N128+N145+N162>Dx_Inputs!L691,-Dx_Inputs!L691,-(N128+N145+N162)) -> 0 | O179: =IF(O128+O145+O162>Dx_Inputs!M691,-Dx_Inputs!M691,-(O128+O145+O162)) -> 0 | P179: =IF(P128+P145+P162>Dx_Inputs!N691,-Dx_Inputs!N691,-(P128+P145+P162)) -> 0 | Q179: =IF(Q128+Q145+Q162>Dx_Inputs!O691,-Dx_Inputs!O691,-(Q128+Q145+Q162)) -> 0 | R179: =IF(R128+R145+R162>Dx_Inputs!P691,-Dx_Inputs!P691,-(R128+R145+R162)) -> 0 | S179: =IF(S128+S145+S162>Dx_Inputs!Q691,-Dx_Inputs!Q691,-(S128+S145+S162)) -> 0 | T179: =IF(T128+T145+T162>Dx_Inputs!R691,-Dx_Inputs!R691,-(T128+T145+T162)) -> 0 | U179: =IF(U128+U145+U162>Dx_Inputs!S691,-Dx_Inputs!S691,-(U128+U145+U162)) -> 0 | V179: =IF(V128+V145+V162>Dx_Inputs!T691,-Dx_Inputs!T691,-(V128+V145+V162)) -> 0
B180: Standalone Power Systems | G180: =IF(G129+G146+G163>Dx_Inputs!E692,-Dx_Inputs!E692,0) -> 0 | H180: =IF(H129+H146+H163>Dx_Inputs!F692,-Dx_Inputs!F692,0) -> 0 | I180: =IF(I129+I146+I163>Dx_Inputs!G692,-Dx_Inputs!G692,0) -> 0 | J180: =IF(J129+J146+J163>Dx_Inputs!H692,-Dx_Inputs!H692,0) -> 0 | K180: =IF(K129+K146+K163>Dx_Inputs!I692,-Dx_Inputs!I692,0) -> 0 | L180: =IF(L129+L146+L163>Dx_Inputs!J692,-Dx_Inputs!J692,0) -> 0 | M180: =IF(M129+M146+M163>Dx_Inputs!K692,-Dx_Inputs!K692,-(M129+M146+M163)) -> 0 | N180: =IF(N129+N146+N163>Dx_Inputs!L692,-Dx_Inputs!L692,-(N129+N146+N163)) -> 0 | O180: =IF(O129+O146+O163>Dx_Inputs!M692,-Dx_Inputs!M692,-(O129+O146+O163)) -> 0 | P180: =IF(P129+P146+P163>Dx_Inputs!N692,-Dx_Inputs!N692,-(P129+P146+P163)) -> 0 | Q180: =IF(Q129+Q146+Q163>Dx_Inputs!O692,-Dx_Inputs!O692,-(Q129+Q146+Q163)) -> 0 | R180: =IF(R129+R146+R163>Dx_Inputs!P692,-Dx_Inputs!P692,-(R129+R146+R163)) -> 0 | S180: =IF(S129+S146+S163>Dx_Inputs!Q692,-Dx_Inputs!Q692,-(S129+S146+S163)) -> 0 | T180: =IF(T129+T146+T163>Dx_Inputs!R692,-Dx_Inputs!R692,-(T129+T146+T163)) -> 0 | U180: =IF(U129+U146+U163>Dx_Inputs!S692,-Dx_Inputs!S692,-(U129+U146+U163)) -> 0 | V180: =IF(V129+V146+V163>Dx_Inputs!T692,-Dx_Inputs!T692,-(V129+V146+V163)) -> 0
B181: Storage | G181: =IF(G130+G147+G164>Dx_Inputs!E693,-Dx_Inputs!E693,0) -> 0 | H181: =IF(H130+H147+H164>Dx_Inputs!F693,-Dx_Inputs!F693,0) -> 0 | I181: =IF(I130+I147+I164>Dx_Inputs!G693,-Dx_Inputs!G693,0) -> 0 | J181: =IF(J130+J147+J164>Dx_Inputs!H693,-Dx_Inputs!H693,0) -> 0 | K181: =IF(K130+K147+K164>Dx_Inputs!I693,-Dx_Inputs!I693,0) -> 0 | L181: =IF(L130+L147+L164>Dx_Inputs!J693,-Dx_Inputs!J693,0) -> 0 | M181: =IF(M130+M147+M164>Dx_Inputs!K693,-Dx_Inputs!K693,-(M130+M147+M164)) -> 0 | N181: =IF(N130+N147+N164>Dx_Inputs!L693,-Dx_Inputs!L693,-(N130+N147+N164)) -> 0 | O181: =IF(O130+O147+O164>Dx_Inputs!M693,-Dx_Inputs!M693,-(O130+O147+O164)) -> 0 | P181: =IF(P130+P147+P164>Dx_Inputs!N693,-Dx_Inputs!N693,-(P130+P147+P164)) -> 0 | Q181: =IF(Q130+Q147+Q164>Dx_Inputs!O693,-Dx_Inputs!O693,-(Q130+Q147+Q164)) -> 0 | R181: =IF(R130+R147+R164>Dx_Inputs!P693,-Dx_Inputs!P693,-(R130+R147+R164)) -> 0 | S181: =IF(S130+S147+S164>Dx_Inputs!Q693,-Dx_Inputs!Q693,-(S130+S147+S164)) -> 0 | T181: =IF(T130+T147+T164>Dx_Inputs!R693,-Dx_Inputs!R693,-(T130+T147+T164)) -> 0 | U181: =IF(U130+U147+U164>Dx_Inputs!S693,-Dx_Inputs!S693,-(U130+U147+U164)) -> 0 | V181: =IF(V130+V147+V164>Dx_Inputs!T693,-Dx_Inputs!T693,-(V130+V147+V164)) -> 0
B182: Total | G182: =SUM(G169:G181) -> -0.2636949801 | H182: =SUM(H169:H181) -> 0 | I182: 0 | J182: -1.034516968 | K182: -0.001219231876 | L182: -2.701738052 | M182: -1.014488159 | N182: -0.3255995014 | O182: -5.389782055 | P182: -3.072288169 | Q182: 0.7207183427 | R182: -0.8818721133 | S182: -0.6186300962 | T182: -0.273555351 | U182: -0.1143535512 | V182: -0.00144371
B184: Year ending 30 June | F184: 2006 | G184: 2007 | H184: 2008 | I184: 2009 | J184: 2010 | K184: 2011 | L184: 2012 | M184: 2013 | N184: 2014 | O184: 2015 | P184: 2016 | Q184: 2017 | R184: 2018 | S184: 2019 | T184: 2020 | U184: 2021 | V184: 2022 | W184: 2023 | X184: 2024 | Y184: 2025 | Z184: 2026 | AA184: 2027
B185: Closing balance | D185: Checks
B186: Wooden Pole Lines | D186: =IF(ROUND(SUM(F186,G135:AF135,G152:AF152,G169:AF169),8)>=0,"OK","CHECK") -> OK | F186: =Dx_Inputs!I61 -> 665.8246855 | G186: =SUM(G118,G135,G152,G169) -> 615.8533338 | H186: 566.3548404 | I186: 517.2258183 | J186: 468.4996932 | K186: 420.2150179 | L186: 371.2661114 | M186: 324.47396 | N186: 280.5029416 | O186: 235.9050645 | P186: 192.5582453 | Q186: 149.359303 | R186: 102.953001 | S186: 56.93049705 | T186: 15.09812499 | U186: 0 | V186: 0 | W186: 0 | X186: 0 | Y186: 0 | Z186: 0 | AA186: 0
B187: Underground Cables | D187: =IF(ROUND(SUM(F187,G136:AF136,G153:AF153,G170:AF170),8)>=0,"OK","CHECK") -> OK | F187: =Dx_Inputs!I62 -> 754.0399778 | G187: =SUM(G119,G136,G153,G170) -> 733.60529 | H187: =SUM(H119,H136,H153,H170) -> 713.1706023 | I187: 692.7359145 | J187: 672.3012268 | K187: 651.8665391 | L187: 631.4318513 | M187: 610.9971636 | N187: 590.5624758 | O187: 570.1277881 | P187: 549.6931003 | Q187: 529.2584126 | R187: 508.8237248 | S187: 488.3890371 | T187: 467.9543494 | U187: 447.5196616 | V187: 427.0849739 | W187: =SUM(W119,W136,W153,W170) -> 406.6502861 | X187: 386.2155984 | Y187: 365.7809106 | Z187: 345.3462229 | AA187: 324.9115351
B188: Transformers | D188: OK | F188: =Dx_Inputs!I63 -> 287.0751673 | G188: 269.0077369 | H188: =SUM(H120,H137,H154,H171) -> 251.0544145 | I188: 233.1861486 | J188: 215.4101755 | K188: 197.7342038 | L188: 180.1660745 | M188: 162.8067341 | N188: 146.2502387 | O188: 129.8176276 | P188: 113.3850165 | Q188: 96.95240542 | R188: 80.05808848 | S188: 62.23541528 | T188: 45.51507944 | U188: 29.82022446 | V188: 14.12536948 | W188: =SUM(W120,W137,W154,W171) -> 0 | X188: 0 | Y188: 0 | Z188: 0 | AA188: 0
B189: Switchgear | D189: OK | F189: =Dx_Inputs!I64 -> 153.0141515 | G189: 141.4092413 | H189: =SUM(H121,H138,H155,H172) -> 129.8374898 | I189: 118.2922245 | J189: 106.7763006 | K189: 95.29231287 | L189: 83.84350012 | M189: 72.45678108 | N189: 61.28174131 | O189: 50.13960652 | P189: 38.99747174 | Q189: 27.85533696 | R189: 16.43767252 | S189: 4.905836706 | T189: 0 | U189: 0 | V189: 0 | W189: =SUM(W121,W138,W155,W172) -> 0 | X189: 0 | Y189: 0 | Z189: 0 | AA189: 0
B190: Street lighting | D190: OK | F190: =Dx_Inputs!I65 -> 7.405684605 | G190: 1.234280768 | H190: =SUM(H122,H139,H156,H173) -> -1.33226763e-15 | I190: -1.33226763e-15 | J190: -1.33226763e-15 | K190: -1.33226763e-15 | L190: -1.33226763e-15 | M190: 0 | N190: 0 | O190: 0 | P190: 0 | Q190: 0 | R190: 0 | S190: 0 | T190: 0 | U190: 0 | V190: 0 | W190: =SUM(W122,W139,W156,W173) -> 0 | X190: 0 | Y190: 0 | Z190: 0 | AA190: 0
B191: Meters and Services | D191: OK | F191: =Dx_Inputs!I66 -> 236.9814636 | G191: 211.2226089 | H191: =SUM(H123,H140,H157,H174) -> 185.4637542 | I191: 159.7048994 | J191: 133.9460447 | K191: 108.1871899 | L191: 82.42833518 | M191: 56.66948043 | N191: 30.91062569 | O191: 5.151770949 | P191: 6.30606678e-14 | Q191: 6.30606678e-14 | R191: 0 | S191: 0 | T191: 0 | U191: 0 | V191: 0 | W191: =SUM(W123,W140,W157,W174) -> 0 | X191: 0 | Y191: 0 | Z191: 0 | AA191: 0
B192: IT | D192: OK | F192: =Dx_Inputs!I67 -> 21.71750966 | G192: 19.50143725 | H192: =SUM(H124,H141,H158,H175) -> 17.28536484 | I192: 15.06929242 | J192: 11.81870304 | K192: 9.602630623 | L192: 7.301177755 | M192: 5.379815188 | N192: 3.458452621 | O192: 1.537090054 | P192: 0 | Q192: 0 | R192: 0 | S192: 0 | T192: 0 | U192: 0 | V192: 0 | W192: =SUM(W124,W141,W158,W175) -> 0 | X192: 0 | Y192: 0 | Z192: 0 | AA192: 0
B193: SCADA & Communications | D193: OK | F193: =Dx_Inputs!I68 -> 18.06912664 | G193: 16.29764364 | H193: =SUM(H125,H142,H159,H176) -> 14.52616063 | I193: 12.75467763 | J193: 10.98319462 | K193: 9.21171162 | L193: 7.440228616 | M193: 5.668745612 | N193: 3.897262609 | O193: 2.125779605 | P193: 0.3542966008 | Q193: 0 | R193: 0 | S193: 0 | T193: 0 | U193: 0 | V193: 0 | W193: =SUM(W125,W142,W159,W176) -> 0 | X193: 0 | Y193: 0 | Z193: 0 | AA193: 0
B194: Other Distribution Non-Network | D194: OK | F194: =Dx_Inputs!I69 -> 72.16402906 | G194: 65.7778318 | H194: =SUM(H126,H143,H160,H177) -> 59.39163454 | I194: 53.00543727 | J194: 46.61924001 | K194: 40.23304275 | L194: 33.84684549 | M194: 27.40537117 | N194: 21.01917391 | O194: 14.63297665 | P194: 5.322368085 | Q194: 0 | R194: 0 | S194: 0 | T194: 0 | U194: 0 | V194: 0 | W194: =SUM(W126,W143,W160,W177) -> 0 | X194: 0 | Y194: 0 | Z194: 0 | AA194: 0
B195: Distribution Land & Easements | D195: OK | F195: =Dx_Inputs!I70 -> 30.17624154 | G195: 29.91254656 | H195: =SUM(H127,H144,H161,H178) -> 29.91254656 | I195: 29.91254656 | J195: 29.91254656 | K195: 29.91132732 | L195: 28.44143025 | M195: 27.48221915 | N195: 27.44680306 | O195: 23.45595588 | P195: 23.45595588 | Q195: 23.11284505 | R195: 22.33098349 | S195: 21.71235339 | T195: 21.71235339 | U195: 21.59799984 | V195: 21.59655613 | W195: =SUM(W127,W144,W161,W178) -> 21.59655613 | X195: 21.59655613 | Y195: 21.59655613 | Z195: 21.59655613 | AA195: 21.59655613
B196: Equity Raising Costs | D196: OK | F196: =Dx_Inputs!I71 -> 0 | G196: 0 | H196: =SUM(H128,H145,H162,H179) -> 0 | I196: 0 | J196: 0 | K196: 0 | L196: 0 | M196: 0 | N196: 0 | O196: 0 | P196: 0 | Q196: 0 | R196: 0 | S196: 0 | T196: 0 | U196: 0 | V196: 0 | W196: =SUM(W128,W145,W162,W179) -> 0 | X196: 0 | Y196: 0 | Z196: 0 | AA196: 0
B197: Standalone Power Systems | D197: OK | F197: =Dx_Inputs!I72 -> 0 | G197: 0 | H197: =SUM(H129,H146,H163,H180) -> 0 | I197: 0 | J197: 0 | K197: 0 | L197: 0 | M197: 0 | N197: 0 | O197: 0 | P197: 0 | Q197: 0 | R197: 0 | S197: 0 | T197: 0 | U197: 0 | V197: 0 | W197: 0 | X197: 0 | Y197: 0 | Z197: 0 | AA197: 0
B198: Storage | D198: OK | F198: =Dx_Inputs!I73 -> 0 | G198: =SUM(G130,G147,G164,G181) -> 0 | H198: 0 | I198: 0 | J198: 0 | K198: 0 | L198: 0 | M198: 0 | N198: 0 | O198: 0 | P198: 0 | Q198: 0 | R198: 0 | S198: 0 | T198: 0 | U198: 0 | V198: 0 | W198: 0 | X198: 0 | Y198: 0 | Z198: 0 | AA198: 0
B199: Total | F199: =SUM(F186:F198) -> 2246.468037 | G199: =SUM(G186:G198) -> 2103.821951 | H199: 1966.996808 | I199: 1831.886959 | J199: 1696.267125 | K199: 1562.253976 | L199: 1426.165555 | M199: 1293.34027 | N199: 1165.329715 | O199: 1032.89366 | P199: 923.7664544 | Q199: 826.538303 | R199: 730.6034703 | S199: 634.1731395 | T199: 550.2799072 | U199: 498.9378859 | V199: 462.8068995 | W199: 428.2468422 | X199: 407.8121545 | Y199: 387.3774668 | Z199: 366.942779 | AA199: 346.5080913
B201: Capital expenditure [$M real as at 30 June 2022]
B202: Year ending 30 June | F202: 2006 | G202: 2007 | H202: 2008 | I202: 2009 | J202: 2010 | K202: 2011 | L202: 2012 | M202: 2013 | N202: 2014 | O202: 2015 | P202: 2016 | Q202: 2017 | R202: 2018 | S202: 2019 | T202: 2020 | U202: 2021 | V202: 2022 | W202: 2023 | X202: 2024 | Y202: 2025 | Z202: 2026 | AA202: 2027 | AB202: 2028 | AC202: 2029 | AD202: 2030 | AE202: 2031 | AF202: 2032
B203: Opening balance
B204: Wooden Pole Lines | G204: =F272 -> 0 | H204: =G272 -> 110.618564 | I204: 244.221163 | J204: 429.4926212 | K204: 595.5750058 | L204: 749.0846978 | M204: 991.6897651 | N204: 1328.250899 | O204: 1720.86829 | P204: 2011.77536 | Q204: 2193.815687 | R204: 2250.163712 | S204: 2372.70131 | T204: 2504.995572 | U204: 2647.012689 | V204: 2806.137813 | W204: 2925.071507 | X204: 3000.525303 | Y204: 3094.233963 | Z204: 3185.009584 | AA204: 3268.51826
B205: Underground Cables | G205: =F273 -> 0 | H205: 211.252956 | I205: 411.8281851 | J205: 684.6967505 | K205: 832.7705629 | L205: 961.9155034 | M205: 1060.561352 | N205: 1124.046696 | O205: 1167.132926 | P205: 1208.160227 | Q205: 1245.270819 | R205: 1276.878131 | S205: 1268.939502 | T205: 1271.554133 | U205: 1284.1814 | V205: 1301.032334 | W205: 1287.565963 | X205: 1396.18548 | Y205: 1506.113447 | Z205: 1623.090623 | AA205: 1742.745749
B206: Transformers | G206: =F274 -> 0 | H206: 68.92337912 | I206: 134.5991924 | J206: 228.4640491 | K206: 278.5690218 | L206: 326.1232029 | M206: 368.2784533 | N206: 501.1006743 | O206: 613.0547898 | P206: 734.3610353 | Q206: 835.5139263 | R206: 905.8988609 | S206: 888.3507219 | T206: 873.2663333 | U206: 856.4183587 | V206: 835.5941756 | W206: 810.0017156 | X206: 793.4231229 | Y206: 776.7193219 | Z206: 759.9894834 | AA206: 742.9648568
B207: Switchgear | G207: 0 | H207: 53.15220685 | I207: 113.4628287 | J207: 199.2734765 | K207: 253.1355522 | L207: 304.9283603 | M207: 368.8319591 | N207: 437.6763455 | O207: 500.3488173 | P207: 563.3647379 | Q207: 608.431372 | R207: 637.2425059 | S207: 621.2623174 | T207: 608.114686 | U207: 595.0337104 | V207: 580.995505 | W207: 560.4941805 | X207: 562.5834643 | Y207: 565.6148494 | Z207: 568.4837511 | AA207: 569.9027672
B208: Street lighting | G208: 0 | H208: 20.80915789 | I208: 40.7178275 | J208: 69.61672038 | K208: 83.01081275 | L208: 95.94298256 | M208: 105.3892632 | N208: 105.0441742 | O208: 104.0210986 | P208: 103.9733633 | Q208: 103.7291228 | R208: 101.8782163 | S208: 105.5364149 | T208: 112.1282575 | U208: 118.7711734 | V208: 126.6617842 | W208: 131.2987921 | X208: 131.942601 | Y208: 132.760321 | Z208: 133.2116873 | AA208: 132.6826005
B209: Meters and Services | G209: 0 | H209: 13.1484071 | I209: 27.56237246 | J209: 43.26411157 | K209: 55.53494079 | L209: 72.50958356 | M209: 89.47344498 | N209: 98.96221051 | O209: 104.3938941 | P209: 109.9830079 | Q209: 125.1423641 | R209: 135.4068201 | S209: 141.5633713 | T209: 156.7775654 | U209: 174.9639626 | V209: 180.3319708 | W209: 179.3838633 | X209: 226.8459741 | Y209: 267.4446637 | Z209: 311.4307679 | AA209: 342.5344107
B210: IT | G210: 0 | H210: 22.04792233 | I210: 59.62715655 | J210: 79.10789256 | K210: 87.16633703 | L210: 103.2063569 | M210: 124.6438271 | N210: 130.5037822 | O210: 124.0627031 | P210: 120.8470038 | Q210: 105.4522334 | R210: 107.0247367 | S210: 108.1279713 | T210: 109.8222771 | U210: 110.7560596 | V210: 106.2284543 | W210: 110.746343 | X210: 122.3268599 | Y210: 133.2532794 | Z210: 137.0258988 | AA210: 142.9007962
B211: SCADA & Communications | G211: 0 | H211: 2.841279779 | I211: 5.338238669 | J211: 7.562890828 | K211: 11.01967451 | L211: 13.49265891 | M211: 17.09320126 | N211: 18.92220118 | O211: 19.18839171 | P211: 17.62951527 | Q211: 15.24681139 | R211: 12.97422544 | S211: 19.40381483 | T211: 23.08242942 | U211: 36.99613573 | V211: 52.99344547 | W211: 66.12434765 | X211: 84.01895793 | Y211: 106.7200708 | Z211: 127.8410859 | AA211: 148.2444522
... 461 more rows

Sheet Dx_Tax_Asset
B1: Validation status | C1: =IF(COUNTIF(M11:AF11,"CHECK")+COUNTIF(D186:D198,"CHECK")+COUNTIF(E317:E689,"CHECK")>0,"CHECK","OK") -> OK
B2: Distribution calculations
B3: Year ending 30 June | F3: 2006 | G3: 2007 | H3: 2008 | I3: 2009 | J3: 2010 | K3: 2011 | L3: 2012 | M3: 2013 | N3: 2014 | O3: 2015 | P3: 2016 | Q3: 2017 | R3: 2018 | S3: 2019 | T3: 2020 | U3: 2021 | V3: 2022 | W3: 2023 | X3: 2024 | Y3: 2025 | Z3: 2026 | AA3: 2027
B4: Total Dx TAB value [$M nominal]
B5: Opening balance | M5: =L10 -> 3127.69238 | N5: 3667.466852 | O5: 4178.603365 | P5: 4617.021714 | Q5: 4915.943423 | R5: 5068.680953 | S5: 5161.591676 | T5: 5291.277908 | U5: 5467.919195 | V5: 5641.921587 | W5: 5806.432618 | X5: 6090.797179 | Y5: 6414.918659 | Z5: 6772.566389 | AA5: 7078.98354
B6: Capital expenditure | M6: =M45 -> 630.1253683 | N6: 642.3267112 | O6: 600.3744449 | P6: 488.6057826 | Q6: 357.433 | R6: 315.9652392 | S6: 369.7568616 | T6: 430.341397 | U6: 447.3300941 | V6: 452.9089058 | W6: 599.2703657 | X6: 666.1605214 | Y6: 733.0596418 | Z6: 716.3710767 | AA6: 768.5413678
B7: Disposals | M7: =M62 -> -0.86199603 | N7: -0.285 | O7: -4.789 | P7: -2.757763012 | Q7: -0.6179830525 | R7: -1.443 | S7: -0.587 | T7: -0.596 | U7: -1.612 | V7: -0.20899336 | W7: 0 | X7: 0 | Y7: 0 | Z7: 0 | AA7: 0
B8: Depreciation | M8: =M79 -> -85.96124891 | N8: -130.4177799 | O8: -157.1670956 | P8: -186.9263104 | Q8: -204.0774872 | R8: -217.5304889 | S8: -232.937391 | T8: -248.974178 | U8: -271.7157019 | V8: -288.1888814 | W8: =W79 -> -314.9058048 | X8: -342.039041 | Y8: -375.4119115 | Z8: -409.9539257 | AA8: -436.8503316
B9: Accelerated depreciation | M9: =M165 -> -3.527651643 | N9: -0.487418768 | O9: 0 | P9: 0 | Q9: 0 | R9: -4.081026632 | S9: -6.546239149 | T9: -4.129932052 | U9: 0 | V9: 0 | W9: 0 | X9: 0 | Y9: 0 | Z9: 0 | AA9: 0
B10: Closing balance | L10: =L199 -> 3127.69238 | M10: =SUM(M5:M9) -> 3667.466852 | N10: 4178.603365 | O10: 4617.021714 | P10: 4915.943423 | Q10: 5068.680953 | R10: 5161.591676 | S10: 5291.277908 | T10: 5467.919195 | U10: 5641.921587 | V10: 5806.432618 | W10: 6090.797179 | X10: 6414.918659 | Y10: 6772.566389 | Z10: 7078.98354 | AA10: 7410.674577
M11: =IF(ROUND(M113-M10,8)=0,"OK","CHECK") -> OK | N11: OK | O11: OK | P11: OK | Q11: OK | R11: OK | S11: OK | T11: OK | U11: OK | V11: OK | W11: OK | X11: OK | Y11: OK | Z11: OK | AA11: OK
B12: Breakdown by asset categories [$M nominal]
B13: Year ending 30 June | F13: 2006 | G13: 2007 | H13: 2008 | I13: 2009 | J13: 2010 | K13: 2011 | L13: 2012 | M13: 2013 | N13: 2014 | O13: 2015 | P13: 2016 | Q13: 2017 | R13: 2018 | S13: 2019 | T13: 2020 | U13: 2021 | V13: 2022 | W13: 2023 | X13: 2024 | Y13: 2025 | Z13: 2026 | AA13: 2027
B14: Opening balance
B15: Wooden Pole Lines | M15: =L100 -> 2747.935154 | N15: 2994.356195 | O15: 3292.8427 | P15: 3498.190705 | Q15: 3606.189309 | R15: 3604.487165 | S15: 3663.620014 | T15: 3733.56988 | U15: 3811.515836 | V15: 3915.733136 | W15: 3980.89996 | X15: =W100 -> 4008.390451 | Y15: 4060.5663 | Z15: 4115.335833 | AA15: 4168.028355
B16: Underground Cables | M16: =L101 -> 110.2319941 | N16: 179.4990142 | O16: 229.7371471 | P16: 278.1400787 | Q16: 322.8160004 | R16: 362.8928375 | S16: 365.2161835 | T16: 378.6545948 | U16: 401.9521539 | V16: 430.7631055 | W16: 429.6434749 | X16: 552.7120244 | Y16: 678.6480645 | Z16: 814.0119676 | AA16: 954.4224695
B17: Transformers | M17: 32.22184132 | N17: 153.9053484 | O17: 258.5284966 | P17: 371.5951349 | Q17: 465.791876 | R17: 532.7271589 | S17: 517.4592928 | T17: 506.8868379 | U17: 498.3387376 | V17: 490.3709038 | W17: 481.0893701 | X17: 472.237488 | Y17: 464.5356743 | Z17: 458.0747775 | AA17: 452.542694
B18: Switchgear | M18: 25.6890398 | N18: 93.46223398 | O18: 154.7566666 | P18: 215.1781421 | Q18: 258.0606484 | R18: 286.0037135 | S18: 272.2332767 | T18: 263.0134263 | U18: 256.2757245 | V18: 250.767514 | W18: 240.6961906 | X18: 249.8747543 | Y18: 260.8566994 | Z18: 272.4915422 | AA18: 283.3687559
B19: Street lighting | M19: 35.1250608 | N19: 37.92311141 | O19: 39.20352392 | P19: 41.14386387 | Q19: 42.57013161 | R19: 42.31108532 | S19: 47.47569448 | T19: 54.75144968 | U19: 60.92964065 | V19: 67.92473855 | W19: 70.90367935 | X19: 72.30117385 | Y19: 74.34127725 | Z19: 76.45021091 | AA19: 79.83551787
B20: Meters and Services | M20: 3.246493062 | N20: 14.64795901 | O20: 22.44482288 | P20: 32.45883396 | Q20: 53.02987157 | R20: 70.26423491 | S20: 78.68342794 | T20: 96.43448831 | U20: 117.1080551 | V20: 126.6383737 | W20: 131.5108578 | X20: 185.9146102 | Y20: 235.0542117 | Z20: 290.2351541 | AA20: 333.7807891
B21: IT | M21: 31.47250339 | N21: 48.31992562 | O21: 44.28630381 | P21: 46.00712352 | Q21: 34.98395044 | R21: 44.86143302 | S21: 47.59395815 | T21: 52.46023241 | U21: 57.89550259 | V21: 59.4305013 | W21: 67.55476889 | X21: 73.85070363 | Y21: 78.02483229 | Z21: 79.56275002 | AA21: 86.72862173
B22: SCADA & Communications | M22: 15.86631549 | N22: 17.21336342 | O22: 17.08963369 | P22: 16.97425718 | Q22: 17.92557518 | R22: 19.82169978 | S22: 21.92288617 | T22: 23.75763041 | U22: 34.74306165 | V22: 46.08799436 | W22: 52.48833778 | X22: 68.00760246 | Y22: 89.48649266 | Z22: 109.5486042 | AA22: 129.6898605
B23: Other Distribution Non-Network | M23: 107.6731485 | N23: 107.4330772 | O23: 97.66634887 | P23: 98.57906766 | Q23: 96.98994553 | R23: 89.96486629 | S23: 117.170236 | T23: 133.4104942 | U23: 159.7247369 | V23: 152.0120163 | W23: 192.9979241 | X23: 201.9608426 | Y23: 220.4603041 | Z23: 259.0391009 | AA23: 254.0598087
B24: Distribution Land & Easements | M24: 18.23082961 | N24: 17.4158017 | O24: 17.3848017 | P24: 13.8388017 | Q24: 13.8388017 | R24: 13.52486129 | S24: 19.48740808 | T24: 29.87120808 | U24: 45.50400808 | V24: 50.43701394 | W24: 76.47557023 | X24: 76.47557023 | Y24: 76.47557023 | Z24: 76.47557023 | AA24: 76.47557023
B25: Equity Raising Costs | M25: 0 | N25: 3.290821579 | O25: 4.662919662 | P25: 4.915704917 | Q25: 3.747313622 | R25: 1.821897697 | S25: 0.7447185157 | T25: 0.1723443851 | U25: -6.661338148e-16 | V25: -6.661338148e-16 | W25: -6.661338148e-16 | X25: -6.661338148e-16 | Y25: -6.661338148e-16 | Z25: -6.661338148e-16 | AA25: -6.661338148e-16
B26: Standalone Power Systems | M26: =L111 -> 0 | N26: =M111 -> 0 | O26: =N111 -> 0 | P26: =O111 -> 0 | Q26: =P111 -> 0 | R26: =Q111 -> 0 | S26: =R111 -> 8.308569228 | T26: =S111 -> 15.85362745 | U26: =T111 -> 20.3720756 | V26: =U111 -> 48.13636151 | W26: =V111 -> 77.45812934 | X26: =W111 -> 125.2975541 | Y26: =X111 -> 173.4451889 | Z26: =Y111 -> 218.9159588 | AA26: =Z111 -> 258.1057354
B27: Storage | M27: 0 | N27: 0 | O27: 0 | P27: 0 | Q27: 0 | R27: 0 | S27: 1.676011107 | T27: 2.441693548 | U27: 3.559662224 | V27: 3.619928162 | W27: 4.714354372 | X27: 3.774404344 | Y27: 3.024043996 | Z27: 2.424920288 | AA27: 1.945362329
B28: Total | M28: =SUM(M15:M27) -> 3127.69238 | N28: =SUM(N15:N27) -> 3667.466852 | O28: 4178.603365 | P28: 4617.021714 | Q28: 4915.943423 | R28: 5068.680953 | S28: 5161.591676 | T28: 5291.277908 | U28: 5467.919195 | V28: 5641.921587 | W28: 5806.432618 | X28: 6090.797179 | Y28: 6414.918659 | Z28: 6772.566389 | AA28: 7078.98354
B30: Year ending 30 June | F30: 2006 | G30: 2007 | H30: 2008 | I30: 2009 | J30: 2010 | K30: 2011 | L30: 2012 | M30: 2013 | N30: 2014 | O30: 2015 | P30: 2016 | Q30: 2017 | R30: 2018 | S30: 2019 | T30: 2020 | U30: 2021 | V30: 2022 | W30: 2023 | X30: 2024 | Y30: 2025 | Z30: 2026 | AA30: 2027
B31: Capital expenditure
B32: Wooden Pole Lines | M32: =M221 -> 307.6323587 | N32: 372.5195116 | O32: 295.0871513 | P32: 208.1451271 | Q32: 105.0464079 | R32: 171.8657799 | S32: 189.1479262 | T32: 202.1050298 | U32: 230.9102399 | V32: 199.273361 | W32: 166.8691716 | X32: 195.3504967 | Y32: 202.8372738 | Z32: 205.7686318 | AA32: 220.5802332
B33: Underground Cables | M33: =M222 -> 69.71205692 | N33: 55.20467582 | O33: 55.43454741 | P33: 53.722517 | Q33: 50.9775351 | R33: 14.91195654 | S33: 26.20479464 | T33: 36.68631782 | U33: 43.21645175 | V33: 14.52314659 | W33: 138.7513804 | X33: 146.6264521 | Y33: 161.1765957 | Z33: 171.7225895 | AA33: 192.5918505
B34: Transformers | M34: 122.5480783 | N34: 111.6438702 | O34: 125.2541628 | P34: 112.0742557 | Q34: 89.55495697 | R34: 11.1685509 | S34: 16.13804637 | T34: 17.05557763 | U34: 16.56221126 | V34: 14.88886853 | W34: 14.89319216 | X34: 15.63941539 | Y34: 16.53399028 | Z34: 17.17850759 | AA34: 18.60806016
B35: Switchgear | M35: 68.1170679 | N35: 66.70591912 | O35: 69.94064594 | P35: 56.48263821 | Q35: 44.45023955 | R35: 4.911871814 | S35: 8.903233435 | T35: 10.65518218 | U35: 11.17556705 | V35: 6.300160506 | W35: 24.93354633 | X35: 27.40375226 | Y35: 28.84370008 | Z35: 28.91664744 | AA35: 31.42181265
B36: Street lighting | M36: 4.893438222 | N36: 4.679023215 | O36: 5.836015557 | P36: 5.932678774 | Q36: 4.77386046 | R36: 10.51953336 | S36: 13.6758509 | T36: 13.90494432 | U36: 15.90216699 | V36: 13.17524656 | W36: 12.34754932 | X36: 13.53304777 | Y36: 14.23044876 | Z36: 14.2824583 | AA36: 15.4928314
B37: Meters and Services | M37: 11.40865 | N37: 8.83785 | O37: 11.68715 | P37: 23.055 | Q37: 21.373 | R37: 13.94657328 | S37: 23.96197059 | T37: 28.3145564 | U37: 18.83518801 | V37: 14.94977363 | W37: 64.88083505 | X37: 63.97897898 | Y37: 73.96148255 | Z37: 66.75064495 | AA37: 62.69986568
B38: IT | M38: 18.72 | N38: 13.033 | O38: 20.512 | P38: 12.401 | Q38: 30.948 | R38: 26.45570815 | S38: 29.94525333 | T38: 32.44044889 | U38: 32.417 | V38: 39.493 | W38: 41.94489751 | X38: 43.12700853 | Y38: 42.57639638 | Z38: 49.41555922 | AA38: 47.60555933
B39: SCADA & Communications | M39: 3.34735 | N39: 2.70515 | O39: 2.67785 | P39: 3.702 | Q39: 5.064 | R39: 5.910285023 | S39: 6.326078455 | T39: 16.10571262 | U39: 18.92429865 | V39: 16.51069422 | W39: 26.9973165 | X39: 35.37087396 | Y39: 38.24694207 | Z39: 42.44847637 | AA39: 46.65403576
B40: Other Distribution Non-Network | M40: 18.26166567 | N40: 2.517 | O40: 10.415 | P40: 11.76074797 | Q40: 5.245 | R40: 39.59759988 | S40: 34.72915557 | T40: 49.20225491 | U40: 23.08891607 | V40: 70.19629352 | W40: 49.48238061 | X40: 60.27199992 | Y40: 86.05033206 | Z40: 51.5035643 | AA40: 57.91908171
B41: Distribution Land & Easements | M41: 0 | N41: 0 | O41: 0 | P41: 0 | Q41: 0 | R41: 6.6928 | S41: 10.9708 | T41: 15.6328 | U41: 5.045293325 | V41: 26.04 | W41: 0 | X41: 0 | Y41: 0 | Z41: 0 | AA41: 0
B42: Equity Raising Costs | M42: 5.484702631 | N42: 4.480711191 | O42: 3.529921867 | P42: 1.329817786 | Q42: 0 | R42: 0 | S42: 0 | T42: 0 | U42: 0 | V42: 0 | W42: 0 | X42: 0 | Y42: 0 | Z42: 0 | AA42: 0
B43: Standalone Power Systems | M43: =M232 -> 0 | N43: 0 | O43: 0 | P43: 0 | Q43: 0 | R43: 8.308569228 | S43: 8.652867452 | T43: 6.632265141 | U43: 30.48056266 | V43: 35.73994937 | W43: 58.16717536 | X43: 64.85397535 | Y43: 68.59679506 | Z43: 68.37857113 | AA43: 74.96202182
B44: Storage | M44: =M233 -> 0 | N44: 0 | O44: 0 | P44: 0 | Q44: 0 | R44: 1.676011107 | S44: 1.100884662 | T44: 1.606307386 | U44: 0.772198383 | V44: 1.818411842 | W44: 0.00292084706 | X44: 0.004520520919 | Y44: 0.005685090936 | Z44: 0.005426098486 | AA44: 0.006015571551
B45: Total | M45: =SUM(M32:M44) -> 630.1253683 | N45: =SUM(N32:N44) -> 642.3267112 | O45: 600.3744449 | P45: 488.6057826 | Q45: 357.433 | R45: 315.9652392 | S45: 369.7568616 | T45: 430.341397 | U45: 447.3300941 | V45: 452.9089058 | W45: 599.2703657 | X45: 666.1605214 | Y45: 733.0596418 | Z45: 716.3710767 | AA45: 768.5413678
B47: Year ending 30 June | F47: 2006 | G47: 2007 | H47: 2008 | I47: 2009 | J47: 2010 | K47: 2011 | L47: 2012 | M47: 2013 | N47: 2014 | O47: 2015 | P47: 2016 | Q47: 2017 | R47: 2018 | S47: 2019 | T47: 2020 | U47: 2021 | V47: 2022 | W47: 2023 | X47: 2024 | Y47: 2025 | Z47: 2026 | AA47: 2027
B48: Disposals/Redundant assets
B49: Wooden Pole Lines | M49: =SUM(M169,M255) -> 0 | N49: -0.254 | O49: -1.243 | P49: -0.13273799 | Q49: 0 | R49: -0.09340915512 | S49: 0 | T49: -0.596 | U49: 0 | V49: -0.20754965 | W49: 0 | X49: 0 | Y49: 0 | Z49: 0 | AA49: 0
B50: Underground Cables | M50: =SUM(M170,M256) -> 0 | N50: 0 | O50: 0 | P50: 0 | Q50: 0 | R50: 0 | S50: 0 | T50: 0 | U50: 0 | V50: 0 | W50: =SUM(W170,W256) -> 0 | X50: 0 | Y50: 0 | Z50: 0 | AA50: 0
B51: Transformers | M51: =SUM(M171,M257) -> 0 | N51: 0 | O51: 0 | P51: 0 | Q51: 0 | R51: 0 | S51: 0 | T51: 0 | U51: 0 | V51: 0 | W51: =SUM(W171,W257) -> 0 | X51: 0 | Y51: 0 | Z51: 0 | AA51: 0
B52: Switchgear | M52: =SUM(M172,M258) -> 0 | N52: 0 | O52: 0 | P52: 0 | Q52: 0 | R52: 0 | S52: 0 | T52: 0 | U52: 0 | V52: 0 | W52: =SUM(W172,W258) -> 0 | X52: 0 | Y52: 0 | Z52: 0 | AA52: 0
B53: Street lighting | M53: =SUM(M173,M259) -> 0 | N53: 0 | O53: 0 | P53: 0 | Q53: 0 | R53: 0 | S53: 0 | T53: 0 | U53: 0 | V53: 0 | W53: =SUM(W173,W259) -> 0 | X53: 0 | Y53: 0 | Z53: 0 | AA53: 0
B54: Meters and Services | M54: =SUM(M174,M260) -> 0 | N54: 0 | O54: 0 | P54: 0 | Q54: 0 | R54: 0 | S54: 0 | T54: 0 | U54: 0 | V54: 0 | W54: =SUM(W174,W260) -> 0 | X54: 0 | Y54: 0 | Z54: 0 | AA54: 0
B55: IT | M55: =SUM(M175,M261) -> 0 | N55: 0 | O55: 0 | P55: 0 | Q55: 0 | R55: 0 | S55: 0 | T55: 0 | U55: 0 | V55: 0 | W55: =SUM(W175,W261) -> 0 | X55: 0 | Y55: 0 | Z55: 0 | AA55: 0
B56: SCADA & Communications | M56: =SUM(M176,M262) -> 0 | N56: 0 | O56: 0 | P56: 0 | Q56: 0 | R56: 0 | S56: 0 | T56: 0 | U56: 0 | V56: 0 | W56: =SUM(W176,W262) -> 0 | X56: 0 | Y56: 0 | Z56: 0 | AA56: 0
B57: Other Distribution Non-Network | M57: =SUM(M177,M263) -> -0.04696812 | N57: 0 | O57: 0 | P57: -2.625025022 | Q57: -0.3040426425 | R57: -0.6193376366 | S57: 0 | T57: 0 | U57: -1.499712538 | V57: 0 | W57: =SUM(W177,W263) -> 0 | X57: 0 | Y57: 0 | Z57: 0 | AA57: 0
B58: Distribution Land & Easements | M58: =SUM(M178,M264) -> -0.81502791 | N58: -0.031 | O58: -3.546 | P58: 0 | Q58: -0.31394041 | R58: -0.7302532082 | S58: -0.587 | T58: 0 | U58: -0.1122874619 | V58: -0.00144371 | W58: =SUM(W178,W264) -> 0 | X58: 0 | Y58: 0 | Z58: 0 | AA58: 0
B59: Equity Raising Costs | M59: =SUM(M179,M265) -> 0 | N59: 0 | O59: 0 | P59: 0 | Q59: 0 | R59: 0 | S59: 0 | T59: 0 | U59: 0 | V59: 0 | W59: =SUM(W179,W265) -> 0 | X59: 0 | Y59: 0 | Z59: 0 | AA59: 0
B60: Standalone Power Systems | M60: =SUM(M180,M266) -> 0 | N60: 0 | O60: 0 | P60: 0 | Q60: 0 | R60: 0 | S60: 0 | T60: 0 | U60: 0 | V60: 0 | W60: 0 | X60: 0 | Y60: 0 | Z60: 0 | AA60: 0
B61: Storage | M61: =SUM(M181,M267) -> 0 | N61: 0 | O61: 0 | P61: 0 | Q61: 0 | R61: 0 | S61: 0 | T61: 0 | U61: 0 | V61: 0 | W61: 0 | X61: 0 | Y61: 0 | Z61: 0 | AA61: 0
B62: Total | M62: =SUM(M49:M61) -> -0.86199603 | N62: =SUM(N49:N61) -> -0.285 | O62: -4.789 | P62: -2.757763012 | Q62: -0.6179830525 | R62: -1.443 | S62: -0.587 | T62: -0.596 | U62: -1.612 | V62: -0.20899336 | W62: 0 | X62: 0 | Y62: 0 | Z62: 0 | AA62: 0
B64: Year ending 30 June | F64: 2006 | G64: 2007 | H64: 2008 | I64: 2009 | J64: 2010 | K64: 2011 | L64: 2012 | M64: 2013 | N64: 2014 | O64: 2015 | P64: 2016 | Q64: 2017 | R64: 2018 | S64: 2019 | T64: 2020 | U64: 2021 | V64: 2022 | W64: 2023 | X64: 2024 | Y64: 2025 | Z64: 2026 | AA64: 2027
B65: Depreciation
B66: Wooden Pole Lines | M66: =SUM(M135,M238) -> -58.5655787 | N66: -73.41344329 | O66: -88.49614579 | P66: -100.0137858 | Q66: -106.7485519 | R66: -109.2470678 | S66: -114.6042884 | T66: -120.4915057 | U66: -126.6929401 | V66: -133.8989868 | W66: -139.3786813 | X66: -143.1746476 | Y66: -148.067741 | Z66: -153.0761092 | AA66: -157.9921658
B67: Underground Cables | M67: =SUM(M136,M239) -> -0.4450368206 | N67: -4.966542944 | O67: -7.03161579 | P67: -9.046595352 | Q67: -10.90069801 | R67: -12.58861048 | S67: -12.76638332 | T67: -13.38875877 | U67: -14.40550013 | V67: -15.64277719 | W67: =SUM(W136,W239) -> -15.68283096 | X67: -20.69041193 | Y67: -25.81269253 | Z67: -31.31208765 | AA67: -37.01334672
B68: Transformers | M68: =SUM(M137,M240) -> -0.159040855 | N68: -6.923238257 | O68: -12.18752453 | P68: -17.87751465 | Q68: -22.61967405 | R68: -26.00518699 | S68: -25.30210399 | T68: -24.8826499 | U68: -24.53004509 | V68: -24.17040219 | W68: =SUM(W137,W240) -> -23.74507431 | X68: -23.341229 | Y68: -22.99488712 | Z68: -22.71059107 | AA68: -22.4727357
B69: Switchgear | M69: =SUM(M138,M241) -> -0.1674911439 | N69: -5.387115588 | O69: -9.519170375 | P69: -13.60013192 | Q69: -16.5071745 | R69: -18.42496584 | S69: -17.57901325 | T69: -17.05554827 | U69: -16.68377754 | V69: -16.37148384 | W69: =SUM(W138,W241) -> -15.75498263 | X69: -16.42180722 | Y69: -17.20885723 | Z69: -18.03943376 | AA69: -18.81950168
B70: Street lighting | M70: =SUM(M139,M242) -> -2.095387609 | N70: -3.398610707 | O70: -3.89567561 | P70: -4.506411029 | Q70: -5.032906757 | R70: -5.3549242 | S70: -6.400095704 | T70: -7.726753346 | U70: -8.907069091 | V70: -10.19630576 | W70: =SUM(W139,W242) -> -10.95005482 | X70: -11.49294436 | Y70: -12.1215151 | Z70: -10.89715135 | AA70: -10.64473572
B71: Meters and Services | M71: =SUM(M140,M243) -> -0.007184053835 | N71: -1.040986129 | O71: -1.673138916 | P71: -2.483962393 | Q71: -4.138636657 | R71: -5.527380253 | S71: -6.210910224 | T71: -7.640989582 | U71: -9.304869456 | V71: -10.07728947 | W71: =SUM(W140,W243) -> -10.47708273 | X71: -14.83937745 | Y71: -18.7805401 | Z71: -23.20501002 | AA71: -26.69865534
B72: IT | M72: =SUM(M141,M244) -> -1.872577767 | N72: -17.06662181 | O72: -18.79118029 | P72: -23.42417308 | Q72: -21.07051742 | R72: -23.72318302 | S72: -25.07897907 | T72: -27.0051787 | U72: -30.8820013 | V72: -31.36873241 | W72: =SUM(W141,W244) -> -35.64896278 | X72: -38.95287987 | Y72: -41.03847864 | Z72: -42.24968751 | AA72: -45.98586696
B73: SCADA & Communications | M73: =SUM(M142,M245) -> -2.000302072 | N73: -2.828879734 | O73: -2.793226512 | P73: -2.750681992 | Q73: -3.167875401 | R73: -3.809098633 | S73: -4.491334223 | T73: -5.120281381 | U73: -7.579365941 | V73: -10.1103508 | W73: =SUM(W142,W245) -> -11.47805182 | X73: -13.89198376 | Y73: -18.18483049 | Z73: -22.30722007 | AA73: -26.48171497
B74: Other Distribution Non-Network | M74: =SUM(M143,M246) -> -18.45476883 | N74: -12.28372836 | O74: -9.502281203 | P74: -10.72484508 | Q74: -11.9660366 | R74: -11.77289257 | S74: -18.48889732 | T74: -22.88801226 | U74: -29.30192408 | V74: -29.21038577 | W74: =SUM(W143,W246) -> -40.51946203 | X74: -41.77253843 | Y74: -47.47153531 | Z74: -56.48285654 | AA74: -55.93843827
B75: Distribution Land & Easements | M75: =SUM(M144,M247) -> 0 | N75: 0 | O75: 0 | P75: 0 | Q75: 0 | R75: 0 | S75: 0 | T75: 0 | U75: 0 | V75: 0 | W75: =SUM(W144,W247) -> 0 | X75: 0 | Y75: 0 | Z75: 0 | AA75: 0
B76: Equity Raising Costs | M76: =SUM(M145,M248) -> -2.193881052 | N76: -3.108613108 | O76: -3.277136611 | P76: -2.498209081 | Q76: -1.925415925 | R76: -1.077179181 | S76: -0.5723741306 | T76: -0.1723443851 | U76: 0 | V76: 0 | W76: =SUM(W145,W248) -> 0 | X76: 0 | Y76: 0 | Z76: 0 | AA76: 0
B77: Standalone Power Systems | M77: =SUM(M146,M249) -> 0 | N77: 0 | O77: 0 | P77: 0 | Q77: 0 | R77: 0 | S77: -1.10780923 | T77: -2.113816993 | U77: -2.716276746 | V77: -6.418181535 | W77: -10.32775058 | X77: -16.70634055 | Y77: -23.12602519 | Z77: -29.18879451 | AA77: -34.41409806
B78: Storage | M78: =SUM(M147,M250) -> 0 | N78: 0 | O78: 0 | P78: 0 | Q78: 0 | R78: 0 | S78: -0.3352022214 | T78: -0.4883387095 | U78: -0.7119324447 | V78: -0.7239856324 | W78: -0.9428708743 | X78: -0.7548808689 | Y78: -0.6048087993 | Z78: -0.4849840576 | AA78: -0.3890724658
B79: Total | M79: =SUM(M66:M78) -> -85.96124891 | N79: =SUM(N66:N78) -> -130.4177799 | O79: -157.1670956 | P79: -186.9263104 | Q79: -204.0774872 | R79: -217.5304889 | S79: -232.937391 | T79: -248.974178 | U79: -271.7157019 | V79: -288.1888814 | W79: -314.9058048 | X79: -342.039041 | Y79: -375.4119115 | Z79: -409.9539257 | AA79: -436.8503316
B81: Year ending 30 June | F81: 2006 | G81: 2007 | H81: 2008 | I81: 2009 | J81: 2010 | K81: 2011 | L81: 2012 | M81: 2013 | N81: 2014 | O81: 2015 | P81: 2016 | Q81: 2017 | R81: 2018 | S81: 2019 | T81: 2020 | U81: 2021 | V81: 2022 | W81: 2023 | X81: 2024 | Y81: 2025 | Z81: 2026 | AA81: 2027
B82: Accelerated depreciation
B83: Wooden Pole Lines | M83: =M152 -> -2.645738732 | N83: -0.365564076 | O83: 0 | P83: 0 | Q83: 0 | R83: -3.392453845 | S83: -4.593771291 | T83: -3.071568279 | U83: 0 | V83: 0 | W83: 0 | X83: 0 | Y83: 0 | Z83: 0 | AA83: 0
B84: Underground Cables | M84: =M153 -> 0 | N84: 0 | O84: 0 | P84: 0 | Q84: 0 | R84: 0 | S84: 0 | T84: 0 | U84: 0 | V84: 0 | W84: 0 | X84: 0 | Y84: 0 | Z84: 0 | AA84: 0
B85: Transformers | M85: -0.7055303286 | N85: -0.0974837536 | O85: 0 | P85: 0 | Q85: 0 | R85: -0.431230029 | S85: -1.408397264 | T85: -0.7210280223 | U85: 0 | V85: 0 | W85: 0 | X85: 0 | Y85: 0 | Z85: 0 | AA85: 0
B86: Switchgear | M86: -0.1763825822 | N86: -0.0243709384 | O86: 0 | P86: 0 | Q86: 0 | R86: -0.2573427585 | S86: -0.5440705943 | T86: -0.3373357509 | U86: 0 | V86: 0 | W86: 0 | X86: 0 | Y86: 0 | Z86: 0 | AA86: 0
B87: Street lighting | M87: 0 | N87: 0 | O87: 0 | P87: 0 | Q87: 0 | R87: 0 | S87: 0 | T87: 0 | U87: 0 | V87: 0 | W87: 0 | X87: 0 | Y87: 0 | Z87: 0 | AA87: 0
B88: Meters and Services | M88: 0 | N88: 0 | O88: 0 | P88: 0 | Q88: 0 | R88: 0 | S88: 0 | T88: 0 | U88: 0 | V88: 0 | W88: 0 | X88: 0 | Y88: 0 | Z88: 0 | AA88: 0
B89: IT | M89: 0 | N89: 0 | O89: 0 | P89: 0 | Q89: 0 | R89: 0 | S89: 0 | T89: 0 | U89: 0 | V89: 0 | W89: 0 | X89: 0 | Y89: 0 | Z89: 0 | AA89: 0
B90: SCADA & Communications | M90: 0 | N90: 0 | O90: 0 | P90: 0 | Q90: 0 | R90: 0 | S90: 0 | T90: 0 | U90: 0 | V90: 0 | W90: 0 | X90: 0 | Y90: 0 | Z90: 0 | AA90: 0
B91: Other Distribution Non-Network | M91: 0 | N91: 0 | O91: 0 | P91: 0 | Q91: 0 | R91: 0 | S91: 0 | T91: 0 | U91: 0 | V91: 0 | W91: 0 | X91: 0 | Y91: 0 | Z91: 0 | AA91: 0
B92: Distribution Land & Easements | M92: 0 | N92: 0 | O92: 0 | P92: 0 | Q92: 0 | R92: 0 | S92: 0 | T92: 0 | U92: 0 | V92: 0 | W92: 0 | X92: 0 | Y92: 0 | Z92: 0 | AA92: 0
B93: Equity Raising Costs | M93: 0 | N93: 0 | O93: 0 | P93: 0 | Q93: 0 | R93: 0 | S93: 0 | T93: 0 | U93: 0 | V93: 0 | W93: 0 | X93: 0 | Y93: 0 | Z93: 0 | AA93: 0
B94: Standalone Power Systems | M94: =M163 -> 0 | N94: 0 | O94: 0 | P94: 0 | Q94: 0 | R94: 0 | S94: 0 | T94: 0 | U94: 0 | V94: 0 | W94: 0 | X94: 0 | Y94: 0 | Z94: 0 | AA94: 0
B95: Storage | M95: =M164 -> 0 | N95: 0 | O95: 0 | P95: 0 | Q95: 0 | R95: 0 | S95: 0 | T95: 0 | U95: 0 | V95: 0 | W95: 0 | X95: 0 | Y95: 0 | Z95: 0 | AA95: 0
B96: Total | M96: =SUM(M83:M95) -> -3.527651643 | N96: =SUM(N83:N95) -> -0.487418768 | O96: 0 | P96: 0 | Q96: 0 | R96: -4.081026632 | S96: -6.546239149 | T96: -4.129932052 | U96: 0 | V96: 0 | W96: 0 | X96: 0 | Y96: 0 | Z96: 0 | AA96: 0
B98: Year ending 30 June | F98: 2006 | G98: 2007 | H98: 2008 | I98: 2009 | J98: 2010 | K98: 2011 | L98: 2012 | M98: 2013 | N98: 2014 | O98: 2015 | P98: 2016 | Q98: 2017 | R98: 2018 | S98: 2019 | T98: 2020 | U98: 2021 | V98: 2022 | W98: 2023 | X98: 2024 | Y98: 2025 | Z98: 2026 | AA98: 2027
B99: Closing balance
B100: Wooden Pole Lines | L100: =Dx_Inputs!L61 -> 2747.935154 | M100: =SUM(M15,M32,M49,M66,M83) -> 2994.356195 | N100: 3292.8427 | O100: 3498.190705 | P100: 3606.189309 | Q100: 3604.487165 | R100: 3663.620014 | S100: 3733.56988 | T100: 3811.515836 | U100: 3915.733136 | V100: 3980.89996 | W100: 4008.390451 | X100: 4060.5663 | Y100: 4115.335833 | Z100: 4168.028355 | AA100: 4230.616423
B101: Underground Cables | L101: =Dx_Inputs!L62 -> 110.2319941 | M101: =SUM(M16,M33,M50,M67,M84) -> 179.4990142 | N101: 229.7371471 | O101: 278.1400787 | P101: 322.8160004 | Q101: 362.8928375 | R101: 365.2161835 | S101: 378.6545948 | T101: 401.9521539 | U101: 430.7631055 | V101: 429.6434749 | W101: 552.7120244 | X101: 678.6480645 | Y101: 814.0119676 | Z101: 954.4224695 | AA101: 1110.000973
B102: Transformers | L102: =Dx_Inputs!L63 -> 32.22184132 | M102: =SUM(M17,M34,M51,M68,M85) -> 153.9053484 | N102: 258.5284966 | O102: 371.5951349 | P102: 465.791876 | Q102: 532.7271589 | R102: 517.4592928 | S102: 506.8868379 | T102: 498.3387376 | U102: 490.3709038 | V102: 481.0893701 | W102: 472.237488 | X102: 464.5356743 | Y102: 458.0747775 | Z102: 452.542694 | AA102: 448.6780185
B103: Switchgear | L103: =Dx_Inputs!L64 -> 25.6890398 | M103: =SUM(M18,M35,M52,M69,M86) -> 93.46223398 | N103: 154.7566666 | O103: 215.1781421 | P103: 258.0606484 | Q103: 286.0037135 | R103: 272.2332767 | S103: 263.0134263 | T103: 256.2757245 | U103: 250.767514 | V103: 240.6961906 | W103: 249.8747543 | X103: 260.8566994 | Y103: 272.4915422 | Z103: 283.3687559 | AA103: 295.9710669
B104: Street lighting | L104: =Dx_Inputs!L65 -> 35.1250608 | M104: =SUM(M19,M36,M53,M70,M87) -> 37.92311141 | N104: 39.20352392 | O104: 41.14386387 | P104: 42.57013161 | Q104: 42.31108532 | R104: 47.47569448 | S104: 54.75144968 | T104: 60.92964065 | U104: 67.92473855 | V104: 70.90367935 | W104: 72.30117385 | X104: 74.34127725 | Y104: 76.45021091 | Z104: 79.83551787 | AA104: 84.68361355
B105: Meters and Services | L105: =Dx_Inputs!L66 -> 3.246493062 | M105: =SUM(M20,M37,M54,M71,M88) -> 14.64795901 | N105: 22.44482288 | O105: 32.45883396 | P105: 53.02987157 | Q105: 70.26423491 | R105: 78.68342794 | S105: 96.43448831 | T105: 117.1080551 | U105: 126.6383737 | V105: 131.5108578 | W105: 185.9146102 | X105: 235.0542117 | Y105: 290.2351541 | Z105: 333.7807891 | AA105: 369.7819994
B106: IT | L106: =Dx_Inputs!L67 -> 31.47250339 | M106: =SUM(M21,M38,M55,M72,M89) -> 48.31992562 | N106: 44.28630381 | O106: 46.00712352 | P106: 34.98395044 | Q106: 44.86143302 | R106: 47.59395815 | S106: 52.46023241 | T106: 57.89550259 | U106: 59.4305013 | V106: 67.55476889 | W106: 73.85070363 | X106: 78.02483229 | Y106: 79.56275002 | Z106: 86.72862173 | AA106: 88.3483141
B107: SCADA & Communications | L107: =Dx_Inputs!L68 -> 15.86631549 | M107: =SUM(M22,M39,M56,M73,M90) -> 17.21336342 | N107: 17.08963369 | O107: 16.97425718 | P107: 17.92557518 | Q107: 19.82169978 | R107: 21.92288617 | S107: 23.75763041 | T107: 34.74306165 | U107: 46.08799436 | V107: 52.48833778 | W107: 68.00760246 | X107: 89.48649266 | Y107: 109.5486042 | Z107: 129.6898605 | AA107: 149.8621813
B108: Other Distribution Non-Network | L108: =Dx_Inputs!L69 -> 107.6731485 | M108: =SUM(M23,M40,M57,M74,M91) -> 107.4330772 | N108: 97.66634887 | O108: 98.57906766 | P108: 96.98994553 | Q108: 89.96486629 | R108: 117.170236 | S108: 133.4104942 | T108: 159.7247369 | U108: 152.0120163 | V108: 192.9979241 | W108: 201.9608426 | X108: 220.4603041 | Y108: 259.0391009 | Z108: 254.0598087 | AA108: 256.0404521
B109: Distribution Land & Easements | L109: =Dx_Inputs!L70 -> 18.23082961 | M109: =SUM(M24,M41,M58,M75,M92) -> 17.4158017 | N109: 17.3848017 | O109: 13.8388017 | P109: 13.8388017 | Q109: 13.52486129 | R109: 19.48740808 | S109: 29.87120808 | T109: 45.50400808 | U109: 50.43701394 | V109: 76.47557023 | W109: 76.47557023 | X109: 76.47557023 | Y109: 76.47557023 | Z109: 76.47557023 | AA109: 76.47557023
B110: Equity Raising Costs | L110: =Dx_Inputs!L71 -> 0 | M110: =SUM(M25,M42,M59,M76,M93) -> 3.290821579 | N110: 4.662919662 | O110: 4.915704917 | P110: 3.747313622 | Q110: 1.821897697 | R110: 0.7447185157 | S110: 0.1723443851 | T110: -6.661338148e-16 | U110: -6.661338148e-16 | V110: -6.661338148e-16 | W110: -6.661338148e-16 | X110: -6.661338148e-16 | Y110: -6.661338148e-16 | Z110: -6.661338148e-16 | AA110: -6.661338148e-16
B111: Standalone Power Systems | L111: =Dx_Inputs!L72 -> 0 | M111: =SUM(M26,M43,M60,M77,M94) -> 0 | N111: 0 | O111: 0 | P111: 0 | Q111: 0 | R111: 8.308569228 | S111: 15.85362745 | T111: 20.3720756 | U111: 48.13636151 | V111: 77.45812934 | W111: 125.2975541 | X111: 173.4451889 | Y111: 218.9159588 | Z111: 258.1057354 | AA111: 298.6536592
B112: Storage | L112: =Dx_Inputs!L73 -> 0 | M112: =SUM(M27,M44,M61,M78,M95) -> 0 | N112: 0 | O112: 0 | P112: 0 | Q112: 0 | R112: 1.676011107 | S112: 2.441693548 | T112: 3.559662224 | U112: 3.619928162 | V112: 4.714354372 | W112: 3.774404344 | X112: 3.024043996 | Y112: 2.424920288 | Z112: 1.945362329 | AA112: 1.562305435
B113: Total | L113: =SUM(L100:L112) -> 3127.69238 | M113: =SUM(M100:M112) -> 3667.466852 | N113: 4178.603365 | O113: 4617.021714 | P113: 4915.943423 | Q113: 5068.680953 | R113: 5161.591676 | S113: 5291.277908 | T113: 5467.919195 | U113: 5641.921587 | V113: 5806.432618 | W113: 6090.797179 | X113: 6414.918659 | Y113: 6772.566389 | Z113: 7078.98354 | AA113: 7410.674577
B115: Initial capital base [$M nominal]
B116: Year ending 30 June | F116: 2006 | G116: 2007 | H116: 2008 | I116: 2009 | J116: 2010 | K116: 2011 | L116: 2012 | M116: 2013 | N116: 2014 | O116: 2015 | P116: 2016 | Q116: 2017 | R116: 2018 | S116: 2019 | T116: 2020 | U116: 2021 | V116: 2022 | W116: 2023 | X116: 2024 | Y116: 2025 | Z116: 2026 | AA116: 2027
B117: Opening balance
B118: Wooden Pole Lines | M118: =L186 -> 2747.935154 | N118: 2686.723837 | O118: 2626.363379 | P118: 2566.245536 | Q118: 2507.518798 | R118: 2449.600046 | S118: 2388.195432 | T118: 2325.682909 | U118: 2264.096589 | V118: 2206.177838 | W118: 2148.051537 | X118: =W186 -> 2090.132786 | Y118: 2032.214034 | Z118: 1974.295283 | AA118: 1916.376531
B119: Underground Cables | M119: =L187 -> 110.2319941 | N119: 109.7869573 | O119: 107.6088966 | P119: 105.4624109 | Q119: 103.3229222 | R119: 101.2019473 | S119: 99.08097246 | T119: 96.95999758 | U119: 94.8390227 | V119: 92.71804782 | W119: 90.59707294 | X119: 88.47609807 | Y119: 86.35512319 | Z119: 84.23414831 | AA119: 82.11317343
B120: Transformers | M120: 32.22184132 | N120: 31.35727014 | O120: 30.46395204 | P120: 29.67965475 | Q120: 28.89791411 | R120: 28.12293815 | S120: 26.91673217 | T120: 24.73335895 | U120: 23.23735497 | V120: 22.46237901 | W120: 21.68740306 | X120: 20.9124271 | Y120: 20.13745115 | Z120: 19.36247519 | AA120: 18.58749923
B121: Switchgear | M121: 25.6890398 | N121: 25.34516608 | O121: 24.47481741 | P121: 23.64110365 | Q121: 22.81010763 | R121: 21.98630252 | S121: 20.90515465 | T121: 19.53727894 | U121: 18.37613808 | V121: 17.55233297 | W121: 16.72852786 | X121: 15.90472275 | Y121: 15.08091764 | Z121: 14.25711253 | AA121: 13.43330742
B122: Street lighting | M122: 35.1250608 | N122: 33.02967319 | O122: 30.28352091 | P122: 27.57717904 | Q122: 24.87965932 | R122: 22.2054822 | S122: 19.53130509 | T122: 16.85712797 | U122: 14.18295085 | V122: 11.50877373 | W122: 8.834596614 | X122: 6.160419496 | Y122: 3.486242378 | Z122: 0.8120652606 | AA122: 0
B123: Meters and Services | M123: 3.246493062 | N123: 3.239309008 | O123: 3.111014879 | P123: 2.984580603 | Q123: 2.858558479 | R123: 2.73362687 | S123: 2.60869526 | T123: 2.48376365 | U123: 2.358832041 | V123: 2.233900431 | W123: 2.108968821 | X123: 1.984037212 | Y123: 1.859105602 | Z123: 1.734173992 | AA123: 1.609242383
B124: IT | M124: 31.47250339 | N124: 29.59992562 | O124: 21.89330381 | P124: 14.29862352 | Q124: 6.728700438 | R124: 0.9558080213 | S124: 0 | T124: 0 | U124: 0 | V124: 0 | W124: 0 | X124: 0 | Y124: 0 | Z124: 0 | AA124: 0
B125: SCADA & Communications | M125: 15.86631549 | N125: 13.86601342 | O125: 11.70660369 | P125: 9.989983175 | Q125: 8.636155983 | R125: 7.326164423 | S125: 6.016172862 | T125: 4.706181302 | U125: 3.396189741 | V125: 2.086198181 | W125: 0.7762066202 | X125: 0 | Y125: 0 | Z125: 0 | AA125: 0
B126: Other Distribution Non-Network | M126: 107.6731485 | N126: 89.17141155 | O126: 80.54001633 | P126: 74.46300163 | Q126: 65.93634474 | R126: 59.87698565 | S126: 53.50233157 | T126: 47.74701513 | U126: 41.99169868 | V126: 34.7366697 | W126: 28.98135325 | X126: 23.22603681 | Y126: 17.47072036 | Z126: 11.71540392 | AA126: 5.960087474
B127: Distribution Land & Easements | M127: 18.23082961 | N127: 17.4158017 | O127: 17.3848017 | P127: 13.8388017 | Q127: 13.8388017 | R127: 13.52486129 | S127: 12.79460808 | T127: 12.20760808 | U127: 12.20760808 | V127: 12.09532062 | W127: 12.09387691 | X127: 12.09387691 | Y127: 12.09387691 | Z127: 12.09387691 | AA127: 12.09387691
B128: Equity Raising Costs | M128: 0 | N128: 0 | O128: 0 | P128: 0 | Q128: 0 | R128: 0 | S128: 0 | T128: 0 | U128: 0 | V128: 0 | W128: 0 | X128: 0 | Y128: 0 | Z128: 0 | AA128: 0
B129: Standalone Power Systems | M129: =L197 -> 0 | N129: =M197 -> 0 | O129: =N197 -> 0 | P129: =O197 -> 0 | Q129: =P197 -> 0 | R129: =Q197 -> 0 | S129: =R197 -> 0 | T129: =S197 -> 0 | U129: =T197 -> 0 | V129: =U197 -> 0 | W129: =V197 -> 0 | X129: =W197 -> 0 | Y129: =X197 -> 0 | Z129: =Y197 -> 0 | AA129: =Z197 -> 0
B130: Storage | M130: 0 | N130: 0 | O130: 0 | P130: 0 | Q130: 0 | R130: 0 | S130: 0 | T130: 0 | U130: 0 | V130: 0 | W130: 0 | X130: 0 | Y130: 0 | Z130: 0 | AA130: 0
B131: Total | M131: =SUM(M118:M130) -> 3127.69238 | N131: =SUM(N118:N130) -> 3039.535365 | O131: 2953.830306 | P131: 2868.180875 | Q131: 2785.427962 | R131: 2707.534163 | S131: 2629.551404 | T131: 2550.915241 | U131: 2474.686385 | V131: 2401.571461 | W131: 2329.859543 | X131: 2258.890404 | Y131: 2188.697471 | Z131: 2118.504539 | AA131: 2050.173718
B133: Year ending 30 June | F133: 2006 | G133: 2007 | H133: 2008 | I133: 2009 | J133: 2010 | K133: 2011 | L133: 2012 | M133: 2013 | N133: 2014 | O133: 2015 | P133: 2016 | Q133: 2017 | R133: 2018 | S133: 2019 | T133: 2020 | U133: 2021 | V133: 2022 | W133: 2023 | X133: 2024 | Y133: 2025 | Z133: 2026 | AA133: 2027
B134: Depreciation
B135: Wooden Pole Lines | M135: =M290 -> -58.5655787 | N135: -59.74089402 | O135: -58.87484263 | P135: -58.59400052 | Q135: -57.91875139 | R135: -57.91875139 | S135: -57.91875139 | T135: -57.91875139 | U135: -57.91875139 | V135: -57.91875139 | W135: -57.91875139 | X135: -57.91875139 | Y135: -57.91875139 | Z135: -57.91875139 | AA135: -57.91875139
B136: Underground Cables | M136: =M321 -> -0.4450368206 | N136: -2.178060667 | O136: -2.146485772 | P136: -2.139488638 | Q136: -2.12097488 | R136: -2.12097488 | S136: -2.12097488 | T136: -2.12097488 | U136: -2.12097488 | V136: -2.12097488 | W136: -2.12097488 | X136: -2.12097488 | Y136: -2.12097488 | Z136: -2.12097488 | AA136: -2.12097488
B137: Transformers | M137: =M352 -> -0.159040855 | N137: -0.7958343418 | O137: -0.7842972959 | P137: -0.7817406365 | Q137: -0.7749759559 | R137: -0.7749759559 | S137: -0.7749759559 | T137: -0.7749759559 | U137: -0.7749759559 | V137: -0.7749759559 | W137: -0.7749759559 | X137: -0.7749759559 | Y137: -0.7749759559 | Z137: -0.7749759559 | AA137: -0.7749759559
B138: Switchgear | M138: =M383 -> -0.1674911439 | N138: -0.8459777279 | O138: -0.8337137638 | P138: -0.8309960161 | Q138: -0.8238051112 | R138: -0.8238051112 | S138: -0.8238051112 | T138: -0.8238051112 | U138: -0.8238051112 | V138: -0.8238051112 | W138: -0.8238051112 | X138: -0.8238051112 | Y138: -0.8238051112 | Z138: -0.8238051112 | AA138: -0.8238051112
B139: Street lighting | M139: =M414 -> -2.095387609 | N139: -2.746152278 | O139: -2.706341876 | P139: -2.697519718 | Q139: -2.674177118 | R139: -2.674177118 | S139: -2.674177118 | T139: -2.674177118 | U139: -2.674177118 | V139: -2.674177118 | W139: -2.674177118 | X139: -2.674177118 | Y139: -2.674177118 | Z139: -0.8120652606 | AA139: 0
B140: Meters and Services | M140: =M445 -> -0.007184053835 | N140: -0.1282941291 | O140: -0.1264342757 | P140: -0.1260221241 | Q140: -0.1249316097 | R140: -0.1249316097 | S140: -0.1249316097 | T140: -0.1249316097 | U140: -0.1249316097 | V140: -0.1249316097 | W140: -0.1249316097 | X140: -0.1249316097 | Y140: -0.1249316097 | Z140: -0.1249316097 | AA140: -0.1249316097
B141: IT | M141: =M476 -> -1.872577767 | N141: -7.706621811 | O141: -7.594680289 | P141: -7.569923081 | Q141: -5.772892417 | R141: -0.9558080213 | S141: 0 | T141: 0 | U141: 0 | V141: 0 | W141: 0 | X141: 0 | Y141: 0 | Z141: 0 | AA141: 0
B142: SCADA & Communications | M142: =M507 -> -2.000302072 | N142: -2.159409734 | O142: -1.716620512 | P142: -1.353827192 | Q142: -1.309991561 | R142: -1.309991561 | S142: -1.309991561 | T142: -1.309991561 | U142: -1.309991561 | V142: -1.309991561 | W142: -0.7762066202 | X142: 0 | Y142: 0 | Z142: 0 | AA142: 0
B143: Other Distribution Non-Network | M143: =M538 -> -18.45476883 | N143: -8.631395225 | O143: -6.077014696 | P143: -5.901631871 | Q143: -5.755316445 | R143: -5.755316445 | S143: -5.755316445 | T143: -5.755316445 | U143: -5.755316445 | V143: -5.755316445 | W143: -5.755316445 | X143: -5.755316445 | Y143: -5.755316445 | Z143: -5.755316445 | AA143: -5.755316445
B144: Distribution Land & Easements | M144: =M569 -> 0 | N144: 0 | O144: 0 | P144: 0 | Q144: 0 | R144: 0 | S144: 0 | T144: 0 | U144: 0 | V144: 0 | W144: 0 | X144: 0 | Y144: 0 | Z144: 0 | AA144: 0
B145: Equity Raising Costs | M145: =M600 -> 0 | N145: 0 | O145: 0 | P145: 0 | Q145: 0 | R145: 0 | S145: 0 | T145: 0 | U145: 0 | V145: 0 | W145: 0 | X145: 0 | Y145: 0 | Z145: 0 | AA145: 0
B146: Standalone Power Systems | M146: =M631 -> 0 | N146: =N631 -> 0 | O146: 0 | P146: 0 | Q146: 0 | R146: 0 | S146: 0 | T146: 0 | U146: 0 | V146: 0 | W146: 0 | X146: 0 | Y146: 0 | Z146: 0 | AA146: 0
B147: Storage | M147: =M662 -> 0 | N147: =N662 -> 0 | O147: 0 | P147: 0 | Q147: 0 | R147: 0 | S147: 0 | T147: 0 | U147: 0 | V147: 0 | W147: 0 | X147: 0 | Y147: 0 | Z147: 0 | AA147: 0
B148: Total | M148: =SUM(M135:M147) -> -83.76736785 | N148: =SUM(N135:N147) -> -84.93263993 | O148: -80.86043111 | P148: -79.9951498 | Q148: -77.27581648 | R148: -72.45873209 | S148: -71.50292407 | T148: -71.50292407 | U148: -71.50292407 | V148: -71.50292407 | W148: -70.96913913 | X148: -70.19293251 | Y148: -70.19293251 | Z148: -68.33082065 | AA148: -67.51875539
B150: Year ending 30 June | F150: 2006 | G150: 2007 | H150: 2008 | I150: 2009 | J150: 2010 | K150: 2011 | L150: 2012 | M150: 2013 | N150: 2014 | O150: 2015 | P150: 2016 | Q150: 2017 | R150: 2018 | S150: 2019 | T150: 2020 | U150: 2021 | V150: 2022 | W150: 2023 | X150: 2024 | Y150: 2025 | Z150: 2026 | AA150: 2027
B151: Accelerated depreciation
B152: Wooden Pole Lines | M152: =-Dx_Inputs!K645*Dx_Inputs!K$55 -> -2.645738732 | N152: =-Dx_Inputs!L645*Dx_Inputs!L$55 -> -0.365564076 | O152: =-Dx_Inputs!M645*Dx_Inputs!M$55 -> 0 | P152: =-Dx_Inputs!N645*Dx_Inputs!N$55 -> 0 | Q152: =-Dx_Inputs!O645*Dx_Inputs!O$55 -> 0 | R152: =-Dx_Inputs!P645*Dx_Inputs!P$55 -> -3.392453845 | S152: =-Dx_Inputs!Q645*Dx_Inputs!Q$55 -> -4.593771291 | T152: =-Dx_Inputs!R645*Dx_Inputs!R$55 -> -3.071568279 | U152: =-Dx_Inputs!S645*Dx_Inputs!S$55 -> 0 | V152: =-Dx_Inputs!T645*Dx_Inputs!T$55 -> 0
B153: Underground Cables | M153: =-Dx_Inputs!K646*Dx_Inputs!K$55 -> 0 | N153: =-Dx_Inputs!L646*Dx_Inputs!L$55 -> 0 | O153: =-Dx_Inputs!M646*Dx_Inputs!M$55 -> 0 | P153: =-Dx_Inputs!N646*Dx_Inputs!N$55 -> 0 | Q153: =-Dx_Inputs!O646*Dx_Inputs!O$55 -> 0 | R153: =-Dx_Inputs!P646*Dx_Inputs!P$55 -> 0 | S153: =-Dx_Inputs!Q646*Dx_Inputs!Q$55 -> 0 | T153: =-Dx_Inputs!R646*Dx_Inputs!R$55 -> 0 | U153: =-Dx_Inputs!S646*Dx_Inputs!S$55 -> 0 | V153: =-Dx_Inputs!T646*Dx_Inputs!T$55 -> 0
B154: Transformers | M154: =-Dx_Inputs!K647*Dx_Inputs!K$55 -> -0.7055303286 | N154: =-Dx_Inputs!L647*Dx_Inputs!L$55 -> -0.0974837536 | O154: =-Dx_Inputs!M647*Dx_Inputs!M$55 -> 0 | P154: =-Dx_Inputs!N647*Dx_Inputs!N$55 -> 0 | Q154: =-Dx_Inputs!O647*Dx_Inputs!O$55 -> 0 | R154: =-Dx_Inputs!P647*Dx_Inputs!P$55 -> -0.431230029 | S154: =-Dx_Inputs!Q647*Dx_Inputs!Q$55 -> -1.408397264 | T154: =-Dx_Inputs!R647*Dx_Inputs!R$55 -> -0.7210280223 | U154: =-Dx_Inputs!S647*Dx_Inputs!S$55 -> 0 | V154: =-Dx_Inputs!T647*Dx_Inputs!T$55 -> 0
B155: Switchgear | M155: =-Dx_Inputs!K648*Dx_Inputs!K$55 -> -0.1763825822 | N155: =-Dx_Inputs!L648*Dx_Inputs!L$55 -> -0.0243709384 | O155: =-Dx_Inputs!M648*Dx_Inputs!M$55 -> 0 | P155: =-Dx_Inputs!N648*Dx_Inputs!N$55 -> 0 | Q155: =-Dx_Inputs!O648*Dx_Inputs!O$55 -> 0 | R155: =-Dx_Inputs!P648*Dx_Inputs!P$55 -> -0.2573427585 | S155: =-Dx_Inputs!Q648*Dx_Inputs!Q$55 -> -0.5440705943 | T155: =-Dx_Inputs!R648*Dx_Inputs!R$55 -> -0.3373357509 | U155: =-Dx_Inputs!S648*Dx_Inputs!S$55 -> 0 | V155: =-Dx_Inputs!T648*Dx_Inputs!T$55 -> 0
B156: Street lighting | M156: =-Dx_Inputs!K649*Dx_Inputs!K$55 -> 0 | N156: =-Dx_Inputs!L649*Dx_Inputs!L$55 -> 0 | O156: =-Dx_Inputs!M649*Dx_Inputs!M$55 -> 0 | P156: =-Dx_Inputs!N649*Dx_Inputs!N$55 -> 0 | Q156: =-Dx_Inputs!O649*Dx_Inputs!O$55 -> 0 | R156: =-Dx_Inputs!P649*Dx_Inputs!P$55 -> 0 | S156: =-Dx_Inputs!Q649*Dx_Inputs!Q$55 -> 0 | T156: =-Dx_Inputs!R649*Dx_Inputs!R$55 -> 0 | U156: =-Dx_Inputs!S649*Dx_Inputs!S$55 -> 0 | V156: =-Dx_Inputs!T649*Dx_Inputs!T$55 -> 0
B157: Meters and Services | M157: =-Dx_Inputs!K650*Dx_Inputs!K$55 -> 0 | N157: =-Dx_Inputs!L650*Dx_Inputs!L$55 -> 0 | O157: =-Dx_Inputs!M650*Dx_Inputs!M$55 -> 0 | P157: =-Dx_Inputs!N650*Dx_Inputs!N$55 -> 0 | Q157: =-Dx_Inputs!O650*Dx_Inputs!O$55 -> 0 | R157: =-Dx_Inputs!P650*Dx_Inputs!P$55 -> 0 | S157: =-Dx_Inputs!Q650*Dx_Inputs!Q$55 -> 0 | T157: =-Dx_Inputs!R650*Dx_Inputs!R$55 -> 0 | U157: =-Dx_Inputs!S650*Dx_Inputs!S$55 -> 0 | V157: =-Dx_Inputs!T650*Dx_Inputs!T$55 -> 0
B158: IT | M158: =-Dx_Inputs!K651*Dx_Inputs!K$55 -> 0 | N158: =-Dx_Inputs!L651*Dx_Inputs!L$55 -> 0 | O158: =-Dx_Inputs!M651*Dx_Inputs!M$55 -> 0 | P158: =-Dx_Inputs!N651*Dx_Inputs!N$55 -> 0 | Q158: =-Dx_Inputs!O651*Dx_Inputs!O$55 -> 0 | R158: =-Dx_Inputs!P651*Dx_Inputs!P$55 -> 0 | S158: =-Dx_Inputs!Q651*Dx_Inputs!Q$55 -> 0 | T158: =-Dx_Inputs!R651*Dx_Inputs!R$55 -> 0 | U158: =-Dx_Inputs!S651*Dx_Inputs!S$55 -> 0 | V158: =-Dx_Inputs!T651*Dx_Inputs!T$55 -> 0
B159: SCADA & Communications | M159: =-Dx_Inputs!K652*Dx_Inputs!K$55 -> 0 | N159: =-Dx_Inputs!L652*Dx_Inputs!L$55 -> 0 | O159: =-Dx_Inputs!M652*Dx_Inputs!M$55 -> 0 | P159: =-Dx_Inputs!N652*Dx_Inputs!N$55 -> 0 | Q159: =-Dx_Inputs!O652*Dx_Inputs!O$55 -> 0 | R159: =-Dx_Inputs!P652*Dx_Inputs!P$55 -> 0 | S159: =-Dx_Inputs!Q652*Dx_Inputs!Q$55 -> 0 | T159: =-Dx_Inputs!R652*Dx_Inputs!R$55 -> 0 | U159: =-Dx_Inputs!S652*Dx_Inputs!S$55 -> 0 | V159: =-Dx_Inputs!T652*Dx_Inputs!T$55 -> 0
B160: Other Distribution Non-Network | M160: =-Dx_Inputs!K653*Dx_Inputs!K$55 -> 0 | N160: =-Dx_Inputs!L653*Dx_Inputs!L$55 -> 0 | O160: =-Dx_Inputs!M653*Dx_Inputs!M$55 -> 0 | P160: =-Dx_Inputs!N653*Dx_Inputs!N$55 -> 0 | Q160: =-Dx_Inputs!O653*Dx_Inputs!O$55 -> 0 | R160: =-Dx_Inputs!P653*Dx_Inputs!P$55 -> 0 | S160: =-Dx_Inputs!Q653*Dx_Inputs!Q$55 -> 0 | T160: =-Dx_Inputs!R653*Dx_Inputs!R$55 -> 0 | U160: =-Dx_Inputs!S653*Dx_Inputs!S$55 -> 0 | V160: =-Dx_Inputs!T653*Dx_Inputs!T$55 -> 0
B161: Distribution Land & Easements | M161: =-Dx_Inputs!K654*Dx_Inputs!K$55 -> 0 | N161: =-Dx_Inputs!L654*Dx_Inputs!L$55 -> 0 | O161: =-Dx_Inputs!M654*Dx_Inputs!M$55 -> 0 | P161: =-Dx_Inputs!N654*Dx_Inputs!N$55 -> 0 | Q161: =-Dx_Inputs!O654*Dx_Inputs!O$55 -> 0 | R161: =-Dx_Inputs!P654*Dx_Inputs!P$55 -> 0 | S161: =-Dx_Inputs!Q654*Dx_Inputs!Q$55 -> 0 | T161: =-Dx_Inputs!R654*Dx_Inputs!R$55 -> 0 | U161: =-Dx_Inputs!S654*Dx_Inputs!S$55 -> 0 | V161: =-Dx_Inputs!T654*Dx_Inputs!T$55 -> 0
B162: Equity Raising Costs
B163: Standalone Power Systems | M163: =-Dx_Inputs!K655*Dx_Inputs!K$55 -> 0 | N163: =-Dx_Inputs!L655*Dx_Inputs!L$55 -> 0 | O163: =-Dx_Inputs!M655*Dx_Inputs!M$55 -> 0 | P163: =-Dx_Inputs!N655*Dx_Inputs!N$55 -> 0 | Q163: =-Dx_Inputs!O655*Dx_Inputs!O$55 -> 0 | R163: =-Dx_Inputs!P655*Dx_Inputs!P$55 -> 0 | S163: =-Dx_Inputs!Q655*Dx_Inputs!Q$55 -> 0 | T163: =-Dx_Inputs!R655*Dx_Inputs!R$55 -> 0 | U163: =-Dx_Inputs!S655*Dx_Inputs!S$55 -> 0 | V163: =-Dx_Inputs!T655*Dx_Inputs!T$55 -> 0
B164: Storage | M164: =-Dx_Inputs!K656*Dx_Inputs!K$55 -> 0 | N164: =-Dx_Inputs!L656*Dx_Inputs!L$55 -> 0 | O164: =-Dx_Inputs!M656*Dx_Inputs!M$55 -> 0 | P164: =-Dx_Inputs!N656*Dx_Inputs!N$55 -> 0 | Q164: =-Dx_Inputs!O656*Dx_Inputs!O$55 -> 0 | R164: =-Dx_Inputs!P656*Dx_Inputs!P$55 -> 0 | S164: =-Dx_Inputs!Q656*Dx_Inputs!Q$55 -> 0 | T164: =-Dx_Inputs!R656*Dx_Inputs!R$55 -> 0 | U164: =-Dx_Inputs!S656*Dx_Inputs!S$55 -> 0 | V164: =-Dx_Inputs!T656*Dx_Inputs!T$55 -> 0
B165: Total | M165: =SUM(M152:M164) -> -3.527651643 | N165: =SUM(N152:N164) -> -0.487418768 | O165: 0 | P165: 0 | Q165: 0 | R165: -4.081026632 | S165: -6.546239149 | T165: -4.129932052 | U165: 0 | V165: 0
B167: Year ending 30 June | F167: 2006 | G167: 2007 | H167: 2008 | I167: 2009 | J167: 2010 | K167: 2011 | L167: 2012 | M167: 2013 | N167: 2014 | O167: 2015 | P167: 2016 | Q167: 2017 | R167: 2018 | S167: 2019 | T167: 2020 | U167: 2021 | V167: 2022 | W167: 2023 | X167: 2024 | Y167: 2025 | Z167: 2026 | AA167: 2027
B168: Disposals/Redundant assets
B169: Wooden Pole Lines | M169: =-Dx_Inputs!K663 -> 0 | N169: =-Dx_Inputs!L663 -> -0.254 | O169: =-Dx_Inputs!M663 -> -1.243 | P169: =-Dx_Inputs!N663 -> -0.13273799 | Q169: =-Dx_Inputs!O663 -> 0 | R169: =-Dx_Inputs!P663 -> -0.09340915512 | S169: =-Dx_Inputs!Q663 -> 0 | T169: =-Dx_Inputs!R663 -> -0.596 | U169: =-Dx_Inputs!S663 -> 0 | V169: =-Dx_Inputs!T663 -> -0.20754965 | W169: =-Dx_Inputs!U663 -> 0 | X169: =-Dx_Inputs!V663 -> 0 | Y169: =-Dx_Inputs!W663 -> 0 | Z169: =-Dx_Inputs!X663 -> 0 | AA169: =-Dx_Inputs!Y663 -> 0
B170: Underground Cables | M170: =-Dx_Inputs!K664 -> 0 | N170: =-Dx_Inputs!L664 -> 0 | O170: =-Dx_Inputs!M664 -> 0 | P170: =-Dx_Inputs!N664 -> 0 | Q170: =-Dx_Inputs!O664 -> 0 | R170: =-Dx_Inputs!P664 -> 0 | S170: =-Dx_Inputs!Q664 -> 0 | T170: =-Dx_Inputs!R664 -> 0 | U170: =-Dx_Inputs!S664 -> 0 | V170: =-Dx_Inputs!T664 -> 0 | W170: =-Dx_Inputs!U664 -> 0 | X170: =-Dx_Inputs!V664 -> 0 | Y170: =-Dx_Inputs!W664 -> 0 | Z170: =-Dx_Inputs!X664 -> 0 | AA170: =-Dx_Inputs!Y664 -> 0
B171: Transformers | M171: =-Dx_Inputs!K665 -> 0 | N171: =-Dx_Inputs!L665 -> 0 | O171: =-Dx_Inputs!M665 -> 0 | P171: =-Dx_Inputs!N665 -> 0 | Q171: =-Dx_Inputs!O665 -> 0 | R171: =-Dx_Inputs!P665 -> 0 | S171: =-Dx_Inputs!Q665 -> 0 | T171: =-Dx_Inputs!R665 -> 0 | U171: =-Dx_Inputs!S665 -> 0 | V171: =-Dx_Inputs!T665 -> 0 | W171: =-Dx_Inputs!U665 -> 0 | X171: =-Dx_Inputs!V665 -> 0 | Y171: =-Dx_Inputs!W665 -> 0 | Z171: =-Dx_Inputs!X665 -> 0 | AA171: =-Dx_Inputs!Y665 -> 0
B172: Switchgear | M172: =-Dx_Inputs!K666 -> 0 | N172: =-Dx_Inputs!L666 -> 0 | O172: =-Dx_Inputs!M666 -> 0 | P172: =-Dx_Inputs!N666 -> 0 | Q172: =-Dx_Inputs!O666 -> 0 | R172: =-Dx_Inputs!P666 -> 0 | S172: =-Dx_Inputs!Q666 -> 0 | T172: =-Dx_Inputs!R666 -> 0 | U172: =-Dx_Inputs!S666 -> 0 | V172: =-Dx_Inputs!T666 -> 0 | W172: =-Dx_Inputs!U666 -> 0 | X172: =-Dx_Inputs!V666 -> 0 | Y172: =-Dx_Inputs!W666 -> 0 | Z172: =-Dx_Inputs!X666 -> 0 | AA172: =-Dx_Inputs!Y666 -> 0
B173: Street lighting | M173: =-Dx_Inputs!K667 -> 0 | N173: =-Dx_Inputs!L667 -> 0 | O173: =-Dx_Inputs!M667 -> 0 | P173: =-Dx_Inputs!N667 -> 0 | Q173: =-Dx_Inputs!O667 -> 0 | R173: =-Dx_Inputs!P667 -> 0 | S173: =-Dx_Inputs!Q667 -> 0 | T173: =-Dx_Inputs!R667 -> 0 | U173: =-Dx_Inputs!S667 -> 0 | V173: =-Dx_Inputs!T667 -> 0 | W173: =-Dx_Inputs!U667 -> 0 | X173: =-Dx_Inputs!V667 -> 0 | Y173: =-Dx_Inputs!W667 -> 0 | Z173: =-Dx_Inputs!X667 -> 0 | AA173: =-Dx_Inputs!Y667 -> 0
B174: Meters and Services | M174: =-Dx_Inputs!K668 -> 0 | N174: =-Dx_Inputs!L668 -> 0 | O174: =-Dx_Inputs!M668 -> 0 | P174: =-Dx_Inputs!N668 -> 0 | Q174: =-Dx_Inputs!O668 -> 0 | R174: =-Dx_Inputs!P668 -> 0 | S174: =-Dx_Inputs!Q668 -> 0 | T174: =-Dx_Inputs!R668 -> 0 | U174: =-Dx_Inputs!S668 -> 0 | V174: =-Dx_Inputs!T668 -> 0 | W174: =-Dx_Inputs!U668 -> 0 | X174: =-Dx_Inputs!V668 -> 0 | Y174: =-Dx_Inputs!W668 -> 0 | Z174: =-Dx_Inputs!X668 -> 0 | AA174: =-Dx_Inputs!Y668 -> 0
B175: IT | M175: =-Dx_Inputs!K669 -> 0 | N175: =-Dx_Inputs!L669 -> 0 | O175: =-Dx_Inputs!M669 -> 0 | P175: =-Dx_Inputs!N669 -> 0 | Q175: =-Dx_Inputs!O669 -> 0 | R175: =-Dx_Inputs!P669 -> 0 | S175: =-Dx_Inputs!Q669 -> 0 | T175: =-Dx_Inputs!R669 -> 0 | U175: =-Dx_Inputs!S669 -> 0 | V175: =-Dx_Inputs!T669 -> 0 | W175: =-Dx_Inputs!U669 -> 0 | X175: =-Dx_Inputs!V669 -> 0 | Y175: =-Dx_Inputs!W669 -> 0 | Z175: =-Dx_Inputs!X669 -> 0 | AA175: =-Dx_Inputs!Y669 -> 0
B176: SCADA & Communications | M176: =-Dx_Inputs!K670 -> 0 | N176: =-Dx_Inputs!L670 -> 0 | O176: =-Dx_Inputs!M670 -> 0 | P176: =-Dx_Inputs!N670 -> 0 | Q176: =-Dx_Inputs!O670 -> 0 | R176: =-Dx_Inputs!P670 -> 0 | S176: =-Dx_Inputs!Q670 -> 0 | T176: =-Dx_Inputs!R670 -> 0 | U176: =-Dx_Inputs!S670 -> 0 | V176: =-Dx_Inputs!T670 -> 0 | W176: =-Dx_Inputs!U670 -> 0 | X176: =-Dx_Inputs!V670 -> 0 | Y176: =-Dx_Inputs!W670 -> 0 | Z176: =-Dx_Inputs!X670 -> 0 | AA176: =-Dx_Inputs!Y670 -> 0
B177: Other Distribution Non-Network | M177: =-Dx_Inputs!K671 -> -0.04696812 | N177: =-Dx_Inputs!L671 -> 0 | O177: =-Dx_Inputs!M671 -> 0 | P177: =-Dx_Inputs!N671 -> -2.625025022 | Q177: =-Dx_Inputs!O671 -> -0.3040426425 | R177: =-Dx_Inputs!P671 -> -0.6193376366 | S177: =-Dx_Inputs!Q671 -> 0 | T177: =-Dx_Inputs!R671 -> 0 | U177: =-Dx_Inputs!S671 -> -1.499712538 | V177: =-Dx_Inputs!T671 -> 0 | W177: =-Dx_Inputs!U671 -> 0 | X177: =-Dx_Inputs!V671 -> 0 | Y177: =-Dx_Inputs!W671 -> 0 | Z177: =-Dx_Inputs!X671 -> 0 | AA177: =-Dx_Inputs!Y671 -> 0
B178: Distribution Land & Easements | M178: =-Dx_Inputs!K672 -> -0.81502791 | N178: =-Dx_Inputs!L672 -> -0.031 | O178: =-Dx_Inputs!M672 -> -3.546 | P178: =-Dx_Inputs!N672 -> 0 | Q178: =-Dx_Inputs!O672 -> -0.31394041 | R178: =-Dx_Inputs!P672 -> -0.7302532082 | S178: =-Dx_Inputs!Q672 -> -0.587 | T178: =-Dx_Inputs!R672 -> 0 | U178: =-Dx_Inputs!S672 -> -0.1122874619 | V178: =-Dx_Inputs!T672 -> -0.00144371 | W178: =-Dx_Inputs!U672 -> 0 | X178: =-Dx_Inputs!V672 -> 0 | Y178: =-Dx_Inputs!W672 -> 0 | Z178: =-Dx_Inputs!X672 -> 0 | AA178: =-Dx_Inputs!Y672 -> 0
B179: Equity Raising Costs | M179: =-Dx_Inputs!K673 -> 0 | N179: =-Dx_Inputs!L673 -> 0 | O179: =-Dx_Inputs!M673 -> 0 | P179: =-Dx_Inputs!N673 -> 0 | Q179: =-Dx_Inputs!O673 -> 0 | R179: =-Dx_Inputs!P673 -> 0 | S179: =-Dx_Inputs!Q673 -> 0 | T179: =-Dx_Inputs!R673 -> 0 | U179: =-Dx_Inputs!S673 -> 0 | V179: =-Dx_Inputs!T673 -> 0 | W179: =-Dx_Inputs!U673 -> 0 | X179: =-Dx_Inputs!V673 -> 0 | Y179: =-Dx_Inputs!W673 -> 0 | Z179: =-Dx_Inputs!X673 -> 0 | AA179: =-Dx_Inputs!Y673 -> 0
B180: Standalone Power Systems | M180: =-Dx_Inputs!K674 -> 0 | N180: =-Dx_Inputs!L674 -> 0 | O180: =-Dx_Inputs!M674 -> 0 | P180: =-Dx_Inputs!N674 -> 0 | Q180: =-Dx_Inputs!O674 -> 0 | R180: =-Dx_Inputs!P674 -> 0 | S180: =-Dx_Inputs!Q674 -> 0 | T180: =-Dx_Inputs!R674 -> 0 | U180: =-Dx_Inputs!S674 -> 0 | V180: =-Dx_Inputs!T674 -> 0 | W180: =-Dx_Inputs!U674 -> 0 | X180: =-Dx_Inputs!V674 -> 0 | Y180: =-Dx_Inputs!W674 -> 0 | Z180: =-Dx_Inputs!X674 -> 0 | AA180: =-Dx_Inputs!Y674 -> 0
B181: Storage | M181: =-Dx_Inputs!K675 -> 0 | N181: =-Dx_Inputs!L675 -> 0 | O181: =-Dx_Inputs!M675 -> 0 | P181: =-Dx_Inputs!N675 -> 0 | Q181: =-Dx_Inputs!O675 -> 0 | R181: =-Dx_Inputs!P675 -> 0 | S181: =-Dx_Inputs!Q675 -> 0 | T181: =-Dx_Inputs!R675 -> 0 | U181: =-Dx_Inputs!S675 -> 0 | V181: =-Dx_Inputs!T675 -> 0 | W181: =-Dx_Inputs!U675 -> 0 | X181: =-Dx_Inputs!V675 -> 0 | Y181: =-Dx_Inputs!W675 -> 0 | Z181: =-Dx_Inputs!X675 -> 0 | AA181: =-Dx_Inputs!Y675 -> 0
B182: Total | M182: =SUM(M169:M181) -> -0.86199603 | N182: =SUM(N169:N181) -> -0.285 | O182: -4.789 | P182: -2.757763012 | Q182: -0.6179830525 | R182: -1.443 | S182: -0.587 | T182: -0.596 | U182: -1.612 | V182: -0.20899336 | W182: 0 | X182: 0 | Y182: 0 | Z182: 0 | AA182: 0
B184: Year ending 30 June | F184: 2006 | G184: 2007 | H184: 2008 | I184: 2009 | J184: 2010 | K184: 2011 | L184: 2012 | M184: 2013 | N184: 2014 | O184: 2015 | P184: 2016 | Q184: 2017 | R184: 2018 | S184: 2019 | T184: 2020 | U184: 2021 | V184: 2022 | W184: 2023 | X184: 2024 | Y184: 2025 | Z184: 2026 | AA184: 2027
B185: Closing balance | D185: Checks
B186: Wooden Pole Lines | D186: =IF(SUM(L186,M135:AF135,M152:V152)>=0,"OK","CHECK") -> OK | L186: =Dx_Inputs!L61 -> 2747.935154 | M186: =SUM(M118,M135,M152,M169) -> 2686.723837 | N186: 2626.363379 | O186: 2566.245536 | P186: 2507.518798 | Q186: 2449.600046 | R186: 2388.195432 | S186: 2325.682909 | T186: 2264.096589 | U186: 2206.177838 | V186: 2148.051537 | W186: 2090.132786 | X186: 2032.214034 | Y186: 1974.295283 | Z186: 1916.376531 | AA186: 1858.45778
B187: Underground Cables | D187: OK | L187: =Dx_Inputs!L62 -> 110.2319941 | M187: =SUM(M119,M136,M153,M170) -> 109.7869573 | N187: 107.6088966 | O187: 105.4624109 | P187: 103.3229222 | Q187: 101.2019473 | R187: 99.08097246 | S187: 96.95999758 | T187: 94.8390227 | U187: 92.71804782 | V187: 90.59707294 | W187: =SUM(W119,W136,W153,W170) -> 88.47609807 | X187: 86.35512319 | Y187: 84.23414831 | Z187: 82.11317343 | AA187: 79.99219855
B188: Transformers | D188: OK | L188: =Dx_Inputs!L63 -> 32.22184132 | M188: =SUM(M120,M137,M154,M171) -> 31.35727014 | N188: 30.46395204 | O188: 29.67965475 | P188: 28.89791411 | Q188: 28.12293815 | R188: 26.91673217 | S188: 24.73335895 | T188: 23.23735497 | U188: 22.46237901 | V188: 21.68740306 | W188: =SUM(W120,W137,W154,W171) -> 20.9124271 | X188: 20.13745115 | Y188: 19.36247519 | Z188: 18.58749923 | AA188: 17.81252328
B189: Switchgear | D189: OK | L189: =Dx_Inputs!L64 -> 25.6890398 | M189: =SUM(M121,M138,M155,M172) -> 25.34516608 | N189: 24.47481741 | O189: 23.64110365 | P189: 22.81010763 | Q189: 21.98630252 | R189: 20.90515465 | S189: 19.53727894 | T189: 18.37613808 | U189: 17.55233297 | V189: 16.72852786 | W189: =SUM(W121,W138,W155,W172) -> 15.90472275 | X189: 15.08091764 | Y189: 14.25711253 | Z189: 13.43330742 | AA189: 12.6095023
B190: Street lighting | D190: OK | L190: =Dx_Inputs!L65 -> 35.1250608 | M190: =SUM(M122,M139,M156,M173) -> 33.02967319 | N190: 30.28352091 | O190: 27.57717904 | P190: 24.87965932 | Q190: 22.2054822 | R190: 19.53130509 | S190: 16.85712797 | T190: 14.18295085 | U190: 11.50877373 | V190: 8.834596614 | W190: =SUM(W122,W139,W156,W173) -> 6.160419496 | X190: 3.486242378 | Y190: 0.8120652606 | Z190: 0 | AA190: 0
B191: Meters and Services | D191: OK | L191: =Dx_Inputs!L66 -> 3.246493062 | M191: =SUM(M123,M140,M157,M174) -> 3.239309008 | N191: 3.111014879 | O191: 2.984580603 | P191: 2.858558479 | Q191: 2.73362687 | R191: 2.60869526 | S191: 2.48376365 | T191: 2.358832041 | U191: 2.233900431 | V191: 2.108968821 | W191: =SUM(W123,W140,W157,W174) -> 1.984037212 | X191: 1.859105602 | Y191: 1.734173992 | Z191: 1.609242383 | AA191: 1.484310773
B192: IT | D192: OK | L192: =Dx_Inputs!L67 -> 31.47250339 | M192: =SUM(M124,M141,M158,M175) -> 29.59992562 | N192: 21.89330381 | O192: 14.29862352 | P192: 6.728700438 | Q192: 0.9558080213 | R192: 0 | S192: 0 | T192: 0 | U192: 0 | V192: 0 | W192: =SUM(W124,W141,W158,W175) -> 0 | X192: 0 | Y192: 0 | Z192: 0 | AA192: 0
B193: SCADA & Communications | D193: OK | L193: =Dx_Inputs!L68 -> 15.86631549 | M193: =SUM(M125,M142,M159,M176) -> 13.86601342 | N193: 11.70660369 | O193: 9.989983175 | P193: 8.636155983 | Q193: 7.326164423 | R193: 6.016172862 | S193: 4.706181302 | T193: 3.396189741 | U193: 2.086198181 | V193: 0.7762066202 | W193: =SUM(W125,W142,W159,W176) -> 0 | X193: 0 | Y193: 0 | Z193: 0 | AA193: 0
B194: Other Distribution Non-Network | D194: OK | L194: =Dx_Inputs!L69 -> 107.6731485 | M194: =SUM(M126,M143,M160,M177) -> 89.17141155 | N194: 80.54001633 | O194: 74.46300163 | P194: 65.93634474 | Q194: 59.87698565 | R194: 53.50233157 | S194: 47.74701513 | T194: 41.99169868 | U194: 34.7366697 | V194: 28.98135325 | W194: =SUM(W126,W143,W160,W177) -> 23.22603681 | X194: 17.47072036 | Y194: 11.71540392 | Z194: 5.960087474 | AA194: 0.204771029
B195: Distribution Land & Easements | D195: OK | L195: =Dx_Inputs!L70 -> 18.23082961 | M195: =SUM(M127,M144,M161,M178) -> 17.4158017 | N195: 17.3848017 | O195: 13.8388017 | P195: 13.8388017 | Q195: 13.52486129 | R195: 12.79460808 | S195: 12.20760808 | T195: 12.20760808 | U195: 12.09532062 | V195: 12.09387691 | W195: =SUM(W127,W144,W161,W178) -> 12.09387691 | X195: 12.09387691 | Y195: 12.09387691 | Z195: 12.09387691 | AA195: 12.09387691
B196: Equity Raising Costs | D196: OK | L196: =Dx_Inputs!L71 -> 0 | M196: =SUM(M128,M145,M162,M179) -> 0 | N196: 0 | O196: 0 | P196: 0 | Q196: 0 | R196: 0 | S196: 0 | T196: 0 | U196: 0 | V196: 0 | W196: =SUM(W128,W145,W162,W179) -> 0 | X196: 0 | Y196: 0 | Z196: 0 | AA196: 0
B197: Standalone Power Systems | D197: =IF(SUM(L197,M146:AF146,M163:V163)>=0,"OK","CHECK") -> OK | L197: =Dx_Inputs!L72 -> 0 | M197: 0 | N197: =SUM(N129,N146,N163,N180) -> 0 | O197: 0 | P197: 0 | Q197: 0 | R197: 0 | S197: 0 | T197: 0 | U197: 0 | V197: 0 | W197: 0 | X197: 0 | Y197: 0 | Z197: 0 | AA197: 0
B198: Storage | D198: OK | L198: =Dx_Inputs!L73 -> 0 | M198: =SUM(M130,M147,M164,M181) -> 0 | N198: 0 | O198: 0 | P198: 0 | Q198: 0 | R198: 0 | S198: 0 | T198: 0 | U198: 0 | V198: 0 | W198: 0 | X198: 0 | Y198: 0 | Z198: 0 | AA198: 0
B199: Total | L199: =SUM(L186:L198) -> 3127.69238 | M199: =SUM(M186:M198) -> 3039.535365 | N199: 2953.830306 | O199: 2868.180875 | P199: 2785.427962 | Q199: 2707.534163 | R199: 2629.551404 | S199: 2550.915241 | T199: 2474.686385 | U199: 2401.571461 | V199: 2329.859543 | W199: 2258.890404 | X199: 2188.697471 | Y199: 2118.504539 | Z199: 2050.173718 | AA199: 1982.654963
B201: Capital expenditure [$M nominal]
B202: Year ending 30 June | F202: 2006 | G202: 2007 | H202: 2008 | I202: 2009 | J202: 2010 | K202: 2011 | L202: 2012 | M202: 2013 | N202: 2014 | O202: 2015 | P202: 2016 | Q202: 2017 | R202: 2018 | S202: 2019 | T202: 2020 | U202: 2021 | V202: 2022 | W202: 2023 | X202: 2024 | Y202: 2025 | Z202: 2026 | AA202: 2027 | AB202: 2028 | AC202: 2029 | AD202: 2030 | AE202: 2031 | AF202: 2032
B203: Opening balance
B204: Wooden Pole Lines | M204: =L272 -> 0 | N204: 307.6323587 | O204: 666.479321 | P204: 931.9451692 | Q204: 1098.670511 | R204: 1154.887118 | S204: 1275.424582 | T204: 1407.886971 | U204: 1547.419247 | V204: 1709.555298 | W204: 1832.848423 | X204: =W272 -> 1918.257665 | Y204: 2028.352265 | Z204: 2141.04055 | AA204: 2251.651824
B205: Underground Cables | M205: =L273 -> 0 | N205: 69.71205692 | O205: 122.1282505 | P205: 172.6776679 | Q205: 219.4930781 | R205: 261.6908901 | S205: 266.1352111 | T205: 281.6945973 | U205: 307.1131312 | V205: 338.0450577 | W205: 339.046402 | X205: 464.2359263 | Y205: 592.2929413 | Z205: 729.7778193 | AA205: 872.3092961
B206: Transformers | M206: 0 | N206: 122.5480783 | O206: 228.0645446 | P206: 341.9154802 | Q206: 436.8939619 | R206: 504.6042207 | S206: 490.5425606 | T206: 482.153479 | U206: 475.1013826 | V206: 467.9085248 | W206: 459.401967 | X206: 451.3250609 | Y206: 444.3982232 | Z206: 438.7123023 | AA206: 433.9551948
B207: Switchgear | M207: 0 | N207: 68.1170679 | O207: 130.2818492 | P207: 191.5370385 | Q207: 235.2505408 | R207: 264.017411 | S207: 251.3281221 | T207: 243.4761474 | U207: 237.8995864 | V207: 233.215181 | W207: 223.9676628 | X207: 233.9700316 | Y207: 245.7757817 | Z207: 258.2344297 | AA207: 269.9354485
B208: Street lighting | M208: 0 | N208: 4.893438222 | O208: 8.920003008 | P208: 13.56668483 | Q208: 17.69047229 | R208: 20.10560311 | S208: 27.94438939 | T208: 37.89432171 | U208: 46.7466898 | V208: 56.41596482 | W208: 62.06908274 | X208: 66.14075435 | Y208: 70.85503487 | Z208: 75.63814565 | AA208: 79.83551787
B209: Meters and Services | M209: 0 | N209: 11.40865 | O209: 19.333808 | P209: 29.47425336 | Q209: 50.17131309 | R209: 67.53060804 | S209: 76.07473268 | T209: 93.95072466 | U209: 114.7492231 | V209: 124.4044733 | W209: 129.401889 | X209: 183.930573 | Y209: 233.1951061 | Z209: 288.5009802 | AA209: 332.1715467
